{"text_format":"1","workbook":"xlsx","n_sheets":26,"sheets":["Postal Code Guide","Customer","District","credit data","Exchange Rates","AccoAssignGrp_TaxCalssification","Sheet2","CredControlArea","PriceGrp_PriceProced_PriceList","Soffice_Sgrp","CustomerGrp","SalesDistrict","S.area","Vendor Change","VendorReqTbl","Postl codes","START","INSTRUCTIONS","Interest Indicator","Currency","Dropdowns","Payment term","reconccilliation accout","Country","Regions","regions table"],"not_rendered":{"charts":0,"images":6,"macros":1,"external_links":0,"defined_names":158,"comments":0,"pivot_tables":0},"unopened":[],"bounds":{"document_bytes":16777216,"sheet_cells":100000,"rows_first":2000,"rows_last":500,"rows_between":2000,"halvings":0,"cell_chars":16384,"cell_head_chars":4096},"cells_cut":0,"cells_raw":0,"read":"whole","date_system":"1900"}

{"sheet":"Postal Code Guide","index":0,"n_rows":58,"n_cols":10,"rows_kept":58,"cut":false,"hidden":true,"merged":[]}
[null,null,"Country","Length","Check Rule","Country Name",null,null,"Check Rule","Description"]
[null,null,"AR","4","4","Argentina",null,null,1,"Maximum value length, without gaps"]
[null,null,"AT","4","4","Austria",null,null,2,"Maximum value length, numerical, without gaps"]
[null,null,"AU","7","2","Australia",null,null,3,"Length to be kept to exactly, without gaps"]
[null,null,"BE","4","4","Belgium",null,null,4,"Length to be kept to exactly, numerical, without gaps"]
[null,null,"BG","4","4","Bulgaria",null,null,5,"Maximum value length"]
[null,null,"BR","9","7","Brazil",null,null,6,"Maximum value length, numerical"]
[null,null,"BY","6","4","Belarus",null,null,7,"Length to be kept to exactly"]
[null,null,"CA","6","9","Canada",null,null,8,"Length to be kept to exactly, numerical"]
[null,null,"CH",4,"4","Switzerland",null,null,9,"Check against country-specific edit format"]
[null,null,"CL","7","1","Chile"]
[null,null,"CN","6","4","China"]
[null,null,"CR","5","4","Costa Rica"]
[null,null,"CY","4","4","Cyprus"]
[null,null,"CZ","6","9","Czech Republic"]
[null,null,"DE","5","4","Germany"]
[null,null,"DK","4","4","Denmark"]
[null,null,"DZ","5","4","Algeria"]
[null,null,"EE","5","4","Estonia"]
[null,null,"ES","5","4","Spain"]
[null,null,"FI","5","4","Finland"]
[null,null,"FO","3","4","Faroe Islands"]
[null,null,"FR","5","4","France"]
[null,null,"GB","9","5","United Kingdom"]
[null,null,"GR","5","4","Greece"]
[null,null,"HR","5","4","Croatia"]
[null,null,"HU","4","4","Hungary"]
[null,null,"ID","5","4","Indonesia"]
[null,null,"IL","5","4","Israel"]
[null,null,"IN","6","4","India"]
[null,null,"IR","5","4","Iran"]
[null,null,"IS","3","4","Iceland"]
[null,null,"IT","5","4","Italy"]
[null,null,"JP","7","4","Japan"]
[null,null,"KG","6","4","Kyrgyzstan"]
[null,null,"KP","7","5","North Korea"]
[null,null,"KR","7","9","South Korea"]
[null,null,"KW","5","4","Kuwait"]
[null,null,"KZ","6","4","Kazakhstan"]
[null,null,"LI","4","4","Liechtenstein"]
[null,null,"LS","3","4","Lesotho"]
[null,null,"LU","4","4","Luxembourg"]
[null,null,"LV","7","1","Latvia"]
[null,null,"MC","5","4","Monaco"]
[null,null,"ME","5","4","Montenegro"]
[null,null,"MX","5","4","Mexico"]
[null,null,"MY","5","4","Malaysia"]
[null,null,"NL","6","4","Netherlands"]
[null,null,"NO","4","4","Norway"]
[null,null,"NP","6","4","Nepal"]
[null,null,"NZ","4","4","New Zealand"]
[null,null,"PH","4","4","Philippines"]
[null,null,"PL","6","9","Poland"]
[null,null,"PT","8","3","Portugal"]
[null,null,"RO","6","4","Romania"]
[null,null,"RS","5","4","Serbia"]
[null,null,"RU","6","4","Russian Federation"]
[null,null,"SA","5","4","Saudi Arabia"]

{"sheet":"Customer","index":1,"n_rows":62,"n_cols":46,"rows_kept":62,"cut":false,"hidden":true,"merged":[[53,32,53,33],[55,29,55,40],[52,32,52,33],[57,32,57,33],[48,32,48,33],[48,38,48,39],[49,32,49,33],[49,38,49,39],[41,38,41,39],[51,38,51,39],[52,38,52,39],[33,32,33,33],[35,29,35,40],[37,37,37,38],[39,32,39,33],[38,32,38,33],[33,38,33,39],[46,32,46,33],[50,32,50,33],[50,38,50,39],[34,29,34,40],[40,38,40,39],[50,6,50,7],[50,12,50,13],[52,6,52,7],[53,6,53,7],[46,6,46,7],[48,6,48,7],[48,12,48,13],[49,6,49,7],[49,12,49,13],[46,12,46,13],[51,12,51,13],[52,12,52,13],[42,6,42,7],[42,32,42,33],[42,38,42,39],[43,32,43,33],[43,38,43,39],[44,32,44,33],[44,38,44,39],[39,6,39,7],[41,6,41,7],[41,12,41,13],[42,12,42,13],[43,6,43,7],[43,12,43,13],[44,6,44,7],[44,12,44,13],[41,32,41,33],[40,12,40,13],[38,6,38,7],[33,6,33,7],[34,3,34,14],[35,3,35,14],[32,19,32,20],[33,19,33,20],[35,16,35,27],[30,19,30,20],[30,25,30,26],[31,25,31,26],[32,25,32,26],[28,25,28,26],[22,25,22,26],[23,25,23,26],[24,19,24,20],[24,25,24,26],[26,19,26,20],[28,19,28,20],[37,6,37,7],[37,11,37,12],[26,25,26,26],[29,19,29,20],[29,25,29,26],[0,1,1,1],[9,32,9,35],[9,36,9,38],[23,32,23,33],[10,3,10,14],[22,32,22,33],[22,19,22,20],[23,19,23,20],[23,6,23,7],[10,16,10,27],[17,19,17,20],[22,6,22,7],[15,16,15,27],[17,24,17,25],[19,19,19,20],[21,25,21,26],[20,25,20,26],[32,38,32,39],[28,3,28,14],[29,3,29,14],[30,3,30,14],[32,12,32,13],[30,29,30,40],[32,32,32,33],[2,1,4,1],[6,32,6,34],[6,36,6,37],[6,1,8,1],[7,32,7,34],[7,36,7,37],[0,3,4,14],[0,29,4,40],[0,16,4,27],[6,38,6,39],[18,19,18,20],[10,29,10,40],[21,19,21,20],[12,25,12,26],[13,19,13,20],[14,16,14,27],[28,29,28,40]]}
[null,"Select the Specific 'CUSTOMER REQUIREMENT' from the list",null,"CUSTOMER CREATION",null,null,null,null,null,null,null,null,null,null,null,null,"CUSTOMER EXTENSION",null,null,null,null,null,null,null,null,null,null,null,null,"CUSTOMER CHANGE"]
[]
[null,"Customer_Creation"]
[]
[]
[null,{"$f":"IF(OR(B10=VendorReqTbl!A2,B10=VendorReqTbl!A3,B10=VendorReqTbl!A4,B10=VendorReqTbl!A5),CustomerReqTbl[[#Headers],[Customer_Creation]],IF(OR(B10=VendorReqTbl!B2,B10=VendorReqTbl!B3,B10=VendorReqTbl!B4,B10=VendorReqTbl!B5),CustomerReqTbl[[#Headers],[Customer_Extension]],IF(OR(B10=VendorReqTbl!C2,B10=VendorReqTbl!C3,B10=VendorReqTbl!C4),CustomerReqTbl[[#Headers],[Customer_Change]])))","v":"Customer_Creation"}]
[null,"Select the specific 'CUSTOMER SUB-REQUIREMENT' from the list"]
[null,null,null,null,null,null,null,null,null,null,null,null,null,null,null,null,"Business Partner Code","*",1234567,null,null,null,null,null,null,null,null,null,null,"Business Partner Code","*",1234567]
[null,null,null,"Company Code","*",1000,null,null,null,{"$f":"IF(F9<>\"\",VLOOKUP(F9,Dropdowns!$A$2:$B$19,2,FALSE),\"\")","v":"E.B.Creasy  & Co.PLC"},null,null,null,null,null,null,"Company Code","*",1100,null,null,null,{"$f":"IF(F9<>\"\",VLOOKUP(S9,Dropdowns!$A$2:$B$19,2,FALSE),\"\")","v":"Darley Butler & Co. Ltd"},null,null,null,null,null,null,"Company Code","*",1100,null,null,null,{"$f":"IF(F9<>\"\",VLOOKUP(AF9,Dropdowns!$A$2:$B$19,2,FALSE),\"\")","v":"Darley Butler & Co. Ltd"}]
[null,"Z1DM Domestic Business Partners"]
[null,null,null,"General Information",null,null,null,null,null,null,null,null,null,null,null,null,"Company Information",null,null,null,null,null,null,null,null,null,null,null,null,"General Information"]
[null,"Customer 3.4",null,"Business Partner Category","*","Private Institution/Person"]
[null,null,null,"Title",null,"0001 Ms.",null,null,null,"District",{"$f":"IF(AND(F12=\"Private Institution/Person\",NOT(B10=\"Z2FR Foreign Business Partners\"),NOT(B10=\"Z6IL Investments/Loans Business Partners\"),NOT(B10=\"Z5EM Employee Business Partners\")),\"*\",\"\")","v":"*"},"COLOMBO",null,null,null,null,"Sort key",null,{"$f":"IF(ISBLANK(S9),\"\",\"031\")","v":"031"},null,null,null,"Reconciliation acct","*","Domestic Customers",{"$f":"IF(ISBLANK(Y13),\"\",VLOOKUP(Y13,'reconccilliation accout'!$A$2:$B$46,2,FALSE))","v":10090000},null,null,null,"Title",null,null,null,null,null,"District"]
[null,null,null,"First Name","*","FIRST NAME SHOULD BE CAPITAL",null,null,null,"Last Name",null,null,null,"\"",null,null,"Terms of Payment (For Company)","*","0002 -  14 days 2%, 30 net",{"$f":"IF(ISBLANK(S14),\"\",VLOOKUP(S14,'Payment term'!$A$2:$B$67,2,FALSE))","v":"0002"},null,null,"Record Payment History",null,{"$f":"IF(ISBLANK(S9),\"\",\"x\")","v":"x"},null,null,null,null,"First Name",null,null,null,null,null,"Last Name",null,null,null,"\""]
[null,null,null,"Search Term 1",{"$f":"IF(B10=\"Z5EM Employee Business Partners\",\"\",\"*\")","v":"*"},"SAMPLE1234",null,null,null,"Search term 2",{"$f":"IF(B10=\"Z5EM Employee Business Partners\",\"*\",\"\")","v":""},null,null,null,null,null,null,null,null,null,null,null,null,null,null,null,null,null,null,"Seach Term 1",null,null,null,null,null,"Search term 2",{"$f":"IF(AF9=\"Z5EM Employee Business Partners\",\"*\",\"\")","v":""}]
[null,null,null,"Street/House No","*","STREET/HOUSE NO",null,null,null,"BR/NIC/Passport",{"$f":"IF(AND(F12=\"Private Institution/Person\",NOT(B10=\"Z2FR Foreign Business Partners\")),\"*\",\"\")","v":"*"},"BR Number",null,"SAMPLE 123",null,null,"Sales & Distribution Information",null,null,null,null,null,null,null,null,null,null,null,null,"Street/House number",null,null,null,null,null,"NIC/Passport",null," "]
[null,null,null,"Street 2",null,null,null,null,null,null,null,"",null,null,null,null,null,null,{"$f":"IF(ISBLANK(S9),\"\",\"EN\")","v":"EN"},null,null,null,null,null,null,null,null,null,null,"Street 2",null,null,null,null,null,"Business Reg. No. (BR)"]
[null,null,null,"Street 3",null,null,null,null,null,"VAT/SVAT numbers",null,"",null,null,null,null,"Sales Org.","*","1100",null,null,null,null,null,null,null,null,null,"Street 3","Street 3",null,null,null,null,null,"VAT/SVAT Numbers"]
[null,null,null,"Street 4",null,null,null,null,null,"Telephone 1/2",null,null,null,null,null,null,"Distr. Channel","*","10 - Domestic Sales",{"$f":"IF(ISBLANK(S19),\"\",VLOOKUP(S19,DisChnlTbl[],2,FALSE))","v":10},null,null,null,null,null,null,null,null,null,"Street 4",null,null,null,null,null,"Telephone 1/2"]
[null,null,null,"Street 5",null,null,null,null,null,"Mobile phone 1/2",null,null,null,null,null,"special","Division",null,"30 - Consumer Range",{"$f":"IF(ISBLANK(S20),\"\",VLOOKUP(S20,DivisionTbl[],3,FALSE))","v":"30"},null,null,null,null,null,null,null,null,null,"Street 5",null,null,null,null,null,"Mobile Phone 1/2"]
[null,null,null,"City","*","CITY",null,null,null,"Email 1/2",null,null,null,null,null,"special",null,null,null,null,null,null,"Exchange Rate Type",null,"B - Standard translation at bk.selling rate",{"$f":"IF(ISBLANK(Y21),\"\",VLOOKUP(Y21,'Exchange Rates'!$A$3:$B$22,2,FALSE))","v":"Standard translation at bk.selling rate"},null,null,null,"City",null,null,null,null,null,"Email 1/2",null,null,null,null,null,"special","characters:"," , ( , )","characters:"," , ( , )"]
[null,null,null,"Postal Code","*","12345",null,null,null,"Contact Person",null,null,null,null,null,null,"Sales District",null,"000001 - Not Specified",{"$f":"IF(ISBLANK(S22),\"\",VLOOKUP(S22,SalesDistrict[],3,FALSE))","v":"000001"},null,null,"Price Group","*","01 - Bulk buyer",{"$f":"IF(ISBLANK(Y22),\"\",VLOOKUP(Y22,PriceGrp[],2,FALSE))","v":"01"},null,null,null,"Postal Code",null,null,null,null,null,"Contact Person"]
[null,null,null,"Country","*","Sri Lanka",{"$f":"IF(ISBLANK(country_),\"\",VLOOKUP(F23,Dropdowns!$E$2:$F$250,2,FALSE))","v":"LK"},null,null,null,null,null,null,null,null,null,"Customer Group","*","03 - Private Institutions",{"$f":"IF(ISBLANK(S23),\"\",VLOOKUP(S23,CustomerGrp[],2,FALSE))","v":"03"},null,null,"Cust.Pric.Procedure","*","1 - Domestic Sales",{"$f":"IF(ISBLANK(Y23),\"\",VLOOKUP(Y23,CustPriceProcedure[],2,FALSE))","v":1},null,null,null,"Country",null,null,{"$f":"IF(ISBLANK(AF23),\"\",VLOOKUP(AF23,Dropdowns!$E$2:$F$250,2,FALSE))","v":""}]
[null,null,null,"Region","*","Northern Province",{"$f":"IF(ISBLANK(F24),\"\",VLOOKUP(F24,Regions!$C$2:$D$1961,2,FALSE))","v":"03"},null,null,null,null,null,null,null,null,null,"Sales Office","*","1101 - D.B Sales office",{"$f":"IF(ISBLANK(S24),\"\",VLOOKUP(S24,SalesOffice[],2,FALSE))","v":"1101"},null,null,"Price List","*","01 - Basic",{"$f":"IF(ISBLANK(Y24),\"\",VLOOKUP(Y24,PriceList_[],2,FALSE))","v":"01"},null,null,null,"Region",null,null,{"$f":"IF(ISBLANK(AF24),\"\",VLOOKUP(AF24,Regions!$C$2:$D$1961,2,FALSE))","v":""}]
[null,null,null,"Bank Account Number ",{"$f":"IF(OR(F25<>\"\",F26<>\"\",F27<>\"\",F28<>\"\",L26<>\"\",L28<>\"\",L27<>\"\"),\"*\",\"\")","v":""},null,null,null,null,null,null,null,null,null,null,null,"Sales Group","*","100 - Domestic Group",{"$f":"IF(ISBLANK(S25),\"\",VLOOKUP(S25,SalesGrp[],2,FALSE))","v":100},null,null,"Customer Stats.Group","*",{"$f":"IF(ISBLANK(S9),\"\",\"1-Required\")","v":"1-Required"},{"$f":"IF(ISBLANK(S9),\"\",\"1\")","v":"1"},null,null,null,"Bank Account Number ",{"$f":"IF(OR(AF25<>\"\",AF26<>\"\",AF27<>\"\",AF28<>\"\",AL26<>\"\",AL28<>\"\",AL27<>\"\"),\"*\",\"\")","v":""}]
[null,null,null,"Bank Name ",{"$f":"IF(OR(F25<>\"\",F26<>\"\",F27<>\"\",F28<>\"\",L26<>\"\",L28<>\"\",L27<>\"\"),\"*\",\"\")","v":""},null,null,null,null,"Bank Code",{"$f":"IF(OR(F25<>\"\",F26<>\"\",F27<>\"\",F28<>\"\",L26<>\"\",L28<>\"\",L27<>\"\"),\"*\",\"\")","v":""},null,null,null,null,null,null,null,null,null,null,null,null,null,null,null,null,null,null,"Bank Name",{"$f":"IF(OR(AF25<>\"\",AF26<>\"\",AF27<>\"\",AF28<>\"\",AL26<>\"\",AL28<>\"\",AL27<>\"\"),\"*\",\"\")","v":""},null,null,null,null,"Bank Code",{"$f":"IF(OR(AF25<>\"\",AF26<>\"\",AF27<>\"\",AF28<>\"\",AL26<>\"\",AL28<>\"\",AL27<>\"\"),\"*\",\"\")","v":""}]
[null,null,null,"Branch Name",{"$f":"IF(OR(F25<>\"\",F26<>\"\",F27<>\"\",F28<>\"\",L26<>\"\",L28<>\"\",L27<>\"\"),\"*\",\"\")","v":""},null,null,null,null,"Branch Code",{"$f":"IF(OR(F25<>\"\",F26<>\"\",F27<>\"\",F28<>\"\",L26<>\"\",L28<>\"\",L27<>\"\"),\"*\",\"\")","v":""},null,null,null,null,null,"Currency","*","Sri Lankan Rupee - LKR",{"$f":"IF(ISBLANK(S27),\"\",VLOOKUP(S27,CurrencyTable,2,FALSE))","v":"LKR"},null,null,"Shipping Conditions",null,{"$f":"IF(ISBLANK(S9),\"\",\"01 - Standard\")","v":"01 - Standard"},{"$f":"IF(ISBLANK(S9),\"\",\"01\")","v":"01"},null,null,null,"Branch Name",{"$f":"IF(OR(AF25<>\"\",AF26<>\"\",AF27<>\"\",AF28<>\"\",AL26<>\"\",AL28<>\"\",AL27<>\"\"),\"*\",\"\")","v":""},null,null,null,null,"Branch Code",{"$f":"IF(OR(AF25<>\"\",AF26<>\"\",AF27<>\"\",AF28<>\"\",AL26<>\"\",AL28<>\"\",AL27<>\"\"),\"*\",\"\")","v":""}]
[null,null,null,"Account Holder Name",{"$f":"IF(OR(F25<>\"\",F26<>\"\",F27<>\"\",F28<>\"\",L26<>\"\",L28<>\"\",L27<>\"\"),\"*\",\"\")","v":""},null,null,null,null,"SWIFT Code",{"$f":"IF(OR(F25<>\"\",F26<>\"\",F27<>\"\",F28<>\"\",L26<>\"\",L28<>\"\",L27<>\"\"),\"*\",\"\")","v":""},null,null,null,null,null,null,null,null,null,null,null,null,null,null,null,null,null,null,"Account Holder Name",{"$f":"IF(OR(AF25<>\"\",AF26<>\"\",AF27<>\"\",AF28<>\"\",AL26<>\"\",AL28<>\"\",AL27<>\"\"),\"*\",\"\")","v":""},null,null,null,null,"SWIFT Code",{"$f":"IF(OR(AF25<>\"\",AF26<>\"\",AF27<>\"\",AF28<>\"\",AL26<>\"\",AL28<>\"\",AL27<>\"\"),\"*\",\"\")","v":""}]
[null,null,null,null,null,null,null,null,null,null,null,null,null,null,null,null,"Terms of Payment (For S.Org)","*","0001 -  Pay immediately w/o deduction",{"$f":"IF(ISBLANK(S29),\"\",VLOOKUP(S29,'Payment term'!$A$2:$B$67,2,FALSE))","v":"0001"},null,null,"Output NBT","*","0 - NBT Exempted",{"$f":"IF(ISBLANK(Y29),\"\",VLOOKUP(Y29,NBT[],2,FALSE))","v":0}]
[null,null,null,null,null,null,null,null,null,null,null,null,null,null,null,null,"Credit control area","*","1108 Consumer Range II ",{"$f":"IF(ISBLANK(S30),\"\",VLOOKUP(S30,CreditCArea[],2,FALSE))","v":1108},null,null,"Output SVAT","*","6 - SVAT 18%",{"$f":"IF(ISBLANK(Y30),\"\",VLOOKUP(Y30,SVAT[],2,FALSE))","v":6}]
[null,null,null,"Company Information",null,null,null,null,null,null,null,null,null,null,null,null,"Acct Assmt Grp Cust.","*","04 - Inter Divison",{"$f":"IF(ISBLANK(S31),\"\",VLOOKUP(S31,AccountAssignGrp[],2,FALSE))","v":"04"},null,null,"Output VAT","*","6 - VAT 18%",{"$f":"IF(ISBLANK(Y31),\"\",VLOOKUP(Y31,VAT[],2,FALSE))","v":6},null,null,null,"Other Information (Company Information)"]
[null,null,null,null,null,null,null,null,null,null,null,null,null,null,null,null,null,null,null,null,null,null,"Output SSCL","*","SSCL Exempted",{"$f":"VLOOKUP(Y32,Sheet2!A2:B3,2,FALSE)","v":0}]
[null,null,null,"Sort key",null,{"$f":"IF(ISBLANK(F9),\"\",\"031\")","v":"031"},null,null,null,"Reconciliation acct","*","Flagon Dep-Export Customers",{"$f":"IF(ISBLANK(L33),\"\",VLOOKUP(L33,'reconccilliation accout'!$A$2:$B$46,2,FALSE))","v":30050700},null,null,null,"Sales Person",null,null,{"$f":"IF(ISBLANK(S33),\"\",\"ZS\")","v":""},null,null,"Output SVAT KF $ A5","*","K5 SVAT Exempted",{"$f":"VLOOKUP(Y33,Sheet2!A6:B7,2,FALSE)","v":0},null,null,null,"Reconciliation acct",null,null,{"$f":"IF(ISBLANK(AF33),\"\",VLOOKUP(AF33,'reconccilliation accout'!$A$2:$B$46,2,FALSE))","v":""},null,null,"Terms of Payment (For Company)",null,null,{"$f":"IF(ISBLANK(AL33),\"\",VLOOKUP(AL33,'Payment term'!$A$2:$B$67,2,FALSE))","v":""}]
[null,null,null,"Terms of Payment (For Company)","*","Z025 -  25 days Credit  period",{"$f":"IF(ISBLANK(F34),\"\",VLOOKUP(F34,'Payment term'!$A$2:$B$67,2,FALSE))","v":"Z025"},null,null,"Record Payment History",null,{"$f":"IF(ISBLANK(F9),\"\",\"x\")","v":"x"},null,null,null,null,"Sales Manger",null,null,{"$f":"IF(ISBLANK(S34),\"\",\"ZN\")","v":""}]
[]
[null,null,null,"Sales & Distribution Information",null,null,null,null,null,null,null,null,null,null,null,null,"Credit Segment Information",null,null,null,null,null,null,null,null,null,null,null,null,"Other Information (Sales & Distribution Information)"]
[null,null,null,null,null,{"$f":"IF(ISBLANK(F9),\"\",\"EN\")","v":"EN"}]
[null,null,null,"Sales Org.","*","1000",null,null,null,null,null,null,null,null,null,"Limit","Limit",{"$f":"IF(R37<>\"\",\"*\",IF(B9=\"Extend Only Credit Segment\",\"*\",(IF(OR(S8=\"1000\",S8=\"1100\",S8=\"1400\",S8=\"1550\",S8=\"1600\"),\"*\",IF(OR(S40<>\"\",S41<>\"\"),\"*\",\"\")))))","v":"*"},0,null,null,null,null,null,null,null,null,null,"Sales Org.","Sales Org.",{"$f":"IF(OR(AF41<>\"\",AF42<>\"\",AF43<>\"\",AF44<>\"\",AL41<>\"\",AL42<>\"\",AL43<>\"\",AF46<>\"\",AF48<>\"\",AF49<>\"\",AF50<>\"\",AF52<>\"\",AF53<>\"\",AL48<>\"\",AL49<>\"\",AL50<>\"\"),\"*\",\"\")","v":""}]
[null,null,null,"Distr. Channel","*","10 - Domestic Sales",{"$f":"IF(ISBLANK(F39),\"\",VLOOKUP(F39,DisChnlTbl[],2,FALSE))","v":10},null,null,null,null,null,null,null,null,null,"Credit Segment",{"$f":"IF(R38<>\"\",\"*\",IF(B10=\"Extend Only Credit Segment\",\"*\",(IF(OR(S9=\"1000\",S9=\"1100\",S9=\"1400\",S9=\"1550\",S9=\"1600\"),\"*\",IF(OR(S41<>\"\",S42<>\"\"),\"*\",\"\")))))","v":"*"},"1101 Hard Ware",null,null,null,null,null,null,null,null,null,null,"Distr. Channel",{"$f":"IF(OR(AF42<>\"\",AF43<>\"\",AF44<>\"\",AF45<>\"\",AL42<>\"\",AL43<>\"\",AL44<>\"\",AF47<>\"\",AF49<>\"\",AF50<>\"\",AF51<>\"\",AF53<>\"\",AF54<>\"\",AL49<>\"\",AL50<>\"\",AL51<>\"\"),\"*\",\"\")","v":""},null,{"$f":"IF(ISBLANK(AF39),\"\",VLOOKUP(AF39,DisChnlTbl[],2,FALSE))","v":""}]
[null,null,null,"Division","*","04 - Personal Care",{"$f":"IF(ISBLANK(F40),\"\",VLOOKUP(F40,DivisionTbl[],3,FALSE))","v":"04"},null,null,null,null,null,null,null,null,null,null,null,null,null,null,null,null,null,null,null,null,null,null,"Division",{"$f":"IF(OR(AF42<>\"\",AF43<>\"\",AF44<>\"\",AF45<>\"\",AL42<>\"\",AL43<>\"\",AL44<>\"\",AF47<>\"\",AF49<>\"\",AF50<>\"\",AF51<>\"\",AF53<>\"\",AF54<>\"\",AL49<>\"\",AL50<>\"\",AL51<>\"\"),\"*\",\"\")","v":""},null,{"$f":"IF(ISBLANK(AF40),\"\",VLOOKUP(AF40,DivisionTbl[],3,FALSE))","v":""}]
[null,null,null,null,null,null,null,null,null,"Exchange Rate Type",null,"2001 - Current exchange rate",{"$f":"IF(ISBLANK(L41),\"\",VLOOKUP(L41,'Exchange Rates'!$A$3:$B$22,2,FALSE))","v":"Current exchange rate"},null,null,null,"Risk Class",{"$f":"(IF(OR(S9=\"1000\",S9=\"1100\",S9=\"1400\",S9=\"1550\",S9=\"1600\"),\"*\",IF(AND(R38<>\"\",S9=\"2000\",OR(T20=12,T20=19)),\"*\",IF(AND(R38<>\"\",OR(S9=\"1200\",S9=\"1300\",S9=\"1500\",S9=\"1700\")),\"*\",\"\"))))","v":""},"D High Default Risk",null,null,null,null,null,null,null,null,null,null,null,null,null,null,null,null,"Exchange Rate Type",null,null,{"$f":"IF(ISBLANK(AL41),\"\",VLOOKUP(AL41,'Exchange Rates'!$A$3:$B$22,2,FALSE))","v":""}]
[null,null,null,"Sales District",null,"00099 - TRINCOMALE",{"$f":"IF(ISBLANK(F42),\"\",VLOOKUP(F42,SalesDistrict[],3,FALSE))","v":"00099"},null,null,"Price Group","*","04 - Distributor Price",{"$f":"IF(ISBLANK(L42),\"\",VLOOKUP(L42,PriceGrp[],2,FALSE))","v":"04"},null,null,null,"Check Rule",{"$f":"(IF(OR(S9=\"1000\",S9=\"1100\",S9=\"1400\",S9=\"1550\",S9=\"1600\"),\"*\",IF(AND(R38<>\"\",S9=\"2000\",OR(T20=12,T20=19)),\"*\",IF(AND(R38<>\"\",OR(S9=\"1200\",S9=\"1300\",S9=\"1500\",S9=\"1700\")),\"*\",\"\"))))","v":""},"02 Credit Limit Check Only (Statistical)",null,null,null,null,null,null,null,null,null,null,"Sales District",null,null,{"$f":"IF(ISBLANK(AF42),\"\",VLOOKUP(AF42,SalesDistrict[],3,FALSE))","v":""},null,null,"Price Group",null,null,{"$f":"IF(ISBLANK(AL42),\"\",VLOOKUP(AL42,PriceGrp[],2,FALSE))","v":""}]
[null,null,null,"Customer Group","*","01 - General Trade",{"$f":"IF(ISBLANK(F43),\"\",VLOOKUP(F43,CustomerGrp[],2,FALSE))","v":"01"},null,null,"Cust.Pric.Procedure","*","6 - Indirect Export",{"$f":"IF(ISBLANK(L43),\"\",VLOOKUP(L43,CustPriceProcedure[],2,FALSE))","v":6},null,null,null,null,null,null,null,null,null,null,null,null,null,null,null,null,"Customer Group",null,null,{"$f":"IF(ISBLANK(AF43),\"\",VLOOKUP(AF43,CustomerGrp[],2,FALSE))","v":""},null,null,"Cust.Pric.Procedure",null,null,{"$f":"IF(ISBLANK(AL43),\"\",VLOOKUP(AL43,CustPriceProcedure[],2,FALSE))","v":""}]
[null,null,null,"Sales Office","*","1002 - EBC Personal Care",{"$f":"IF(ISBLANK(F44),\"\",VLOOKUP(F44,SalesOffice[],2,FALSE))","v":"1002"},null,null,"Price List","*","02 - Basic+ NBT",{"$f":"IF(ISBLANK(L44),\"\",VLOOKUP(L44,PriceList_[],2,FALSE))","v":"02"},null,null,null,null,null,null,null,null,null,null,null,null,null,null,null,null,"Sales Office",null,null,{"$f":"IF(ISBLANK(AF44),\"\",VLOOKUP(AF44,SalesOffice[],2,FALSE))","v":""},null,null,"Price List",null,null,{"$f":"IF(ISBLANK(AL44),\"\",VLOOKUP(AL44,PriceList_[],2,FALSE))","v":""}]
[null,null,null,"Sales Group","*","100 - Domestic Group",{"$f":"IF(ISBLANK(F45),\"\",VLOOKUP(F45,SalesGrp[],2,FALSE))","v":100},null,null,"Customer Stats.Group","*",{"$f":"IF(ISBLANK(F9),\"\",\"1-Required\")","v":"1-Required"},{"$f":"IF(ISBLANK(F9),\"\",\"1\")","v":"1"},null,null,null,null,null,null,null,null,null,null,null,null,null,null,null,null,"Sales Group",null,null,{"$f":"IF(ISBLANK(AF45),\"\",VLOOKUP(AF45,SalesGrp[],2,FALSE))","v":""},null,null,"Customer Stats.Group",null,{"$f":"IF(ISBLANK(AF9),\"\",\"1-Required\")","v":"1-Required"},{"$f":"IF(ISBLANK(AF9),\"\",\"1\")","v":"1"}]
[]
[null,null,null,"Currency","*","Sri Lankan Rupee - LKR",{"$f":"IF(ISBLANK(F47),\"\",VLOOKUP(F47,CurrencyTable,2,FALSE))","v":"LKR"},null,null,"Shipping Conditions",null,{"$f":"IF(ISBLANK(F9),\"\",\"01-Standard\")","v":"01-Standard"},{"$f":"IF(ISBLANK(F9),\"\",\"01\")","v":"01"},null,null,null,null,null,null,null,null,null,null,null,null,null,null,null,null,"Currency",null,null,{"$f":"IF(ISBLANK(AF47),\"\",VLOOKUP(AF47,CurrencyTable,2,FALSE))","v":""}]
[]
[null,null,null,"Terms of Payment (For S.Org)",null,{"$f":"IF(ISBLANK(F34),\"\",F34)","v":"Z025 -  25 days Credit  period"},{"$f":"IF(ISBLANK(G34),\"\",G34)","v":"Z025"},null,null,"Output NBT","*","1 - NBT 2 %.",{"$f":"IF(ISBLANK(L49),\"\",VLOOKUP(L49,NBT[],2,FALSE))","v":1},null,null,null,null,null,null,null,null,null,null,null,null,null,null,null,null,"Terms of Payment (For S.Org)",null,null,{"$f":"IF(ISBLANK(AF49),\"\",VLOOKUP(AF49,'Payment term'!$A$2:$B$67,2,FALSE))","v":""},null,null,"Output NBT",null,null,{"$f":"IF(ISBLANK(AL49),\"\",VLOOKUP(AL49,NBT[],2,FALSE))","v":""}]
[null,null,null,"Credit control area","*","1000 EB Creasy & Co PLC",{"$f":"IF(ISBLANK(F50),\"\",VLOOKUP(F50,CreditCArea[],2,FALSE))","v":1000},null,null,"Output SVAT","*","6 - SVAT 18%",{"$f":"IF(ISBLANK(L50),\"\",VLOOKUP(L50,SVAT[],2,FALSE))","v":6},null,null,null,null,null,null,null,null,null,null,null,null,null,null,null,null,"Credit control area",null,null,{"$f":"IF(ISBLANK(AF50),\"\",VLOOKUP(AF50,CreditCArea[],2,FALSE))","v":""},null,null,"Output SVAT",null,null,{"$f":"IF(ISBLANK(AL50),\"\",VLOOKUP(AL50,SVAT[],2,FALSE))","v":""}]
[null,null,null,"Acct Assmt Grp Cust.","*","03 - Inter Company",{"$f":"IF(ISBLANK(F51),\"\",VLOOKUP(F51,AccountAssignGrp[],2,FALSE))","v":"03"},null,null,"Output VAT","*","6 - VAT 18%",{"$f":"IF(ISBLANK(L51),\"\",VLOOKUP(L51,VAT[],2,FALSE))","v":6},null,null,null,null,null,null,null,null,null,null,null,null,null,null,null,null,"Acct Assmt Grp Cust.",null,null,{"$f":"IF(ISBLANK(AF51),\"\",VLOOKUP(AF51,AccountAssignGrp[],2,FALSE))","v":""},null,null,"Output VAT",null,null,{"$f":"IF(ISBLANK(AL51),\"\",VLOOKUP(AL51,VAT[],2,FALSE))","v":""}]
[null,null,null,null,null,null,null,null,null,"Output SSCL","*","SSCL Exempted",{"$f":"VLOOKUP(L52,Sheet2!A2:B3,2,FALSE)","v":0},null,null,null,null,null,null,null,null,null,null,null,null,null,null,null,null,null,null,null,null,null,null,"Output SSCL",null,null,{"$f":"IF(ISBLANK(AL52),\"\",VLOOKUP(AL52,Sheet2!A2:B3,2,FALSE))","v":""}]
[null,null,null,"Sales Person",null,null,{"$f":"IF(ISBLANK(F53),\"\",\"ZS\")","v":""},null,null,"Output SVAT KF & A5","*","K5 SVAT Exempted",{"$f":"VLOOKUP(L53,Sheet2!A6:B7,2,FALSE)","v":0},null,null,null,null,null,null,null,null,null,null,null,null,null,null,null,null,"Sales Person",null,null,{"$f":"IF(ISBLANK(AF53),\"\",\"ZS\")","v":""},null,null,"Output SVAT KF & A5",null,null,{"$f":"IF(ISBLANK(AL53),\"\",VLOOKUP(AL53,Sheet2!A6:B7,2,FALSE))","v":""}]
[null,null,null,"Sales Manger",null,null,{"$f":"IF(ISBLANK(F54),\"\",\"ZN\")","v":""},null,null,null,null,null,null,null,null,null,null,null,null,null,null,null,null,null,null,null,null,null,null,"Sales Manger",null,null,{"$f":"IF(ISBLANK(AF54),\"\",\"ZN\")","v":""}]
[]
[null,null,null,"Credit Segment Information",null,null,null,null,null,null,null,null,null,null,null,null,null,null,null,null,null,null,null,null,null,null,null,null,null,"Other Information (Credit Segment Information)"]
[]
[null,null,null,"Limit",{"$f":"IF(OR(F9=\"1000\",F9=\"1100\",F9=\"1400\",F9=\"1550\",F9=\"1600\"),\"*\",IF(OR(F61<>\"\",F62<>\"\"),\"*\",\"\"))","v":"*"},0,null,null,null,null,null,null,null,null,null,null,null,null,null,null,null,null,null,null,null,null,null,null,null,"Credit Segment",{"$f":"IF(AF59<>\"\",\"*\",IF(OR(AF61<>\"\",AF62<>\"\"),\"*\",\"\"))","v":""}]
[null,null,null,"Credit Segment",null,{"$f":"IF(ISBLANK(F58),\"\",F50)","v":"1000 EB Creasy & Co PLC"},null,null,null,null,null,null,null,null,null,null,null,null,null,null,null,null,null,null,null,null,null,null,null,"Limit"]
[]
[null,null,null,"Risk Class",{"$f":"(IF(OR(F9=\"1000\",F9=\"1100\",F9=\"1400\",F9=\"1550\",F9=\"1600\"),\"*\",IF(AND(F58<>\"\",F9=\"2000\",OR(G40=12,G40=19)),\"*\",IF(AND(F58<>\"\",OR(F9=\"1200\",F9=\"1300\",F9=\"1500\",F9=\"1700\")),\"*\",\"\"))))","v":""},"D High Default Risk",null,null,null,null,null,null,null,null,null,null,null,null,null,null,null,null,null,null,null,null,null,null,null,"Risk Class"]
[null,null,null,"Check Rule",{"$f":"(IF(OR(F9=\"1000\",F9=\"1100\",F9=\"1400\",F9=\"1550\",F9=\"1600\"),\"*\",IF(AND(F58<>\"\",F9=\"2000\",OR(G40=12,G40=19)),\"*\",IF(AND(F58<>\"\",OR(F9=\"1200\",F9=\"1300\",F9=\"1500\",F9=\"1700\")),\"*\",\"\"))))","v":""},"02 Credit Limit Check Only (Statistical)",null,null,null,null,null,null,null,null,null,null,null,null,null,null,null,null,null,null,null,null,null,null,null,"Check Rule"]

{"sheet":"District","index":2,"n_rows":25,"n_cols":2,"rows_kept":25,"cut":false,"hidden":true,"merged":[]}
["COLOMBO"]
["GAMPAHA"]
["KALUTARA"]
["KANDY"]
["MATALE"]
["NUWARA ELIYA"]
["GALLE"]
["MATARA"]
["HAMBANTOTA"]
["JAFFNA","Please Select"]
["KILINOCHCHI"]
["MANNAR"]
["VAVUNIYA"]
["MULLAITIVU"]
["BATTICALOA"]
["AMPARA"]
["TRINCOMALEE"]
["KURUNEGALA"]
["PUTTALAM"]
["ANURADHAPURA"]
["POLONNARUWA"]
["BADULLA"]
["MONERAGALA"]
["RATNAPURA"]
["KEGALLE"]

{"sheet":"credit data","index":3,"n_rows":11,"n_cols":1,"rows_kept":11,"cut":false,"hidden":true,"merged":[]}
["A No Default Risk"]
["B Low Default Risk"]
["C Medium Default Risk"]
["D High Default Risk"]
["E Very High Default Risk"]
[]
["01 Default - All Checks Active (Stat. Credit Limit)"]
["02 Credit Limit Check Only (Statistical)"]
["03 Credit Limit Check Only (Dynamic)"]
["04 CWM Checking Rule R&AC , Hempel and IPD"]
["05 Kiffs and Alliiance Five Checking Rule"]

{"sheet":"Exchange Rates","index":4,"n_rows":22,"n_cols":2,"rows_kept":22,"cut":false,"hidden":true,"merged":[]}
["ExRt","Usage"]
[]
["100* - Reference value = group value","Reference value = group value"]
["1001 - Current exchange rate","Current exchange rate"]
["1002 - Average exchange rate","Average exchange rate"]
["1003 - Historical exchange rate","Historical exchange rate"]
["1004 - Current exch. rate prior year","Current exch. rate prior year"]
["200* - Reference value = group value","Reference value = group value"]
["2001 - Current exchange rate","Current exchange rate"]
["2002 - Average exchange rate","Please Select"]
["2003 - Historical exchange rate","Historical exchange rate"]
["2004 - Current exch. rate prior year","Current exch. rate prior year"]
["B - Standard translation at bk.selling rate","Standard translation at bk.selling rate"]
["EURO - EMU regulation, fixed exchange rates","EMU regulation, fixed exchange rates"]
["EURX - EMU regulation, variable exchange rates","EMU regulation, variable exchange rates"]
["G - Standard translation at bank buying rate","Standard translation at bank buying rate"]
["I - Intrastat exchange rate type","Intrastat exchange rate type"]
["M - Standard translation at average rate","Standard translation at average rate"]
["MCA "]
["P - Standard translation for cost planning","Standard translation for cost planning"]
["ZCW - FCV_Exchange Rate for CWM","FCV_Exchange Rate for CWM"]
["ZEB -FCV_Exchange Rate for EBC ","FCV_Exchange Rate for EBC"]

{"sheet":"AccoAssignGrp_TaxCalssification","index":5,"n_rows":8,"n_cols":22,"rows_kept":8,"cut":false,"hidden":true,"merged":[]}
["accassgrp","Column2","Column3",null,null,null,"nbt_","Column2","Column3",null,"svat_","Column2","Column3",null,null,"VAT","Column1","Column2",null,"SSCL","Column","Column"]
["01 - Domestic","01","Domestic",null,null,null,"0 - NBT Exempted",0,"NBT Exempted",null,"0 - SVAT Exempted",0,"SVAT Exempted",null,null,"0 - VAT Exempted",0,"VAT Exempted",null,"0 SSCL Exempted",0,"SSCL Exempted"]
["02 - Export","02","Export",null,null,null,"1 - NBT 2 %.",1,"NBT 2 %.",null,"1 - SVAT 0%",1,"SVAT 0%",null,null,"1 - VAT 0%",1,"VAT 0%",null,"1 SSCL Applicable",1,"SSCL Applicable"]
["03 - Inter Company","03","Inter Company",null,null,null,null,null,null,null,"2 - SVAT 11%",2,"SVAT 11%",null,null,"2 - VAT 11%",2,"VAT 11%"]
["04 - Inter Divison","04","Inter Divison",null,null,null,null,null,null,null,"3 - SVAT 15%",3,"SVAT 15%",null,null,"3 - VAT 15%",3,"VAT 15%"]
["05 - CFLB Group","05","CFLB Group",null,null,null,null,null,null,null,"4 - SVAT 12%",4,"SVAT 12%",null,null,"4 - VAT 12%",4,"VAT 12%"]
["06 - Indirect Export","06","Indirect Export",null,null,null,null,null,null,null,"5 - SVAT 8%",5,"SVAT 8%",null,null,"5 - VAT 8%",5,"VAT 8%"]
[null,null,null,null,null,null,null,null,null,null,"6 - SVAT 18%",6,"SVAT 18%",null,null,"6 - VAT 18%",6,"VAT 18%"]

{"sheet":"Sheet2","index":6,"n_rows":7,"n_cols":2,"rows_kept":7,"cut":false,"hidden":true,"merged":[]}
["SSCL","Column"]
["SSCL Exempted",0]
["SSCL Applicable",1]
[]
["KIFFS ZSVT"]
["K5 SVAT Exempted",0]
["K5 SVAT 15%",1]

{"sheet":"CredControlArea","index":7,"n_rows":36,"n_cols":7,"rows_kept":36,"cut":false,"hidden":true,"merged":[[0,0,0,1]]}
["Credit Control Area",null,null,null,"credcontarea","Column2","Column3"]
["E.B.Creasy  & Co.PLC","1000 EB Creasy & Co PLC",null,null,"1000 EB Creasy & Co PLC",1000,"EB Creasy & Co PLC"]
["Darley Butler & Co. Ltd","1100 Darley Butler & Co Ltd",null,null,"1100 Darley Butler & Co Ltd",1100,"Darley Butler & Co Ltd"]
["Darley Butler & Co. Ltd","1101 Hard Ware",null,null,"1101 Hard Ware",1101,"Hard Ware"]
["Darley Butler & Co. Ltd","1102 Pharmaceutical",null,null,"1102 Pharmaceutical",1102,"Pharmaceutical"]
["Darley Butler & Co. Ltd","1103 Consumer",null,null,"1103 Consumer",1103,"Consumer"]
["Darley Butler & Co. Ltd","1104 Special Bakery",null,null,"1104 Special Bakery",1104,"Special Bakery"]
["Home Care Range 3","1105 Home Care Range 3",null,null,"1200 E.B Creasy Logistics Ltd.",1200,"E.B Creasy Logistics Ltd."]
["ISM","1106 ISM",null,null,"1300 Creasy Foods Ltd",1300,"Creasy Foods Ltd"]
["Please select","Please Select",null,null,"1400 Laxapana Batteries PLC",1400,"Laxapana Batteries PLC"]
["Confectionery","1107 Confectionery",null,null,"1500 Muller & Phipps Ceylon PLC",1500,"Muller & Phipps Ceylon PLC"]
["Consumer Range II ","1108 Consumer Range II ",null,null,"1108 Consumer Range II ",1108,"Consumer Range II "]
["E.B Creasy Logistics Ltd","1200 E.B Creasy Logistics Ltd.",null,null,"1550 Pettah Pharmacy (Pvt) Ltd",1550,"Pettah Pharmacy (Pvt) Ltd"]
["Candy Delights Limited","1300 Creasy Foods Ltd",null,null,"1600 Lanka Special Steels Ltd",1600,"Lanka Special Steels Ltd"]
["Laxapana Batteries PLC","1400 Laxapana Batteries PLC",null,null,"1700 E B Creasy Solar Ltd",1700,"E B Creasy Solar Ltd"]
["Muller& Phipps Ceylon PLC","1500 Muller & Phipps Ceylon PLC",null,null,"2000 CWM PLC",2000,"CWM PLC"]
["Pettah Pharmacy (Pvt) Ltd","1550 Pettah Pharmacy (Pvt) Ltd",null,null,"2001 CWM Corporate",2001,"CWM Corporate"]
["Lanka Special Steels Ltd","1600 Lanka Special Steels Ltd",null,null,"2002 CWM (Export-Rubber/DC)",2002,"CWM (Export-Rubber/DC)"]
["E.B.C. Power & Energy Ltd","1700 E B Creasy Solar Ltd",null,null,"2003 CWM Scan",2003,"CWM Scan"]
["CW Mackie PLC","2000 CWM PLC",null,null,"2007 CWM Sugar",2007,"CWM Sugar"]
["CW Mackie PLC","2001 CWM Corporate",null,null,"2009 CWM House Hold",2009,"CWM House Hold"]
["CW Mackie PLC","2002 CWM (Export-Rubber/DC)",null,null,"2010 CWM IPD",2010,"CWM IPD"]
["CW Mackie PLC","2003 CWM Scan",null,null,"2012 CWM RA&C ( IPD 2)",2012,"CWM RA&C ( IPD 2)"]
["CW Mackie PLC","2007 CWM Sugar",null,null,"2014 CWM Hempel",2014,"CWM Hempel"]
["CW Mackie PLC","2009 CWM House Hold",null,null,"2100 Ceymac Rubber Co. Ltd",2100,"Ceymac Rubber Co. Ltd"]
["CW Mackie PLC","2010 CWM IPD",null,null,"2200 Ceytra (Pvt) Ltd",2200,"Ceytra (Pvt) Ltd"]
["CW Mackie PLC","2012 CWM RA&C ( IPD 2)",null,null,"2300 Kelani Valley Canneries Pvt Ltd",2300,"Kelani Valley Canneries Pvt Ltd"]
["CW Mackie PLC","2014 CWM Hempel",null,null,"3000 Kiffs and Alliance Five",3000,"Kiffs and Alliance Five"]
["Ceymac Rubber Co. Ltd","2100 Ceymac Rubber Co. Ltd",null,null,"3000 Kiffs and Alliance Five",3000,"Kiffs and Alliance Five"]
["Ceytra (Pvt) Ltd","2200 Ceytra (Pvt) Ltd",null,null,"1800 CEYFLEX Rubber Ltd.",1800,"CEYFLEX Rubber Ltd."]
["Kelani Valley Can Pvt Ltd","2300 Kelani Valley Canneries Pvt Ltd",null,null,"1105 Home Care Range 3",1105,"Home Care Range 3"]
["Kiffs and Alliance Five","3000 Kiffs and Alliance Five",null,null,"1106 ISM",1106,"ISM"]
["Kiffs and Alliance Five","3000 Kiffs and Alliance Five",null,null,"1107 Confectionery",1107,"Confectionery"]
["CEYFLEX Rubber Ltd.","1800 CEYFLEX Rubber Ltd.",null,null,"3800 ACME Packaging & Solutions",3800,"ACME Packaging & Solutions"]
["ACME Packaging& Solutions","3800 ACME Packaging & Solutions",null,null,"3800 ACME Packaging & Solutions",3800,"ACME Packaging & Solutions"]
["ACME Packaging& Solutions","3800 ACME Packaging & Solutions"]

{"sheet":"PriceGrp_PriceProced_PriceList","index":8,"n_rows":7,"n_cols":11,"rows_kept":7,"cut":false,"hidden":true,"merged":[]}
["pgrp","Column2","Column3",null,"custpproced","Column2","Column3",null,"plist","Column2","Column3"]
["01 - Bulk buyer","01","Bulk buyer",null,"1 - Domestic Sales",1,"Domestic Sales",null,"01 - Basic","01","Basic"]
["02 - Occasional buyer","02","Occasional buyer",null,"2 - Export Sales",2,"Export Sales",null,"02 - Basic+ NBT","02","Basic+ NBT"]
["03 - Whole Sale Price","03","Whole Sale Price",null,"3 - Domestic services",3,"Domestic services",null,"03 - Basic +VAT","03","Basic +VAT"]
["04 - Distributor Price","04","Distributor Price",null,"4 - Export Services",4,"Export Services",null,"04 - Basic +NBT+VAT","04","Basic +NBT+VAT"]
[null,null,null,null,"5 - Intercompany Sales",5,"Intercompany Sales"]
[null,null,null,null,"6 - Indirect Export",6,"Indirect Export"]

{"sheet":"Soffice_Sgrp","index":9,"n_rows":36,"n_cols":38,"rows_kept":36,"cut":false,"hidden":true,"merged":[[0,0,0,37]]}
["Sales Office"]
["04 - Personal Care","05 - Home Care","17 - HardWare_EBC","21 - General","15 - Consumer","16 - Special Bakery","17 - HardWare_DB","18 - Pharmaceutical_DB","22 - Storage","23 - Modern Trade","13 - EBC Logisticis","08 - Creasy Foods","09 - L.B  Divison","No Division","18 - Pharmaceutical_PP","07 - Steel","24 - Power & Energy","01 - Scan","02 - Sugar","10 - House Hold","11 - Hempel","12 - IPD","14 - Corporate","19 - R & AC","20 - Export Division","06 - Rubber(Rubber based)_Ceymac","06 - Rubber(Rubber based)_Ceytra","03 - KVC","25 - ISM","26 - Rubber Goods","27 - Online Sales","40 - PET Bottles","41 - Plastic Cones","28 - Home Care Range 3","42 - Brush/Broom","43 - Packing Products","29 - Confectionery","30 - Consumer Range"]
["1002 - EBC Personal Care","1003 - EBC Home care","1004 - EBC Hardware","1005 - EBC General","1101 - D.B Sales office","1101 - D.B Sales office","1101 - D.B Sales office","1101 - D.B Sales office","1101 - D.B Sales office","1101 - D.B Sales office","1201 - EBC Logistic","1301 - EB Creasy Foods","1401 - Laxapana Batteries","1501 - Muller & Phipps","1551 - Pettah Pharmacy","1601 - Lanka Special Steels","1701 - E.B.C Power & Energy","2003 - Scan Sales Office","2004 - Sugar Sales office","2005 - House Hold","2008 - Hample Sales office","2006 - IPD Sale office","2001 - C.W.M H.O","2007 - R & AC Sales Office","2002 - Export Sales Office","2101 - Ceymac Sales office","2201 - Ceytra Sales office","2301 - KVC Sales office","1101 - D.B Sales office","1801 - Ceyflex Rubber Ltd","1101 - D.B Sales office","K01 - Emil Fernando","K01 - Emil Fernando","1101 - D.B Sales office","K01 - Emil Fernando","A01 - Nissanka Daminda","1101 - D.B Sales office","1101 - D.B Sales office"]
[]
[]
["soffice","1001","EBC H.O",null,null,"sgrp","Column2","Column3"]
["1002 - EBC Personal Care","1002","EBC Personal Care",null,null,"100 - Domestic Group",100,"Domestic Group"]
["1003 - EBC Home care","1003","EBC Home care",null,null,"200 - Export Group",200,"Export Group"]
["1004 - EBC Hardware","1004","EBC Hardware",null,null,"300 - Indirect Group",300,"Indirect Group"]
["1005 - EBC General","Please Select","EBC General",null,null,"E01 - Heshan De Silva","E01","Heshan De Silva"]
["1101 - D.B Sales office","1101","D.B Sales office",null,null,"E02 - Nayana Lakmali","E02","Nayana Lakmali"]
["1201 - EBC Logistic","1201","EBC Logistic",null,null,"E03 - Sanoj Tharuka","E03","Sanoj Tharuka"]
["1301 - EB Creasy Foods","1301","EB Creasy Foods",null,null,"E04 - Thashila Ganewaththa","E04","Thashila Ganewaththa"]
["1401 - Laxapana Batteries","1401","Laxapana Batteries",null,null,"E05 - Sasanka","E05","Sasanka"]
["1501 - Muller & Phipps","1501","Muller & Phipps",null,null,"E00 - No Executive","E00","No Executive"]
["1551 - Pettah Pharmacy","1551","Pettah Pharmacy",null,null,"E06 - Thushara Thalagala","E06","Thushara Thalagala"]
["1601 - Lanka Special Steels","1601","Lanka Special Steels",null,null,"E09 - Janith Nikethana","E09","Janith Nikethana"]
["1701 - E.B.C Power & Energy","1701","E.B.C Power & Energy"]
["2001 - C.W.M H.O","2001","C.W.M H.O"]
["2002 - Export Sales Office","2002","Export Sales Office"]
["2003 - Scan Sales Office","2003","Scan Sales Office",null,null,{"$f":"IF(ISBLANK(F58),\"\",F50)","v":""}]
["2004 - Sugar Sales office","2004","Sugar Sales office"]
["2005 - House Hold","2005","House Hold"]
["2006 - IPD Sale office","2006","IPD Sale office"]
["2007 - R & AC Sales Office","2007","R & AC Sales Office"]
["2008 - Hample Sales office","2008","Hemple Slaes office"]
["2101 - Ceymac Sales office","2101","Ceymac Sales office"]
["2201 - Ceytra Sales office","2201","Ceytra Sales office"]
["2301 - KVC Sales office","2301","KVC Sales office"]
["K01 - Emil Fernando","K01","Emil Fernando"]
["1801 - Ceyflex Rubber Ltd",1801,"Ceyflex Rubber Ltd"]
["A01 - Nissanka Daminda","A01","Nissanka Daminda"]
["A02 - Nissanka Daminda","A02","Sujith Cooke"]
["K00 - Nissanka Daminda","K00","No Manager"]
["A03 - Nissanka Daminda","A03","Vajira Amarathunga"]
["A04 - Nissanka Daminda","A04","Pradeepa Jayanetti"]

{"sheet":"CustomerGrp","index":10,"n_rows":35,"n_cols":3,"rows_kept":35,"cut":false,"hidden":true,"merged":[]}
["custgrp","Column2","Column3"]
["01 - General Trade","01","General Trade"]
["02 - Modern trade","02","Modern trade"]
["03 - Private Institutions","03","Private Institutions"]
["04 - Government Instituti","04","Government Instituti"]
["05 - Distributors","05","Distributors"]
["06 - Others","06","Others"]
["07 - Horaca","07","Horaca"]
["08 - Key customers","08","Key customers"]
["09 - Direct export","09","Direct export"]
["10 - Deemed Export","10","Deemed Export"]
["11 - Consignment","11","Consignment"]
["12 - Inter Company","12","Inter Company"]
["13 - Inter Division","13","Inter Division"]
["14 - Patient","14","Patient"]
["15 - Inter Company/hotel","15","Inter Company/hotel"]
["16 - Staff Welfare","16","Staff Welfare"]
["17 - ISM","17","ISM"]
["18 - FSD","18","FSD"]
[{"$f":"CONCATENATE(B20,\" - \",C20)","v":"19 - CW Marine"},19,"CW Marine"]
[{"$f":"CONCATENATE(B21,\" - \",C21)","v":"20 - Protective"},20,"Protective"]
["21 - Container",21,"Container"]
["22 - Hempel",22,"Hempel"]
[{"$f":"CONCATENATE(B24,\" - \",C24)","v":"23 - Dealer"},23,"Dealer"]
["24 - End User",24,"End User"]
["25 - Indirect Export",25,"Indirect Export"]
[{"$f":"CONCATENATE(B27,\" - \",C27)","v":"26 - Online"},26,"Online"]
["27 - Food",27,"Food"]
["28 - Household Care",28,"Household Care"]
["29 - Agro Chem.& Fertiliz",29,"Agro Chem.& Fertiliz"]
["30 - Confectionary Produc",30,"Confectionary Produc"]
["31 - Dairy Products",31,"Dairy Products"]
["32 - Pharmaceuticals",32,"Pharmaceuticals"]
["33 - Beverages",33,"Beverages"]
["34 - Trading",34,"Trading"]

{"sheet":"SalesDistrict","index":11,"n_rows":145,"n_cols":3,"rows_kept":145,"cut":false,"hidden":true,"merged":[]}
["district","Column2","Column3"]
["000001 - Not Specified","Not Specified","000001"]
["000002 - ALAWWA","ALAWWA","000002"]
["000003 - AMBALANGODA","AMBALANGODA","000003"]
["000004 - AMPARA","AMPARA","000004"]
["000005 - ANURADHAPURA","ANURADHAPURA","000005"]
["000006 - ARALAGANVILA","ARALAGANVILA","000006"]
["000007 - AVISSAWELLA","AVISSAWELLA","000007"]
["000008 - BADULLA","BADULLA","000008"]
["000009 - BADURULIYA","Please Select","000009"]
["000010 - BAKAMOONA","BAKAMOONA","000010"]
["000011 - BALANGODA","BALANGODA","000011"]
["000012 - BANDARAWELA","BANDARAWELA","000012"]
["000013 - BATTARAMULLA","BATTARAMULLA","000013"]
["000014 - BATTICALOA","BATTICALOA","000014"]
["000015 - BELIATHTHA","BELIATHTHA","000015"]
["000016 - CHILAW","CHILAW","000016"]
["000017 - COLOMBO","COLOMBO","000017"]
["000018 - COLOMBO SUBRBS","COLOMBO SUBRBS","000018"]
["000019 - DAMBULLA","DAMBULLA","000019"]
["000020 - DENIYAYA","DENIYAYA","000020"]
["000021 - ELPITIYA","ELPITIYA","000021"]
["000022 - EMBILIPITIYA","EMBILIPITIYA","000022"]
["000023 - GALLE","GALLE","000023"]
["000024 - GAMPAHA","GAMPAHA","000024"]
["000025 - GAMPOLA","GAMPOLA","000025"]
["000026 - HAMBANTOTA","HAMBANTOTA","000026"]
["000027 - HATTON","HATTON","000027"]
["000028 - HINGURAKGODA","HINGURAKGODA","000028"]
["000029 - HOMAGAMA","HOMAGAMA","000029"]
["000030 - HORANA","HORANA","000030"]
["000031 - JA-ELA","JA-ELA","000031"]
["000032 - JAFFNA","JAFFNA","000032"]
["000033 - KADUWELA","KADUWELA","000033"]
["000034 - KAHAWATTE","KAHAWATTE","000034"]
["000035 - KALMUNAI","KALMUNAI","000035"]
["000036 - KALUTARA","KALUTARA","000036"]
["000037 - KANDY","KANDY","000037"]
["000038 - KATUGASTOTA","KATUGASTOTA","000038"]
["000039 - KATUNAYAKE","KATUNAYAKE","000039"]
["000040 - KEBITIGOLLEWA","KEBITIGOLLEWA","000040"]
["000041 - KEGALLE","KEGALLE","000041"]
["000042 - KEKIRAWA","KEKIRAWA","000042"]
["000043 - KILINNOCHCHI","KILINNOCHCHI","000043"]
["000044 - KIRIBATHGODA","KIRIBATHGODA","000044"]
["000045 - KULIYAPITIYA","KULIYAPITIYA","000045"]
["000046 - KURUNEGALA","KURUNEGALA","000046"]
["000047 - MAHARAGAMA","MAHARAGAMA","000047"]
["000048 - MAHIYANGANAYA","MAHIYANGANAYA","000048"]
["000049 - MARADANA","MARADANA","000049"]
["000050 - MATALE","MATALE","000050"]
["000051 - MATARA","MATARA","000051"]
["000052 - MEERIGAMA","MEERIGAMA","000052"]
["000053 - MONERAGALA","MONERAGALA","000053"]
["000054 - MORATUWA","MORATUWA","000054"]
["000055 - NEGOMBO","NEGOMBO","000055"]
["000056 - NUGEGODA","NUGEGODA","000056"]
["000057 - NUWARAELIYA","NUWARAELIYA","000057"]
["000058 - PANADURA","PANADURA","000058"]
["000059 - PETTAH","PETTAH","000059"]
["000060 - PILIYANDALA","PILIYANDALA","000060"]
["000061 - POLPITHIGAMA","POLPITHIGAMA","000061"]
["000062 - PUTTALAM","PUTTALAM","000062"]
["000063 - RAGALA","RAGALA","000063"]
["000064 - RATHNAPURA","RATHNAPURA","000064"]
["000065 - THAMBUTTEGAMA","THAMBUTTEGAMA","000065"]
["000066 - TRINCOMALLE","TRINCOMALLE","000066"]
["000067 - UP COUNTRY","UP COUNTRY","000067"]
["000068 - VALACHCHANAI","VALACHCHANAI","000068"]
["000069 - VAVUNIYA","VAVUNIYA","000069"]
["000070 - WARIYAPOLA","WARIYAPOLA","000070"]
["000071 - WATTALA","WATTALA","000071"]
["000072 - WELLAWAYA","WELLAWAYA","000072"]
["000073 - WENNAPPUWA","WENNAPPUWA","000073"]
["00074 - POINT PEDRO","POINT PEDRO","00074"]
["00075 - RAMBUKKANA","RAMBUKKANA","00075"]
["00076 - KAKIRAWA","KAKIRAWA","00076"]
["00077 - NIKAWERATIYA","NIKAWERATIYA","00077"]
["00078 - ANURADHAPURA II","ANURADHAPURA II","00078"]
["00079 - ALUTHGAMA","ALUTHGAMA","00079"]
["00080 - BADDEGAMA","BADDEGAMA","00080"]
["00081 - KANDY I","KANDY I","00081"]
["00082 - ISM NORTH WESTERN","ISM NORTH WESTERN","00082"]
["00083 - KURUNAGALA","KURUNAGALA","00083"]
["00084 - KANDY II","KANDY II","00084"]
["00085 - BATICALOA I","BATICALOA I","00085"]
["00086 - HIKKADUWA","HIKKADUWA","00086"]
["00087 - HIKKADUWA II","HIKKADUWA II","00087"]
["00088 - ISM COLOMBO I","ISM COLOMBO I","00088"]
["00089 - RAGAMA","RAGAMA","00089"]
["00090 - WARIYAPOLA II","WARIYAPOLA II","00090"]
["00091 - BATICALOA II","BATICALOA II","00091"]
["00092 - KIRINDIWELA","KIRINDIWELA","00092"]
["00093 - WARAKAPOLA","WARAKAPOLA","00093"]
["00094 - KANDY III","KANDY III","00094"]
["00095 - NUWARA ELIYA II","NUWARA ELIYA II","00095"]
["00096 - RADDOLUGAMA","RADDOLUGAMA","00096"]
["00097 - MONARAGALA","MONARAGALA","00097"]
["00098 - NEGAMBO","NEGAMBO","00098"]
["00099 - TRINCOMALE","TRINCOMALE","00099"]
["00100 - ISM SOUTHERN II","ISM SOUTHERN II","00100"]
["00101 - ISM COLOMBO II","ISM COLOMBO II","00101"]
["00102 - POLONNARUWA","POLONNARUWA","00102"]
["00103 - WELIGAMA","WELIGAMA","00103"]
["00104 - ANURADHAPURA I","ANURADHAPURA I","00104"]
["00105 - COLOMBO WEST","COLOMBO WEST","00105"]
["000106 - AHANGAMA","AHANGAMA","00106"]
["000107 - AKKARAIPATTU","AKKARAIPATTU","00107"]
["000108 - BANDARAGAMA","BANDARAGAMA","00108"]
["000109 - BANDARAWELA","BANDARAWELA","00109"]
["000110 - BIBILE","BIBILE","00110"]
["000111 - BORELLA","BORELLA","00111"]
["000112 - BULATHKOHUPITIYA","BULATHKOHUPITIYA","00112"]
["000113 - DABADENIYA","DABADENIYA","00113"]
["000114 - DANKOTUWA","DANKOTUWA","00114"]
["000115 - DIGANA","DIGANA","00115"]
["000116 - GALGAMUWA","GALGAMUWA","00116"]
["000117 - GODAKAWELA","GODAKAWELA","00117"]
["000118 - HALI - ELA","HALI - ELA","00118"]
["000119 - HANWELLA","HANWELLA","00119"]
["000120 - INGIRIYA","INGIRIYA","00120"]
["000121 - KALAWANA","KALAWANA","00121"]
["000122 - KAMBURUPITIYA","KAMBURUPITIYA","00122"]
["000123 - KARANDENIYA","KARANDENIYA","00123"]
["000124 - KATTANKUDY","KATTANKUDY","00124"]
["000125 - KELANIYA","KELANIYA","00125"]
["000126 - KOTAHENA","KOTAHENA","00126"]
["000127 - KOTIYAKUMBURA","KOTIYAKUMBURA","00127"]
["000128 - MANI PAI","MANI PAI","00128"]
["000129 - MATHUGAMA","MATHUGAMA","00129"]
["000130 - MAWANELLA","MAWANELLA","00130"]
["000131 - MAWATHAGAMA","MAWATHAGAMA","00131"]
["000132 - MEDAWACHCHIYA","MEDAWACHCHIYA","00132"]
["000133 - MINUWANGODA","MINUWANGODA","00133"]
["000134 - NAGODA","NAGODA","00134"]
["000135 - NAULA","NAULA","00135"]
["000136 - NAWALAPITIYA","NAWALAPITIYA","00136"]
["000137 - RIKILLAGASKADA","RIKILLAGASKADA","00137"]
["000138 - TANGALLE","TANGALLE","00138"]
["000139 - THALAWATHUGODA","THALAWATHUGODA","00139"]
["000140 - THIRUNALWELI","THIRUNALWELI","00140"]
["000141 - WADDUWA","WADDUWA","00141"]
["000142 - WELIWERIYA","WELIWERIYA","00142"]
["000143 - WELLAPITIYA","WELLAPITIYA","00143"]
["000144 - WELLAWATTA","WELLAWATTA","00144"]

{"sheet":"S.area","index":12,"n_rows":39,"n_cols":27,"rows_kept":39,"cut":false,"hidden":true,"merged":[[0,0,0,17]]}
["Divisions",null,null,null,null,null,null,null,null,null,null,null,null,null,null,null,null,null,null,null,"division","Column2","Column3",null,"DisChanl","Column1","Column2"]
["1000","1100","1200","1300","1400","1500","1550","1600","1700","2000","2100","2200",3000,3100,1800,2300,3800,3900,null,null,"01 - Scan","Scan","01",null,"10 - Domestic Sales",10,"Domestic Sales"]
["04 - Personal Care","15 - Consumer","13 - EBC Logisticis","08 - Creasy Foods","09 - L.B  Divison","No Division","18 - Pharmaceutical_PP","07 - Steel","24 - Power & Energy","01 - Scan","06 - Rubber(Rubber based)_Ceymac","06 - Rubber(Rubber based)_Ceytra","40 - PET Bottles","41 - Plastic Cones","26 - Rubber Goods","03 - KVC","43 - Packing Products","43 - Packing Products",null,null,"02 - Sugar","Sugar","02",null,"20 - Export Sales",20,"Export Sales"]
["05 - Home Care","16 - Special Bakery",null,null,null,null,null,null,null,"02 - Sugar",null,null,null,"42 - Brush Broom",null,null,null,null,null,null,"03 - KVC","KVC","03",null,"30 - Walk-In-Customer",30,"Walk-In-Customer"]
["17 - HardWare_EBC","17 - HardWare_DB",null,null,null,null,null,null,null,"10 - House Hold",null,null,null,null,null,null,null,null,null,null,"04 - Personal Care","Personal Care","04",null,"40 - Indirect Exports",40,"Indirect Exports"]
["21 - General","18 - Pharmaceutical_DB",null,null,null,null,null,null,null,"11 - Hempel",null,null,null,null,null,null,null,null,null,null,"05 - Home Care","Home Care","05"]
[null,"22 - Storage",null,null,null,null,null,null,null,"12 - IPD",null,null,null,null,null,null,null,null,null,null,"06 - Rubber(Rubber based)_Ceytra","Rubber(Rubber based)","06"]
[null,"23 - Modern Trade",null,null,null,null,null,null,null,"14 - Corporate",null,null,null,null,null,null,null,null,null,null,"06 - Rubber(Rubber based)_Ceymac","Rubber(Rubber based)","06"]
[null,"25 - ISM",null,null,null,null,null,null,null,"19 - R & AC",null,null,null,null,null,null,null,null,null,null,"07 - Steel","Steel","07"]
[null,"Please Select",null,null,null,null,null,null,null,"20 - Export Division",null,null,null,null,null,null,null,null,null,null,"08 - Creasy Foods","Creasy Foods","08"]
[null,"28 - Home Care Range 3",null,null,null,null,null,null,null,null,null,null,null,null,null,null,null,null,null,null,"09 - L.B  Divison","L.B  Divison","09"]
[null,"29 - Confectionery",null,null,null,null,null,null,null,null,null,null,null,null,null,null,null,null,null,null,"10 - House Hold","House Hold","10"]
[null,"30 - Consumer Range",null,null,null,null,null,null,null,null,null,null,null,null,null,null,null,null,null,null,"11 - Hempel","Hempel","11"]
[null,null,null,null,null,null,null,null,null,null,null,null,null,null,null,null,null,null,null,null,"12 - IPD","IPD","12"]
[null,null,null,null,null,null,null,null,null,null,null,null,null,null,null,null,null,null,null,null,"13 - EBC Logisticis","EBC Logisticis","13"]
[null,null,null,null,null,null,null,null,null,null,null,null,null,null,null,null,null,null,null,null,"14 - Corporate","Corporate","14"]
[null,null,null,null,null,null,null,null,null,null,null,null,null,null,null,null,null,null,null,null,"15 - Consumer","Consumer","15"]
[null,null,null,null,null,null,null,null,null,null,null,null,null,null,null,null,null,null,null,null,"16 - Special Bakery","Special Bakery","16"]
[null,null,null,null,null,null,null,null,null,null,null,null,null,null,null,null,null,null,null,null,"17 - HardWare_EBC","HardWare","17"]
[null,null,null,null,null,null,null,null,null,null,null,null,null,null,null,null,null,null,null,null,"17 - HardWare_DB","HardWare","17"]
[null,null,null,null,null,null,null,null,null,null,null,null,null,null,null,null,null,null,null,null,"18 - Pharmaceutical_DB","Pharmaceutical","18"]
[null,null,null,null,null,null,null,null,null,null,null,null,null,null,null,null,null,null,null,null,"18 - Pharmaceutical_PP","Pharmaceutical","18"]
[null,null,null,null,null,null,null,null,null,null,null,null,null,null,null,null,null,null,null,null,"19 - R & AC","R & AC","19"]
[null,null,null,null,null,null,null,null,null,null,null,null,null,null,null,null,null,null,null,null,"20 - Export Division","Export Division","20"]
[null,null,null,null,null,null,null,null,null,null,null,null,null,null,null,null,null,null,null,null,"21 - General","General","21"]
[null,null,null,null,null,null,null,null,null,null,null,null,null,null,null,null,null,null,null,null,"22 - Storage","Storage","22"]
[null,null,null,null,null,null,null,null,null,null,null,null,null,null,null,null,null,null,null,null,"23 - Modern Trade","Modern Trade","23"]
[null,null,null,null,null,null,null,null,null,null,null,null,null,null,null,null,null,null,null,null,"24 - Power & Energy","Power & Energy","24"]
[null,null,null,null,null,null,null,null,null,null,null,null,null,null,null,null,null,null,null,null,"25 - ISM","ISM","25"]
[null,null,null,null,null,null,null,null,null,null,null,null,null,null,null,null,null,null,null,null,"26 - Rubber Goods","Rubber Goods","26"]
[null,null,null,null,null,null,null,null,null,null,null,null,null,null,null,null,null,null,null,null,"27 - Online Sales","Online Sales","27"]
[null,null,null,null,null,null,null,null,null,null,null,null,null,null,null,null,null,null,null,null,"40 - PET Bottles","PET Bottles","40"]
[null,null,null,null,null,null,null,null,null,null,null,null,null,null,null,null,null,null,null,null,"41 - Plastic Cones","Plastic Cones","41"]
[null,null,null,null,null,null,null,null,null,null,null,null,null,null,null,null,null,null,null,null,"42 - Brush Broom","Brush Broom","42"]
[null,null,null,null,null,null,null,null,null,null,null,null,null,null,null,null,null,null,null,null,"28 - Home Care Range 3","Home Care Range 3 ","28"]
[null,null,null,null,null,null,null,null,null,null,null,null,null,null,null,null,null,null,null,null,"29 - Confectionery","Confectionery","29"]
[null,null,null,null,null,null,null,null,null,null,null,null,null,null,null,null,null,null,null,null,"43 - Packing Products","Packing Products","43"]
[null,null,null,null,null,null,null,null,null,null,null,null,null,null,null,null,null,null,null,null,"30 - Consumer Range","Consumer Range","30"]
[null,null,null,null,null,null,null,null,null,null,null,null,null,null,null,null,null,null,null,null,"No Division"]

{"sheet":"Vendor Change","index":13,"n_rows":5,"n_cols":4,"rows_kept":5,"cut":false,"hidden":true,"merged":[]}
["ChangeType","General_Info","Company_Code_Info","Purchasing_Org_Info"]
["General Information","Name","Reconciliation Account","Payment Term"]
["Other Information","Search term","Payment Term","Order Currency"]
[null,"Address","Interest Indicator"]
[null,"Email/Telephone"]

{"sheet":"VendorReqTbl","index":14,"n_rows":7,"n_cols":3,"rows_kept":7,"cut":false,"hidden":true,"merged":[]}
["Customer_Creation","Customer_Extension","Customer_Change"]
["Z1DM Domestic Business Partners","Extend Both FI Customer and Customer","General Information"]
["Z2FR Foreign Business Partners","Extend Both FI Customer and Customer","Other Information"]
["Z6IL Investments/Loans Business Partners","Extend Only FI Customer","Both General & Other Information"]
["Z7ON One time Business Partners","Extend Only Credit Segment"]
["Z5EM Employee Business Partners","Extend Only FI Customer"]
["Z3IC Inter Company Business Partners"]

{"sheet":"Postl codes","index":15,"n_rows":251,"n_cols":5,"rows_kept":251,"cut":false,"hidden":true,"merged":[]}
[" ","Format ",null,"Denomination ","Regex"]
["Afghanistan ",9999,{"$f":"LEN(B2)","v":4},"Post code ","Yes"]
["Åland Islands ",99999,{"$f":"LEN(B3)","v":5},"Postcode ","Yes"]
["Albania ",9999,4,"Kodi postar ","Yes"]
["Algeria ",99999,5,"Code postal ","Yes"]
["American Samoa ",99999,5,"Zip Code (US) ","Yes"]
["Andorra ","AA999 ",6,"Código postal ","Yes"]
["Angola ","- ",2,"Not used ","No"]
["Anguilla ","AA-9999 ",8,"Post code ","Yes"]
["Antarctica ",9999,4,"Postcode ","Yes"]
["Antigua and Barbuda ",99999,5,"Post code ","Yes"]
["Argentine ","A9999AAA ",9,"CPA ","Yes"]
["Armenia ",9999,4,"Postal index ","Yes"]
["Aruba ","9999 AA ",8,"postcode (NL) ","Yes"]
["Australia ",9999,4,"Postcode ","Yes"]
["Austria ",9999,4,"PLZ ","Yes"]
["Azerbaijan ","AA 9999 ",8,"İndeks ","Yes"]
["Bahamas ","- ",2,"Not used ","No"]
["Bahrain ",9999,4,"Post code ","Yes"]
["Bangladesh ",9999,4,"Post code ","Yes"]
["Barbados ","AA99999 ",8,"Postal code ","Yes"]
["Belarus ",999999,6,"Индекс ","Yes"]
["Belgium ",9999,4,"Code postal ","Yes"]
["Belize ","- ",2,"Not used ","No"]
["Benin ","- ",2,"Not used ","No"]
["Bermuda ","AA 99 ",6,"Post codes ","Yes"]
["Bhutan ",99999,5,"Post code ","Yes"]
["Bolivia ","- ",2,"Not used ","No"]
["Bonaire, Sint Eustatius, Saba ","9999 AA ",8,"Postcode ","Yes"]
["Bosnia and Herzegovina ",99999,5,"Poštanski broj ","Yes"]
["Botswana ","- ",2,"Not used ","No"]
["Bouvet Island ","- ",2,"Not used ","No"]
["Brazil ","99999-999 ",10,"CEP ","Yes"]
["British Indian Ocean Territory ","AA9A 9AA ",9,"Postcode ","Yes"]
["British Virgin Islands ","AA9999 ",7,"Postal code ","Yes"]
["Brunei Darussalam ","AA9999 ",7,"Kod ","Yes"]
["Bulgaria ",9999,4,"Пощенски код ","Yes"]
["Burkina Faso ","- ",2,"Not used ","No"]
["Burundi ","- ",2,"Not used ","No"]
["Cambodia ",99999,5,"Postal code ","Yes"]
["Cameroon ","- ",2,"Not used ","No"]
["Canada ","A9A 9A9 ",8,"Post code ","Yes"]
["Cape Verde ",9999,4,"CIP ","Yes"]
["Cayman Islands ","AA9-9999 ",9,"Postcode (UK) ","Yes"]
["Central African Republic ","- ",2,"Not used ","No"]
["Chad ",99999,5,"Postal code ","Yes"]
["Chile ",9999999,7,"Código postal ","Yes"]
["China ",999999,6,"郵政編碼 ","Yes"]
["Christmas Island ",9999,4,"Postcode ","Yes"]
["Cocos (Keeling) Islands ","9999 A9 ",8,"Post code ","Yes"]
["Colombia ",999999,6,"Código postal ","Yes"]
["Comoros ","- ",2,"Not used ","No"]
["Congo (Brazzville) ","- ",2,"Not used ","No"]
["Congo DR ","- ",2,"Not used ","No"]
["Cook Islands ","- ",2,"Not used ","No"]
["Costa Rica ",99999,5,"Código postal ","Yes"]
["Croatia ",99999,5,"Zip ","Yes"]
["Cuba ",99999,5,"Código postal ","Yes"]
["Curacao ","9999 AA ",8,"Postcode (NL) ","Yes"]
["Cyprus ",9999,4,"Postcode ","Yes"]
["Czech Republic ","999 99 ",7,"PSČ ","Yes"]
["Denmark ",9999,4,"Postnumre ","Yes"]
["Djibouti ","- ",2,"Not used ","No"]
["Dominica ","- ",2,"Not used ","No"]
["Dominican Republic ",99999,5,"Código postal ","Yes"]
["East Timor ","- ",2,"Not used ","No"]
["Ecuador ",999999,{"$f":"LEN(B67)","v":6},"Código postal ","Yes"]
["Egypt ",99999,5,"الرمز البريدي ","Yes"]
["El Salvador ",9999,4,"Código postal ","Yes"]
["Equatorial Guinea ","- ",2,"Not used ","No"]
["Eritrea ","- ",2,"Not used ","No"]
["Estonia ",99999,5,"Postiindeks ","Yes"]
["Ethiopia ",9999,4,"Postal code ","Yes"]
["Falkland Islands (Malvinas) ","AAAA 9AA ",9,"Postcode ","Yes"]
["Faroe Islands ",999,3,"Postnumre (DK) ","Yes"]
["Fiji ","- ",2,"Not used ","No"]
["Finland ",99999,5,"Postinumero ","Yes"]
["France ",99999,5,"Code postal ","Yes"]
["French Guiana ",99999,5,"Code postal (FR) ","Yes"]
["French Polynesia ",99999,5,"Code postal (FR) ","Yes"]
["French Southern Territories ",99999,5,"Code postal ","Yes"]
["Gabon ","- ",2,"Not used ","No"]
["Gambia ","- ",2,"Not used ","No"]
["Georgia ",9999,4,"Post code ","Yes"]
["Germany ",99999,5,"PLZ ","Yes"]
["Ghana ","- ",2,"Not used ","No"]
["Gibraltar ","AA99 9AA ",9,"Postcode (UK) ","Yes"]
["Greece ","999 99 ",7,"T.K. ","Yes"]
["Greenland ",9999,4,"Postnumre (DK) ","Yes"]
["Grenada ","- ",2,"Not used ","No"]
["Guadeloupe ",99999,5,"Code postal (FR) ","Yes"]
["Guam ",99999,5,"Zip Code (US) ","Yes"]
["Guatemala ",99999,5,"Código postal ","Yes"]
["Guernsey ","AA9 9AA ",8,"Postcode (UK) ","Yes"]
["Guinea ",999,3,"Code postal ","Yes"]
["Guinea-Bissau ",9999,4,"Código postal ","Yes"]
["Guyana ","- ",2,"Not used ","No"]
["Haiti ",9999,4,"Code postal ","Yes"]
["Heard and McDonald ",9999,4,"Postcode ","Yes"]
["Honduras ",99999,5,"Código postal ","Yes"]
["Hong Kong ",999999,6,"郵政編碼 ","Yes"]
["Hungary ",9999,4,"Irányítószám ","Yes"]
["Iceland ",999,3,"Póstnúmer ","Yes"]
["India ",999999,6,"PIN code ","Yes"]
["Indonesia ",99999,5,"Kodepos ","Yes"]
["Iran ",99999,5,"کد پستی ","Yes"]
["Iraq ",99999,5,"Postal code ","Yes"]
["Ireland ","- ",2,"Not used ","No"]
["Isle of Man ","AA99 9AA ",9,"Postcode (UK) ","Yes"]
["Israel ",9999999,7,"Postal code ","Yes"]
["Italy ",99999,5,"CAP ","Yes"]
["Ivory Coast ","- ",2,"Not used ","No"]
["Jamaica ","AAAAA99 ",8,"Postal code ","Yes"]
["Japan ","999-9999 ",9,"郵便番号 ","Yes"]
["Jersey ","AA9 9AA ",8,"Postcode (UK) ","Yes"]
["Jordan ",99999,5,"Postal code ","Yes"]
["Kazakhstan ",999999,6,"Почтового индекса ","Yes"]
["Kenya ",99999,5,"Postal code ","Yes"]
["Kiribati ","- ",2,"Not used ","No"]
["Kosovo ",99999,5,"Поштански код ","Yes"]
["Kuwait ",99999,5,"Postal code ","Yes"]
["Kyrgyzstan ",999999,6,"Почтовый индекс ","Yes"]
["Laos ",99999,5,"Postal code ","Yes"]
["Latvia ","AA-9999 ",8,"Pasta indekss ","Yes"]
["Lebanon ",9999,4,"Code postal ","Yes"]
["Lesotho ",999,3,"Postal code ","Yes"]
["Liberia ",9999,4,"Postal code ","Yes"]
["Libya ",99999,5,"Postal code ","Yes"]
["Liechtenstein ",9999,4,"PLZ (CH) ","Yes"]
["Lithuania ",99999,5,"Pašto kodas ","Yes"]
["Luxembourg ",9999,{"$f":"LEN(B131)","v":4},"Code postal ","Yes"]
["Macau ",999999,6,"$郵政編碼 ","Yes"]
["Macedonia ",9999,4,"Поштенски код ","Yes"]
["Madagascar ",999,3,"Code postal ","Yes"]
["Malawi ","- ",2,"Not used ","No"]
["Malaysia ",99999,5,"Postal code ","Yes"]
["Maldives ",99999,5,"Post code ","Yes"]
["Mali ","- ",2,"Not used ","No"]
["Malta ","AAA 9999 ",9,"Kodiċi Postali ","Yes"]
["Marshall Islands ",99999,5,"ZIP code (US) ","Yes"]
["Martinique ",99999,5,"Code postal (FR) ","Yes"]
["Mauritania ","- ",2,"Not used ","No"]
["Mauritius ","A9999 ",6,"Post code ","Yes"]
["Mayotte ",99999,5,"Code postal (FR) ","Yes"]
["Mexico ",99999,5,"Código postal ","Yes"]
["Micronesia ",99999,5,"Zip code (US) ","Yes"]
["Moldova ",9999,4,"Coduri poştale ","Yes"]
["Monaco ",99999,5,"Code postal (FR) ","Yes"]
["Mongolia ",99999,5,"Zipcode ","Yes"]
["Montenegro ",99999,5,"Поштански код ","Yes"]
["Montserrat ","AAA9999 ",8,"Post code ","Yes"]
["Morocco ",99999,5,"Code postal ","Yes"]
["Mozambique ",9999,4,"Código postal ","Yes"]
["Myanmar ",99999,5,"Postal code ","Yes"]
["Namibia ","- ",2,"Not used ","No"]
["Nauru ","- ",2,"Not used ","No"]
["Nepal ",99999,5,"Postal code ","Yes"]
["Netherlands ","9999 AA ",8,"Postcode ","Yes"]
["Netherlands Antilles ","- ",2,"Not used ","No"]
["New Caledonia ",99999,5,"Code postal (FR) ","Yes"]
["New Zealand ",9999,4,"Postcode ","Yes"]
["Nicaragua ",99999,5,"Código postal ","Yes"]
["Niger ",9999,4,"Code postal ","Yes"]
["Nigeria ",999999,6,"Postal code ","Yes"]
["Niue ","- ",2,"Not used ","No"]
["Norfolk Island ",9999,4,"Post code ","Yes"]
["North Korea ","- ",2,"Not used ","No"]
["Northern Mariana Islands ",99999,5,"Zip Code (US) ","Yes"]
["Norway ",9999,4,"Postnummer ","Yes"]
["Oman ",999,3,"Postal code ","Yes"]
["Pakistan ",99999,5,"Post code ","Yes"]
["Palau ",99999,5,"Postal code ","Yes"]
["Palestine (Gaza) ","999-999 ",8,"Post code ","Yes"]
["Panama ","- ",2,"Not used ","No"]
["Papua New Guinea ",999,3,"Postal code ","Yes"]
["Paraguay ",9999,4,"Código postal ","Yes"]
["Peru ",99999,5,"Código postal ","Yes"]
["Philippines ",9999,4,"Zipcode ","Yes"]
["Pitcairn ","AAA9 9AA ",9,"Post code ","Yes"]
["Poland ","99-999 ",7,"Kod pocztowy ","Yes"]
["Portugal ","9999-999 ",9,"Código postal ","Yes"]
["Puerto Rico ",99999,5,"ZIP code (US) ","Yes"]
["Qatar ","- ",2,"Not used ","No"]
["Réunion ",99999,5,"Code postal (FR) ","Yes"]
["Romania ",999999,6,"Cod poştal ","Yes"]
["Russia ",999999,6,"Почтовый индекс ","Yes"]
["Rwanda ","- ",2,"Not used ","No"]
["Sahrawi Arab ",99999,5,"Code postal (MA) ","Yes"]
["Saint Barthelme ",99999,5,"Code postal (FR) ","Yes"]
["Saint Kitts and Nevis ","- ",2,"Not used ","No"]
["Saint Lucia ","- ",2,"Not used ","No"]
["Saint Martin ",99999,5,"Code postal (FR) ","Yes"]
["Saint Pierre And Miquelon ",99999,5,"Code postal (FR) ","Yes"]
["Saint Vincent and the Grenadines ","AA9999 ",7,"Postal code ","Yes"]
["Samoa ",99999,{"$f":"LEN(B195)","v":5},"Postal code ","Yes"]
["San Marino ",99999,5,"CAP (IT) ","Yes"]
["Santa Helena, Ascension and Tristan Da Cunha ","AAAA 9AA ",9,"Postcode (UK) ","Yes"]
["São Tomé and Príncipe ","- ",2,"Not used ","No"]
["Saudi Arabia ","99999-9999 ",11,"Postal code ","Yes"]
["Senegal ",99999,5,"Code postal ","Yes"]
["Serbia ",99999,5,"Поштански код ","Yes"]
["Seychelles ","- ",2,"Not used ","No"]
["Sierra Leone ","- ",2,"Not used ","No"]
["Singapore ",999999,6,"Postal code ","Yes"]
["Sint Maarten ","9999 AA ",8,"Post code ","Yes"]
["Slovakia ","999 99 ",7,"PSČ ","Yes"]
["Slovenia ",9999,4,"Poštna številka ","Yes"]
["Solomon Islands ","- ",2,"Not used ","No"]
["Somalia ","- ",2,"Not used ","No"]
["South Africa ",9999,4,"Postal code ","Yes"]
["South Georgia & Sandwich ","AAAA 9AA ",9,"Post code ","Yes"]
["South Korea ",99999,5,"우편번호 ","Yes"]
["South Sudan ",99999,5,"Postal code ","Yes"]
["Spain ",99999,5,"Código postal ","Yes"]
["Sri Lanka ",99999,5,"Postcode ","Yes"]
["Sudan ",99999,5,"Postal code ","Yes"]
["Suriname ","- ",2,"Not used ","No"]
["Svalbard and Jan Mayen ",9999,4,"Postnummer (NO) ","Yes"]
["Swaziland ","A999 ",5,"Postal code ","Yes"]
["Sweden ","999 99 ",7,"Postnummer ","Yes"]
["Switzerland ",9999,4,"PLZ / Code postal ","Yes"]
["Syria ","- ",2,"Not used ","No"]
["Taiwan ",99999,5,"郵遞區號 ","Yes"]
["Tajikistan ",999,3,"Нишонаи почта ","Yes"]
["Tanzania ",99999,5,"Postal code ","Yes"]
["Thailand ",99999,5,"รหัสไปรษณีย์ ","Yes"]
["Togo ","- ",2,"Not used ","No"]
["Tokelau ","- ",2,"Not used ","No"]
["Tonga ","- ",2,"Not used ","No"]
["Trinidad and Tobago ","- ",2,"Not used ","No"]
["Tunisia ",9999,4,"Code postal ","Yes"]
["Turkey ",99999,5,"Posta kodu ","Yes"]
["Turkmenistan ",999999,6,"Почтовый индекс ","Yes"]
["Turks and Caicos Islands ","AAAA 9AA ",9,"Postcode (UK) ","Yes"]
["Tuvalu ","- ",2,"Not used ","No"]
["U.S. Virgin Islands ",99999,5,"Zip Code (US) ","Yes"]
["Uganda ","- ",2,"Not used ","No"]
["Ukraine ",99999,5,"Поштовий індекс ","Yes"]
["United Arab Emirates ","- ",2,"Not used ","No"]
["United Kingdom ","AA9 9AA ",8,"Postcode ","Yes"]
["United States ","99999-9999 ",11,"ZIP code ","Yes"]
["Uruguay ",99999,5,"Código postal ","Yes"]
["Uzbekistan ",999999,6,"Почтовый индекс ","Yes"]
["Vanuatu ","- ",2,"Not used ","No"]
["Vatican City State ",999,3,"CAP (IT) ","Yes"]
["Venezuela ",9999,4,"Código postal ","Yes"]
["Viet Nam ",999999,6,"Mã bưu chính ","Yes"]
["Wallis and Futuna ",99999,5,"Code postal (FR) ","Yes"]
["Yemen ","- ",2,"Not used ","No"]
["Zambia ",99999,5,"Postal code ","Yes"]
["Zimbabwe ","- ",2,"Not used ","No"]

{"sheet":"START","index":16,"n_rows":10,"n_cols":2,"rows_kept":10,"cut":false,"hidden":false,"merged":[[0,0,3,16383]]}
["                                           You must enable macros before using the Customer template"]
[]
[]
[]
[]
[]
[]
[]
[]
[null,"Please Select"]

{"sheet":"INSTRUCTIONS","index":17,"n_rows":0,"n_cols":0,"rows_kept":0,"cut":false,"hidden":true,"merged":[]}

{"sheet":"Interest Indicator","index":18,"n_rows":958,"n_cols":6,"rows_kept":958,"cut":false,"hidden":true,"merged":[]}
["Interest calculation indicator name","Interest indicator",null,10]
["No Interest "," ",null,{"$f":"_xlfn._xlws.FILTER(A2:A958,ISNUMBER(SEARCH(Customer!L32,A2:A958)),\"Not found\")","v":"No Interest "},null,{"$f":"_xlfn._xlws.FILTER(A2:A958,ISNUMBER(SEARCH(Customer!AL33,A2:A958)),\"Not found\")","v":"No Interest "}]
["10.00","BS",null,"10.00",null,"10.00"]
["10.01","BT",null,"10.01",null,"10.01"]
["10.02","BU",null,"10.02",null,"10.02"]
["10.03","BV",null,"10.03",null,"10.03"]
["10.04","BW",null,"10.04",null,"10.04"]
["10.05","BX",null,"10.05",null,"10.05"]
["10.06","BY",null,"10.06",null,"10.06"]
["10.07","BZ",null,"10.07",null,"10.07"]
["10.08","CA",null,"10.08",null,"10.08"]
["10.09","CB",null,"10.09",null,"10.09"]
["10.10","CC",null,"10.10",null,"10.10"]
["10.11","CD",null,"10.11",null,"10.11"]
["10.12","CE",null,"10.12",null,"10.12"]
["10.13","CF",null,"10.13",null,"10.13"]
["10.14","CG",null,"10.14",null,"10.14"]
["10.15","CH",null,"10.15",null,"10.15"]
["10.16","CI",null,"10.16",null,"10.16"]
["10.17","CJ",null,"10.17",null,"10.17"]
["10.18","CK",null,"10.18",null,"10.18"]
["10.19","CL",null,"10.19",null,"10.19"]
["10.20","CM",null,"10.20",null,"10.20"]
["10.21","CN",null,"10.21",null,"10.21"]
["10.22","CO",null,"10.22",null,"10.22"]
["10.23","CP",null,"10.23",null,"10.23"]
["10.24","CQ",null,"10.24",null,"10.24"]
["10.25","CR",null,"10.25",null,"10.25"]
["10.26","CS",null,"10.26",null,"10.26"]
["10.27","CT",null,"10.27",null,"10.27"]
["10.28","CU",null,"10.28",null,"10.28"]
["10.29","CV",null,"10.29",null,"10.29"]
["10.30","CW",null,"10.30",null,"10.30"]
["10.31","CX",null,"10.31",null,"10.31"]
["10.32","CY",null,"10.32",null,"10.32"]
["10.33","CZ",null,"10.33",null,"10.33"]
["10.34","DA",null,"10.34",null,"10.34"]
["10.35","DB",null,"10.35",null,"10.35"]
["10.36","DC",null,"10.36",null,"10.36"]
["10.37","DD",null,"10.37",null,"10.37"]
["10.38","DE",null,"10.38",null,"10.38"]
["10.39","DF",null,"10.39",null,"10.39"]
["10.40","DG",null,"10.40",null,"10.40"]
["10.41","DH",null,"10.41",null,"10.41"]
["10.42","DI",null,"10.42",null,"10.42"]
["10.43","DJ",null,"10.43",null,"10.43"]
["10.44","DK",null,"10.44",null,"10.44"]
["10.45","DL",null,"10.45",null,"10.45"]
["10.46","DM",null,"10.46",null,"10.46"]
["10.47","DN",null,"10.47",null,"10.47"]
["10.48","DO",null,"10.48",null,"10.48"]
["10.49","DP",null,"10.49",null,"10.49"]
["10.50","DQ",null,"10.50",null,"10.50"]
["10.51","DR",null,"10.51",null,"10.51"]
["10.52","DS",null,"10.52",null,"10.52"]
["10.53","DT",null,"10.53",null,"10.53"]
["10.54","DU",null,"10.54",null,"10.54"]
["10.55","DV",null,"10.55",null,"10.55"]
["10.56","DW",null,"10.56",null,"10.56"]
["10.57","DX",null,"10.57",null,"10.57"]
["10.58","DY",null,"10.58",null,"10.58"]
["10.59","DZ",null,"10.59",null,"10.59"]
["10.60","EA",null,"10.60",null,"10.60"]
["10.61","EB",null,"10.61",null,"10.61"]
["10.62","EC",null,"10.62",null,"10.62"]
["10.63","ED",null,"10.63",null,"10.63"]
["10.64","EE",null,"10.64",null,"10.64"]
["10.65","EF",null,"10.65",null,"10.65"]
["10.66","EG",null,"10.66",null,"10.66"]
["10.67","EH",null,"10.67",null,"10.67"]
["10.68","EI",null,"10.68",null,"10.68"]
["10.69","EJ",null,"10.69",null,"10.69"]
["10.70","EK",null,"10.70",null,"10.70"]
["10.71","EL",null,"10.71",null,"10.71"]
["10.72","EM",null,"10.72",null,"10.72"]
["10.73","EN",null,"10.73",null,"10.73"]
["10.74","EO",null,"10.74",null,"10.74"]
["10.75","EP",null,"10.75",null,"10.75"]
["10.76","EQ",null,"10.76",null,"10.76"]
["10.77","ER",null,"10.77",null,"10.77"]
["10.78","ES",null,"10.78",null,"10.78"]
["10.79","ET",null,"10.79",null,"10.79"]
["10.80","EU",null,"10.80",null,"10.80"]
["10.81","EV",null,"10.81",null,"10.81"]
["10.82","EW",null,"10.82",null,"10.82"]
["10.83","EX",null,"10.83",null,"10.83"]
["10.84","EY",null,"10.84",null,"10.84"]
["10.85","EZ",null,"10.85",null,"10.85"]
["10.86","FA",null,"10.86",null,"10.86"]
["10.87","FB",null,"10.87",null,"10.87"]
["10.88","FC",null,"10.88",null,"10.88"]
["10.89","FD",null,"10.89",null,"10.89"]
["10.90","FE",null,"10.90",null,"10.90"]
["10.91","FF",null,"10.91",null,"10.91"]
["10.92","FG",null,"10.92",null,"10.92"]
["10.93","FH",null,"10.93",null,"10.93"]
["10.94","FI",null,"10.94",null,"10.94"]
["10.95","FJ",null,"10.95",null,"10.95"]
["10.96","FK",null,"10.96",null,"10.96"]
["10.97","FL",null,"10.97",null,"10.97"]
["10.98","FM",null,"10.98",null,"10.98"]
["10.99","FN",null,"10.99",null,"10.99"]
["11.00","FO",null,"11.00",null,"11.00"]
["11.01","FP",null,"11.01",null,"11.01"]
["11.02","FQ",null,"11.02",null,"11.02"]
["11.03","FR",null,"11.03",null,"11.03"]
["11.04","FS",null,"11.04",null,"11.04"]
["11.05","FT",null,"11.05",null,"11.05"]
["11.06","FU",null,"11.06",null,"11.06"]
["11.07","FV",null,"11.07",null,"11.07"]
["11.08","FW",null,"11.08",null,"11.08"]
["11.09","FX",null,"11.09",null,"11.09"]
["11.10","FY",null,"11.10",null,"11.10"]
["11.11","FZ",null,"11.11",null,"11.11"]
["11.12","GA",null,"11.12",null,"11.12"]
["11.13","GB",null,"11.13",null,"11.13"]
["11.14","GC",null,"11.14",null,"11.14"]
["11.15","GD",null,"11.15",null,"11.15"]
["11.16","GE",null,"11.16",null,"11.16"]
["11.17","GF",null,"11.17",null,"11.17"]
["11.18","GG",null,"11.18",null,"11.18"]
["11.19","GH",null,"11.19",null,"11.19"]
["11.20","GI",null,"11.20",null,"11.20"]
["11.21","GJ",null,"11.21",null,"11.21"]
["11.22","GK",null,"11.22",null,"11.22"]
["11.23","GL",null,"11.23",null,"11.23"]
["11.24","GM",null,"11.24",null,"11.24"]
["11.25","GN",null,"11.25",null,"11.25"]
["11.26","GO",null,"11.26",null,"11.26"]
["11.27","GP",null,"11.27",null,"11.27"]
["11.28","GQ",null,"11.28",null,"11.28"]
["11.29","GR",null,"11.29",null,"11.29"]
["11.30","GS",null,"11.30",null,"11.30"]
["11.31","GT",null,"11.31",null,"11.31"]
["11.32","GU",null,"11.32",null,"11.32"]
["11.33","GV",null,"11.33",null,"11.33"]
["11.34","GW",null,"11.34",null,"11.34"]
["11.35","GX",null,"11.35",null,"11.35"]
["11.36","GY",null,"11.36",null,"11.36"]
["11.37","GZ",null,"11.37",null,"11.37"]
["11.38","HA",null,"11.38",null,"11.38"]
["11.39","HB",null,"11.39",null,"11.39"]
["11.40","HC",null,"11.40",null,"11.40"]
["11.41","HD",null,"11.41",null,"11.41"]
["11.42","HE",null,"11.42",null,"11.42"]
["11.43","HF",null,"11.43",null,"11.43"]
["11.44","HG",null,"11.44",null,"11.44"]
["11.45","HH",null,"11.45",null,"11.45"]
["11.46","HI",null,"11.46",null,"11.46"]
["11.47","HJ",null,"11.47",null,"11.47"]
["11.48","HK",null,"11.48",null,"11.48"]
["11.49","HL",null,"11.49",null,"11.49"]
["11.50","HM",null,"11.50",null,"11.50"]
["11.51","HN",null,"11.51",null,"11.51"]
["11.52","HO",null,"11.52",null,"11.52"]
["11.53","HP",null,"11.53",null,"11.53"]
["11.54","HQ",null,"11.54",null,"11.54"]
["11.55","HR",null,"11.55",null,"11.55"]
["11.56","HS",null,"11.56",null,"11.56"]
["11.57","HT",null,"11.57",null,"11.57"]
["11.58","HU",null,"11.58",null,"11.58"]
["11.59","HV",null,"11.59",null,"11.59"]
["11.60","HW",null,"11.60",null,"11.60"]
["11.61","HX",null,"11.61",null,"11.61"]
["11.62","HY",null,"11.62",null,"11.62"]
["11.63","HZ",null,"11.63",null,"11.63"]
["11.64","IA",null,"11.64",null,"11.64"]
["11.65","IB",null,"11.65",null,"11.65"]
["11.66","IC",null,"11.66",null,"11.66"]
["11.67","ID",null,"11.67",null,"11.67"]
["11.68","IE",null,"11.68",null,"11.68"]
["11.69","IF",null,"11.69",null,"11.69"]
["11.70","IG",null,"11.70",null,"11.70"]
["11.71","II",null,"11.71",null,"11.71"]
["11.72","IJ",null,"11.72",null,"11.72"]
["11.73","IK",null,"11.73",null,"11.73"]
["11.74","IL",null,"11.74",null,"11.74"]
["11.75","IM",null,"11.75",null,"11.75"]
["11.76","IN",null,"11.76",null,"11.76"]
["11.77","IO",null,"11.77",null,"11.77"]
["11.78","IP",null,"11.78",null,"11.78"]
["11.79","IQ",null,"11.79",null,"11.79"]
["11.80","IR",null,"11.80",null,"11.80"]
["11.81","IS",null,"11.81",null,"11.81"]
["11.82","IT",null,"11.82",null,"11.82"]
["11.83","IU",null,"11.83",null,"11.83"]
["11.84","IV",null,"11.84",null,"11.84"]
["11.85","IW",null,"11.85",null,"11.85"]
["11.86","IX",null,"11.86",null,"11.86"]
["11.87","IY",null,"11.87",null,"11.87"]
["11.88","IZ",null,"11.88",null,"11.88"]
["11.89","JA",null,"11.89",null,"11.89"]
["11.90","JB",null,"11.90",null,"11.90"]
["11.91","JC",null,"11.91",null,"11.91"]
["11.92","JD",null,"11.92",null,"11.92"]
["11.93","JE",null,"11.93",null,"11.93"]
["11.94","JF",null,"11.94",null,"11.94"]
["11.95","JG",null,"11.95",null,"11.95"]
["11.96","JH",null,"11.96",null,"11.96"]
["11.97","JI",null,"11.97",null,"11.97"]
["11.98","JJ",null,"11.98",null,"11.98"]
["11.99","JK",null,"11.99",null,"11.99"]
["12.00","JL",null,"12.00",null,"12.00"]
["12.01","JM",null,"12.01",null,"12.01"]
["12.02","JN",null,"12.02",null,"12.02"]
["12.03","JO",null,"12.03",null,"12.03"]
["12.04","JP",null,"12.04",null,"12.04"]
["12.05","JQ",null,"12.05",null,"12.05"]
["12.06","JR",null,"12.06",null,"12.06"]
["12.07","JS",null,"12.07",null,"12.07"]
["12.08","JT",null,"12.08",null,"12.08"]
["12.09","JU",null,"12.09",null,"12.09"]
["12.10","JV",null,"12.10",null,"12.10"]
["12.11","JW",null,"12.11",null,"12.11"]
["12.12","JX",null,"12.12",null,"12.12"]
["12.13","JY",null,"12.13",null,"12.13"]
["12.14","JZ",null,"12.14",null,"12.14"]
["12.15","KA",null,"12.15",null,"12.15"]
["12.16","KB",null,"12.16",null,"12.16"]
["12.17","KC",null,"12.17",null,"12.17"]
["12.18","KD",null,"12.18",null,"12.18"]
["12.19","KE",null,"12.19",null,"12.19"]
["12.20","KF",null,"12.20",null,"12.20"]
["12.21","KG",null,"12.21",null,"12.21"]
["12.22","KH",null,"12.22",null,"12.22"]
["12.23","KI",null,"12.23",null,"12.23"]
["12.24","KJ",null,"12.24",null,"12.24"]
["12.25","KK",null,"12.25",null,"12.25"]
["12.26","KL",null,"12.26",null,"12.26"]
["12.27","KM",null,"12.27",null,"12.27"]
["12.28","KN",null,"12.28",null,"12.28"]
["12.29","KO",null,"12.29",null,"12.29"]
["12.30","KP",null,"12.30",null,"12.30"]
["12.31","KQ",null,"12.31",null,"12.31"]
["12.32","KR",null,"12.32",null,"12.32"]
["12.33","KS",null,"12.33",null,"12.33"]
["12.34","KT",null,"12.34",null,"12.34"]
["12.35","KU",null,"12.35",null,"12.35"]
["12.36","KV",null,"12.36",null,"12.36"]
["12.37","KW",null,"12.37",null,"12.37"]
["12.38","KX",null,"12.38",null,"12.38"]
["12.39","KY",null,"12.39",null,"12.39"]
["12.40","KZ",null,"12.40",null,"12.40"]
["12.41","LA",null,"12.41",null,"12.41"]
["12.42","LB",null,"12.42",null,"12.42"]
["12.43","LC",null,"12.43",null,"12.43"]
["12.44","LD",null,"12.44",null,"12.44"]
["12.45","LE",null,"12.45",null,"12.45"]
["12.46","LF",null,"12.46",null,"12.46"]
["12.47","LG",null,"12.47",null,"12.47"]
["12.48","LH",null,"12.48",null,"12.48"]
["12.49","LI",null,"12.49",null,"12.49"]
["12.50","LJ",null,"12.50",null,"12.50"]
["12.51","LK",null,"12.51",null,"12.51"]
["12.52","LL",null,"12.52",null,"12.52"]
["12.53","LM",null,"12.53",null,"12.53"]
["12.54","LN",null,"12.54",null,"12.54"]
["12.55","LO",null,"12.55",null,"12.55"]
["12.56","LP",null,"12.56",null,"12.56"]
["12.57","LQ",null,"12.57",null,"12.57"]
["12.58","LR",null,"12.58",null,"12.58"]
["12.59","LS",null,"12.59",null,"12.59"]
["12.60","LT",null,"12.60",null,"12.60"]
["12.61","LU",null,"12.61",null,"12.61"]
["12.62","LV",null,"12.62",null,"12.62"]
["12.63","LW",null,"12.63",null,"12.63"]
["12.64","LX",null,"12.64",null,"12.64"]
["12.65","LY",null,"12.65",null,"12.65"]
["12.66","LZ",null,"12.66",null,"12.66"]
["12.67","MA",null,"12.67",null,"12.67"]
["12.68","MB",null,"12.68",null,"12.68"]
["12.69","MC",null,"12.69",null,"12.69"]
["12.70","MD",null,"12.70",null,"12.70"]
["12.71","ME",null,"12.71",null,"12.71"]
["12.72","MF",null,"12.72",null,"12.72"]
["12.73","MG",null,"12.73",null,"12.73"]
["12.74","MH",null,"12.74",null,"12.74"]
["12.75","MI",null,"12.75",null,"12.75"]
["12.76","MJ",null,"12.76",null,"12.76"]
["12.77","MK",null,"12.77",null,"12.77"]
["12.78","ML",null,"12.78",null,"12.78"]
["12.79","MM",null,"12.79",null,"12.79"]
["12.80","MN",null,"12.80",null,"12.80"]
["12.81","MO",null,"12.81",null,"12.81"]
["12.82","MP",null,"12.82",null,"12.82"]
["12.83","MQ",null,"12.83",null,"12.83"]
["12.84","MR",null,"12.84",null,"12.84"]
["12.85","MS",null,"12.85",null,"12.85"]
["12.86","MT",null,"12.86",null,"12.86"]
["12.87","MU",null,"12.87",null,"12.87"]
["12.88","MV",null,"12.88",null,"12.88"]
["12.89","MW",null,"12.89",null,"12.89"]
["12.90","MX",null,"12.90",null,"12.90"]
["12.91","MY",null,"12.91",null,"12.91"]
["12.92","MZ",null,"12.92",null,"12.92"]
["12.93","NA",null,"12.93",null,"12.93"]
["12.94","NB",null,"12.94",null,"12.94"]
["12.95","NC",null,"12.95",null,"12.95"]
["12.96","ND",null,"12.96",null,"12.96"]
["12.97","NE",null,"12.97",null,"12.97"]
["12.98","NF",null,"12.98",null,"12.98"]
["12.99","NG",null,"12.99",null,"12.99"]
["13.00","NH",null,"13.00",null,"13.00"]
["13.01","NI",null,"13.01",null,"13.01"]
["13.02","NJ",null,"13.02",null,"13.02"]
["13.03","NK",null,"13.03",null,"13.03"]
["13.04","NL",null,"13.04",null,"13.04"]
["13.05","NM",null,"13.05",null,"13.05"]
["13.06","NN",null,"13.06",null,"13.06"]
["13.07","NO",null,"13.07",null,"13.07"]
["13.08","NP",null,"13.08",null,"13.08"]
["13.09","NQ",null,"13.09",null,"13.09"]
["13.10","NR",null,"13.10",null,"13.10"]
["13.11","NS",null,"13.11",null,"13.11"]
["13.12","NT",null,"13.12",null,"13.12"]
["13.13","NU",null,"13.13",null,"13.13"]
["13.14","NV",null,"13.14",null,"13.14"]
["13.15","NW",null,"13.15",null,"13.15"]
["13.16","NX",null,"13.16",null,"13.16"]
["13.17","NY",null,"13.17",null,"13.17"]
["13.18","NZ",null,"13.18",null,"13.18"]
["13.19","OA",null,"13.19",null,"13.19"]
["13.20","OB",null,"13.20",null,"13.20"]
["13.21","OC",null,"13.21",null,"13.21"]
["13.22","OD",null,"13.22",null,"13.22"]
["13.23","OE",null,"13.23",null,"13.23"]
["13.24","OF",null,"13.24",null,"13.24"]
["13.25","OG",null,"13.25",null,"13.25"]
["13.26","OH",null,"13.26",null,"13.26"]
["13.27","OI",null,"13.27",null,"13.27"]
["13.28","OJ",null,"13.28",null,"13.28"]
["13.29","OK",null,"13.29",null,"13.29"]
["13.30","OL",null,"13.30",null,"13.30"]
["13.31","OM",null,"13.31",null,"13.31"]
["13.32","ON",null,"13.32",null,"13.32"]
["13.33","OO",null,"13.33",null,"13.33"]
["13.34","OP",null,"13.34",null,"13.34"]
["13.35","OQ",null,"13.35",null,"13.35"]
["13.36","OR",null,"13.36",null,"13.36"]
["13.37","OS",null,"13.37",null,"13.37"]
["13.38","OT",null,"13.38",null,"13.38"]
["13.39","OU",null,"13.39",null,"13.39"]
["13.40","OV",null,"13.40",null,"13.40"]
["13.41","OW",null,"13.41",null,"13.41"]
["13.42","OX",null,"13.42",null,"13.42"]
["13.43","OY",null,"13.43",null,"13.43"]
["13.44","OZ",null,"13.44",null,"13.44"]
["13.45","PA",null,"13.45",null,"13.45"]
["13.46","PB",null,"13.46",null,"13.46"]
["13.47","PC",null,"13.47",null,"13.47"]
["13.48","PD",null,"13.48",null,"13.48"]
["13.49","PE",null,"13.49",null,"13.49"]
["13.50","PF",null,"13.50",null,"13.50"]
["13.51","PG",null,"13.51",null,"13.51"]
["13.52","PH",null,"13.52",null,"13.52"]
["13.53","PI",null,"13.53",null,"13.53"]
["13.54","PJ",null,"13.54",null,"13.54"]
["13.55","PK",null,"13.55",null,"13.55"]
["13.56","PL",null,"13.56",null,"13.56"]
["13.57","PM",null,"13.57",null,"13.57"]
["13.58","PN",null,"13.58",null,"13.58"]
["13.59","PO",null,"13.59",null,"13.59"]
["13.60","PP",null,"13.60",null,"13.60"]
["13.61","PQ",null,"13.61",null,"13.61"]
["13.62","PR",null,"13.62",null,"13.62"]
["13.63","PS",null,"13.63",null,"13.63"]
["13.64","PT",null,"13.64",null,"13.64"]
["13.65","PU",null,"13.65",null,"13.65"]
["13.66","PV",null,"13.66",null,"13.66"]
["13.67","PW",null,"13.67",null,"13.67"]
["13.68","PX",null,"13.68",null,"13.68"]
["13.69","PY",null,"13.69",null,"13.69"]
["13.70","PZ",null,"13.70",null,"13.70"]
["13.71","QA",null,"13.71",null,"13.71"]
["13.72","QB",null,"13.72",null,"13.72"]
["13.73","QC",null,"13.73",null,"13.73"]
["13.74","QD",null,"13.74",null,"13.74"]
["13.75","QE",null,"13.75",null,"13.75"]
["13.76","QF",null,"13.76",null,"13.76"]
["13.77","QG",null,"13.77",null,"13.77"]
["13.78","QH",null,"13.78",null,"13.78"]
["13.79","QI",null,"13.79",null,"13.79"]
["13.80","QJ",null,"13.80",null,"13.80"]
["13.81","QK",null,"13.81",null,"13.81"]
["13.82","QL",null,"13.82",null,"13.82"]
["13.83","QM",null,"13.83",null,"13.83"]
["13.84","QN",null,"13.84",null,"13.84"]
["13.85","QO",null,"13.85",null,"13.85"]
["13.86","QP",null,"13.86",null,"13.86"]
["13.87","QQ",null,"13.87",null,"13.87"]
["13.88","QR",null,"13.88",null,"13.88"]
["13.89","QS",null,"13.89",null,"13.89"]
["13.90","QT",null,"13.90",null,"13.90"]
["13.91","QU",null,"13.91",null,"13.91"]
["13.92","QV",null,"13.92",null,"13.92"]
["13.93","QW",null,"13.93",null,"13.93"]
["13.94","QX",null,"13.94",null,"13.94"]
["13.95","QY",null,"13.95",null,"13.95"]
["13.96","QZ",null,"13.96",null,"13.96"]
["13.97","RA",null,"13.97",null,"13.97"]
["13.98","RB",null,"13.98",null,"13.98"]
["13.99","RC",null,"13.99",null,"13.99"]
["14.00","RD",null,"14.00",null,"14.00"]
["14.01","RE",null,"14.01",null,"14.01"]
["14.02","RF",null,"14.02",null,"14.02"]
["14.03","RG",null,"14.03",null,"14.03"]
["14.04","RH",null,"14.04",null,"14.04"]
["14.05","RI",null,"14.05",null,"14.05"]
["14.06","RJ",null,"14.06",null,"14.06"]
["14.07","RK",null,"14.07",null,"14.07"]
["14.08","RL",null,"14.08",null,"14.08"]
["14.09","RM",null,"14.09",null,"14.09"]
["14.10","RN",null,"14.10",null,"14.10"]
["14.11","RO",null,"14.11",null,"14.11"]
["14.12","RP",null,"14.12",null,"14.12"]
["14.13","RQ",null,"14.13",null,"14.13"]
["14.14","RR",null,"14.14",null,"14.14"]
["14.15","RS",null,"14.15",null,"14.15"]
["14.16","RT",null,"14.16",null,"14.16"]
["14.17","RU",null,"14.17",null,"14.17"]
["14.18","RV",null,"14.18",null,"14.18"]
["14.19","RW",null,"14.19",null,"14.19"]
["14.20","RX",null,"14.20",null,"14.20"]
["14.21","RY",null,"14.21",null,"14.21"]
["14.22","RZ",null,"14.22",null,"14.22"]
["14.23","SA",null,"14.23",null,"14.23"]
["14.24","SB",null,"14.24",null,"14.24"]
["14.25","SC",null,"14.25",null,"14.25"]
["14.26","SD",null,"14.26",null,"14.26"]
["14.27","SE",null,"14.27",null,"14.27"]
["14.28","SF",null,"14.28",null,"14.28"]
["14.29","SG",null,"14.29",null,"14.29"]
["14.30","SH",null,"14.30",null,"14.30"]
["14.31","SI",null,"14.31",null,"14.31"]
["14.32","SJ",null,"14.32",null,"14.32"]
["14.33","SK",null,"14.33",null,"14.33"]
["14.34","SL",null,"14.34",null,"14.34"]
["14.35","SM",null,"14.35",null,"14.35"]
["14.36","SN",null,"14.36",null,"14.36"]
["14.37","SO",null,"14.37",null,"14.37"]
["14.38","SP",null,"14.38",null,"14.38"]
["14.39","SQ",null,"14.39",null,"14.39"]
["14.40","SR",null,"14.40",null,"14.40"]
["14.41","SS",null,"14.41",null,"14.41"]
["14.42","ST",null,"14.42",null,"14.42"]
["14.43","SU",null,"14.43",null,"14.43"]
["14.44","SV",null,"14.44",null,"14.44"]
["14.45","SW",null,"14.45",null,"14.45"]
["14.46","SX",null,"14.46",null,"14.46"]
["14.47","SY",null,"14.47",null,"14.47"]
["14.48","SZ",null,"14.48",null,"14.48"]
["14.49","TA",null,"14.49",null,"14.49"]
["14.50","TB",null,"14.50",null,"14.50"]
["14.51","TC",null,"14.51",null,"14.51"]
["14.52","TD",null,"14.52",null,"14.52"]
["14.53","TE",null,"14.53",null,"14.53"]
["14.54","TF",null,"14.54",null,"14.54"]
["14.55","TG",null,"14.55",null,"14.55"]
["14.56","TH",null,"14.56",null,"14.56"]
["14.57","TI",null,"14.57",null,"14.57"]
["14.58","TJ",null,"14.58",null,"14.58"]
["14.59","TK",null,"14.59",null,"14.59"]
["14.60","TL",null,"14.60",null,"14.60"]
["14.61","TM",null,"14.61",null,"14.61"]
["14.62","TN",null,"14.62",null,"14.62"]
["14.63","TO",null,"14.63",null,"14.63"]
["14.64","TP",null,"14.64",null,"14.64"]
["14.65","TQ",null,"14.65",null,"14.65"]
["14.66","TR",null,"14.66",null,"14.66"]
["14.67","TS",null,"14.67",null,"14.67"]
["14.68","TT",null,"14.68",null,"14.68"]
["14.69","TU",null,"14.69",null,"14.69"]
["14.70","TV",null,"14.70",null,"14.70"]
["14.71","TW",null,"14.71",null,"14.71"]
["14.72","TX",null,"14.72",null,"14.72"]
["14.73","TY",null,"14.73",null,"14.73"]
["14.74","TZ",null,"14.74",null,"14.74"]
["14.75","VA",null,"14.75",null,"14.75"]
["14.76","VB",null,"14.76",null,"14.76"]
["14.77","VC",null,"14.77",null,"14.77"]
["14.78","VD",null,"14.78",null,"14.78"]
["14.79","VE",null,"14.79",null,"14.79"]
["14.80","VF",null,"14.80",null,"14.80"]
["14.81","VG",null,"14.81",null,"14.81"]
["14.82","VH",null,"14.82",null,"14.82"]
["14.83","VI",null,"14.83",null,"14.83"]
["14.84","VJ",null,"14.84",null,"14.84"]
["14.85","VL",null,"14.85",null,"14.85"]
["14.86","VM",null,"14.86",null,"14.86"]
["14.87","VN",null,"14.87",null,"14.87"]
["14.88","VO",null,"14.88",null,"14.88"]
["14.89","VP",null,"14.89",null,"14.89"]
["14.90","VQ",null,"14.90",null,"14.90"]
["14.91","VR",null,"14.91",null,"14.91"]
["14.92","VS",null,"14.92",null,"14.92"]
["14.93","VT",null,"14.93",null,"14.93"]
["14.94","VU",null,"14.94",null,"14.94"]
["14.95","VV",null,"14.95",null,"14.95"]
["14.96","VW",null,"14.96",null,"14.96"]
["14.97","VX",null,"14.97",null,"14.97"]
["14.98","VY",null,"14.98",null,"14.98"]
["14.99","VZ",null,"14.99",null,"14.99"]
["15.00","UA",null,"15.00",null,"15.00"]
["15.01","UB",null,"15.01",null,"15.01"]
["15.02","UC",null,"15.02",null,"15.02"]
["15.03","UD",null,"15.03",null,"15.03"]
["15.04","UE",null,"15.04",null,"15.04"]
["15.05","UF",null,"15.05",null,"15.05"]
["15.06","UG",null,"15.06",null,"15.06"]
["15.07","UH",null,"15.07",null,"15.07"]
["15.08","UI",null,"15.08",null,"15.08"]
["15.09","UJ",null,"15.09",null,"15.09"]
["15.10","UK",null,"15.10",null,"15.10"]
["15.11","UL",null,"15.11",null,"15.11"]
["15.12","UM",null,"15.12",null,"15.12"]
["15.13","UN",null,"15.13",null,"15.13"]
["15.14","UO",null,"15.14",null,"15.14"]
["15.15","UP",null,"15.15",null,"15.15"]
["15.16","UQ",null,"15.16",null,"15.16"]
["15.17","UR",null,"15.17",null,"15.17"]
["15.18","US",null,"15.18",null,"15.18"]
["15.19","UT",null,"15.19",null,"15.19"]
["15.20","UU",null,"15.20",null,"15.20"]
["15.21","UV",null,"15.21",null,"15.21"]
["15.22","UW",null,"15.22",null,"15.22"]
["15.23","UX",null,"15.23",null,"15.23"]
["15.24","UY",null,"15.24",null,"15.24"]
["15.25","UZ",null,"15.25",null,"15.25"]
["15.26","WA",null,"15.26",null,"15.26"]
["15.27","WB",null,"15.27",null,"15.27"]
["15.28","WC",null,"15.28",null,"15.28"]
["15.29","WD",null,"15.29",null,"15.29"]
["15.30","WE",null,"15.30",null,"15.30"]
["15.31","WF",null,"15.31",null,"15.31"]
["15.32","WG",null,"15.32",null,"15.32"]
["15.33","WH",null,"15.33",null,"15.33"]
["15.34","WI",null,"15.34",null,"15.34"]
["15.35","WJ",null,"15.35",null,"15.35"]
["15.36","WK",null,"15.36",null,"15.36"]
["15.37","WL",null,"15.37",null,"15.37"]
["15.38","WM",null,"15.38",null,"15.38"]
["15.39","WN",null,"15.39",null,"15.39"]
["15.40","WO",null,"15.40",null,"15.40"]
["15.41","WP",null,"15.41",null,"15.41"]
["15.42","WQ",null,"15.42",null,"15.42"]
["15.43","WR",null,"15.43",null,"15.43"]
["15.44","WS",null,"15.44",null,"15.44"]
["15.45","WT",null,"15.45",null,"15.45"]
["15.46","WU",null,"15.46",null,"15.46"]
["15.47","WV",null,"15.47",null,"15.47"]
["15.48","WW",null,"15.48",null,"15.48"]
["15.49","WX",null,"15.49",null,"15.49"]
["15.50","WY",null,"15.50",null,"15.50"]
["15.51","WZ",null,"15.51",null,"15.51"]
["15.52","XA",null,"15.52",null,"15.52"]
["15.53","XB",null,"15.53",null,"15.53"]
["15.54","XC",null,"15.54",null,"15.54"]
["15.55","XD",null,"15.55",null,"15.55"]
["15.56","XE",null,"15.56",null,"15.56"]
["15.57","XF",null,"15.57",null,"15.57"]
["15.58","XG",null,"15.58",null,"15.58"]
["15.59","XH",null,"15.59",null,"15.59"]
["15.60","XI",null,"15.60",null,"15.60"]
["15.61","XJ",null,"15.61",null,"15.61"]
["15.62","XK",null,"15.62",null,"15.62"]
["15.63","XL",null,"15.63",null,"15.63"]
["15.64","XM",null,"15.64",null,"15.64"]
["15.65","XN",null,"15.65",null,"15.65"]
["15.66","XO",null,"15.66",null,"15.66"]
["15.67","XP",null,"15.67",null,"15.67"]
["15.68","XQ",null,"15.68",null,"15.68"]
["15.69","XR",null,"15.69",null,"15.69"]
["15.70","XS",null,"15.70",null,"15.70"]
["15.71","XT",null,"15.71",null,"15.71"]
["15.72","XU",null,"15.72",null,"15.72"]
["15.73","XV",null,"15.73",null,"15.73"]
["15.74","XW",null,"15.74",null,"15.74"]
["15.75","XX",null,"15.75",null,"15.75"]
["15.76","XY",null,"15.76",null,"15.76"]
["15.77","XZ",null,"15.77",null,"15.77"]
["15.78","YA",null,"15.78",null,"15.78"]
["15.79","YB",null,"15.79",null,"15.79"]
["15.80","YC",null,"15.80",null,"15.80"]
["15.81","YD",null,"15.81",null,"15.81"]
["15.82","YE",null,"15.82",null,"15.82"]
["15.83","YF",null,"15.83",null,"15.83"]
["15.84","YG",null,"15.84",null,"15.84"]
["15.85","YH",null,"15.85",null,"15.85"]
["15.86","YI",null,"15.86",null,"15.86"]
["15.87","YJ",null,"15.87",null,"15.87"]
["15.88","YK",null,"15.88",null,"15.88"]
["15.89","YL",null,"15.89",null,"15.89"]
["15.90","YM",null,"15.90",null,"15.90"]
["15.91","YN",null,"15.91",null,"15.91"]
["15.92","YO",null,"15.92",null,"15.92"]
["15.93","YP",null,"15.93",null,"15.93"]
["15.94","YQ",null,"15.94",null,"15.94"]
["15.95","YR",null,"15.95",null,"15.95"]
["15.96","YS",null,"15.96",null,"15.96"]
["15.97","YT",null,"15.97",null,"15.97"]
["15.98","YU",null,"15.98",null,"15.98"]
["15.99","YV",null,"15.99",null,"15.99"]
["16.00","YW",null,"16.00",null,"16.00"]
["16.01","YX",null,"16.01",null,"16.01"]
["16.02","YY",null,"16.02",null,"16.02"]
["16.03","YZ",null,"16.03",null,"16.03"]
["16.04","ZA",null,"16.04",null,"16.04"]
["16.05","ZB",null,"16.05",null,"16.05"]
["16.06","ZC",null,"16.06",null,"16.06"]
["16.07","ZD",null,"16.07",null,"16.07"]
["16.08","ZE",null,"16.08",null,"16.08"]
["16.09","ZF",null,"16.09",null,"16.09"]
["16.10","ZG",null,"16.10",null,"16.10"]
["16.11","ZH",null,"16.11",null,"16.11"]
["16.12","ZI",null,"16.12",null,"16.12"]
["16.13","ZJ",null,"16.13",null,"16.13"]
["16.14","ZK",null,"16.14",null,"16.14"]
["16.15","ZL",null,"16.15",null,"16.15"]
["16.16","ZM",null,"16.16",null,"16.16"]
["16.17","ZN",null,"16.17",null,"16.17"]
["16.18","ZO",null,"16.18",null,"16.18"]
["16.19","ZP",null,"16.19",null,"16.19"]
["16.20","ZQ",null,"16.20",null,"16.20"]
["16.21","ZR",null,"16.21",null,"16.21"]
["16.22","ZS",null,"16.22",null,"16.22"]
["16.23","ZT",null,"16.23",null,"16.23"]
["16.24","ZU",null,"16.24",null,"16.24"]
["16.25","ZV",null,"16.25",null,"16.25"]
["16.26","ZW",null,"16.26",null,"16.26"]
["16.27","ZX",null,"16.27",null,"16.27"]
["16.28","ZY",null,"16.28",null,"16.28"]
["16.29","ZZ",null,"16.29",null,"16.29"]
["16.30",".A",null,"16.30",null,"16.30"]
["16.31",".B",null,"16.31",null,"16.31"]
["16.32",".C",null,"16.32",null,"16.32"]
["16.33",".D",null,"16.33",null,"16.33"]
["16.34",".E",null,"16.34",null,"16.34"]
["16.35",".F",null,"16.35",null,"16.35"]
["16.36",".G",null,"16.36",null,"16.36"]
["16.37",".H",null,"16.37",null,"16.37"]
["16.38",".I",null,"16.38",null,"16.38"]
["16.39",".J",null,"16.39",null,"16.39"]
["16.40",".L",null,"16.40",null,"16.40"]
["16.41",".M",null,"16.41",null,"16.41"]
["16.42",".N",null,"16.42",null,"16.42"]
["16.43",".O",null,"16.43",null,"16.43"]
["16.44",".P",null,"16.44",null,"16.44"]
["16.45",".Q",null,"16.45",null,"16.45"]
["16.46",".R",null,"16.46",null,"16.46"]
["16.47",".S",null,"16.47",null,"16.47"]
["16.48",".T",null,"16.48",null,"16.48"]
["16.49",".U",null,"16.49",null,"16.49"]
["16.50",".V",null,"16.50",null,"16.50"]
["16.51",".W",null,"16.51",null,"16.51"]
["16.52",".X",null,"16.52",null,"16.52"]
["16.53",".Y",null,"16.53",null,"16.53"]
["16.54",".Z",null,"16.54",null,"16.54"]
["16.55","*A",null,"16.55",null,"16.55"]
["16.56","*B",null,"16.56",null,"16.56"]
["16.57","*C",null,"16.57",null,"16.57"]
["16.58","*D",null,"16.58",null,"16.58"]
["16.59","*E",null,"16.59",null,"16.59"]
["16.60","*F",null,"16.60",null,"16.60"]
["16.61","*G",null,"16.61",null,"16.61"]
["16.62","*H",null,"16.62",null,"16.62"]
["16.63","*I",null,"16.63",null,"16.63"]
["16.64","*J",null,"16.64",null,"16.64"]
["16.65","*L",null,"16.65",null,"16.65"]
["16.66","*M",null,"16.66",null,"16.66"]
["16.67","*N",null,"16.67",null,"16.67"]
["16.68","*O",null,"16.68",null,"16.68"]
["16.69","*P",null,"16.69",null,"16.69"]
["16.70","*Q",null,"16.70",null,"16.70"]
["16.71","*R",null,"16.71",null,"16.71"]
["16.72","*S",null,"16.72",null,"16.72"]
["16.73","*T",null,"16.73",null,"16.73"]
["16.74","*U",null,"16.74",null,"16.74"]
["16.75","*V",null,"16.75",null,"16.75"]
["16.76","*W",null,"16.76",null,"16.76"]
["16.77","*X",null,"16.77",null,"16.77"]
["16.78","*Y",null,"16.78",null,"16.78"]
["16.79","*Z",null,"16.79",null,"16.79"]
["16.80","-A",null,"16.80",null,"16.80"]
["16.81","-B",null,"16.81",null,"16.81"]
["16.82","-C",null,"16.82",null,"16.82"]
["16.83","-D",null,"16.83",null,"16.83"]
["16.84","-E",null,"16.84",null,"16.84"]
["16.85","-F",null,"16.85",null,"16.85"]
["16.86","-G",null,"16.86",null,"16.86"]
["16.87","-H",null,"16.87",null,"16.87"]
["16.88","-I",null,"16.88",null,"16.88"]
["16.89","-J",null,"16.89",null,"16.89"]
["16.90","-K",null,"16.90",null,"16.90"]
["16.91","-L",null,"16.91",null,"16.91"]
["16.92","-M",null,"16.92",null,"16.92"]
["16.93","-N",null,"16.93",null,"16.93"]
["16.94","-O",null,"16.94",null,"16.94"]
["16.95","-P",null,"16.95",null,"16.95"]
["16.96","-Q",null,"16.96",null,"16.96"]
["16.97","-R",null,"16.97",null,"16.97"]
["16.98","-S",null,"16.98",null,"16.98"]
["16.99","-T",null,"16.99",null,"16.99"]
["17.00","-U",null,"17.00",null,"17.00"]
["8.00","4A",null,"8.00",null,"8.00"]
["8.01","4B",null,"8.01",null,"8.01"]
["8.02","4C",null,"8.02",null,"8.02"]
["8.03","4D",null,"8.03",null,"8.03"]
["8.04","4E",null,"8.04",null,"8.04"]
["8.05","4F",null,"8.05",null,"8.05"]
["8.06","4G",null,"8.06",null,"8.06"]
["8.07","4H",null,"8.07",null,"8.07"]
["8.08","4I",null,"8.08",null,"8.08"]
["8.09","4J",null,"8.09",null,"8.09"]
["8.10","4K",null,"8.10",null,"8.10"]
["8.11","4L",null,"8.11",null,"8.11"]
["8.12","4M",null,"8.12",null,"8.12"]
["8.13","4N",null,"8.13",null,"8.13"]
["8.14","4O",null,"8.14",null,"8.14"]
["8.15","4P",null,"8.15",null,"8.15"]
["8.16","4Q",null,"8.16",null,"8.16"]
["8.17","4R",null,"8.17",null,"8.17"]
["8.18","4S",null,"8.18",null,"8.18"]
["8.19","4T",null,"8.19",null,"8.19"]
["8.20","4U",null,"8.20",null,"8.20"]
["8.21","4V",null,"8.21",null,"8.21"]
["8.22","4W",null,"8.22",null,"8.22"]
["8.23","4X",null,"8.23",null,"8.23"]
["8.24","4Y",null,"8.24",null,"8.24"]
["8.25","4Z",null,"8.25",null,"8.25"]
["8.26","5A",null,"8.26",null,"8.26"]
["8.27","5B",null,"8.27",null,"8.27"]
["8.28","5C",null,"8.28",null,"8.28"]
["8.29","5D",null,"8.29",null,"8.29"]
["8.30","5E",null,"8.30",null,"8.30"]
["8.31","5F",null,"8.31",null,"8.31"]
["8.32","5G",null,"8.32",null,"8.32"]
["8.33","5H",null,"8.33",null,"8.33"]
["8.34","5I",null,"8.34",null,"8.34"]
["8.35","5J",null,"8.35",null,"8.35"]
["8.36","5K",null,"8.36",null,"8.36"]
["8.37","5L",null,"8.37",null,"8.37"]
["8.38","5M",null,"8.38",null,"8.38"]
["8.39","5N",null,"8.39",null,"8.39"]
["8.40","5O",null,"8.40",null,"8.40"]
["8.41","5P",null,"8.41",null,"8.41"]
["8.42","5Q",null,"8.42",null,"8.42"]
["8.43","5R",null,"8.43",null,"8.43"]
["8.44","5S",null,"8.44",null,"8.44"]
["8.45","5T",null,"8.45",null,"8.45"]
["8.46","5U",null,"8.46",null,"8.46"]
["8.47","5V",null,"8.47",null,"8.47"]
["8.48","5W",null,"8.48",null,"8.48"]
["8.49","5X",null,"8.49",null,"8.49"]
["8.50","5Y",null,"8.50",null,"8.50"]
["8.51","5Z",null,"8.51",null,"8.51"]
["8.52","6A",null,"8.52",null,"8.52"]
["8.53","6B",null,"8.53",null,"8.53"]
["8.54","6C",null,"8.54",null,"8.54"]
["8.55","6D",null,"8.55",null,"8.55"]
["8.56","6E",null,"8.56",null,"8.56"]
["8.57","6F",null,"8.57",null,"8.57"]
["8.58","6G",null,"8.58",null,"8.58"]
["8.59","6H",null,"8.59",null,"8.59"]
["8.60","6I",null,"8.60",null,"8.60"]
["8.61","6J",null,"8.61",null,"8.61"]
["8.62","6K",null,"8.62",null,"8.62"]
["8.63","6L",null,"8.63",null,"8.63"]
["8.64","6M",null,"8.64",null,"8.64"]
["8.65","6N",null,"8.65",null,"8.65"]
["8.66","6O",null,"8.66",null,"8.66"]
["8.67","6P",null,"8.67",null,"8.67"]
["8.68","6Q",null,"8.68",null,"8.68"]
["8.69","6R",null,"8.69",null,"8.69"]
["8.70","6S",null,"8.70",null,"8.70"]
["8.71","6T",null,"8.71",null,"8.71"]
["8.72","6U",null,"8.72",null,"8.72"]
["8.73","6V",null,"8.73",null,"8.73"]
["8.74","6W",null,"8.74",null,"8.74"]
["8.75","6X",null,"8.75",null,"8.75"]
["8.76","6Y",null,"8.76",null,"8.76"]
["8.77","6Z",null,"8.77",null,"8.77"]
["8.78","7A",null,"8.78",null,"8.78"]
["8.79","7B",null,"8.79",null,"8.79"]
["8.80","7C",null,"8.80",null,"8.80"]
["8.81","7D",null,"8.81",null,"8.81"]
["8.82","7E",null,"8.82",null,"8.82"]
["8.83","7F",null,"8.83",null,"8.83"]
["8.84","7G",null,"8.84",null,"8.84"]
["8.85","7H",null,"8.85",null,"8.85"]
["8.86","7I",null,"8.86",null,"8.86"]
["8.87","7J",null,"8.87",null,"8.87"]
["8.88","7K",null,"8.88",null,"8.88"]
["8.89","7L",null,"8.89",null,"8.89"]
["8.90","7M",null,"8.90",null,"8.90"]
["8.91","7N",null,"8.91",null,"8.91"]
["8.92","7O",null,"8.92",null,"8.92"]
["8.93","7P",null,"8.93",null,"8.93"]
["8.94","7Q",null,"8.94",null,"8.94"]
["8.95","7R",null,"8.95",null,"8.95"]
["8.96","7S",null,"8.96",null,"8.96"]
["8.97","7T",null,"8.97",null,"8.97"]
["8.98","7U",null,"8.98",null,"8.98"]
["8.99","7V",null,"8.99",null,"8.99"]
["9.00","7W",null,"9.00",null,"9.00"]
["9.01","7X",null,"9.01",null,"9.01"]
["9.02","7Y",null,"9.02",null,"9.02"]
["9.03","7Z",null,"9.03",null,"9.03"]
["9.04","8A",null,"9.04",null,"9.04"]
["9.05","8B",null,"9.05",null,"9.05"]
["9.06","8C",null,"9.06",null,"9.06"]
["9.07","8D",null,"9.07",null,"9.07"]
["9.08","8E",null,"9.08",null,"9.08"]
["9.09","8F",null,"9.09",null,"9.09"]
["9.10","8G",null,"9.10",null,"9.10"]
["9.11","8H",null,"9.11",null,"9.11"]
["9.12","8I",null,"9.12",null,"9.12"]
["9.13","8J",null,"9.13",null,"9.13"]
["9.14","8K",null,"9.14",null,"9.14"]
["9.15","8L",null,"9.15",null,"9.15"]
["9.16","8M",null,"9.16",null,"9.16"]
["9.17","8N",null,"9.17",null,"9.17"]
["9.18","8O",null,"9.18",null,"9.18"]
["9.19","8P",null,"9.19",null,"9.19"]
["9.20","8Q",null,"9.20",null,"9.20"]
["9.21","8R",null,"9.21",null,"9.21"]
["9.22","8S",null,"9.22",null,"9.22"]
["9.23","8T",null,"9.23",null,"9.23"]
["9.24","8U",null,"9.24",null,"9.24"]
["9.25","8V",null,"9.25",null,"9.25"]
["9.26","8W",null,"9.26",null,"9.26"]
["9.27","8X",null,"9.27",null,"9.27"]
["9.28","8Y",null,"9.28",null,"9.28"]
["9.29","8Z",null,"9.29",null,"9.29"]
["9.30","9A",null,"9.30",null,"9.30"]
["9.31","9B",null,"9.31",null,"9.31"]
["9.32","9C",null,"9.32",null,"9.32"]
["9.33","9D",null,"9.33",null,"9.33"]
["9.34","9E",null,"9.34",null,"9.34"]
["9.35","9F",null,"9.35",null,"9.35"]
["9.36","9G",null,"9.36",null,"9.36"]
["9.37","9H",null,"9.37",null,"9.37"]
["9.38","9I",null,"9.38",null,"9.38"]
["9.39","9J",null,"9.39",null,"9.39"]
["9.40","9K",null,"9.40",null,"9.40"]
["9.41","9L",null,"9.41",null,"9.41"]
["9.42","9M",null,"9.42",null,"9.42"]
["9.43","9N",null,"9.43",null,"9.43"]
["9.44","9O",null,"9.44",null,"9.44"]
["9.45","9P",null,"9.45",null,"9.45"]
["9.46","9Q",null,"9.46",null,"9.46"]
["9.47","9R",null,"9.47",null,"9.47"]
["9.48","9S",null,"9.48",null,"9.48"]
["9.49","9T",null,"9.49",null,"9.49"]
["9.50","9U",null,"9.50",null,"9.50"]
["9.51","9V",null,"9.51",null,"9.51"]
["9.52","9W",null,"9.52",null,"9.52"]
["9.53","9X",null,"9.53",null,"9.53"]
["9.54","9Y",null,"9.54",null,"9.54"]
["9.55","9Z",null,"9.55",null,"9.55"]
["9.56","AA",null,"9.56",null,"9.56"]
["9.57","AB",null,"9.57",null,"9.57"]
["9.58","AC",null,"9.58",null,"9.58"]
["9.59","AD",null,"9.59",null,"9.59"]
["9.60","AE",null,"9.60",null,"9.60"]
["9.61","AF",null,"9.61",null,"9.61"]
["9.62","AG",null,"9.62",null,"9.62"]
["9.63","AH",null,"9.63",null,"9.63"]
["9.64","AI",null,"9.64",null,"9.64"]
["9.65","AJ",null,"9.65",null,"9.65"]
["9.66","AK",null,"9.66",null,"9.66"]
["9.67","AL",null,"9.67",null,"9.67"]
["9.68","AM",null,"9.68",null,"9.68"]
["9.69","AN",null,"9.69",null,"9.69"]
["9.70","AO",null,"9.70",null,"9.70"]
["9.71","AP",null,"9.71",null,"9.71"]
["9.72","AQ",null,"9.72",null,"9.72"]
["9.73","AR",null,"9.73",null,"9.73"]
["9.74","AS",null,"9.74",null,"9.74"]
["9.75","AT",null,"9.75",null,"9.75"]
["9.76","AU",null,"9.76",null,"9.76"]
["9.77","AV",null,"9.77",null,"9.77"]
["9.78","AW",null,"9.78",null,"9.78"]
["9.79","AX",null,"9.79",null,"9.79"]
["9.80","AY",null,"9.80",null,"9.80"]
["9.81","AZ",null,"9.81",null,"9.81"]
["9.82","BA",null,"9.82",null,"9.82"]
["9.83","BB",null,"9.83",null,"9.83"]
["9.84","BC",null,"9.84",null,"9.84"]
["9.85","BD",null,"9.85",null,"9.85"]
["9.86","BE",null,"9.86",null,"9.86"]
["9.87","BF",null,"9.87",null,"9.87"]
["9.88","BG",null,"9.88",null,"9.88"]
["9.89","BH",null,"9.89",null,"9.89"]
["9.90","BI",null,"9.90",null,"9.90"]
["9.91","BJ",null,"9.91",null,"9.91"]
["9.92","BK",null,"9.92",null,"9.92"]
["9.93","BL",null,"9.93",null,"9.93"]
["9.94","BM",null,"9.94",null,"9.94"]
["9.95","BN",null,"9.95",null,"9.95"]
["9.96","BO",null,"9.96",null,"9.96"]
["9.97","BP",null,"9.97",null,"9.97"]
["9.98","BQ",null,"9.98",null,"9.98"]
["9.99","BR",null,"9.99",null,"9.99"]
["Bal.int.calc.term 2","03",null,"Bal.int.calc.term 2",null,"Bal.int.calc.term 2"]
["Bal.int.calc.term 3","05",null,"Bal.int.calc.term 3",null,"Bal.int.calc.term 3"]
["CF - HNB Loan","1H",null,"CF - HNB Loan",null,"CF - HNB Loan"]
["CM-HNB-Money Mkt Loa","2C",null,"CM-HNB-Money Mkt Loa",null,"CM-HNB-Money Mkt Loa"]
["CW-SCAN -HNB","2B",null,"CW-SCAN -HNB",null,"CW-SCAN -HNB"]
["CW-SCB-Packing Credi","2A",null,"CW-SCB-Packing Credi",null,"CW-SCB-Packing Credi"]
["CWM Grp CA Inter Com","2J",null,"CWM Grp CA Inter Com",null,"CWM Grp CA Inter Com"]
["CWM Grp CA Inter Pro","2K",null,"CWM Grp CA Inter Pro",null,"CWM Grp CA Inter Pro"]
["CWM Grp-Inter Compny","2H",null,"CWM Grp-Inter Compny",null,"CWM Grp-Inter Compny"]
["CWM Grp-Inter Profit","2I",null,"CWM Grp-Inter Profit",null,"CWM Grp-Inter Profit"]
["DB TR Commercial","D1",null,"DB TR Commercial",null,"DB TR Commercial"]
["DB TR HNB","D2",null,"DB TR HNB",null,"DB TR HNB"]
["Debenture Type A","1J",null,"Debenture Type A",null,"Debenture Type A"]
["Debenture Type B","1K",null,"Debenture Type B",null,"Debenture Type B"]
["Debenture Type C","1L",null,"Debenture Type C",null,"Debenture Type C"]
["Debenture Type D","1M",null,"Debenture Type D",null,"Debenture Type D"]
["EB Comm Paper","1U",null,"EB Comm Paper",null,"EB Comm Paper"]
["EB LT Comm 1","1N",null,"EB LT Comm 1",null,"EB LT Comm 1"]
["EB LT Comm 2","1P",null,"EB LT Comm 2",null,"EB LT Comm 2"]
["EB LT Comm 3","1Q",null,"EB LT Comm 3",null,"EB LT Comm 3"]
["EB LT HNB","1R",null,"EB LT HNB",null,"EB LT HNB"]
["EB LT NDB","1!",null,"EB LT NDB",null,"EB LT NDB"]
["EB LT NTB","1S",null,"EB LT NTB",null,"EB LT NTB"]
["EB LT Sampth","1O",null,"EB LT Sampth",null,"EB LT Sampth"]
["EB ST HNB","1T",null,"EB ST HNB",null,"EB ST HNB"]
["EB TR Comm","1V",null,"EB TR Comm",null,"EB TR Comm"]
["EB TR HNB","1Y",null,"EB TR HNB",null,"EB TR HNB"]
["EB TR NTB","1Z",null,"EB TR NTB",null,"EB TR NTB"]
["EB TR Sampath","1X",null,"EB TR Sampath",null,"EB TR Sampath"]
["Int-Security Dep 10% - 50","50",null,"Int-Security Dep 10% - 50",null,"Int-Security Dep 10% - 50"]
["Item int.calc.IOA CL","VK",null,"Item int.calc.IOA CL",null,"Item int.calc.IOA CL"]
["Item int.calc.term 2","04",null,"Item int.calc.term 2",null,"Item int.calc.term 2"]
["KVC -CBC- Long","2D",null,"KVC -CBC- Long",null,"KVC -CBC- Long"]
["KVC -CBC- Savings","2G",null,"KVC -CBC- Savings",null,"KVC -CBC- Savings"]
["KVC -CBC- Short1","2E",null,"KVC -CBC- Short1",null,"KVC -CBC- Short1"]
["KVC -CBC- Short2","2F",null,"KVC -CBC- Short2",null,"KVC -CBC- Short2"]
["LB LT Sampath","L2",null,"LB LT Sampath",null,"LB LT Sampath"]
["LB TR DFCC","L4",null,"LB TR DFCC",null,"LB TR DFCC"]
["LB TR Sampath","L1",null,"LB TR Sampath",null,"LB TR Sampath"]
["LB TR UBC","L3",null,"LB TR UBC",null,"LB TR UBC"]
["LS - HNB - Fixed","1E",null,"LS - HNB - Fixed",null,"LS - HNB - Fixed"]
["LS - HNB - Saving","1C",null,"LS - HNB - Saving",null,"LS - HNB - Saving"]
["LS - NDB - Fixed","1F",null,"LS - NDB - Fixed",null,"LS - NDB - Fixed"]
["LS - NDB - Saving","1D",null,"LS - NDB - Saving",null,"LS - NDB - Saving"]
["LS-Inter Company","1G",null,"LS-Inter Company",null,"LS-Inter Company"]
["LS-NTB-Term-Y1&Y2","1A",null,"LS-NTB-Term-Y1&Y2",null,"LS-NTB-Term-Y1&Y2"]
["LS-NTB-Term-Y3&Y4","1B",null,"LS-NTB-Term-Y3&Y4",null,"LS-NTB-Term-Y3&Y4"]
["MP -Inter Company","1I",null,"MP -Inter Company",null,"MP -Inter Company"]
["Pjct interest calc.","10",null,"Pjct interest calc.",null,"Pjct interest calc."]
["PP TR HNB","P1",null,"PP TR HNB",null,"PP TR HNB"]
["PP TR NDB","P3",null,"PP TR NDB",null,"PP TR NDB"]
["PP TR UBC","P2",null,"PP TR UBC",null,"PP TR UBC"]
["Short Term Loan","Z1",null,"Short Term Loan",null,"Short Term Loan"]
["Standard bal.int.cal","02",null,"Standard bal.int.cal",null,"Standard bal.int.cal"]
["Standard itm int.cal","01",null,"Standard itm int.cal",null,"Standard itm int.cal"]

{"sheet":"Currency","index":19,"n_rows":211,"n_cols":9,"rows_kept":211,"cut":false,"hidden":true,"merged":[]}
[null,null,null,"O35",null,null,"Z21",null,"AL36"]
["Sri Lankan Rupee - LKR","LKR",null,{"$f":"_xlfn._xlws.FILTER(A2:A211,ISNUMBER(SEARCH(Customer!L35,A2:A211)),\"Not found\")","v":"Sri Lankan Rupee - LKR"},null,null,{"$f":"_xlfn._xlws.FILTER(A2:A211,ISNUMBER(SEARCH(Customer!Z21,A2:A211)),\"Not found\")","v":"Not found"},null,{"$f":"_xlfn._xlws.FILTER(A2:A211,ISNUMBER(SEARCH(Customer!AL36,A2:A211)),\"Not found\")","v":"Sri Lankan Rupee - LKR"}]
["United States Dollar - USD","USD",null,"United States Dollar - USD",null,null,null,null,"United States Dollar - USD"]
["British Pound - GBP","GBP",null,"British Pound - GBP",null,null,null,null,"British Pound - GBP"]
["Andorran Peseta --> (Old --> EUR) - ADP","ADP",null,"Andorran Peseta --> (Old --> EUR) - ADP",null,null,null,null,"Andorran Peseta --> (Old --> EUR) - ADP"]
["United Arab Emirates Dirham - AED","AED",null,"United Arab Emirates Dirham - AED",null,null,null,null,"United Arab Emirates Dirham - AED"]
["Afghani (Old) - AFA","AFA",null,"Afghani (Old) - AFA",null,null,null,null,"Afghani (Old) - AFA"]
["Afghani - AFN","AFN",null,"Afghani - AFN",null,null,null,null,"Afghani - AFN"]
["Albanian Lek - ALL","ALL",null,"Albanian Lek - ALL",null,null,null,null,"Albanian Lek - ALL"]
["Armenian Dram - AMD","AMD",null,"Armenian Dram - AMD",null,null,null,null,"Armenian Dram - AMD"]
["West Indian Guilder - ANG","ANG",null,"West Indian Guilder - ANG",null,null,null,null,"West Indian Guilder - ANG"]
["Angolanische Kwanza - AOA","AOA",null,"Angolanische Kwanza - AOA",null,null,null,null,"Angolanische Kwanza - AOA"]
["Angolan New Kwanza (Old) - AON","AON",null,"Angolan New Kwanza (Old) - AON",null,null,null,null,"Angolan New Kwanza (Old) - AON"]
["Angolan Kwanza Reajustado (Old) - AOR","AOR",null,"Angolan Kwanza Reajustado (Old) - AOR",null,null,null,null,"Angolan Kwanza Reajustado (Old) - AOR"]
["Argentine Peso - ARS","ARS",null,"Argentine Peso - ARS",null,null,null,null,"Argentine Peso - ARS"]
["Austrian Schilling (Old --> EUR) - ATS","ATS",null,"Austrian Schilling (Old --> EUR) - ATS",null,null,null,null,"Austrian Schilling (Old --> EUR) - ATS"]
["Australian Dollar - AUD","AUD",null,"Australian Dollar - AUD",null,null,null,null,"Australian Dollar - AUD"]
["Aruban Florin - AWG","AWG",null,"Aruban Florin - AWG",null,null,null,null,"Aruban Florin - AWG"]
["Azerbaijani Manat (Old) - AZM","AZM",null,"Azerbaijani Manat (Old) - AZM",null,null,null,null,"Azerbaijani Manat (Old) - AZM"]
["Azerbaijani Manat - AZN","AZN",null,"Azerbaijani Manat - AZN",null,null,null,null,"Azerbaijani Manat - AZN"]
["Bosnia and Herzegovina Convertible Mark - BAM","BAM",null,"Bosnia and Herzegovina Convertible Mark - BAM",null,null,null,null,"Bosnia and Herzegovina Convertible Mark - BAM"]
["Barbados Dollar - BBD","BBD",null,"Barbados Dollar - BBD",null,null,null,null,"Barbados Dollar - BBD"]
["Bangladesh Taka - BDT","BDT",null,"Bangladesh Taka - BDT",null,null,null,null,"Bangladesh Taka - BDT"]
["Belgian Franc (Old --> EUR) - BEF","BEF",null,"Belgian Franc (Old --> EUR) - BEF",null,null,null,null,"Belgian Franc (Old --> EUR) - BEF"]
["Bulgarian Lev - BGN","BGN",null,"Bulgarian Lev - BGN",null,null,null,null,"Bulgarian Lev - BGN"]
["Bahraini Dinar - BHD","BHD",null,"Bahraini Dinar - BHD",null,null,null,null,"Bahraini Dinar - BHD"]
["Burundi Franc - BIF","BIF",null,"Burundi Franc - BIF",null,null,null,null,"Burundi Franc - BIF"]
["Bermudan Dollar - BMD","BMD",null,"Bermudan Dollar - BMD",null,null,null,null,"Bermudan Dollar - BMD"]
["Brunei Dollar - BND","BND",null,"Brunei Dollar - BND",null,null,null,null,"Brunei Dollar - BND"]
["Boliviano - BOB","BOB",null,"Boliviano - BOB",null,null,null,null,"Boliviano - BOB"]
["Brazilian Real - BRL","BRL",null,"Brazilian Real - BRL",null,null,null,null,"Brazilian Real - BRL"]
["Bahaman Dollar - BSD","BSD",null,"Bahaman Dollar - BSD",null,null,null,null,"Bahaman Dollar - BSD"]
["Bhutan Ngultrum - BTN","BTN",null,"Bhutan Ngultrum - BTN",null,null,null,null,"Bhutan Ngultrum - BTN"]
["Botswana Pula - BWP","BWP",null,"Botswana Pula - BWP",null,null,null,null,"Botswana Pula - BWP"]
["Belarusian Ruble (Old) - BYB","BYB",null,"Belarusian Ruble (Old) - BYB",null,null,null,null,"Belarusian Ruble (Old) - BYB"]
["Belarusian Ruble - BYR","BYR",null,"Belarusian Ruble - BYR",null,null,null,null,"Belarusian Ruble - BYR"]
["Belize Dollar - BZD","BZD",null,"Belize Dollar - BZD",null,null,null,null,"Belize Dollar - BZD"]
["Canadian Dollar - CAD","CAD",null,"Canadian Dollar - CAD",null,null,null,null,"Canadian Dollar - CAD"]
["Congolese Franc - CDF","CDF",null,"Congolese Franc - CDF",null,null,null,null,"Congolese Franc - CDF"]
["French Franc (Pacific Islands) - CFP","CFP",null,"French Franc (Pacific Islands) - CFP",null,null,null,null,"French Franc (Pacific Islands) - CFP"]
["Swiss Franc - CHF","CHF",null,"Swiss Franc - CHF",null,null,null,null,"Swiss Franc - CHF"]
["Chilean Peso - CLP","CLP",null,"Chilean Peso - CLP",null,null,null,null,"Chilean Peso - CLP"]
["Chinese Renminbi - CNY","CNY",null,"Chinese Renminbi - CNY",null,null,null,null,"Chinese Renminbi - CNY"]
["Colombian Peso - COP","COP",null,"Colombian Peso - COP",null,null,null,null,"Colombian Peso - COP"]
["Costa Rica Colon - CRC","CRC",null,"Costa Rica Colon - CRC",null,null,null,null,"Costa Rica Colon - CRC"]
["Serbian Dinar (Old) - CSD","CSD",null,"Serbian Dinar (Old) - CSD",null,null,null,null,"Serbian Dinar (Old) - CSD"]
["Peso Convertible - CUC","CUC",null,"Peso Convertible - CUC",null,null,null,null,"Peso Convertible - CUC"]
["Cuban Peso - CUP","CUP",null,"Cuban Peso - CUP",null,null,null,null,"Cuban Peso - CUP"]
["Cape Verde Escudo - CVE","CVE",null,"Cape Verde Escudo - CVE",null,null,null,null,"Cape Verde Escudo - CVE"]
["Cyprus Pound  (Old --> EUR) - CYP","CYP",null,"Cyprus Pound  (Old --> EUR) - CYP",null,null,null,null,"Cyprus Pound  (Old --> EUR) - CYP"]
["Czech Krona - CZK","CZK",null,"Czech Krona - CZK",null,null,null,null,"Czech Krona - CZK"]
["German Mark    (Old --> EUR) - DEM","DEM",null,"German Mark    (Old --> EUR) - DEM",null,null,null,null,"German Mark    (Old --> EUR) - DEM"]
["(Internal) German Mark (3 dec.places) - DEM3","DEM3",null,"(Internal) German Mark (3 dec.places) - DEM3",null,null,null,null,"(Internal) German Mark (3 dec.places) - DEM3"]
["Djibouti Franc - DJF","DJF",null,"Djibouti Franc - DJF",null,null,null,null,"Djibouti Franc - DJF"]
["Danish Krone - DKK","DKK",null,"Danish Krone - DKK",null,null,null,null,"Danish Krone - DKK"]
["Dominican Peso - DOP","DOP",null,"Dominican Peso - DOP",null,null,null,null,"Dominican Peso - DOP"]
["Algerian Dinar - DZD","DZD",null,"Algerian Dinar - DZD",null,null,null,null,"Algerian Dinar - DZD"]
["Ecuadorian Sucre (Old --> USD) - ECS","ECS",null,"Ecuadorian Sucre (Old --> USD) - ECS",null,null,null,null,"Ecuadorian Sucre (Old --> USD) - ECS"]
["Estonian Krone (Old --> EUR) - EEK","EEK",null,"Estonian Krone (Old --> EUR) - EEK",null,null,null,null,"Estonian Krone (Old --> EUR) - EEK"]
["Egyptian Pound - EGP","EGP",null,"Egyptian Pound - EGP",null,null,null,null,"Egyptian Pound - EGP"]
["Eritrean Nafka - ERN","ERN",null,"Eritrean Nafka - ERN",null,null,null,null,"Eritrean Nafka - ERN"]
["Spanish Peseta (Old --> EUR) - ESP","ESP",null,"Spanish Peseta (Old --> EUR) - ESP",null,null,null,null,"Spanish Peseta (Old --> EUR) - ESP"]
["Ethiopian Birr - ETB","ETB",null,"Ethiopian Birr - ETB",null,null,null,null,"Ethiopian Birr - ETB"]
["European Euro - EUR","EUR",null,"European Euro - EUR",null,null,null,null,"European Euro - EUR"]
["European Euro - EUR4","EUR4",null,"European Euro - EUR4",null,null,null,null,"European Euro - EUR4"]
["Finnish Markka (Old --> EUR) - FIM","FIM",null,"Finnish Markka (Old --> EUR) - FIM",null,null,null,null,"Finnish Markka (Old --> EUR) - FIM"]
["Fiji Dollar - FJD","FJD",null,"Fiji Dollar - FJD",null,null,null,null,"Fiji Dollar - FJD"]
["Falkland Pound - FKP","FKP",null,"Falkland Pound - FKP",null,null,null,null,"Falkland Pound - FKP"]
["French Franc (Old --> EUR) - FRF","FRF",null,"French Franc (Old --> EUR) - FRF",null,null,null,null,"French Franc (Old --> EUR) - FRF"]
["Georgian Lari - GEL","GEL",null,"Georgian Lari - GEL",null,null,null,null,"Georgian Lari - GEL"]
["Ghanaian Cedi (Old) - GHC","GHC",null,"Ghanaian Cedi (Old) - GHC",null,null,null,null,"Ghanaian Cedi (Old) - GHC"]
["Ghanian Cedi - GHS","GHS",null,"Ghanian Cedi - GHS",null,null,null,null,"Ghanian Cedi - GHS"]
["Gibraltar Pound - GIP","GIP",null,"Gibraltar Pound - GIP",null,null,null,null,"Gibraltar Pound - GIP"]
["Gambian Dalasi - GMD","GMD",null,"Gambian Dalasi - GMD",null,null,null,null,"Gambian Dalasi - GMD"]
["Guinean Franc - GNF","GNF",null,"Guinean Franc - GNF",null,null,null,null,"Guinean Franc - GNF"]
["Greek Drachma (Old --> EUR) - GRD","GRD",null,"Greek Drachma (Old --> EUR) - GRD",null,null,null,null,"Greek Drachma (Old --> EUR) - GRD"]
["Guatemalan Quetzal - GTQ","GTQ",null,"Guatemalan Quetzal - GTQ",null,null,null,null,"Guatemalan Quetzal - GTQ"]
["Guinea Peso (Old --> SHP) - GWP","GWP",null,"Guinea Peso (Old --> SHP) - GWP",null,null,null,null,"Guinea Peso (Old --> SHP) - GWP"]
["Guyana Dollar - GYD","GYD",null,"Guyana Dollar - GYD",null,null,null,null,"Guyana Dollar - GYD"]
["Hong Kong Dollar - HKD","HKD",null,"Hong Kong Dollar - HKD",null,null,null,null,"Hong Kong Dollar - HKD"]
["Honduran Lempira - HNL","HNL",null,"Honduran Lempira - HNL",null,null,null,null,"Honduran Lempira - HNL"]
["Croatian Kuna - HRK","HRK",null,"Croatian Kuna - HRK",null,null,null,null,"Croatian Kuna - HRK"]
["Haitian Gourde - HTG","HTG",null,"Haitian Gourde - HTG",null,null,null,null,"Haitian Gourde - HTG"]
["Hungarian Forint - HUF","HUF",null,"Hungarian Forint - HUF",null,null,null,null,"Hungarian Forint - HUF"]
["Indonesian Rupiah - IDR","IDR",null,"Indonesian Rupiah - IDR",null,null,null,null,"Indonesian Rupiah - IDR"]
["Irish Punt (Old --> EUR) - IEP","IEP",null,"Irish Punt (Old --> EUR) - IEP",null,null,null,null,"Irish Punt (Old --> EUR) - IEP"]
["Israeli Scheckel - ILS","ILS",null,"Israeli Scheckel - ILS",null,null,null,null,"Israeli Scheckel - ILS"]
["Indian Rupee - INR","INR",null,"Indian Rupee - INR",null,null,null,null,"Indian Rupee - INR"]
["Iraqui Dinar - IQD","IQD",null,"Iraqui Dinar - IQD",null,null,null,null,"Iraqui Dinar - IQD"]
["Iranian Rial - IRR","IRR",null,"Iranian Rial - IRR",null,null,null,null,"Iranian Rial - IRR"]
["Iceland Krona - ISK","ISK",null,"Iceland Krona - ISK",null,null,null,null,"Iceland Krona - ISK"]
["Italian Lira (Old --> EUR) - ITL","ITL",null,"Italian Lira (Old --> EUR) - ITL",null,null,null,null,"Italian Lira (Old --> EUR) - ITL"]
["Jamaican Dollar - JMD","JMD",null,"Jamaican Dollar - JMD",null,null,null,null,"Jamaican Dollar - JMD"]
["Jordanian Dinar - JOD","JOD",null,"Jordanian Dinar - JOD",null,null,null,null,"Jordanian Dinar - JOD"]
["Japanese Yen - JPY","JPY",null,"Japanese Yen - JPY",null,null,null,null,"Japanese Yen - JPY"]
["Kenyan Shilling - KES","KES",null,"Kenyan Shilling - KES",null,null,null,null,"Kenyan Shilling - KES"]
["Kyrgyzstan Som - KGS","KGS",null,"Kyrgyzstan Som - KGS",null,null,null,null,"Kyrgyzstan Som - KGS"]
["Cambodian Riel - KHR","KHR",null,"Cambodian Riel - KHR",null,null,null,null,"Cambodian Riel - KHR"]
["Comoros Franc - KMF","KMF",null,"Comoros Franc - KMF",null,null,null,null,"Comoros Franc - KMF"]
["North Korean Won - KPW","KPW",null,"North Korean Won - KPW",null,null,null,null,"North Korean Won - KPW"]
["South Korean Won - KRW","KRW",null,"South Korean Won - KRW",null,null,null,null,"South Korean Won - KRW"]
["Kuwaiti Dinar - KWD","KWD",null,"Kuwaiti Dinar - KWD",null,null,null,null,"Kuwaiti Dinar - KWD"]
["Cayman Dollar - KYD","KYD",null,"Cayman Dollar - KYD",null,null,null,null,"Cayman Dollar - KYD"]
["Kazakstanian Tenge - KZT","KZT",null,"Kazakstanian Tenge - KZT",null,null,null,null,"Kazakstanian Tenge - KZT"]
["Laotian Kip - LAK","LAK",null,"Laotian Kip - LAK",null,null,null,null,"Laotian Kip - LAK"]
["Lebanese Pound - LBP","LBP",null,"Lebanese Pound - LBP",null,null,null,null,"Lebanese Pound - LBP"]
["Liberian Dollar - LRD","LRD",null,"Liberian Dollar - LRD",null,null,null,null,"Liberian Dollar - LRD"]
["Lesotho Loti - LSL","LSL",null,"Lesotho Loti - LSL",null,null,null,null,"Lesotho Loti - LSL"]
["Lithuanian Lita - LTL","LTL",null,"Lithuanian Lita - LTL",null,null,null,null,"Lithuanian Lita - LTL"]
["Luxembourg Franc (Old --> EUR) - LUF","LUF",null,"Luxembourg Franc (Old --> EUR) - LUF",null,null,null,null,"Luxembourg Franc (Old --> EUR) - LUF"]
["Latvian Lat - LVL","LVL",null,"Latvian Lat - LVL",null,null,null,null,"Latvian Lat - LVL"]
["Libyan Dinar - LYD","LYD",null,"Libyan Dinar - LYD",null,null,null,null,"Libyan Dinar - LYD"]
["Moroccan Dirham - MAD","MAD",null,"Moroccan Dirham - MAD",null,null,null,null,"Moroccan Dirham - MAD"]
["Moldavian Leu - MDL","MDL",null,"Moldavian Leu - MDL",null,null,null,null,"Moldavian Leu - MDL"]
["Madagascan Ariary - MGA","MGA",null,"Madagascan Ariary - MGA",null,null,null,null,"Madagascan Ariary - MGA"]
["Madagascan Franc (Old - MGF","MGF",null,"Madagascan Franc (Old - MGF",null,null,null,null,"Madagascan Franc (Old - MGF"]
["Macedonian Denar - MKD","MKD",null,"Macedonian Denar - MKD",null,null,null,null,"Macedonian Denar - MKD"]
["Myanmar Kyat - MMK","MMK",null,"Myanmar Kyat - MMK",null,null,null,null,"Myanmar Kyat - MMK"]
["Mongolian Tugrik - MNT","MNT",null,"Mongolian Tugrik - MNT",null,null,null,null,"Mongolian Tugrik - MNT"]
["Macao Pataca - MOP","MOP",null,"Macao Pataca - MOP",null,null,null,null,"Macao Pataca - MOP"]
["Mauritanian Ouguiya - MRO","MRO",null,"Mauritanian Ouguiya - MRO",null,null,null,null,"Mauritanian Ouguiya - MRO"]
["Maltese Lira (Old --> EUR) - MTL","MTL",null,"Maltese Lira (Old --> EUR) - MTL",null,null,null,null,"Maltese Lira (Old --> EUR) - MTL"]
["Mauritian Rupee - MUR","MUR",null,"Mauritian Rupee - MUR",null,null,null,null,"Mauritian Rupee - MUR"]
["Maldive Rufiyaa - MVR","MVR",null,"Maldive Rufiyaa - MVR",null,null,null,null,"Maldive Rufiyaa - MVR"]
["Malawi Kwacha - MWK","MWK",null,"Malawi Kwacha - MWK",null,null,null,null,"Malawi Kwacha - MWK"]
["Mexican Pesos - MXN","MXN",null,"Mexican Pesos - MXN",null,null,null,null,"Mexican Pesos - MXN"]
["Malaysian Ringgit - MYR","MYR",null,"Malaysian Ringgit - MYR",null,null,null,null,"Malaysian Ringgit - MYR"]
["Mozambique Metical (Old) - MZM","MZM",null,"Mozambique Metical (Old) - MZM",null,null,null,null,"Mozambique Metical (Old) - MZM"]
["Mozambique Metical - MZN","MZN",null,"Mozambique Metical - MZN",null,null,null,null,"Mozambique Metical - MZN"]
["Namibian Dollar - NAD","NAD",null,"Namibian Dollar - NAD",null,null,null,null,"Namibian Dollar - NAD"]
["Nigerian Naira - NGN","NGN",null,"Nigerian Naira - NGN",null,null,null,null,"Nigerian Naira - NGN"]
["Nicaraguan Cordoba Oro - NIO","NIO",null,"Nicaraguan Cordoba Oro - NIO",null,null,null,null,"Nicaraguan Cordoba Oro - NIO"]
["Dutch Guilder (Old --> EUR) - NLG","NLG",null,"Dutch Guilder (Old --> EUR) - NLG",null,null,null,null,"Dutch Guilder (Old --> EUR) - NLG"]
["Norwegian Krone - NOK","NOK",null,"Norwegian Krone - NOK",null,null,null,null,"Norwegian Krone - NOK"]
["Nepalese Rupee - NPR","NPR",null,"Nepalese Rupee - NPR",null,null,null,null,"Nepalese Rupee - NPR"]
["New Zealand Dollars - NZD","NZD",null,"New Zealand Dollars - NZD",null,null,null,null,"New Zealand Dollars - NZD"]
["New Zealand Dollars - NZD5","NZD5",null,"New Zealand Dollars - NZD5",null,null,null,null,"New Zealand Dollars - NZD5"]
["Omani Rial - OMR","OMR",null,"Omani Rial - OMR",null,null,null,null,"Omani Rial - OMR"]
["Panamanian Balboa - PAB","PAB",null,"Panamanian Balboa - PAB",null,null,null,null,"Panamanian Balboa - PAB"]
["Peruvian New Sol - PEN","PEN",null,"Peruvian New Sol - PEN",null,null,null,null,"Peruvian New Sol - PEN"]
["Papua New Guinea Kina - PGK","PGK",null,"Papua New Guinea Kina - PGK",null,null,null,null,"Papua New Guinea Kina - PGK"]
["Philippine Peso - PHP","PHP",null,"Philippine Peso - PHP",null,null,null,null,"Philippine Peso - PHP"]
["Pakistani Rupee - PKR","PKR",null,"Pakistani Rupee - PKR",null,null,null,null,"Pakistani Rupee - PKR"]
["Polish Zloty (new) - PLN","PLN",null,"Polish Zloty (new) - PLN",null,null,null,null,"Polish Zloty (new) - PLN"]
["Portuguese Escudo (Old --> EUR) - PTE","PTE",null,"Portuguese Escudo (Old --> EUR) - PTE",null,null,null,null,"Portuguese Escudo (Old --> EUR) - PTE"]
["Paraguayan Guarani - PYG","PYG",null,"Paraguayan Guarani - PYG",null,null,null,null,"Paraguayan Guarani - PYG"]
["Qatar Rial - QAR","QAR",null,"Qatar Rial - QAR",null,null,null,null,"Qatar Rial - QAR"]
["Chinese Yuan Renminbi - RMB","RMB",null,"Chinese Yuan Renminbi - RMB",null,null,null,null,"Chinese Yuan Renminbi - RMB"]
["Romanian Leu (Old) - ROL","ROL",null,"Romanian Leu (Old) - ROL",null,null,null,null,"Romanian Leu (Old) - ROL"]
["Romanian Leu - RON","RON",null,"Romanian Leu - RON",null,null,null,null,"Romanian Leu - RON"]
["Serbian Dinar - RSD","RSD",null,"Serbian Dinar - RSD",null,null,null,null,"Serbian Dinar - RSD"]
["Russian Ruble - RUB","RUB",null,"Russian Ruble - RUB",null,null,null,null,"Russian Ruble - RUB"]
["Rwandan Franc - RWF","RWF",null,"Rwandan Franc - RWF",null,null,null,null,"Rwandan Franc - RWF"]
["Saudi Riyal - SAR","SAR",null,"Saudi Riyal - SAR",null,null,null,null,"Saudi Riyal - SAR"]
["Solomon Islands Dollar - SBD","SBD",null,"Solomon Islands Dollar - SBD",null,null,null,null,"Solomon Islands Dollar - SBD"]
["Seychelles Rupee - SCR","SCR",null,"Seychelles Rupee - SCR",null,null,null,null,"Seychelles Rupee - SCR"]
["Sudanese Dinar (Old) - SDD","SDD",null,"Sudanese Dinar (Old) - SDD",null,null,null,null,"Sudanese Dinar (Old) - SDD"]
["Sudanese Pound - SDG","SDG",null,"Sudanese Pound - SDG",null,null,null,null,"Sudanese Pound - SDG"]
["Sudanese Pound (until 1992) - SDP","SDP",null,"Sudanese Pound (until 1992) - SDP",null,null,null,null,"Sudanese Pound (until 1992) - SDP"]
["Swedish Krona - SEK","SEK",null,"Swedish Krona - SEK",null,null,null,null,"Swedish Krona - SEK"]
["Singapore Dollar - SGD","SGD",null,"Singapore Dollar - SGD",null,null,null,null,"Singapore Dollar - SGD"]
["St.Helena Pound - SHP","SHP",null,"St.Helena Pound - SHP",null,null,null,null,"St.Helena Pound - SHP"]
["Slovenian Tolar (Old --> EUR) - SIT","SIT",null,"Slovenian Tolar (Old --> EUR) - SIT",null,null,null,null,"Slovenian Tolar (Old --> EUR) - SIT"]
["Slovakian Krona (Old --> EUR) - SKK","SKK",null,"Slovakian Krona (Old --> EUR) - SKK",null,null,null,null,"Slovakian Krona (Old --> EUR) - SKK"]
["Sierra Leone Leone - SLL","SLL",null,"Sierra Leone Leone - SLL",null,null,null,null,"Sierra Leone Leone - SLL"]
["Somalian Shilling - SOS","SOS",null,"Somalian Shilling - SOS",null,null,null,null,"Somalian Shilling - SOS"]
["Surinam Dollar - SRD","SRD",null,"Surinam Dollar - SRD",null,null,null,null,"Surinam Dollar - SRD"]
["Surinam Guilder (Old) - SRG","SRG",null,"Surinam Guilder (Old) - SRG",null,null,null,null,"Surinam Guilder (Old) - SRG"]
["South Sudanese Pound - SSP","SSP",null,"South Sudanese Pound - SSP",null,null,null,null,"South Sudanese Pound - SSP"]
["Sao Tome / Principe Dobra - STD","STD",null,"Sao Tome / Principe Dobra - STD",null,null,null,null,"Sao Tome / Principe Dobra - STD"]
["El Salvador Colon - SVC","SVC",null,"El Salvador Colon - SVC",null,null,null,null,"El Salvador Colon - SVC"]
["Syrian Pound - SYP","SYP",null,"Syrian Pound - SYP",null,null,null,null,"Syrian Pound - SYP"]
["Swaziland Lilangeni - SZL","SZL",null,"Swaziland Lilangeni - SZL",null,null,null,null,"Swaziland Lilangeni - SZL"]
["Thailand Baht - THB","THB",null,"Thailand Baht - THB",null,null,null,null,"Thailand Baht - THB"]
["Tajikistani Ruble (Old) - TJR","TJR",null,"Tajikistani Ruble (Old) - TJR",null,null,null,null,"Tajikistani Ruble (Old) - TJR"]
["Tajikistani Somoni - TJS","TJS",null,"Tajikistani Somoni - TJS",null,null,null,null,"Tajikistani Somoni - TJS"]
["Turkmenistani Manat (Old) - TMM","TMM",null,"Turkmenistani Manat (Old) - TMM",null,null,null,null,"Turkmenistani Manat (Old) - TMM"]
["Turkmenistani Manat - TMT","TMT",null,"Turkmenistani Manat - TMT",null,null,null,null,"Turkmenistani Manat - TMT"]
["Tunisian Dinar - TND","TND",null,"Tunisian Dinar - TND",null,null,null,null,"Tunisian Dinar - TND"]
["Tongan Pa'anga - TOP","TOP",null,"Tongan Pa'anga - TOP",null,null,null,null,"Tongan Pa'anga - TOP"]
["Timor Escudo --> USD - TPE","TPE",null,"Timor Escudo --> USD - TPE",null,null,null,null,"Timor Escudo --> USD - TPE"]
["Turkish Lira (Old) - TRL","TRL",null,"Turkish Lira (Old) - TRL",null,null,null,null,"Turkish Lira (Old) - TRL"]
["Turkish Lira - TRY","TRY",null,"Turkish Lira - TRY",null,null,null,null,"Turkish Lira - TRY"]
["Trinidad and Tobago Dollar - TTD","TTD",null,"Trinidad and Tobago Dollar - TTD",null,null,null,null,"Trinidad and Tobago Dollar - TTD"]
["New Taiwan Dollar - TWD","TWD",null,"New Taiwan Dollar - TWD",null,null,null,null,"New Taiwan Dollar - TWD"]
["Tanzanian Shilling - TZS","TZS",null,"Tanzanian Shilling - TZS",null,null,null,null,"Tanzanian Shilling - TZS"]
["Ukraine Hryvnia - UAH","UAH",null,"Ukraine Hryvnia - UAH",null,null,null,null,"Ukraine Hryvnia - UAH"]
["Ugandan Shilling - UGX","UGX",null,"Ugandan Shilling - UGX",null,null,null,null,"Ugandan Shilling - UGX"]
["(Internal) United States Dollar (5 Dec.) - USDN","USDN",null,"(Internal) United States Dollar (5 Dec.) - USDN",null,null,null,null,"(Internal) United States Dollar (5 Dec.) - USDN"]
["Uruguayan Peso - UYU","UYU",null,"Uruguayan Peso - UYU",null,null,null,null,"Uruguayan Peso - UYU"]
["Uzbekistan Som - UZS","UZS",null,"Uzbekistan Som - UZS",null,null,null,null,"Uzbekistan Som - UZS"]
["Venezuelan Bolivar (Old) - VEB","VEB",null,"Venezuelan Bolivar (Old) - VEB",null,null,null,null,"Venezuelan Bolivar (Old) - VEB"]
["Venezuelan Bolivar - VEF","VEF",null,"Venezuelan Bolivar - VEF",null,null,null,null,"Venezuelan Bolivar - VEF"]
["Vietnamese Dong - VND","VND",null,"Vietnamese Dong - VND",null,null,null,null,"Vietnamese Dong - VND"]
["Vanuatu Vatu - VUV","VUV",null,"Vanuatu Vatu - VUV",null,null,null,null,"Vanuatu Vatu - VUV"]
["Samoan Tala - WST","WST",null,"Samoan Tala - WST",null,null,null,null,"Samoan Tala - WST"]
["Gabon CFA Franc BEAC - XAF","XAF",null,"Gabon CFA Franc BEAC - XAF",null,null,null,null,"Gabon CFA Franc BEAC - XAF"]
["East Carribean Dollar - XCD","XCD",null,"East Carribean Dollar - XCD",null,null,null,null,"East Carribean Dollar - XCD"]
["European Currency Unit (E.C.U.) - XEU","XEU",null,"European Currency Unit (E.C.U.) - XEU",null,null,null,null,"European Currency Unit (E.C.U.) - XEU"]
["Benin CFA Franc BCEAO - XOF","XOF",null,"Benin CFA Franc BCEAO - XOF",null,null,null,null,"Benin CFA Franc BCEAO - XOF"]
["CFP Franc - XPF","XPF",null,"CFP Franc - XPF",null,null,null,null,"CFP Franc - XPF"]
["Yemeni Ryal - YER","YER",null,"Yemeni Ryal - YER",null,null,null,null,"Yemeni Ryal - YER"]
["New Yugoslavian Dinar (Old) - YUM","YUM",null,"New Yugoslavian Dinar (Old) - YUM",null,null,null,null,"New Yugoslavian Dinar (Old) - YUM"]
["South African Rand - ZAR","ZAR",null,"South African Rand - ZAR",null,null,null,null,"South African Rand - ZAR"]
["Zambian Kwacha (Old) - ZMK","ZMK",null,"Zambian Kwacha (Old) - ZMK",null,null,null,null,"Zambian Kwacha (Old) - ZMK"]
["Zambian Kwacha (New) - ZMW","ZMW",null,"Zambian Kwacha (New) - ZMW",null,null,null,null,"Zambian Kwacha (New) - ZMW"]
["Zaire (Old) - ZRN","ZRN",null,"Zaire (Old) - ZRN",null,null,null,null,"Zaire (Old) - ZRN"]
["Zimbabwean Dollar (Old) - ZWD","ZWD",null,"Zimbabwean Dollar (Old) - ZWD",null,null,null,null,"Zimbabwean Dollar (Old) - ZWD"]
["Zimbabwean Dollar (New) - ZWL","ZWL",null,"Zimbabwean Dollar (New) - ZWL",null,null,null,null,"Zimbabwean Dollar (New) - ZWL"]
["Zimbabwean Dollar (Old) - ZWN","ZWN",null,"Zimbabwean Dollar (Old) - ZWN",null,null,null,null,"Zimbabwean Dollar (Old) - ZWN"]
["Zimbabwean Dollar (Old) - ZWR","ZWR",null,"Zimbabwean Dollar (Old) - ZWR",null,null,null,null,"Zimbabwean Dollar (Old) - ZWR"]

{"sheet":"Dropdowns","index":20,"n_rows":250,"n_cols":12,"rows_kept":250,"cut":false,"hidden":true,"merged":[]}
["Company Code","Company Name","Grouping","Title","Country Name","Country Code","Schema Grp Supp","Purch.Org"]
[1000,"E.B.Creasy  & Co.PLC","Z1DM Domestic Business Partners","0001 Ms.","Andorra","AD","S1",1000,null,"Government Institution",null,"BR Number"]
[1100,"Darley Butler & Co. Ltd","Z2FR Foreign Business Partners","0002 Mr.","United Arab Emirates","AE","S2",1600,null,"Private Institution/Person",null,"NIC Number"]
[1200,"E.B Creasy Logistics Ltd","Z5EM Employee Business Partners","0003 Company","Afghanistan","AF",null,2000,null,null,null,"Passport Number"]
[1300,"Candy Delights Limited","Z6IL Investments/Loans Business Partners",null,"Antigua and Barbuda","AG",null,2100]
[1400,"Laxapana Batteries PLC","Z3IC Inter Company Business Partners",null,"Anguilla","AI",null,2200]
[1500,"Muller& Phipps Ceylon PLC","Z7ON One time Business Partners",null,"Albania","AL",null,2300]
[1550,"Pettah Pharmacy (Pvt) Ltd",null,null,"Armenia","AM",null,3000]
[1600,"Lanka Special Steels Ltd",null,null,"Angola","AO"]
[1700,"E.B.C. Power & Energy Ltd",null,null,"Antarctica","AQ"]
[2000,"CW Mackie PLC",null,null,"Argentina","AR"]
[2100,"Ceymac Rubber Co. Ltd",null,null,"American Samoa","AS"]
[2200,"Ceytra (Pvt) Ltd",null,null,"Austria","AT"]
[2300,"Kelani Valley Can Pvt Ltd",null,null,"Australia","AU"]
[3000,"Kiffs (Pvt) Ltd.",null,null,"Aruba","AW"]
[3100,"Alliance Five (Pvt) Ltd",null,null,"Azerbaijan","AZ"]
[1800,"CEYFLEX Rubber Ltd.",null,null,"Bosnia and Herzegovina","BA"]
[3800,"ACME Printing & Packaging",null,null,"Barbados","BB"]
[3900,"ACME Packaging Solutions",null,null,"Bangladesh","BD"]
[null,null,null,null,"Belgium","BE"]
[null,null,null,null,"Burkina Faso","BF"]
[null,null,null,null,"Bulgaria","BG"]
[null,null,null,null,"Bahrain","BH"]
[null,null,null,null,"Burundi","BI"]
[null,null,null,null,"Benin","BJ"]
[null,null,null,null,"Blue","BL"]
[null,null,null,null,"Bermuda","BM"]
[null,null,null,null,"Brunei Darussalam","BN"]
[null,null,null,null,"Bolivia","BO"]
[null,null,null,null,"Bonaire, Sint Eustatius and Saba","BQ"]
[null,null,null,null,"Brazil","BR"]
[null,null,null,null,"Bahamas","BS"]
[null,null,null,null,"Bhutan","BT"]
[null,null,null,null,"Bouvet Islands","BV"]
[null,null,null,null,"Botswana","BW"]
[null,null,null,null,"Belarus","BY"]
[null,null,null,null,"Belize","BZ"]
[null,null,null,null,"Canada","CA"]
[null,null,null,null,"Cocos (Keeling) Islands","CC"]
[null,null,null,null,"Democratic Republic of the Congo","CD"]
[null,null,null,null,"Central African Republic","CF"]
[null,null,null,null,"Republic of the Congo","CG"]
[null,null,null,null,"Switzerland","CH"]
[null,null,null,null,"Cote d'Ivoire","CI"]
[null,null,null,null,"Cook Islands","CK"]
[null,null,null,null,"Chile","CL"]
[null,null,null,null,"Cameroon","CM"]
[null,null,null,null,"China","CN"]
[null,null,null,null,"Colombia","CO"]
[null,null,null,null,"Costa Rica","CR"]
[null,null,null,null,"Serbia and Montenegro","CS"]
[null,null,null,null,"Cuba","CU"]
[null,null,null,null,"Cape Verde","CV"]
[null,null,null,null,"Curacao","CW"]
[null,null,null,null,"Christmas Islnd","CX"]
[null,null,null,null,"Cyprus","CY"]
[null,null,null,null,"Czech Republic","CZ"]
[null,null,null,null,"Germany","DE"]
[null,null,null,null,"Djibouti","DJ"]
[null,null,null,null,"Denmark","DK"]
[null,null,null,null,"Dominica","DM"]
[null,null,null,null,"Dominican Republic","DO"]
[null,null,null,null,"Algeria","DZ"]
[null,null,null,null,"Ecuador","EC"]
[null,null,null,null,"Estonia","EE"]
[null,null,null,null,"Egypt","EG"]
[null,null,null,null,"Western Sahara","EH"]
[null,null,null,null,"Eritrea","ER"]
[null,null,null,null,"Spain","ES"]
[null,null,null,null,"Ethiopia","ET"]
[null,null,null,null,"European Union","EU"]
[null,null,null,null,"Finland","FI"]
[null,null,null,null,"Fiji","FJ"]
[null,null,null,null,"Falkland Islands","FK"]
[null,null,null,null,"Micronesia","FM"]
[null,null,null,null,"Faroe Islands","FO"]
[null,null,null,null,"France","FR"]
[null,null,null,null,"Gabon","GA"]
[null,null,null,null,"United Kingdom","GB"]
[null,null,null,null,"Grenada","GD"]
[null,null,null,null,"Georgia","GE"]
[null,null,null,null,"French Guyana","GF"]
[null,null,null,null,"Guernsey (Channel Islands)","GG"]
[null,null,null,null,"Ghana","GH"]
[null,null,null,null,"Gibraltar","GI"]
[null,null,null,null,"Greenland","GL"]
[null,null,null,null,"Gambia","GM"]
[null,null,null,null,"Guinea","GN"]
[null,null,null,null,"Guadeloupe","GP"]
[null,null,null,null,"Equatorial Guinea","GQ"]
[null,null,null,null,"Greece","GR"]
[null,null,null,null,"South Georgia and the Southern Sandwich Islands","GS"]
[null,null,null,null,"Guatemala","GT"]
[null,null,null,null,"Guam","GU"]
[null,null,null,null,"Guinea-Bissau","GW"]
[null,null,null,null,"Guyana","GY"]
[null,null,null,null,"Hong Kong","HK"]
[null,null,null,null,"Heard and McDonald Islands","HM"]
[null,null,null,null,"Honduras","HN"]
[null,null,null,null,"Croatia","HR"]
[null,null,null,null,"Haiti","HT"]
[null,null,null,null,"Hungary","HU"]
[null,null,null,null,"Indonesia","ID"]
[null,null,null,null,"Ireland","IE"]
[null,null,null,null,"Israel","IL"]
[null,null,null,null,"Isle of Man","IM"]
[null,null,null,null,"India","IN"]
[null,null,null,null,"British Indian Ocean Territory","IO"]
[null,null,null,null,"Iraq","IQ"]
[null,null,null,null,"Iran","IR"]
[null,null,null,null,"Iceland","IS"]
[null,null,null,null,"Italy","IT"]
[null,null,null,null,"Jersey","JE"]
[null,null,null,null,"Jamaica","JM"]
[null,null,null,null,"Jordan","JO"]
[null,null,null,null,"Japan","JP"]
[null,null,null,null,"Kenya","KE"]
[null,null,null,null,"Kyrgyzstan","KG"]
[null,null,null,null,"Cambodia","KH"]
[null,null,null,null,"Kiribati","KI"]
[null,null,null,null,"Comoros","KM"]
[null,null,null,null,"Saint Kitts and Nevis","KN"]
[null,null,null,null,"North Korea","KP"]
[null,null,null,null,"South Korea","KR"]
[null,null,null,null,"Kuwait","KW"]
[null,null,null,null,"Cayman Islands","KY"]
[null,null,null,null,"Kazakhstan","KZ"]
[null,null,null,null,"Laos","LA"]
[null,null,null,null,"Lebanon","LB"]
[null,null,null,null,"St. Lucia","LC"]
[null,null,null,null,"Liechtenstein","LI"]
[null,null,null,null,"Sri Lanka","LK"]
[null,null,null,null,"Liberia","LR"]
[null,null,null,null,"Lesotho","LS"]
[null,null,null,null,"Lithuania","LT"]
[null,null,null,null,"Luxembourg","LU"]
[null,null,null,null,"Latvia","LV"]
[null,null,null,null,"Libya","LY"]
[null,null,null,null,"Morocco","MA"]
[null,null,null,null,"Monaco","MC"]
[null,null,null,null,"Moldova","MD"]
[null,null,null,null,"Madagascar","MG"]
[null,null,null,null,"Marshall Islands","MH"]
[null,null,null,null,"Macedonia","MK"]
[null,null,null,null,"Mali","ML"]
[null,null,null,null,"Burma","MM"]
[null,null,null,null,"Mongolia","MN"]
[null,null,null,null,"Macau","MO"]
[null,null,null,null,"North Mariana Islands","MP"]
[null,null,null,null,"Martinique","MQ"]
[null,null,null,null,"Mauritania","MR"]
[null,null,null,null,"Montserrat","MS"]
[null,null,null,null,"Malta","MT"]
[null,null,null,null,"Mauritius","MU"]
[null,null,null,null,"Maldives","MV"]
[null,null,null,null,"Malawi","MW"]
[null,null,null,null,"Mexico","MX"]
[null,null,null,null,"Malaysia","MY"]
[null,null,null,null,"Mozambique","MZ"]
[null,null,null,null,"Namibia","NA"]
[null,null,null,null,"New Caledonia","NC"]
[null,null,null,null,"Niger","NE"]
[null,null,null,null,"Norfolk Islands","NF"]
[null,null,null,null,"Nigeria","NG"]
[null,null,null,null,"Nicaragua","NI"]
[null,null,null,null,"Netherlands","NL"]
[null,null,null,null,"Norway","NO"]
[null,null,null,null,"Nepal","NP"]
[null,null,null,null,"Nauru","NR"]
[null,null,null,null,"NATO","NT"]
[null,null,null,null,"Niue","NU"]
[null,null,null,null,"New Zealand","NZ"]
[null,null,null,null,"Oman","OM"]
[null,null,null,null,"Orange","OR"]
[null,null,null,null,"Panama","PA"]
[null,null,null,null,"Peru","PE"]
[null,null,null,null,"French Polynesia","PF"]
[null,null,null,null,"Papua New Guinea","PG"]
[null,null,null,null,"Philippines","PH"]
[null,null,null,null,"Pakistan","PK"]
[null,null,null,null,"Poland","PL"]
[null,null,null,null,"St. Pierre and Miquelon","PM"]
[null,null,null,null,"Pitcairn Islands","PN"]
[null,null,null,null,"Puerto Rico","PR"]
[null,null,null,null,"Palestine","PS"]
[null,null,null,null,"Portugal","PT"]
[null,null,null,null,"Palau","PW"]
[null,null,null,null,"Paraguay","PY"]
[null,null,null,null,"Qatar","QA"]
[null,null,null,null,"Reunion","RE"]
[null,null,null,null,"Romania","RO"]
[null,null,null,null,"Russian Federation","RU"]
[null,null,null,null,"Rwanda","RW"]
[null,null,null,null,"Saudi Arabia","SA"]
[null,null,null,null,"Solomon Islands","SB"]
[null,null,null,null,"Seychelles","SC"]
[null,null,null,null,"Sudan","SD"]
[null,null,null,null,"Sweden","SE"]
[null,null,null,null,"Singapore","SG"]
[null,null,null,null,"Saint Helena","SH"]
[null,null,null,null,"Slovenia","SI"]
[null,null,null,null,"Svalbard","SJ"]
[null,null,null,null,"Slovakia","SK"]
[null,null,null,null,"Sierra Leone","SL"]
[null,null,null,null,"San Marino","SM"]
[null,null,null,null,"Senegal","SN"]
[null,null,null,null,"Somalia","SO"]
[null,null,null,null,"Suriname","SR"]
[null,null,null,null,"South Sudan","SS"]
[null,null,null,null,"Sao Tome and Principe","ST"]
[null,null,null,null,"El Salvador","SV"]
[null,null,null,null,"Sint Maarten (Dutch part)","SX"]
[null,null,null,null,"Syria","SY"]
[null,null,null,null,"Swaziland","SZ"]
[null,null,null,null,"Turks and Caicos Islands","TC"]
[null,null,null,null,"Chad","TD"]
[null,null,null,null,"French Southern and Antarctic Lands","TF"]
[null,null,null,null,"Togo","TG"]
[null,null,null,null,"Thailand","TH"]
[null,null,null,null,"Tajikistan","TJ"]
[null,null,null,null,"Tokelau Islands","TK"]
[null,null,null,null,"East Timor","TL"]
[null,null,null,null,"Turkmenistan","TM"]
[null,null,null,null,"Tunisia","TN"]
[null,null,null,null,"Tonga","TO"]
[null,null,null,null,"East Timor","TP"]
[null,null,null,null,"Turkey","TR"]
[null,null,null,null,"Trinidad and Tobago","TT"]
[null,null,null,null,"Tuvalu","TV"]
[null,null,null,null,"Taiwan","TW"]
[null,null,null,null,"Tanzania","TZ"]
[null,null,null,null,"Ukraine","UA"]
[null,null,null,null,"Uganda","UG"]
[null,null,null,null,"United States Minor Outlying Islands","UM"]
[null,null,null,null,"United Nations","UN"]
[null,null,null,null,"USA","US"]
[null,null,null,null,"Uruguay","UY"]
[null,null,null,null,"Uzbekistan","UZ"]
[null,null,null,null,"Vatican City","VA"]
[null,null,null,null,"St. Vincent and the Grenadines","VC"]
[null,null,null,null,"Venezuela","VE"]
[null,null,null,null,"British Virgin Islands","VG"]
[null,null,null,null,"United States Virgin Islands","VI"]
[null,null,null,null,"Vietnam","VN"]
[null,null,null,null,"Vanuatu","VU"]
[null,null,null,null,"Wallis and Futuna Islands","WF"]
[null,null,null,null,"Samoa","WS"]
[null,null,null,null,"Yemen","YE"]
[null,null,null,null,"Mayotte","YT"]
[null,null,null,null,"South Africa","ZA"]

{"sheet":"Payment term","index":21,"n_rows":67,"n_cols":17,"rows_kept":67,"cut":false,"hidden":true,"merged":[]}
[null,null,null,"F33",null,null,null,null,"S19",null,null,null,"S22",null,"AF33",null,"AF36"]
["0001 -  Pay immediately w/o deduction","0001",null,{"$f":"_xlfn._xlws.FILTER(A2:A67,ISNUMBER(SEARCH(Customer!F33,A2:A67)),\"Not found\")","v":"Not found"},null,null,null,null,{"$f":"_xlfn._xlws.FILTER(A2:A67,ISNUMBER(SEARCH(Customer!S19,A2:A67)),\"Not found\")","v":"Not found"},null,null,null,{"$f":"_xlfn._xlws.FILTER(A2:A67,ISNUMBER(SEARCH(Customer!S22,A2:A67)),\"Not found\")","v":"Not found"},null,{"$f":"_xlfn._xlws.FILTER(A2:A67,ISNUMBER(SEARCH(Customer!AF33,A2:A67)),\"Not found\")","v":"0001 -  Pay immediately w/o deduction"},null,{"$f":"_xlfn._xlws.FILTER(A2:A67,ISNUMBER(SEARCH(Customer!AF36,A2:A67)),\"Not found\")","v":"0001 -  Pay immediately w/o deduction"}]
["0002 -  14 days 2%, 30 net","0002",null,null,null,null,null,null,null,null,null,null,null,null,"0002 -  14 days 2%, 30 net",null,"0002 -  14 days 2%, 30 net"]
["0003 -  14 days 3%, 20/2%, 30 net","0003",null,null,null,null,null,null,null,null,null,null,null,null,"0003 -  14 days 3%, 20/2%, 30 net",null,"0003 -  14 days 3%, 20/2%, 30 net"]
["0004 -  as of end of month","0004",null,null,null,null,null,null,null,null,null,null,null,null,"0004 -  as of end of month",null,"0004 -  as of end of month"]
["0005 -  from the 10th of subs. month","0005",null,null,null,null,null,null,null,null,null,null,null,null,"0005 -  from the 10th of subs. month",null,"0005 -  from the 10th of subs. month"]
["0006 -  End of month 4%, Mid-month 2%","0006",null,null,null,null,null,null,null,null,null,null,null,null,"0006 -  End of month 4%, Mid-month 2%",null,"0006 -  End of month 4%, Mid-month 2%"]
["0007 -  15th/31st subs. month 2%, ...","0007",null,null,null,null,null,null,null,null,null,null,null,null,"0007 -  15th/31st subs. month 2%, ...",null,"0007 -  15th/31st subs. month 2%, ..."]
["0008 -  14 days 2%, 30/1,5%, 45 net","0008",null,null,null,null,null,null,null,null,null,null,null,null,"0008 -  14 days 2%, 30/1,5%, 45 net",null,"0008 -  14 days 2%, 30/1,5%, 45 net"]
["0009 -  Payable in 3 installments","0009",null,null,null,null,null,null,null,null,null,null,null,null,"0009 -  Payable in 3 installments",null,"0009 -  Payable in 3 installments"]
["Z002 -  02 days Credit  period","Z002",null,null,null,null,null,null,null,null,null,null,null,null,"Z002 -  02 days Credit  period",null,"Z002 -  02 days Credit  period"]
["Z005 -  05 days Credit  period","Z005",null,null,null,null,null,null,null,null,null,null,null,null,"Z005 -  05 days Credit  period",null,"Z005 -  05 days Credit  period"]
["Z007 -  07 days Credit  period","Z007",null,null,null,null,null,null,null,null,null,null,null,null,"Z007 -  07 days Credit  period",null,"Z007 -  07 days Credit  period"]
["Z010 -  10 days Credit  period","Z010",null,null,null,null,null,null,null,null,null,null,null,null,"Z010 -  10 days Credit  period",null,"Z010 -  10 days Credit  period"]
["Z014 -  14 days Credit  period","Z014",null,null,null,null,null,null,null,null,null,null,null,null,"Z014 -  14 days Credit  period",null,"Z014 -  14 days Credit  period"]
["Z015 -  15 days Credit  period","Z015",null,null,null,null,null,null,null,null,null,null,null,null,"Z015 -  15 days Credit  period",null,"Z015 -  15 days Credit  period"]
["Z020 -  20days Credit  period","Z020",null,null,null,null,null,null,null,null,null,null,null,null,"Z020 -  20days Credit  period",null,"Z020 -  20days Credit  period"]
["Z021 -  21 days Credit  period","Z021",null,null,null,null,null,null,null,null,null,null,null,null,"Z021 -  21 days Credit  period",null,"Z021 -  21 days Credit  period"]
["Z025 -  25 days Credit  period","Z025",null,null,null,null,null,null,null,null,null,null,null,null,"Z025 -  25 days Credit  period",null,"Z025 -  25 days Credit  period"]
["Z030 -  30 days Credit  period","Z030",null,null,null,null,null,null,null,null,null,null,null,null,"Z030 -  30 days Credit  period",null,"Z030 -  30 days Credit  period"]
["Z035 -  35 days Credit  period","Z035",null,null,null,null,null,null,null,null,null,null,null,null,"Z035 -  35 days Credit  period",null,"Z035 -  35 days Credit  period"]
["Z037 -  37 days Credit  period","Z037",null,null,null,null,null,null,null,null,null,null,null,null,"Z037 -  37 days Credit  period",null,"Z037 -  37 days Credit  period"]
["Z040 -  40 days Credit  period","Z040",null,null,null,null,null,null,null,null,null,null,null,null,"Z040 -  40 days Credit  period",null,"Z040 -  40 days Credit  period"]
["Z045 -  45 days Credit  period","Z045",null,null,null,null,null,null,null,null,null,null,null,null,"Z045 -  45 days Credit  period",null,"Z045 -  45 days Credit  period"]
["Z050 -  50 days Credit  period","Z050",null,null,null,null,null,null,null,null,null,null,null,null,"Z050 -  50 days Credit  period",null,"Z050 -  50 days Credit  period"]
["Z055 -  55 days Credit  period","Z055",null,null,null,null,null,null,null,null,null,null,null,null,"Z055 -  55 days Credit  period",null,"Z055 -  55 days Credit  period"]
["Z060 -  60 days Credit  period","Z060",null,null,null,null,null,null,null,null,null,null,null,null,"Z060 -  60 days Credit  period",null,"Z060 -  60 days Credit  period"]
["Z065 -  65 days Credit  period","Z065",null,null,null,null,null,null,null,null,null,null,null,null,"Z065 -  65 days Credit  period",null,"Z065 -  65 days Credit  period"]
["Z070 -  70 days Credit  period","Z070",null,null,null,null,null,null,null,null,null,null,null,null,"Z070 -  70 days Credit  period",null,"Z070 -  70 days Credit  period"]
["Z075 -  75 days Credit  period","Z075",null,null,null,null,null,null,null,null,null,null,null,null,"Z075 -  75 days Credit  period",null,"Z075 -  75 days Credit  period"]
["Z080 -  80 days Credit  period","Z080",null,null,null,null,null,null,null,null,null,null,null,null,"Z080 -  80 days Credit  period",null,"Z080 -  80 days Credit  period"]
["Z085 -  85 days Credit  period","Z085",null,null,null,null,null,null,null,null,null,null,null,null,"Z085 -  85 days Credit  period",null,"Z085 -  85 days Credit  period"]
["Z090 -  90 days Credit  period","Z090",null,null,null,null,null,null,null,null,null,null,null,null,"Z090 -  90 days Credit  period",null,"Z090 -  90 days Credit  period"]
["Z100 -  100 days Credit  period","Z100",null,null,null,null,null,null,null,null,null,null,null,null,"Z100 -  100 days Credit  period",null,"Z100 -  100 days Credit  period"]
["Z120 -  120 days Credit  period","Z120",null,null,null,null,null,null,null,null,null,null,null,null,"Z120 -  120 days Credit  period",null,"Z120 -  120 days Credit  period"]
["Z121 -  150 days Credit period","Z121",null,null,null,null,null,null,null,null,null,null,null,null,"Z121 -  150 days Credit period",null,"Z121 -  150 days Credit period"]
["Z122 -  180 days Credit  period","Z122",null,null,null,null,null,null,null,null,null,null,null,null,"Z122 -  180 days Credit  period",null,"Z122 -  180 days Credit  period"]
["Z123 -  210 days Credit  period","Z123",null,null,null,null,null,null,null,null,null,null,null,null,"Z123 -  210 days Credit  period",null,"Z123 -  210 days Credit  period"]
["Z125 -  LC at Sight","Z125",null,null,null,null,null,null,null,null,null,null,null,null,"Z125 -  LC at Sight",null,"Z125 -  LC at Sight"]
["Z130 -  LC Usance 30 Days","Z130",null,null,null,null,null,null,null,null,null,null,null,null,"Z130 -  LC Usance 30 Days",null,"Z130 -  LC Usance 30 Days"]
["Z135 -  LC Usance 45 Days","Z135",null,null,null,null,null,null,null,null,null,null,null,null,"Z135 -  LC Usance 45 Days",null,"Z135 -  LC Usance 45 Days"]
["Z140 -  LC Usance 60 Days","Z140",null,null,null,null,null,null,null,null,null,null,null,null,"Z140 -  LC Usance 60 Days",null,"Z140 -  LC Usance 60 Days"]
["Z143 -  LC Usance 75 Days","Z143",null,null,null,null,null,null,null,null,null,null,null,null,"Z143 -  LC Usance 75 Days",null,"Z143 -  LC Usance 75 Days"]
["Z145 -  LC Usance 90 Days","Z145",null,null,null,null,null,null,null,null,null,null,null,null,"Z145 -  LC Usance 90 Days",null,"Z145 -  LC Usance 90 Days"]
["Z150 -  LC Usance 120 Days","Z150",null,null,null,null,null,null,null,null,null,null,null,null,"Z150 -  LC Usance 120 Days",null,"Z150 -  LC Usance 120 Days"]
["Z151 -  LC Usance 150 Days","Z151",null,null,null,null,null,null,null,null,null,null,null,null,"Z151 -  LC Usance 150 Days",null,"Z151 -  LC Usance 150 Days"]
["Z155 -  LC Usance 180 Days","Z155",null,null,null,null,null,null,null,null,null,null,null,null,"Z155 -  LC Usance 180 Days",null,"Z155 -  LC Usance 180 Days"]
["Z159 - LC Usance 720 Days","Z159",null,null,null,null,null,null,null,null,null,null,null,null,"Z159 - LC Usance 720 Days",null,"Z159 - LC Usance 720 Days"]
["Z160 -  DP at sight","Z160",null,null,null,null,null,null,null,null,null,null,null,null,"Z160 -  DP at sight",null,"Z160 -  DP at sight"]
["Z165 -  DA 30 Days","Z165",null,null,null,null,null,null,null,null,null,null,null,null,"Z165 -  DA 30 Days",null,"Z165 -  DA 30 Days"]
["Z170 -  DA 45 Days","Z170",null,null,null,null,null,null,null,null,null,null,null,null,"Z170 -  DA 45 Days",null,"Z170 -  DA 45 Days"]
["Z175 -  DA 60 Days","Z175",null,null,null,null,null,null,null,null,null,null,null,null,"Z175 -  DA 60 Days",null,"Z175 -  DA 60 Days"]
["Z180 -  DA 90 Days","Z180",null,null,null,null,null,null,null,null,null,null,null,null,"Z180 -  DA 90 Days",null,"Z180 -  DA 90 Days"]
["Z185 -  DA 120 Days","Z185",null,null,null,null,null,null,null,null,null,null,null,null,"Z185 -  DA 120 Days",null,"Z185 -  DA 120 Days"]
["Z186 -  DA 150 Days","Z186",null,null,null,null,null,null,null,null,null,null,null,null,"Z186 -  DA 150 Days",null,"Z186 -  DA 150 Days"]
["Z190 -  DA 180 Days","Z190",null,null,null,null,null,null,null,null,null,null,null,null,"Z190 -  DA 180 Days",null,"Z190 -  DA 180 Days"]
["Z195 -  LC-% of PI amt in adv&bal@sigh","Z195",null,null,null,null,null,null,null,null,null,null,null,null,"Z195 -  LC-% of PI amt in adv&bal@sigh",null,"Z195 -  LC-% of PI amt in adv&bal@sigh"]
["Z200 -  TT – 100% in advance","Z200",null,null,null,null,null,null,null,null,null,null,null,null,"Z200 -  TT – 100% in advance",null,"Z200 -  TT – 100% in advance"]
["Z201 -  Payment in Advance","Z201",null,null,null,null,null,null,null,null,null,null,null,null,"Z201 -  Payment in Advance",null,"Z201 -  Payment in Advance"]
["Z205 -  Open account","Z205",null,null,null,null,null,null,null,null,null,null,null,null,"Z205 -  Open account",null,"Z205 -  Open account"]
["Z206 -  Mixed Term DP&TT","Z206",null,null,null,null,null,null,null,null,null,null,null,null,"Z206 -  Mixed Term DP&TT",null,"Z206 -  Mixed Term DP&TT"]
["Z207 -  Mixed Term DA&TT","Z207",null,null,null,null,null,null,null,null,null,null,null,null,"Z207 -  Mixed Term DA&TT",null,"Z207 -  Mixed Term DA&TT"]
["Z210 -  After receipt of invoice","Z210",null,null,null,null,null,null,null,null,null,null,null,null,"Z210 -  After receipt of invoice",null,"Z210 -  After receipt of invoice"]
["Z211 -  50% in adv and 50% after deliv","Z211",null,null,null,null,null,null,null,null,null,null,null,null,"Z211 -  50% in adv and 50% after deliv",null,"Z211 -  50% in adv and 50% after deliv"]
["Z212 -  Upon Completion of the Service","Z212",null,null,null,null,null,null,null,null,null,null,null,null,"Z212 -  Upon Completion of the Service",null,"Z212 -  Upon Completion of the Service"]
["Z213 -  Payment as per annexure","Z213",null,null,null,null,null,null,null,null,null,null,null,null,"Z213 -  Payment as per annexure",null,"Z213 -  Payment as per annexure"]
["Z214 -  Payment after delivery","Z214",null,null,null,null,null,null,null,null,null,null,null,null,"Z214 -  Payment after delivery",null,"Z214 -  Payment after delivery"]

{"sheet":"reconccilliation accout","index":22,"n_rows":46,"n_cols":2,"rows_kept":46,"cut":false,"hidden":true,"merged":[]}
[]
["Adv- One Time Customers",30050580]
["Advance - Domestic Customers",30050510]
["Advance - Export Customers",30050520]
["Advance - One Time Customers",30050530]
["Advance for Capital Goods - Inter Company Customer",30050620]
["Advance for Capital Goods - Inter Profit Center",30050630]
["Adv-Intercompany Customers",30050560]
["Adv-Interprofit center Customers",30050570]
["CFLB Group Customers",10090040]
["Domestic Customers",10090000]
["Export Customers",10090010]
["Flagon Dep-CFLB Group",30050730]
["Flagon Dep-Domestic Customers",30050690]
["Flagon Dep-Export Customers",30050700]
["Flagon Dep-Inter Company",30050710]
["Flagon Dep-Inter profit center",30050720]
["Held to Maturity Investments",10051000]
["Inter Company CA A/c -Asset.",10110000]
["Inter Company Customers",10090020]
["Inter Company Loan A/c- Asset",10110020]
["Inter Prctr- CA A/c- Asset",10110010]
["Inter Profit Centre Loan A/c-Asset.",10110030]
["Inter Profitcenter Customers",10090030]
["Investment On Subsidiaries – Unquoted Investments",10050000]
["One Time Customers",10090050]
["Other Investments - Debentures",10050040]
["Other Investments - Shares",10050020]
["PDC - Domestic Customers",10100500]
["PDC - Export Customers",10100510]
["PDC - Inter Company Customer",10100550]
["PDC - Inter Profit Center",10100530]
["PDC - One Time",10100540]
["Refundable deposits- container - Export Customers",10100590]
["Refundable deposits- container-Domstic Customers",10100580]
["Rent Dep-CFLB Group",30050780]
["Rent Dep-Domestic Customers",30050740]
["Rent Dep-Export Customers",30050750]
["Rent Dep-Inter Company",30050760]
["Rent Dep-Inter profit center",30050770]
["Sec/Ref.Dep-Intercompany Customers",30050590]
["Sec/Ref.Dep-Interprofit center Customers",30050600]
["Sec/Ref.Dep-One Time Customer",30050610]
["Security Dep-Export Customers",30050550]
["Security Deposit-Domestic Customers",30050540]
["Unallocated Customer Receipts",10100520]

{"sheet":"Country","index":23,"n_rows":250,"n_cols":253,"rows_kept":250,"cut":false,"hidden":true,"merged":[]}
["Long name","Country Key","Count of regions"]
["Afghanistan","AF",{"$error":"#N/A"},null,{"$f":"_xlfn._xlws.FILTER(country_list,ISNUMBER(SEARCH(country_,country_list)),\"Not Found\")","v":"Sri Lanka"}]
["Albania","AL",{"$error":"#N/A"}]
["Algeria","DZ",{"$error":"#N/A"},null,{"$f":"_xlfn._xlws.FILTER(country_list,ISNUMBER(SEARCH(CountryChange_,country_list)),\"Not Found\")","v":"Sri Lanka"},"Argentina","Austria","Australia","Belgium","Bulgaria","Brazil","Canada","Switzerland","Chile","China","Colombia","Czech Republic","Germany","Denmark","Egypt","Spain","Finland","France","United Kingdom","Greece","Hong Kong","Croatia","Hungary","Indonesia","Ireland","Israel","India","Italy","Japan","South Korea","Kuwait","Kazakhstan","Mexico","Malaysia","Netherlands","Norway","New Zealand","Peru","Philippines","Poland","Portugal","Qatar","Romania","Russian Federation","Sweden","Singapore","Slovenia","Thailand","Turkey","Taiwan","Ukraine","USA","Venezuela","South Africa","Andorra","United Arab Emirates","Afghanistan","Antigua and Barbuda","Anguilla","Albania","Armenia","Angola","Antarctica","American Samoa","Aruba","Azerbaijan","Bosnia and Herzegovina","Barbados","Bangladesh","Burkina Faso","Bahrain","Burundi","Benin","Blue","Bermuda","Brunei Darussalam","Bolivia","Bonaire, Sint Eustatius and Saba","Bahamas","Bhutan","Bouvet Islands","Botswana","Belarus","Belize","Cocos (Keeling) Islands","Democratic Republic of the Congo","Central African Republic","Republic of the Congo","Cote d'Ivoire","Cook Islands","Cameroon","Costa Rica","Serbia and Montenegro","Cuba","Cape Verde","Curacao","Christmas Islnd","Cyprus","Djibouti","Dominica","Dominican Republic","Algeria","Ecuador","Estonia","Western Sahara","Eritrea","Ethiopia","European Union","Fiji","Falkland Islands","Micronesia","Faroe Islands","Gabon","Grenada","Georgia","French Guyana","Guernsey (Channel Islands)","Ghana","Gibraltar","Greenland","Gambia","Guinea","Guadeloupe","Equatorial Guinea","South Georgia and the Southern Sandwich Islands","Guatemala","Guam","Guinea-Bissau","Guyana","Heard and McDonald Islands","Honduras","Haiti","Isle of Man","British Indian Ocean Territory","Iraq","Iran","Iceland","Jersey","Jamaica","Jordan","Kenya","Kyrgyzstan","Cambodia","Kiribati","Comoros","Saint Kitts and Nevis","North Korea","Cayman Islands","Laos","Lebanon","St. Lucia","Liechtenstein","Liberia","Lesotho","Lithuania","Luxembourg","Latvia","Libya","Morocco","Monaco","Moldova","Madagascar","Marshall Islands","Macedonia","Mali","Burma","Mongolia","Macau","North Mariana Islands","Martinique","Mauritania","Montserrat","Malta","Mauritius","Maldives","Malawi","Mozambique","Namibia","New Caledonia","Niger","Norfolk Islands","Nigeria","Nicaragua","Nepal","Nauru","NATO","Niue","Oman","Orange","Panama","French Polynesia","Papua New Guinea","Pakistan","St. Pierre and Miquelon","Pitcairn Islands","Puerto Rico","Palestine","Palau","Paraguay","Reunion","Rwanda","Saudi Arabia","Solomon Islands","Seychelles","Sudan","Saint Helena","Svalbard","Slovakia","Sierra Leone","San Marino","Senegal","Somalia","Suriname","South Sudan","Sao Tome and Principe","El Salvador","Sint Maarten (Dutch part)","Syria","Swaziland","Turks and Caicos Islands","Chad","French Southern and Antarctic Lands","Togo","Tajikistan","Tokelau Islands","East Timor","Turkmenistan","Tunisia","Tonga","East Timor2","Trinidad and Tobago","Tuvalu","Tanzania","Uganda","United States Minor Outlying Islands","United Nations","Uruguay","Uzbekistan","Vatican City","St. Vincent and the Grenadines","British Virgin Islands","United States Virgin Islands","Vietnam","Vanuatu","Wallis and Futuna Islands","Samoa","Yemen","Mayotte"]
["American Samoa","AS",{"$error":"#N/A"}]
["Andorra","AD",{"$error":"#N/A"}]
["Angola","AO",{"$error":"#N/A"}]
["Anguilla","AI",{"$error":"#N/A"}]
["Antarctica","AQ",{"$error":"#N/A"}]
["Antigua and Barbuda","AG",{"$error":"#N/A"}]
["Argentina","AR","Argentina"]
["Armenia","AM",{"$error":"#N/A"}]
["Aruba","AW",{"$error":"#N/A"}]
["Australia","AU","Australia"]
["Austria","AT","Austria"]
["Azerbaijan","AZ",{"$error":"#N/A"}]
["Bahamas","BS",{"$error":"#N/A"}]
["Bahrain","BH",{"$error":"#N/A"}]
["Bangladesh","BD",{"$error":"#N/A"}]
["Barbados","BB",{"$error":"#N/A"}]
["Belarus","BY",{"$error":"#N/A"}]
["Belgium","BE","Belgium"]
["Belize","BZ",{"$error":"#N/A"}]
["Benin","BJ",{"$error":"#N/A"}]
["Bermuda","BM",{"$error":"#N/A"}]
["Bhutan","BT",{"$error":"#N/A"}]
["Blue","BL",{"$error":"#N/A"}]
["Bolivia","BO",{"$error":"#N/A"}]
["Bonaire, Sint Eustatius and Saba","BQ",{"$error":"#N/A"}]
["Bosnia and Herzegovina","BA",{"$error":"#N/A"}]
["Botswana","BW",{"$error":"#N/A"}]
["Bouvet Islands","BV",{"$error":"#N/A"}]
["Brazil","BR","Brazil"]
["British Indian Ocean Territory","IO",{"$error":"#N/A"}]
["British Virgin Islands","VG",{"$error":"#N/A"}]
["Brunei Darussalam","BN",{"$error":"#N/A"}]
["Bulgaria","BG","Bulgaria"]
["Burkina Faso","BF",{"$error":"#N/A"}]
["Burma","MM",{"$error":"#N/A"}]
["Burundi","BI",{"$error":"#N/A"}]
["Cambodia","KH",{"$error":"#N/A"}]
["Cameroon","CM",{"$error":"#N/A"}]
["Canada","CA","Canada"]
["Cape Verde","CV",{"$error":"#N/A"}]
["Cayman Islands","KY",{"$error":"#N/A"}]
["Central African Republic","CF",{"$error":"#N/A"}]
["Chad","TD",{"$error":"#N/A"}]
["Chile","CL","Chile"]
["China","CN","China"]
["Christmas Islnd","CX",{"$error":"#N/A"}]
["Cocos (Keeling) Islands","CC",{"$error":"#N/A"}]
["Colombia","CO","Colombia"]
["Comoros","KM",{"$error":"#N/A"}]
["Cook Islands","CK",{"$error":"#N/A"}]
["Costa Rica","CR",{"$error":"#N/A"}]
["Cote d'Ivoire","CI",{"$error":"#N/A"}]
["Croatia","HR","Croatia"]
["Cuba","CU",{"$error":"#N/A"}]
["Curacao","CW",{"$error":"#N/A"}]
["Cyprus","CY",{"$error":"#N/A"}]
["Czech Republic","CZ","Czech Republic"]
["Democratic Republic of the Congo","CD",{"$error":"#N/A"}]
["Denmark","DK","Denmark"]
["Djibouti","DJ",{"$error":"#N/A"}]
["Dominica","DM",{"$error":"#N/A"}]
["Dominican Republic","DO",{"$error":"#N/A"}]
["East Timor","TL",{"$error":"#N/A"}]
["East Timor","TP",{"$error":"#N/A"}]
["Ecuador","EC",{"$error":"#N/A"}]
["Egypt","EG","Egypt"]
["El Salvador","SV",{"$error":"#N/A"}]
["Equatorial Guinea","GQ",{"$error":"#N/A"}]
["Eritrea","ER",{"$error":"#N/A"}]
["Estonia","EE",{"$error":"#N/A"}]
["Ethiopia","ET",{"$error":"#N/A"}]
["European Union","EU",{"$error":"#N/A"}]
["Falkland Islands","FK",{"$error":"#N/A"}]
["Faroe Islands","FO",{"$error":"#N/A"}]
["Fiji","FJ",{"$error":"#N/A"}]
["Finland","FI","Finland"]
["France","FR","France"]
["French Guyana","GF",{"$error":"#N/A"}]
["French Polynesia","PF",{"$error":"#N/A"}]
["French Southern and Antarctic Lands","TF",{"$error":"#N/A"}]
["Gabon","GA",{"$error":"#N/A"}]
["Gambia","GM",{"$error":"#N/A"}]
["Georgia","GE",{"$error":"#N/A"}]
["Germany","DE","Germany"]
["Ghana","GH",{"$error":"#N/A"}]
["Gibraltar","GI",{"$error":"#N/A"}]
["Greece","GR","Greece"]
["Greenland","GL",{"$error":"#N/A"}]
["Grenada","GD",{"$error":"#N/A"}]
["Guadeloupe","GP",{"$error":"#N/A"}]
["Guam","GU",{"$error":"#N/A"}]
["Guatemala","GT",{"$error":"#N/A"}]
["Guernsey (Channel Islands)","GG",{"$error":"#N/A"}]
["Guinea","GN",{"$error":"#N/A"}]
["Guinea-Bissau","GW",{"$error":"#N/A"}]
["Guyana","GY",{"$error":"#N/A"}]
["Haiti","HT",{"$error":"#N/A"}]
["Heard and McDonald Islands","HM",{"$error":"#N/A"}]
["Honduras","HN",{"$error":"#N/A"}]
["Hong Kong","HK","Hong Kong"]
["Hungary","HU","Hungary"]
["Iceland","IS",{"$error":"#N/A"}]
["India","IN","India"]
["Indonesia","ID","Indonesia"]
["Iran","IR",{"$error":"#N/A"}]
["Iraq","IQ",{"$error":"#N/A"}]
["Ireland","IE","Ireland"]
["Isle of Man","IM",{"$error":"#N/A"}]
["Israel","IL","Israel"]
["Italy","IT","Italy"]
["Jamaica","JM",{"$error":"#N/A"}]
["Japan","JP","Japan"]
["Jersey","JE",{"$error":"#N/A"}]
["Jordan","JO",{"$error":"#N/A"}]
["Kazakhstan","KZ","Kazakhstan"]
["Kenya","KE",{"$error":"#N/A"}]
["Kiribati","KI",{"$error":"#N/A"}]
["Kuwait","KW","Kuwait"]
["Kyrgyzstan","KG",{"$error":"#N/A"}]
["Laos","LA",{"$error":"#N/A"}]
["Latvia","LV",{"$error":"#N/A"}]
["Lebanon","LB",{"$error":"#N/A"}]
["Lesotho","LS",{"$error":"#N/A"}]
["Liberia","LR",{"$error":"#N/A"}]
["Libya","LY",{"$error":"#N/A"}]
["Liechtenstein","LI",{"$error":"#N/A"}]
["Lithuania","LT",{"$error":"#N/A"}]
["Luxembourg","LU",{"$error":"#N/A"}]
["Macau","MO",{"$error":"#N/A"}]
["Macedonia","MK",{"$error":"#N/A"}]
["Madagascar","MG",{"$error":"#N/A"}]
["Malawi","MW",{"$error":"#N/A"}]
["Malaysia","MY","Malaysia"]
["Maldives","MV",{"$error":"#N/A"}]
["Mali","ML",{"$error":"#N/A"}]
["Malta","MT",{"$error":"#N/A"}]
["Marshall Islands","MH",{"$error":"#N/A"}]
["Martinique","MQ",{"$error":"#N/A"}]
["Mauritania","MR",{"$error":"#N/A"}]
["Mauritius","MU",{"$error":"#N/A"}]
["Mayotte","YT",{"$error":"#N/A"}]
["Mexico","MX","Mexico"]
["Micronesia","FM",{"$error":"#N/A"}]
["Moldova","MD",{"$error":"#N/A"}]
["Monaco","MC",{"$error":"#N/A"}]
["Mongolia","MN",{"$error":"#N/A"}]
["Montserrat","MS",{"$error":"#N/A"}]
["Morocco","MA",{"$error":"#N/A"}]
["Mozambique","MZ",{"$error":"#N/A"}]
["Namibia","NA",{"$error":"#N/A"}]
["NATO","NT",{"$error":"#N/A"}]
["Nauru","NR",{"$error":"#N/A"}]
["Nepal","NP",{"$error":"#N/A"}]
["Netherlands","NL","Netherlands"]
["New Caledonia","NC",{"$error":"#N/A"}]
["New Zealand","NZ","New Zealand"]
["Nicaragua","NI",{"$error":"#N/A"}]
["Niger","NE",{"$error":"#N/A"}]
["Nigeria","NG",{"$error":"#N/A"}]
["Niue","NU",{"$error":"#N/A"}]
["Norfolk Islands","NF",{"$error":"#N/A"}]
["North Korea","KP",{"$error":"#N/A"}]
["North Mariana Islands","MP",{"$error":"#N/A"}]
["Norway","NO","Norway"]
["Oman","OM",{"$error":"#N/A"}]
["Orange","OR",{"$error":"#N/A"}]
["Pakistan","PK",{"$error":"#N/A"}]
["Palau","PW",{"$error":"#N/A"}]
["Palestine","PS",{"$error":"#N/A"}]
["Panama","PA",{"$error":"#N/A"}]
["Papua New Guinea","PG",{"$error":"#N/A"}]
["Paraguay","PY",{"$error":"#N/A"}]
["Peru","PE","Peru"]
["Philippines","PH","Philippines"]
["Pitcairn Islands","PN",{"$error":"#N/A"}]
["Poland","PL","Poland"]
["Portugal","PT","Portugal"]
["Puerto Rico","PR",{"$error":"#N/A"}]
["Qatar","QA","Qatar"]
["Republic of the Congo","CG",{"$error":"#N/A"}]
["Reunion","RE",{"$error":"#N/A"}]
["Romania","RO","Romania"]
["Russian Federation","RU","Russian Federation"]
["Rwanda","RW",{"$error":"#N/A"}]
["Saint Helena","SH",{"$error":"#N/A"}]
["Saint Kitts and Nevis","KN",{"$error":"#N/A"}]
["Samoa","WS",{"$error":"#N/A"}]
["San Marino","SM",{"$error":"#N/A"}]
["Sao Tome and Principe","ST",{"$error":"#N/A"}]
["Saudi Arabia","SA",{"$error":"#N/A"}]
["Senegal","SN",{"$error":"#N/A"}]
["Serbia and Montenegro","CS",{"$error":"#N/A"}]
["Seychelles","SC",{"$error":"#N/A"}]
["Sierra Leone","SL",{"$error":"#N/A"}]
["Singapore","SG","Singapore"]
["Sint Maarten (Dutch part)","SX",{"$error":"#N/A"}]
["Slovakia","SK",{"$error":"#N/A"}]
["Slovenia","SI","Slovenia"]
["Solomon Islands","SB",{"$error":"#N/A"}]
["Somalia","SO",{"$error":"#N/A"}]
["South Africa","ZA","South Africa"]
["South Georgia and the Southern Sandwich Islands","GS",{"$error":"#N/A"}]
["South Korea","KR","South Korea"]
["South Sudan","SS",{"$error":"#N/A"}]
["Spain","ES","Spain"]
["Sri Lanka","LK","Sri Lanka"]
["St. Lucia","LC",{"$error":"#N/A"}]
["St. Pierre and Miquelon","PM",{"$error":"#N/A"}]
["St. Vincent and the Grenadines","VC",{"$error":"#N/A"}]
["Sudan","SD",{"$error":"#N/A"}]
["Suriname","SR",{"$error":"#N/A"}]
["Svalbard","SJ",{"$error":"#N/A"}]
["Swaziland","SZ",{"$error":"#N/A"}]
["Sweden","SE","Sweden"]
["Switzerland","CH","Switzerland"]
["Syria","SY",{"$error":"#N/A"}]
["Taiwan","TW","Taiwan"]
["Tajikistan","TJ",{"$error":"#N/A"}]
["Tanzania","TZ",{"$error":"#N/A"}]
["Thailand","TH","Thailand"]
["Togo","TG",{"$error":"#N/A"}]
["Tokelau Islands","TK",{"$error":"#N/A"}]
["Tonga","TO",{"$error":"#N/A"}]
["Trinidad and Tobago","TT",{"$error":"#N/A"}]
["Tunisia","TN",{"$error":"#N/A"}]
["Turkey","TR","Turkey"]
["Turkmenistan","TM",{"$error":"#N/A"}]
["Turks and Caicos Islands","TC",{"$error":"#N/A"}]
["Tuvalu","TV",{"$error":"#N/A"}]
["Uganda","UG",{"$error":"#N/A"}]
["Ukraine","UA","Ukraine"]
["United Arab Emirates","AE",{"$error":"#N/A"}]
["United Kingdom","GB","United Kingdom"]
["United Nations","UN",{"$error":"#N/A"}]
["United States Minor Outlying Islands","UM",{"$error":"#N/A"}]
["United States Virgin Islands","VI",{"$error":"#N/A"}]
["Uruguay","UY",{"$error":"#N/A"}]
["USA","US","USA"]
["Uzbekistan","UZ",{"$error":"#N/A"}]
["Vanuatu","VU",{"$error":"#N/A"}]
["Vatican City","VA",{"$error":"#N/A"}]
["Venezuela","VE","Venezuela"]
["Vietnam","VN",{"$error":"#N/A"}]
["Wallis and Futuna Islands","WF",{"$error":"#N/A"}]
["Western Sahara","EH",{"$error":"#N/A"}]
["Yemen","YE",{"$error":"#N/A"}]

{"sheet":"Regions","index":24,"n_rows":1961,"n_cols":4,"rows_kept":1961,"cut":false,"hidden":true,"merged":[]}
["Country","Country Key","Description","Region"]
["Argentina","AR","Capital Federal","00"]
["Argentina","AR","Buenos Aires","01"]
["Argentina","AR","Catamarca","02"]
["Argentina","AR","Cordoba","03"]
["Argentina","AR","Corrientes","04"]
["Argentina","AR","Entre Rios","05"]
["Argentina","AR","Jujuy","06"]
["Argentina","AR","Mendoza","07"]
["Argentina","AR","La Rioja","08"]
["Argentina","AR","Salta","09"]
["Argentina","AR","San Juan","10"]
["Argentina","AR","San Luis","11"]
["Argentina","AR","Santa Fe","12"]
["Argentina","AR","Santiago del Estero","13"]
["Argentina","AR","Tucuman","14"]
["Argentina","AR","Chaco","16"]
["Argentina","AR","Chubut","17"]
["Argentina","AR","Formosa","18"]
["Argentina","AR","Misiones","19"]
["Argentina","AR","Neuquen","20"]
["Argentina","AR","La Pampa","21"]
["Argentina","AR","Rio Negro","22"]
["Argentina","AR","Santa Cruz","23"]
["Argentina","AR","Tierra de Fuego","24"]
["Austria","AT","Burgenland","B"]
["Austria","AT","Carinthia","K"]
["Austria","AT","Lower Austria","NOE"]
["Austria","AT","Upper Austria","OOE"]
["Austria","AT","Salzburg","S"]
["Austria","AT","Styria","ST"]
["Austria","AT","Tyrol","T"]
["Austria","AT","Vorarlberg","V"]
["Austria","AT","Vienna","W"]
["Australia","AU","Aust Capital Terr","ACT"]
["Australia","AU","New South Wales","NSW"]
["Australia","AU","Northern Territory","NT"]
["Australia","AU","Queensland","QLD"]
["Australia","AU","South Australia","SA"]
["Australia","AU","Tasmania","TAS"]
["Australia","AU","Victoria","VIC"]
["Australia","AU","Western Australia","WA"]
["Belgium","BE","Antwerp","01"]
["Belgium","BE","Brabant","02"]
["Belgium","BE","Hainaut","03"]
["Belgium","BE","Liege","04"]
["Belgium","BE","Limburg","05"]
["Belgium","BE","Luxembourg","06"]
["Belgium","BE","Namur","07"]
["Belgium","BE","Oost-Vlaanderen","08"]
["Belgium","BE","West-Vlaanderen","09"]
["Belgium","BE","Brabant (Walloon)","10"]
["Belgium","BE","Brussels (Capital)","11"]
["Bulgaria","BG","Burgas","01"]
["Bulgaria","BG","Grad Sofiya","02"]
["Bulgaria","BG","Khaskovo","03"]
["Bulgaria","BG","Lovech","04"]
["Bulgaria","BG","Montana","05"]
["Bulgaria","BG","Plovdiv","06"]
["Bulgaria","BG","Ruse","07"]
["Bulgaria","BG","Sofiya","08"]
["Bulgaria","BG","Varna","09"]
["Brazil","BR","Acre","AC"]
["Brazil","BR","Alagoas","AL"]
["Brazil","BR","Amazon","AM"]
["Brazil","BR","Amapa","AP"]
["Brazil","BR","Bahia","BA"]
["Brazil","BR","Ceara","CE"]
["Brazil","BR","Brasilia","DF"]
["Brazil","BR","Espirito Santo","ES"]
["Brazil","BR","Goias","GO"]
["Brazil","BR","Maranhao","MA"]
["Brazil","BR","Minas Gerais","MG"]
["Brazil","BR","Mato Grosso do Sul","MS"]
["Brazil","BR","Mato Grosso","MT"]
["Brazil","BR","Para","PA"]
["Brazil","BR","Paraiba","PB"]
["Brazil","BR","Pernambuco","PE"]
["Brazil","BR","Piaui","PI"]
["Brazil","BR","Parana","PR"]
["Brazil","BR","Rio de Janeiro","RJ"]
["Brazil","BR","Rio Grande do Norte","RN"]
["Brazil","BR","Rondonia","RO"]
["Brazil","BR","Roraima","RR"]
["Brazil","BR","Rio Grande do Sul","RS"]
["Brazil","BR","Santa Catarina","SC"]
["Brazil","BR","Sergipe","SE"]
["Brazil","BR","Sao Paulo","SP"]
["Brazil","BR","Tocantins","TO"]
["Canada","CA","Alberta","AB"]
["Canada","CA","British Columbia","BC"]
["Canada","CA","Manitoba","MB"]
["Canada","CA","New Brunswick","NB"]
["Canada","CA","Newfoundland/Labrad.","NL"]
["Canada","CA","Nova Scotia","NS"]
["Canada","CA","Northwest Territory","NT"]
["Canada","CA","Nunavut","NU"]
["Canada","CA","Ontario","ON"]
["Canada","CA","Prince Edward Island","PE"]
["Canada","CA","Quebec","QC"]
["Canada","CA","Saskatchewan","SK"]
["Canada","CA","Yukon Territory","YT"]
["Switzerland","CH","Aargau","AG"]
["Switzerland","CH","Inner-Rhoden","AI"]
["Switzerland","CH","Ausser-Rhoden","AR"]
["Switzerland","CH","Bern","BE"]
["Switzerland","CH","Basel Land","BL"]
["Switzerland","CH","Basel Stadt","BS"]
["Switzerland","CH","Fribourg","FR"]
["Switzerland","CH","Geneva","GE"]
["Switzerland","CH","Glarus","GL"]
["Switzerland","CH","Graubuenden","GR"]
["Switzerland","CH","Jura","JU"]
["Switzerland","CH","Lucerne","LU"]
["Switzerland","CH","Neuchatel","NE"]
["Switzerland","CH","Nidwalden","NW"]
["Switzerland","CH","Obwalden","OW"]
["Switzerland","CH","St. Gallen","SG"]
["Switzerland","CH","Schaffhausen","SH"]
["Switzerland","CH","Solothurn","SO"]
["Switzerland","CH","Schwyz","SZ"]
["Switzerland","CH","Thurgau","TG"]
["Switzerland","CH","Ticino","TI"]
["Switzerland","CH","Uri","UR"]
["Switzerland","CH","Vaud","VD"]
["Switzerland","CH","Valais","VS"]
["Switzerland","CH","Zug","ZG"]
["Switzerland","CH","Zurich","ZH"]
["Chile","CL","I - Iquique","01"]
["Chile","CL","II - Antofagasta","02"]
["Chile","CL","III - Copiapo","03"]
["Chile","CL","IV - La Serena","04"]
["Chile","CL","V - Valparaiso","05"]
["Chile","CL","VI - Rancagua","06"]
["Chile","CL","VII - Talca","07"]
["Chile","CL","VIII - Concepcion","08"]
["Chile","CL","IX - Temuco","09"]
["Chile","CL","X - Puerto Montt","10"]
["Chile","CL","XI - Coyhaique","11"]
["Chile","CL","XII - Punta Arenas","12"]
["Chile","CL","RM - Santiago","13"]
["Chile","CL","XIV - Los Rios","14"]
["Chile","CL","XV - Arica y Parinac","15"]
["China","CN","Beijing","010"]
["China","CN","Shanghai","020"]
["China","CN","Tianjin","030"]
["China","CN","Nei Mongol","040"]
["China","CN","Shanxi","050"]
["China","CN","Hebei","060"]
["China","CN","Liaoning","070"]
["China","CN","Jilin","080"]
["China","CN","Heilongjiang","090"]
["China","CN","Jiangsu","100"]
["China","CN","Anhui","110"]
["China","CN","Shandong","120"]
["China","CN","Zhejiang","130"]
["China","CN","Jiangxi","140"]
["China","CN","Fujian","150"]
["China","CN","Hunan","160"]
["China","CN","Hubei","170"]
["China","CN","Henan","180"]
["China","CN","Guangdong","190"]
["China","CN","Hainan","200"]
["China","CN","Guangxi","210"]
["China","CN","Guizhou","220"]
["China","CN","Sichuan","230"]
["China","CN","Yunnan","240"]
["China","CN","Shaanxi","250"]
["China","CN","Gansu","260"]
["China","CN","Ningxia","270"]
["China","CN","Qinghai","280"]
["China","CN","Xinjiang","290"]
["China","CN","Xizang","300"]
["China","CN","Chong Qing","320"]
["Colombia","CO","ANTIOQUIA","05"]
["Colombia","CO","ATLANTICO","08"]
["Colombia","CO","BOGOTA","11"]
["Colombia","CO","BOLIVAR","13"]
["Colombia","CO","BOYACA","15"]
["Colombia","CO","CALDAS","17"]
["Colombia","CO","CAQUETA","18"]
["Colombia","CO","CAUCA","19"]
["Colombia","CO","CESAR","20"]
["Colombia","CO","CORDOBA","23"]
["Colombia","CO","CUNDINAMARCA","25"]
["Colombia","CO","CHOCO","27"]
["Colombia","CO","HUILA","41"]
["Colombia","CO","LA GUAJIRA","44"]
["Colombia","CO","MAGDALENA","47"]
["Colombia","CO","META","50"]
["Colombia","CO","NARINO","52"]
["Colombia","CO","NORTE SANTANDER","54"]
["Colombia","CO","QUINDIO","63"]
["Colombia","CO","RISARALDA","66"]
["Colombia","CO","SANTANDER","68"]
["Colombia","CO","SUCRE","70"]
["Colombia","CO","TOLIMA","73"]
["Colombia","CO","VALLE","76"]
["Colombia","CO","ARAUCA","81"]
["Colombia","CO","CASANARE","85"]
["Colombia","CO","PUTUMAYO","86"]
["Colombia","CO","SAN ANDRES","88"]
["Colombia","CO","AMAZONAS","91"]
["Colombia","CO","GUAINIA","94"]
["Colombia","CO","GUAVIARE","95"]
["Colombia","CO","VAUPES","97"]
["Colombia","CO","VICHADA","99"]
["Czech Republic","CZ","Praha","11"]
["Czech Republic","CZ","Stredocesky","21"]
["Czech Republic","CZ","Jihocesky","31"]
["Czech Republic","CZ","Plzensky","32"]
["Czech Republic","CZ","Karlovarsky","41"]
["Czech Republic","CZ","Ustecky","42"]
["Czech Republic","CZ","Liberecky","51"]
["Czech Republic","CZ","Kralovehradecky","52"]
["Czech Republic","CZ","Pardubicky","53"]
["Czech Republic","CZ","Vysocina","63"]
["Czech Republic","CZ","Jihomoravsky","64"]
["Czech Republic","CZ","Olomoucky","71"]
["Czech Republic","CZ","Zlinsky","72"]
["Czech Republic","CZ","Moravskoslezsky","81"]
["Germany","DE","Schleswig-Holstein","01"]
["Germany","DE","Hamburg","02"]
["Germany","DE","Lower Saxony","03"]
["Germany","DE","Bremen","04"]
["Germany","DE","Nrth Rhine Westfalia","05"]
["Germany","DE","Hessen","06"]
["Germany","DE","Rhineland Palatinate","07"]
["Germany","DE","Baden-Wurttemberg","08"]
["Germany","DE","Bavaria","09"]
["Germany","DE","Saarland","10"]
["Germany","DE","Berlin","11"]
["Germany","DE","Brandenburg","12"]
["Germany","DE","Mecklenburg-Vorpomm.","13"]
["Germany","DE","Saxony","14"]
["Germany","DE","Saxony-Anhalt","15"]
["Germany","DE","Thuringia","16"]
["Denmark","DK","Danish Capital Reg.","001"]
["Denmark","DK","Central Jutland","002"]
["Denmark","DK","North Jutland","003"]
["Denmark","DK","Zealand","004"]
["Denmark","DK","South Denmark","005"]
["Egypt","EG","Cairo","01"]
["Egypt","EG","Giza","02"]
["Egypt","EG","Al Sharqia","03"]
["Egypt","EG","Dakahlia","04"]
["Egypt","EG","Beheira","05"]
["Egypt","EG","Qalyubia","06"]
["Egypt","EG","Minya","07"]
["Egypt","EG","Alexandria","08"]
["Egypt","EG","Gharbia","09"]
["Egypt","EG","Sohag","10"]
["Egypt","EG","Asyut","11"]
["Egypt","EG","Monufia","12"]
["Egypt","EG","Qena","13"]
["Egypt","EG","Kafr El-Sheikh","14"]
["Egypt","EG","Faiyum","15"]
["Egypt","EG","Beni Suef","16"]
["Egypt","EG","Aswan","17"]
["Egypt","EG","Damietta","18"]
["Egypt","EG","Ismailia","19"]
["Egypt","EG","Port Said","20"]
["Egypt","EG","Suez","21"]
["Egypt","EG","Luxor","22"]
["Egypt","EG","North Sinai","23"]
["Egypt","EG","Matruh","24"]
["Egypt","EG","Red Sea","25"]
["Egypt","EG","New Valley","26"]
["Egypt","EG","South Sinai","27"]
["Spain","ES","Alava","01"]
["Spain","ES","Albacete","02"]
["Spain","ES","Alicante","03"]
["Spain","ES","Almeria","04"]
["Spain","ES","Avila","05"]
["Spain","ES","Badajoz","06"]
["Spain","ES","Baleares","07"]
["Spain","ES","Barcelona","08"]
["Spain","ES","Burgos","09"]
["Spain","ES","Caceres","10"]
["Spain","ES","Cadiz","11"]
["Spain","ES","Castellon","12"]
["Spain","ES","Ciudad Real","13"]
["Spain","ES","Cordoba","14"]
["Spain","ES","La Coruna","15"]
["Spain","ES","Cuenca","16"]
["Spain","ES","Gerona","17"]
["Spain","ES","Granada","18"]
["Spain","ES","Guadalajara","19"]
["Spain","ES","Guipuzcoa","20"]
["Spain","ES","Huelva","21"]
["Spain","ES","Huesca","22"]
["Spain","ES","Jaen","23"]
["Spain","ES","Leon","24"]
["Spain","ES","Lerida","25"]
["Spain","ES","La Rioja","26"]
["Spain","ES","Lugo","27"]
["Spain","ES","Madrid","28"]
["Spain","ES","Malaga","29"]
["Spain","ES","Murcia","30"]
["Spain","ES","Navarra","31"]
["Spain","ES","Orense","32"]
["Spain","ES","Asturias","33"]
["Spain","ES","Palencia","34"]
["Spain","ES","Las Palmas","35"]
["Spain","ES","Pontevedra","36"]
["Spain","ES","Salamanca","37"]
["Spain","ES","Sta. Cruz Tenerife","38"]
["Spain","ES","Cantabria","39"]
["Spain","ES","Segovia","40"]
["Spain","ES","Sevilla","41"]
["Spain","ES","Soria","42"]
["Spain","ES","Tarragona","43"]
["Spain","ES","Teruel","44"]
["Spain","ES","Toledo","45"]
["Spain","ES","Valencia","46"]
["Spain","ES","Valladolid","47"]
["Spain","ES","Vizcaya","48"]
["Spain","ES","Zamora","49"]
["Spain","ES","Zaragoza","50"]
["Finland","FI","Ahvenanmaa","001"]
["Finland","FI","Southern Finnland","002"]
["Finland","FI","Eastern Finnland","003"]
["Finland","FI","Lappi","004"]
["Finland","FI","Western Finnland","005"]
["Finland","FI","Oulu","006"]
["France","FR","Ain","01"]
["France","FR","Aisne","02"]
["France","FR","Allier","03"]
["France","FR","Alpes (Hte-Provence)","04"]
["France","FR","Alpes (Hautes)","05"]
["France","FR","Alpes-Maritimes","06"]
["France","FR","Ardeche","07"]
["France","FR","Ardennes","08"]
["France","FR","Ariege","09"]
["France","FR","Aube","10"]
["France","FR","Aude","11"]
["France","FR","Aveyron","12"]
["France","FR","Bouches-du-Rhone","13"]
["France","FR","Calvados","14"]
["France","FR","Cantal","15"]
["France","FR","Charente","16"]
["France","FR","Charente-Maritime","17"]
["France","FR","Cher","18"]
["France","FR","Correze","19"]
["France","FR","Cote-d'Or","21"]
["France","FR","Cotes-d'Armor","22"]
["France","FR","Creuse","23"]
["France","FR","Dordogne","24"]
["France","FR","Doubs","25"]
["France","FR","Drome","26"]
["France","FR","Eure","27"]
["France","FR","Eure-et-Loir","28"]
["France","FR","Finistere","29"]
["France","FR","Corse-du-Sud","2A"]
["France","FR","Corse-du-Nord","2B"]
["France","FR","Gard","30"]
["France","FR","Garonne (Haute)","31"]
["France","FR","Gers","32"]
["France","FR","Gironde","33"]
["France","FR","Herault","34"]
["France","FR","Ille-et-Vilaine","35"]
["France","FR","Indre","36"]
["France","FR","Indre-et-Loire","37"]
["France","FR","Isere","38"]
["France","FR","Jura","39"]
["France","FR","Landes","40"]
["France","FR","Loir-et-Cher","41"]
["France","FR","Loire","42"]
["France","FR","Loire (Haute)","43"]
["France","FR","Loire-Atlantique","44"]
["France","FR","Loiret","45"]
["France","FR","Lot","46"]
["France","FR","Lot-et-Garonne","47"]
["France","FR","Lozere","48"]
["France","FR","Maine-et-Loire","49"]
["France","FR","Manche","50"]
["France","FR","Marne","51"]
["France","FR","Marne (Haute)","52"]
["France","FR","Mayenne","53"]
["France","FR","Meurthe-et-Moselle","54"]
["France","FR","Meuse","55"]
["France","FR","Morbihan","56"]
["France","FR","Moselle","57"]
["France","FR","Nievre","58"]
["France","FR","Nord","59"]
["France","FR","Oise","60"]
["France","FR","Orne","61"]
["France","FR","Pas-de-Calais","62"]
["France","FR","Puy-de-Dome","63"]
["France","FR","Pyrenees-Atlantiques","64"]
["France","FR","Pyrenees (Hautes)","65"]
["France","FR","Pyrenees-Orientales","66"]
["France","FR","Bas-Rhin","67"]
["France","FR","Haut-Rhin","68"]
["France","FR","Rhone","69"]
["France","FR","Saone (Haute)","70"]
["France","FR","Saone-et-Loire","71"]
["France","FR","Sarthe","72"]
["France","FR","Savoie","73"]
["France","FR","Savoie (Haute)","74"]
["France","FR","Paris","75"]
["France","FR","Seine-Maritime","76"]
["France","FR","Seine-et-Marne","77"]
["France","FR","Yvelines","78"]
["France","FR","Sevres (Deux)","79"]
["France","FR","Somme","80"]
["France","FR","Tarn","81"]
["France","FR","Tarn-et-Garonne","82"]
["France","FR","Var","83"]
["France","FR","Vaucluse","84"]
["France","FR","Vendee","85"]
["France","FR","Vienne","86"]
["France","FR","Vienne (Haute)","87"]
["France","FR","Vosges","88"]
["France","FR","Yonne","89"]
["France","FR","Territ.-de-Belfort","90"]
["France","FR","Essonne","91"]
["France","FR","Hauts-de-Seine","92"]
["France","FR","Seine-Saint-Denis","93"]
["France","FR","Val-de-Marne","94"]
["France","FR","Val-d'Oise","95"]
["France","FR","D.O.M.-T.O.M.","97"]
["France","FR","Guadeloupe","971"]
["France","FR","Martinique","972"]
["France","FR","Guyane","973"]
["France","FR","Reunion","974"]
["France","FR","Saint-Pierre-et-Miq.","975"]
["France","FR","Wallis-et-Futuna","976"]
["France","FR","Hors-France","99"]
["United Kingdom","GB","Aberdeenshire","AB"]
["United Kingdom","GB","Argyllshire","AG"]
["United Kingdom","GB","Anglesey","AL"]
["United Kingdom","GB","Armagh","AM"]
["United Kingdom","GB","Angus/Forfarshire","AN"]
["United Kingdom","GB","Antrim","AT"]
["United Kingdom","GB","Ayrshire","AY"]
["United Kingdom","GB","Bedfordshire","BE"]
["United Kingdom","GB","Banffshire","BF"]
["United Kingdom","GB","Berkshire","BK"]
["United Kingdom","GB","Brecknockshire","BR"]
["United Kingdom","GB","Bath&NthEstSomerset","BS"]
["United Kingdom","GB","Buteshire","BT"]
["United Kingdom","GB","Buckinghamshire","BU"]
["United Kingdom","GB","Berwickshire","BW"]
["United Kingdom","GB","Cambridgeshire","CA"]
["United Kingdom","GB","Carmarthenshire","CB"]
["United Kingdom","GB","Cardiganshire","CD"]
["United Kingdom","GB","Caernarfonshire","CF"]
["United Kingdom","GB","Cheshire","CH"]
["United Kingdom","GB","Cromartyshire","CM"]
["United Kingdom","GB","Clackmannanshire","CN"]
["United Kingdom","GB","Cornwall","CO"]
["United Kingdom","GB","Caithness","CT"]
["United Kingdom","GB","Cumberland","CU"]
["United Kingdom","GB","Derbyshire","DB"]
["United Kingdom","GB","Denbighshire","DD"]
["United Kingdom","GB","Dumfriesshire","DF"]
["United Kingdom","GB","Down","DN"]
["United Kingdom","GB","Dorset","DO"]
["United Kingdom","GB","Dunbartonshire","DT"]
["United Kingdom","GB","Durham","DU"]
["United Kingdom","GB","Devon","DV"]
["United Kingdom","GB","East Lothian","EL"]
["United Kingdom","GB","Essex","ES"]
["United Kingdom","GB","Fife","FI"]
["United Kingdom","GB","Flintshire","FL"]
["United Kingdom","GB","Fermanagh","FM"]
["United Kingdom","GB","Gloucestershire","GL"]
["United Kingdom","GB","Hampshire","HA"]
["United Kingdom","GB","Hertfordshire","HT"]
["United Kingdom","GB","Huntingdonshire","HU"]
["United Kingdom","GB","Hereford and Worcs.","HW"]
["United Kingdom","GB","Invernesshire","IN"]
["United Kingdom","GB","Isle of Wight","IW"]
["United Kingdom","GB","Kent","KE"]
["United Kingdom","GB","Kincardineshire","KI"]
["United Kingdom","GB","Kirkcudbrightshire","KK"]
["United Kingdom","GB","Kinross-shire","KN"]
["United Kingdom","GB","Lancashire","LA"]
["United Kingdom","GB","Londonderry","LD"]
["United Kingdom","GB","Leicestershire","LE"]
["United Kingdom","GB","Lincolnshire","LI"]
["United Kingdom","GB","Lanarkshire","LN"]
["United Kingdom","GB","Midlothian","MD"]
["United Kingdom","GB","Merioneth","ME"]
["United Kingdom","GB","Mid Glamorgan","MG"]
["United Kingdom","GB","Monmouthshire","MM"]
["United Kingdom","GB","Morayshire","MR"]
["United Kingdom","GB","Montgomeryshire","MT"]
["United Kingdom","GB","Middlesex","MX"]
["United Kingdom","GB","Northamptonshire","NH"]
["United Kingdom","GB","Norfolk","NK"]
["United Kingdom","GB","Nairnshire","NR"]
["United Kingdom","GB","Nottinghamshire","NT"]
["United Kingdom","GB","Northumberland","NU"]
["United Kingdom","GB","Orkney","OR"]
["United Kingdom","GB","Oxfordshire","OX"]
["United Kingdom","GB","Peeblesshire","PE"]
["United Kingdom","GB","Pembrokeshire","PM"]
["United Kingdom","GB","Perthshire","PR"]
["United Kingdom","GB","Radnorshire","RA"]
["United Kingdom","GB","Renfrewshire","RE"]
["United Kingdom","GB","Ross-shire","RO"]
["United Kingdom","GB","Rutland","RU"]
["United Kingdom","GB","Roxburghshire","RX"]
["United Kingdom","GB","East Sussex","SE"]
["United Kingdom","GB","Selkirkshire","SF"]
["United Kingdom","GB","South Glamorgan","SG"]
["United Kingdom","GB","Shropshire","SH"]
["United Kingdom","GB","Suffolk","SK"]
["United Kingdom","GB","Shetland","SL"]
["United Kingdom","GB","Somerset","SO"]
["United Kingdom","GB","Staffordshire","ST"]
["United Kingdom","GB","Sutherland","SU"]
["United Kingdom","GB","Stirlingshire","SV"]
["United Kingdom","GB","West Sussex","SW"]
["United Kingdom","GB","Surrey","SY"]
["United Kingdom","GB","Tyrone","TY"]
["United Kingdom","GB","Warwickshire","WA"]
["United Kingdom","GB","Worcestershire","WC"]
["United Kingdom","GB","Westmorland","WE"]
["United Kingdom","GB","West Glamorgan","WG"]
["United Kingdom","GB","Wiltshire","WI"]
["United Kingdom","GB","West Lothian","WK"]
["United Kingdom","GB","Wigtownshire","WT"]
["United Kingdom","GB","North Yorkshire","YN"]
["United Kingdom","GB","South Yorkshire","YS"]
["United Kingdom","GB","West Yorkshire","YW"]
["Greece","GR","Aitolia kai Akarnan.","01"]
["Greece","GR","Akhaia","02"]
["Greece","GR","Argolis","03"]
["Greece","GR","Arkadhia","04"]
["Greece","GR","Arta","05"]
["Greece","GR","Attiki","06"]
["Greece","GR","Dhodhekanisos","07"]
["Greece","GR","Dhrama","08"]
["Greece","GR","Evritania","09"]
["Greece","GR","Evros","10"]
["Greece","GR","Evvoia","11"]
["Greece","GR","Florina","12"]
["Greece","GR","Fokis","13"]
["Greece","GR","Fthiotis","14"]
["Greece","GR","Grevena","15"]
["Greece","GR","Ilia","16"]
["Greece","GR","Imathia","17"]
["Greece","GR","Ioannina","18"]
["Greece","GR","Iraklion","19"]
["Greece","GR","Kardhitsa","20"]
["Greece","GR","Kastoria","21"]
["Greece","GR","Kavala","22"]
["Greece","GR","Kefallinia","23"]
["Greece","GR","Kerkira","24"]
["Greece","GR","Khalkidhiki","25"]
["Greece","GR","Khania","26"]
["Greece","GR","Khios","27"]
["Greece","GR","Kikladhes","28"]
["Greece","GR","Kilkis","29"]
["Greece","GR","Korinthia","30"]
["Greece","GR","Kozani","31"]
["Greece","GR","Lakonia","32"]
["Greece","GR","Larisa","33"]
["Greece","GR","Lasithi","34"]
["Greece","GR","Lesvos","35"]
["Greece","GR","Levkas","36"]
["Greece","GR","Magnisia","37"]
["Greece","GR","Messinia","38"]
["Greece","GR","Pella","39"]
["Greece","GR","Pieria","40"]
["Greece","GR","Piraievs","41"]
["Greece","GR","Preveza","42"]
["Greece","GR","Rethimni","43"]
["Greece","GR","Rodhopi","44"]
["Greece","GR","Samos","45"]
["Greece","GR","Serrai","46"]
["Greece","GR","Thesprotia","47"]
["Greece","GR","Thessaloniki","48"]
["Greece","GR","Trikala","49"]
["Greece","GR","Voiotia","50"]
["Greece","GR","Xanthi","51"]
["Greece","GR","Zakinthos","52"]
["Hong Kong","HK","Hong Kong Island","HK"]
["Hong Kong","HK","Kowloon","KLN"]
["Hong Kong","HK","New Territories","NT"]
["Croatia","HR","Zagrebacka","A00"]
["Croatia","HR","Krapinsko-zagorska","B00"]
["Croatia","HR","Sisacko-moslavacka","C00"]
["Croatia","HR","Karlovacka","D00"]
["Croatia","HR","Varazdinska","E00"]
["Croatia","HR","Koprivnicko-krizevac","F00"]
["Croatia","HR","Bjelovarsko-bilogors","G00"]
["Croatia","HR","Rijecko-goranska","H00"]
["Croatia","HR","Licko-senjska","I00"]
["Croatia","HR","Viroviticko-podravac","J00"]
["Croatia","HR","Pozesko-slavonska","K00"]
["Croatia","HR","Slavonskobrodska","L00"]
["Croatia","HR","Zadarska","M00"]
["Croatia","HR","Osjecko-baranjska","N00"]
["Croatia","HR","Sibensko-kninska","O00"]
["Croatia","HR","Vukovarsko-srijemska","P00"]
["Croatia","HR","Splitsko-dalmatinska","R00"]
["Croatia","HR","Istarska","S00"]
["Croatia","HR","Dubrovacko-neretvans","T00"]
["Croatia","HR","Medjimurska","U00"]
["Croatia","HR","Zagreb","V00"]
["Hungary","HU","Bacs-Kiskun","01"]
["Hungary","HU","Baranya","02"]
["Hungary","HU","Bekes","03"]
["Hungary","HU","Bekescsaba","04"]
["Hungary","HU","Borsod-Abauj-Zemplen","05"]
["Hungary","HU","Budapest","06"]
["Hungary","HU","Csongrad","07"]
["Hungary","HU","Debrecen","08"]
["Hungary","HU","Dunaujvaros","09"]
["Hungary","HU","Eger","10"]
["Hungary","HU","Fejer","11"]
["Hungary","HU","Gyor","12"]
["Hungary","HU","Gyor-Moson-Sopron","13"]
["Hungary","HU","Hajdu-Bihar","14"]
["Hungary","HU","Heves","15"]
["Hungary","HU","Hodmezovasarhely","16"]
["Hungary","HU","Jasz-Nagykun-Szolnok","17"]
["Hungary","HU","Kaposvar","18"]
["Hungary","HU","Kecskemet","19"]
["Hungary","HU","Komarom-Esztergom","20"]
["Hungary","HU","Miskolc","21"]
["Hungary","HU","Nagykanizsa","22"]
["Hungary","HU","Nograd","23"]
["Hungary","HU","Nyiregyhaza","24"]
["Hungary","HU","Pecs","25"]
["Hungary","HU","Pest","26"]
["Hungary","HU","Somogy","27"]
["Hungary","HU","Sopron","28"]
["Hungary","HU","Szabolcs-Szat.-Bereg","29"]
["Hungary","HU","Szeged","30"]
["Hungary","HU","Szekesfehervar","31"]
["Hungary","HU","Szolnok","32"]
["Hungary","HU","Szombathely","33"]
["Hungary","HU","Tatabanya","34"]
["Hungary","HU","Tolna","35"]
["Hungary","HU","Vas","36"]
["Hungary","HU","Veszprem","37"]
["Hungary","HU","Zala","38"]
["Hungary","HU","Zalaegerszeg","39"]
["Indonesia","ID","DKI Jakarta Jakarta","01"]
["Indonesia","ID","Jawa Barat West Java","02"]
["Indonesia","ID","Jawa Tengah Central","03"]
["Indonesia","ID","Jawa Timur East Java","04"]
["Indonesia","ID","DI Yogyakarta Yogyak","05"]
["Indonesia","ID","DI Aceh Aceh","06"]
["Indonesia","ID","Sumatera Utara North","07"]
["Indonesia","ID","Sumatera Barat West","08"]
["Indonesia","ID","Riau Riau","09"]
["Indonesia","ID","Jambi Jambi","10"]
["Indonesia","ID","Sumatera Selatan Sou","11"]
["Indonesia","ID","Bengkulu Bengkulu","12"]
["Indonesia","ID","Lampung Lampung","13"]
["Indonesia","ID","Kalimantan Selatan S","14"]
["Indonesia","ID","Kalimantan Barat Wes","15"]
["Indonesia","ID","Kalimantan Tengah Ce","16"]
["Indonesia","ID","Kalimantan Timur Eas","17"]
["Indonesia","ID","Sulawesi Selatan Sou","18"]
["Indonesia","ID","Sulawesi Tenggara So","19"]
["Indonesia","ID","Sulawesi Tengah Cent","20"]
["Indonesia","ID","Sulawesi Utara North","21"]
["Indonesia","ID","Bali Bali","22"]
["Indonesia","ID","Nusa Tenggara Barat","23"]
["Indonesia","ID","Nusa Tenggara Timur","24"]
["Indonesia","ID","Maluku Maluku","25"]
["Indonesia","ID","Irian Jaya Irian Jay","26"]
["Indonesia","ID","Timor Timur East Tim","27"]
["Ireland","IE","Cork","C"]
["Ireland","IE","Clare","CE"]
["Ireland","IE","Cavan","CN"]
["Ireland","IE","Carlow","CW"]
["Ireland","IE","Dublin","D"]
["Ireland","IE","Donegal","DL"]
["Ireland","IE","Galway","G"]
["Ireland","IE","Kildare","KE"]
["Ireland","IE","Kilkenny","KK"]
["Ireland","IE","Kerry","KY"]
["Ireland","IE","Longford","LD"]
["Ireland","IE","Louth","LH"]
["Ireland","IE","Limerick","LK"]
["Ireland","IE","Leitrim","LM"]
["Ireland","IE","Laois","LS"]
["Ireland","IE","Meath","MH"]
["Ireland","IE","Monaghan","MN"]
["Ireland","IE","Mayo","MO"]
["Ireland","IE","Offaly","OY"]
["Ireland","IE","Roscommon","RN"]
["Ireland","IE","Sligo","SO"]
["Ireland","IE","Tipperary","TA"]
["Ireland","IE","Waterford","WD"]
["Ireland","IE","Westmeath","WH"]
["Ireland","IE","Wicklow","WW"]
["Ireland","IE","Wexford","WX"]
["Israel","IL","Central","01"]
["Israel","IL","Haifa","02"]
["Israel","IL","Jerusalem","03"]
["Israel","IL","Northern","04"]
["Israel","IL","Southern","05"]
["Israel","IL","Tel Aviv","06"]
["India","IN","Andhra Pradesh","01"]
["India","IN","Arunachal Pradesh","02"]
["India","IN","Assam","03"]
["India","IN","Bihar","04"]
["India","IN","Goa","05"]
["India","IN","Gujarat","06"]
["India","IN","Haryana","07"]
["India","IN","Himachal Pradesh","08"]
["India","IN","Jammu and Kashmir","09"]
["India","IN","Karnataka","10"]
["India","IN","Kerala","11"]
["India","IN","Madhya Pradesh","12"]
["India","IN","Maharashtra","13"]
["India","IN","Manipur","14"]
["India","IN","Meghalaya","15"]
["India","IN","Mizoram","16"]
["India","IN","Nagaland","17"]
["India","IN","Orissa","18"]
["India","IN","Punjab","19"]
["India","IN","Rajasthan","20"]
["India","IN","Sikkim","21"]
["India","IN","Tamil Nadu","22"]
["India","IN","Tripura","23"]
["India","IN","Uttar Pradesh","24"]
["India","IN","West Bengal","25"]
["India","IN","Andaman and Nico.Is.","26"]
["India","IN","Chandigarh","27"]
["India","IN","Dadra and Nagar Hav.","28"]
["India","IN","Daman and Diu","29"]
["India","IN","Delhi","30"]
["India","IN","Lakshadweep","31"]
["India","IN","Puducherry","32"]
["India","IN","Chhattisgarh","33"]
["India","IN","Jharkhand","34"]
["India","IN","Uttarakhand","35"]
["Italy","IT","Agriento","AG"]
["Italy","IT","Alessandria","AL"]
["Italy","IT","Ancona","AN"]
["Italy","IT","Aosta","AO"]
["Italy","IT","Ascoli Piceno","AP"]
["Italy","IT","L'Aquila","AQ"]
["Italy","IT","Arezzo","AR"]
["Italy","IT","Asti","AT"]
["Italy","IT","Avellino","AV"]
["Italy","IT","Bari","BA"]
["Italy","IT","Bergamo","BG"]
["Italy","IT","Biella","BI"]
["Italy","IT","Belluno","BL"]
["Italy","IT","Benevento","BN"]
["Italy","IT","Bologna","BO"]
["Italy","IT","Brindisi","BR"]
["Italy","IT","Brescia","BS"]
["Italy","IT","Barletta Andria Tran","BT"]
["Italy","IT","Bolzano","BZ"]
["Italy","IT","Cagliari","CA"]
["Italy","IT","Campobasso","CB"]
["Italy","IT","Caserta","CE"]
["Italy","IT","Chieti","CH"]
["Italy","IT","Carbonia-Iglesias","CI"]
["Italy","IT","Caltanisetta","CL"]
["Italy","IT","Cuneo","CN"]
["Italy","IT","Como","CO"]
["Italy","IT","Cremona","CR"]
["Italy","IT","Cosenza","CS"]
["Italy","IT","Catania","CT"]
["Italy","IT","Catanzaro","CZ"]
["Italy","IT","Stati Esteri","EE"]
["Italy","IT","Enna","EN"]
["Italy","IT","Forli/Cesana","FC"]
["Italy","IT","Ferrara","FE"]
["Italy","IT","Foggia","FG"]
["Italy","IT","Florence","FI"]
["Italy","IT","Fermo","FM"]
["Italy","IT","Frosinone","FR"]
["Italy","IT","Fiume","FU"]
["Italy","IT","Genova","GE"]
["Italy","IT","Gorizia","GO"]
["Italy","IT","Grosseto","GR"]
["Italy","IT","Imperia","IM"]
["Italy","IT","Isernia","IS"]
["Italy","IT","Crotone","KR"]
["Italy","IT","Lecco","LC"]
["Italy","IT","Lecce","LE"]
["Italy","IT","Livorno","LI"]
["Italy","IT","Lodi","LO"]
["Italy","IT","Latina","LT"]
["Italy","IT","Lucca","LU"]
["Italy","IT","Monza e Brianza","MB"]
["Italy","IT","Macerata","MC"]
["Italy","IT","Messina","ME"]
["Italy","IT","Milan","MI"]
["Italy","IT","Mantova","MN"]
["Italy","IT","Modena","MO"]
["Italy","IT","Massa Carrara","MS"]
["Italy","IT","Matera","MT"]
["Italy","IT","Naples","NA"]
["Italy","IT","Novara","NO"]
["Italy","IT","Nuoro","NU"]
["Italy","IT","Ogliastra","OG"]
["Italy","IT","Oristano","OR"]
["Italy","IT","Olbia-Tempio","OT"]
["Italy","IT","Palermo","PA"]
["Italy","IT","Piacenza","PC"]
["Italy","IT","Padova","PD"]
["Italy","IT","Pescara","PE"]
["Italy","IT","Perugia","PG"]
["Italy","IT","Pisa","PI"]
["Italy","IT","Pola","PL"]
["Italy","IT","Pordenone","PN"]
["Italy","IT","Prato","PO"]
["Italy","IT","Parma","PR"]
["Italy","IT","Pistoia","PT"]
["Italy","IT","Pesaro-Urbino","PU"]
["Italy","IT","Pavia","PV"]
["Italy","IT","Potenza","PZ"]
["Italy","IT","Ravenna","RA"]
["Italy","IT","Reggio Calabria","RC"]
["Italy","IT","Reggio Emilia","RE"]
["Italy","IT","Ragusa","RG"]
["Italy","IT","Rieti","RI"]
["Italy","IT","Rome","RM"]
["Italy","IT","Rimini","RN"]
["Italy","IT","Rovigo","RO"]
["Italy","IT","Salerno","SA"]
["Italy","IT","Siena","SI"]
["Italy","IT","Sondrio","SO"]
["Italy","IT","La Spezia","SP"]
["Italy","IT","Siracusa","SR"]
["Italy","IT","Sassari","SS"]
["Italy","IT","Savona","SV"]
["Italy","IT","Taranto","TA"]
["Italy","IT","Teramo","TE"]
["Italy","IT","Trento","TN"]
["Italy","IT","Turin","TO"]
["Italy","IT","Trapani","TP"]
["Italy","IT","Terni","TR"]
["Italy","IT","Trieste","TS"]
["Italy","IT","Treviso","TV"]
["Italy","IT","Udine","UD"]
["Italy","IT","Varese","VA"]
["Italy","IT","Verbania","VB"]
["Italy","IT","Vercelli","VC"]
["Italy","IT","Venice","VE"]
["Italy","IT","Vicenza","VI"]
["Italy","IT","Verona","VR"]
["Italy","IT","Medio Campidano","VS"]
["Italy","IT","Viterbo","VT"]
["Italy","IT","Vibo Valentia","VV"]
["Italy","IT","Zara","ZA"]
["Japan","JP","Hokkaido","01"]
["Japan","JP","Aomori","02"]
["Japan","JP","Iwate","03"]
["Japan","JP","Miyagi","04"]
["Japan","JP","Akita","05"]
["Japan","JP","Yamagata","06"]
["Japan","JP","Fukushima","07"]
["Japan","JP","Ibaraki","08"]
["Japan","JP","Tochigi","09"]
["Japan","JP","Gunma","10"]
["Japan","JP","Saitama","11"]
["Japan","JP","Chiba","12"]
["Japan","JP","Tokyo","13"]
["Japan","JP","Kanagawa","14"]
["Japan","JP","Niigata","15"]
["Japan","JP","Toyama","16"]
["Japan","JP","Ishikawa","17"]
["Japan","JP","Fukui","18"]
["Japan","JP","Yamanashi","19"]
["Japan","JP","Nagano","20"]
["Japan","JP","Gifu","21"]
["Japan","JP","Shizuoka","22"]
["Japan","JP","Aichi","23"]
["Japan","JP","Mie","24"]
["Japan","JP","Shiga","25"]
["Japan","JP","Kyoto","26"]
["Japan","JP","Osaka","27"]
["Japan","JP","Hyogo","28"]
["Japan","JP","Nara","29"]
["Japan","JP","Wakayama","30"]
["Japan","JP","Tottori","31"]
["Japan","JP","Shimane","32"]
["Japan","JP","Okayama","33"]
["Japan","JP","Hiroshima","34"]
["Japan","JP","Yamaguchi","35"]
["Japan","JP","Tokushima","36"]
["Japan","JP","Kagawa","37"]
["Japan","JP","Ehime","38"]
["Japan","JP","Kochi","39"]
["Japan","JP","Fukuoka","40"]
["Japan","JP","Saga","41"]
["Japan","JP","Nagasaki","42"]
["Japan","JP","Kumamoto","43"]
["Japan","JP","Oita","44"]
["Japan","JP","Miyazaki","45"]
["Japan","JP","Kagoshima","46"]
["Japan","JP","Okinawa","47"]
["South Korea","KR","Cheju-do","01"]
["South Korea","KR","Cholla-bukto","02"]
["South Korea","KR","Cholla-namdo","03"]
["South Korea","KR","Ch´ungch´ong-bukto","04"]
["South Korea","KR","Ch´ungch´ong-namdo","05"]
["South Korea","KR","Inch´on-jikhalsi","06"]
["South Korea","KR","Kangwon-do","07"]
["South Korea","KR","Kwangju-jikhalsi","08"]
["South Korea","KR","Kyonggi-do","09"]
["South Korea","KR","Kyongsang-bukto","10"]
["South Korea","KR","Kyongsang-namdo","11"]
["South Korea","KR","Pusan-jikhalsi","12"]
["South Korea","KR","Soul-t´ukpyolsi","13"]
["South Korea","KR","Taegu-jikhalsi","14"]
["South Korea","KR","Taejon-jikhalsi","15"]
["South Korea","KR","Ulsan","16"]
["South Korea","KR","Sejong","17"]
["Kuwait","KW","Kuwait City","KW"]
["Kazakhstan","KZ","Almatynskaia","00"]
["Kazakhstan","KZ","Kostanaiskaia","01"]
["Kazakhstan","KZ","Severo-Kazakhstansk","02"]
["Kazakhstan","KZ","Pavlodarskaia","03"]
["Kazakhstan","KZ","Akmolinskaia","04"]
["Kazakhstan","KZ","Aktubinskaia","05"]
["Kazakhstan","KZ","Atyrauskaia","06"]
["Kazakhstan","KZ","Zapadno-Kazakhst","07"]
["Kazakhstan","KZ","Mangystayskaia","08"]
["Kazakhstan","KZ","Karagandinskaia","09"]
["Kazakhstan","KZ","Vostochno-Kazakhstan","10"]
["Kazakhstan","KZ","Gambilskaia","11"]
["Kazakhstan","KZ","Kyzilordinskaia","12"]
["Sri Lanka","LK","Central Province","01"]
["Sri Lanka","LK","Eastern Province","02"]
["Sri Lanka","LK","Northern Province","03"]
["Sri Lanka","LK","Western Province","04"]
["Sri Lanka","LK","Southern Province","05"]
["Sri Lanka","LK","North Western Provin","06"]
["Sri Lanka","LK","North Central Provin","07"]
["Sri Lanka","LK","Uva Province","08"]
["Sri Lanka","LK","Sabaragamuwa Provinc","09"]
["Mexico","MX","Aguascalientes","AGS"]
["Mexico","MX","Baja California","BC"]
["Mexico","MX","Baja California S","BCS"]
["Mexico","MX","Chihuahua","CHI"]
["Mexico","MX","Chiapas","CHS"]
["Mexico","MX","Campeche","CMP"]
["Mexico","MX","Coahuila","COA"]
["Mexico","MX","Colima","COL"]
["Mexico","MX","Distrito Federal","DF"]
["Mexico","MX","Durango","DGO"]
["Mexico","MX","Guerrero","GRO"]
["Mexico","MX","Guanajuato","GTO"]
["Mexico","MX","Hidalgo","HGO"]
["Mexico","MX","Jalisco","JAL"]
["Mexico","MX","Michoacan","MCH"]
["Mexico","MX","Estado de Mexico","MEX"]
["Mexico","MX","Morelos","MOR"]
["Mexico","MX","Nayarit","NAY"]
["Mexico","MX","Nuevo Leon","NL"]
["Mexico","MX","Oaxaca","OAX"]
["Mexico","MX","Puebla","PUE"]
["Mexico","MX","Quintana Roo","QR"]
["Mexico","MX","Queretaro","QRO"]
["Mexico","MX","Sinaloa","SIN"]
["Mexico","MX","San Luis Potosi","SLP"]
["Mexico","MX","Sonora","SON"]
["Mexico","MX","Tabasco","TAB"]
["Mexico","MX","Tlaxcala","TLX"]
["Mexico","MX","Tamaulipas","TMS"]
["Mexico","MX","Veracruz","VER"]
["Mexico","MX","Yucatan","YUC"]
["Mexico","MX","Zacatecas","ZAC"]
["Malaysia","MY","Johor","JOH"]
["Malaysia","MY","Kedah","KED"]
["Malaysia","MY","Kelantan","KEL"]
["Malaysia","MY","Kuala Lumpur","KUL"]
["Malaysia","MY","Labuan","LAB"]
["Malaysia","MY","Melaka","MEL"]
["Malaysia","MY","Pahang","PAH"]
["Malaysia","MY","Perlis","PEL"]
["Malaysia","MY","Perak","PER"]
["Malaysia","MY","Pulau Pinang","PIN"]
["Malaysia","MY","Wil. Persekutuan","PSK"]
["Malaysia","MY","Sabah","SAB"]
["Malaysia","MY","Sarawak","SAR"]
["Malaysia","MY","Selangor","SEL"]
["Malaysia","MY","Negeri Sembilan","SER"]
["Malaysia","MY","Trengganu","TRE"]
["Netherlands","NL","Drenthe","01"]
["Netherlands","NL","Flevoland","02"]
["Netherlands","NL","Friesland","03"]
["Netherlands","NL","Gelderland","04"]
["Netherlands","NL","Groningen","05"]
["Netherlands","NL","Limburg","06"]
["Netherlands","NL","Noord-Brabant","07"]
["Netherlands","NL","Noord-Holland","08"]
["Netherlands","NL","Overijssel","09"]
["Netherlands","NL","Utrecht","10"]
["Netherlands","NL","Zeeland","11"]
["Netherlands","NL","Zuid-Holland","12"]
["Norway","NO","Ostfold County","01"]
["Norway","NO","Akershus County","02"]
["Norway","NO","Oslo","03"]
["Norway","NO","Hedmark County","04"]
["Norway","NO","Oppland County","05"]
["Norway","NO","Buskerud County","06"]
["Norway","NO","Vestfold County","07"]
["Norway","NO","Telemark County","08"]
["Norway","NO","Aust-Agder County","09"]
["Norway","NO","Vest-Agder County","10"]
["Norway","NO","Rogaland County","11"]
["Norway","NO","Hordaland County","12"]
["Norway","NO","Sogn og Fjordane C.","14"]
["Norway","NO","More og Romsdal C.","15"]
["Norway","NO","Sor-Trondelag County","16"]
["Norway","NO","Nord-Trondelag Cnty","17"]
["Norway","NO","Nordland County","18"]
["Norway","NO","Troms County","19"]
["Norway","NO","Finnmark County","20"]
["New Zealand","NZ","Auckland","AKL"]
["New Zealand","NZ","Bay of Plenty","BOP"]
["New Zealand","NZ","Canterbury","CAN"]
["New Zealand","NZ","Hawke´s Bay","HAB"]
["New Zealand","NZ","Manawatu-Wanganui","MAN"]
["New Zealand","NZ","Northland","NTL"]
["New Zealand","NZ","Otago","OTA"]
["New Zealand","NZ","Southland","STL"]
["New Zealand","NZ","Taranaki","TAR"]
["New Zealand","NZ","Waikato","WAI"]
["New Zealand","NZ","West Coast","WEC"]
["New Zealand","NZ","Wellington","WLG"]
["Peru","PE","Tumbes","01"]
["Peru","PE","Piura","02"]
["Peru","PE","Lambayeque","03"]
["Peru","PE","La Libertad","04"]
["Peru","PE","Ancash","05"]
["Peru","PE","Lima y Callao","06"]
["Peru","PE","Ica","07"]
["Peru","PE","Arequipa","08"]
["Peru","PE","Moquegua","09"]
["Peru","PE","Tacna","10"]
["Peru","PE","Amazon","11"]
["Peru","PE","Cajamarca","12"]
["Peru","PE","San Martin","13"]
["Peru","PE","Huanuco","14"]
["Peru","PE","Pasco","15"]
["Peru","PE","Junin","16"]
["Peru","PE","Huancavelica","17"]
["Peru","PE","Ayacucho","18"]
["Peru","PE","Apurimac","19"]
["Peru","PE","Cuzco","20"]
["Peru","PE","Puno","21"]
["Peru","PE","Loreto","22"]
["Peru","PE","Ucayali","23"]
["Peru","PE","Madre de Dios","24"]
["Philippines","PH","Ilocos","01"]
["Philippines","PH","Cagayan Valley","02"]
["Philippines","PH","Central Luzon","03"]
["Philippines","PH","South Luzon","04"]
["Philippines","PH","Bicol","05"]
["Philippines","PH","West Visayas","06"]
["Philippines","PH","Central Visayas","07"]
["Philippines","PH","Eastern Visayas","08"]
["Philippines","PH","Western Mindanao","09"]
["Philippines","PH","Northern Mindanao","10"]
["Philippines","PH","Central Mindanao","11"]
["Philippines","PH","South Mindanao","12"]
["Poland","PL","Dolnoslaskie","DSL"]
["Poland","PL","Kujawsko-Pomorskie","K-P"]
["Poland","PL","Lubelskie","LBL"]
["Poland","PL","Lubuskie","LBS"]
["Poland","PL","Lodzkie","LDZ"]
["Poland","PL","Malopolskie","MAL"]
["Poland","PL","Mazowieckie","MAZ"]
["Poland","PL","Opolskie","OPO"]
["Poland","PL","Podkarpackie","PDK"]
["Poland","PL","Podlaskie","PDL"]
["Poland","PL","Pomorskie","POM"]
["Poland","PL","Slaskie","SLS"]
["Poland","PL","Swietokrzyskie","SWK"]
["Poland","PL","Warminsko-mazurskie","W-M"]
["Poland","PL","Wielkopolskie","WLK"]
["Poland","PL","Zachodnio-Pomorskie","Z-P"]
["Portugal","PT","Minho-Lima","10"]
["Portugal","PT","Cavado","11"]
["Portugal","PT","Ave","12"]
["Portugal","PT","Grande Porto","13"]
["Portugal","PT","Tamega","14"]
["Portugal","PT","Entre Douro e Vouga","15"]
["Portugal","PT","Douro","16"]
["Portugal","PT","Alto Tras-os-Montes","17"]
["Portugal","PT","Baixo Vouga","20"]
["Portugal","PT","Baixo Mondego","21"]
["Portugal","PT","Pinhal Litoral","22"]
["Portugal","PT","Pinhal Interior N.","23"]
["Portugal","PT","Pinhal Interior Sul","24"]
["Portugal","PT","Dao-Lafoes","25"]
["Portugal","PT","Serra da Estrela","26"]
["Portugal","PT","Beira Interior Norte","27"]
["Portugal","PT","Beira Interior Sul","28"]
["Portugal","PT","Cova da Beira","29"]
["Portugal","PT","Oeste","30"]
["Portugal","PT","Grande Lisboa","31"]
["Portugal","PT","Peninsula de Setubal","32"]
["Portugal","PT","Medio Tejo","33"]
["Portugal","PT","Leziria do Tejo","34"]
["Portugal","PT","Alentejo Litoral","40"]
["Portugal","PT","Alto Alentejo","41"]
["Portugal","PT","Alentejo Central","42"]
["Portugal","PT","Baixo Alentejo","43"]
["Portugal","PT","Algarve","50"]
["Portugal","PT","Reg. Aut. dos Açores","60"]
["Portugal","PT","Reg. Aut. da Madeira","70"]
["Qatar","QA","Doha","001"]
["Qatar","QA","The north","002"]
["Qatar","QA","The west coast","003"]
["Qatar","QA","The south","004"]
["Romania","RO","Alba","01"]
["Romania","RO","Arad","02"]
["Romania","RO","Arges","03"]
["Romania","RO","Bacau","04"]
["Romania","RO","Bihor","05"]
["Romania","RO","Bistrita-Nasaud","06"]
["Romania","RO","Botosani","07"]
["Romania","RO","Braila","08"]
["Romania","RO","Brasov","09"]
["Romania","RO","Bucuresti","10"]
["Romania","RO","Buzau","11"]
["Romania","RO","Calarasi","12"]
["Romania","RO","Caras-Severin","13"]
["Romania","RO","Cluj","14"]
["Romania","RO","Constanta","15"]
["Romania","RO","Covasna","16"]
["Romania","RO","Dimbovita","17"]
["Romania","RO","Dolj","18"]
["Romania","RO","Galati","19"]
["Romania","RO","Gorj","20"]
["Romania","RO","Giurgiu","21"]
["Romania","RO","Harghita","22"]
["Romania","RO","Hunedoara","23"]
["Romania","RO","Ialomita","24"]
["Romania","RO","Iasi","25"]
["Romania","RO","Ilfov","26"]
["Romania","RO","Maramures","27"]
["Romania","RO","Mehedinti","28"]
["Romania","RO","Mures","29"]
["Romania","RO","Neamt","30"]
["Romania","RO","Olt","31"]
["Romania","RO","Prahova","32"]
["Romania","RO","Salaj","33"]
["Romania","RO","Satu Mare","34"]
["Romania","RO","Sibiu","35"]
["Romania","RO","Suceava","36"]
["Romania","RO","Teleorman","37"]
["Romania","RO","Timis","38"]
["Romania","RO","Tulcea","39"]
["Romania","RO","Vaslui","40"]
["Romania","RO","Vilcea","41"]
["Romania","RO","Vrancea","42"]
["Russian Federation","RU","Adigeja Republic","01"]
["Russian Federation","RU","Highlands-Altay Rep.","02"]
["Russian Federation","RU","Republ.of Bashkortos","03"]
["Russian Federation","RU","Buryat Republic","04"]
["Russian Federation","RU","Dagestan Republic","05"]
["Russian Federation","RU","Ingushetija Republic","06"]
["Russian Federation","RU","Kabardino-Balkar.Rep","07"]
["Russian Federation","RU","Kalmyk Republic","08"]
["Russian Federation","RU","Karach.-Cherkessk Re","09"]
["Russian Federation","RU","Karelian Republic","10"]
["Russian Federation","RU","Komi Republic","11"]
["Russian Federation","RU","Marijskaya Republic","12"]
["Russian Federation","RU","Mordovian Republic","13"]
["Russian Federation","RU","Yakutiya-Saha Rrepub","14"]
["Russian Federation","RU","North-Osetiya Republ","15"]
["Russian Federation","RU","Tatarstan Republic","16"]
["Russian Federation","RU","Tuva Republic","17"]
["Russian Federation","RU","The Udmurt Republic","18"]
["Russian Federation","RU","Chakassky Republic","19"]
["Russian Federation","RU","Chechenskaya Republ.","20"]
["Russian Federation","RU","Chuvash Republic","21"]
["Russian Federation","RU","Altay Territory","22"]
["Russian Federation","RU","Krasnodar Territory","23"]
["Russian Federation","RU","Krasnoyarsk Territor","24"]
["Russian Federation","RU","Primorye Territory","25"]
["Russian Federation","RU","Stavropol Territory","26"]
["Russian Federation","RU","Khabarovsk Territory","27"]
["Russian Federation","RU","The Amur Area","28"]
["Russian Federation","RU","The Arkhangelsk Area","29"]
["Russian Federation","RU","The Astrakhan Area","30"]
["Russian Federation","RU","The Belgorod Area","31"]
["Russian Federation","RU","The Bryansk Area","32"]
["Russian Federation","RU","The Vladimir Area","33"]
["Russian Federation","RU","The Volgograd Area","34"]
["Russian Federation","RU","The Vologda Area","35"]
["Russian Federation","RU","The Voronezh Area","36"]
["Russian Federation","RU","The Ivanovo Area","37"]
["Russian Federation","RU","The Irkutsk Area","38"]
["Russian Federation","RU","The Kaliningrad Area","39"]
["Russian Federation","RU","The Kaluga Area","40"]
["Russian Federation","RU","Kamchatka Territory","41"]
["Russian Federation","RU","The Kemerovo Area","42"]
["Russian Federation","RU","The Kirov Area","43"]
["Russian Federation","RU","The Kostroma Area","44"]
["Russian Federation","RU","The Kurgan Area","45"]
["Russian Federation","RU","The Kursk Area","46"]
["Russian Federation","RU","The Leningrad Area","47"]
["Russian Federation","RU","The Lipetsk Area","48"]
["Russian Federation","RU","The Magadan Area","49"]
["Russian Federation","RU","The Moscow Area","50"]
["Russian Federation","RU","The Murmansk Area","51"]
["Russian Federation","RU","The Nizhniy Novgorod","52"]
["Russian Federation","RU","The Novgorod Area","53"]
["Russian Federation","RU","The Novosibirsk Area","54"]
["Russian Federation","RU","The Omsk Area","55"]
["Russian Federation","RU","The Orenburg Area","56"]
["Russian Federation","RU","The Oryol Area","57"]
["Russian Federation","RU","The Penza Area","58"]
["Russian Federation","RU","Perm Territory","59"]
["Russian Federation","RU","The Pskov Area","60"]
["Russian Federation","RU","The Rostov Area","61"]
["Russian Federation","RU","The Ryazan Area","62"]
["Russian Federation","RU","The Samara Area","63"]
["Russian Federation","RU","The Saratov Area","64"]
["Russian Federation","RU","The Sakhalin Area","65"]
["Russian Federation","RU","The Sverdlovsk Area","66"]
["Russian Federation","RU","The Smolensk Area","67"]
["Russian Federation","RU","The Tambov Area","68"]
["Russian Federation","RU","The Tver Area","69"]
["Russian Federation","RU","The Tomsk Area","70"]
["Russian Federation","RU","The Tula Area","71"]
["Russian Federation","RU","The Tyumen Area","72"]
["Russian Federation","RU","The Ulyanovsk Area","73"]
["Russian Federation","RU","The Chelyabinsk Area","74"]
["Russian Federation","RU","Zabaykalsk Territory","75"]
["Russian Federation","RU","The Yaroslavl Area","76"]
["Russian Federation","RU","c.Moscow","77"]
["Russian Federation","RU","c.St-Peterburg","78"]
["Russian Federation","RU","The Jewish Auton.are","79"]
["Russian Federation","RU","Aginsk Buryat Aut.di","80"]
["Russian Federation","RU","Komy Permjats.Aut.di","81"]
["Russian Federation","RU","Korjacs Auton.distri","82"]
["Russian Federation","RU","Nenekchky Auton.dist","83"]
["Russian Federation","RU","The Taymir Auton.dis","84"]
["Russian Federation","RU","Ust-Ordinsky Buryat","85"]
["Russian Federation","RU","Chanti-Mansyjsky Aut","86"]
["Russian Federation","RU","Chukotka Auton. dist","87"]
["Russian Federation","RU","Evensky Auton.distri","88"]
["Russian Federation","RU","Jamalo-Nenekchky Aut","89"]
["Sweden","SE","Blekinge County","001"]
["Sweden","SE","Dalarnas County","002"]
["Sweden","SE","Gotland County","003"]
["Sweden","SE","Gaevleborg County","004"]
["Sweden","SE","Halland County","005"]
["Sweden","SE","Jaemtland County","006"]
["Sweden","SE","Joenkoeping County","007"]
["Sweden","SE","Kalmar County","008"]
["Sweden","SE","Kronoberg County","009"]
["Sweden","SE","Norrbotten County","010"]
["Sweden","SE","Skaane County","011"]
["Sweden","SE","Stockholm County","012"]
["Sweden","SE","Soedermanland County","013"]
["Sweden","SE","Uppsala County","014"]
["Sweden","SE","Vaermland County","015"]
["Sweden","SE","Vaesterbotten County","016"]
["Sweden","SE","Vaesternorrland Cnty","017"]
["Sweden","SE","Vaestmanland County","018"]
["Sweden","SE","Vaestra Goetaland C.","019"]
["Sweden","SE","Oerebro County","020"]
["Sweden","SE","Oestergoetland Cnty","021"]
["Singapore","SG","Singapore","SG"]
["Slovenia","SI","Ajdov¹èina","001"]
["Slovenia","SI","Beltinci","002"]
["Slovenia","SI","Bled","003"]
["Slovenia","SI","Bohinj","004"]
["Slovenia","SI","Borovnica","005"]
["Slovenia","SI","Bovec","006"]
["Slovenia","SI","Brda","007"]
["Slovenia","SI","Brezovica","008"]
["Slovenia","SI","Bre¾ice","009"]
["Slovenia","SI","Ajdovscina","01"]
["Slovenia","SI","Ti¹ina","010"]
["Slovenia","SI","Celje","011"]
["Slovenia","SI","Cerklje na Gorenjske","012"]
["Slovenia","SI","Cerknica","013"]
["Slovenia","SI","Cerkno","014"]
["Slovenia","SI","Èren¹ovci","015"]
["Slovenia","SI","Èrna na Koro¹kem","016"]
["Slovenia","SI","Èrnomelj","017"]
["Slovenia","SI","Destrnik","018"]
["Slovenia","SI","Divaèa","019"]
["Slovenia","SI","Brezice","02"]
["Slovenia","SI","Dobrepolje","020"]
["Slovenia","SI","Dobrova-Polhov Grade","021"]
["Slovenia","SI","Dol pri Ljubljani","022"]
["Slovenia","SI","Dom¾ale","023"]
["Slovenia","SI","Dornava","024"]
["Slovenia","SI","Dravograd","025"]
["Slovenia","SI","Duplek","026"]
["Slovenia","SI","Gorenja vas-Poljane","027"]
["Slovenia","SI","Gori¹nica","028"]
["Slovenia","SI","Gornja Radgona","029"]
["Slovenia","SI","Celje","03"]
["Slovenia","SI","Gornji Grad","030"]
["Slovenia","SI","Gornji Petrovci","031"]
["Slovenia","SI","Grosuplje","032"]
["Slovenia","SI","©alovci","033"]
["Slovenia","SI","Hrastnik","034"]
["Slovenia","SI","Hrpelje-Kozina","035"]
["Slovenia","SI","Idrija","036"]
["Slovenia","SI","Ig","037"]
["Slovenia","SI","Ilirska Bistrica","038"]
["Slovenia","SI","Ivanèna Gorica","039"]
["Slovenia","SI","Cerknica","04"]
["Slovenia","SI","Izola - Isola","040"]
["Slovenia","SI","Jesenice","041"]
["Slovenia","SI","Jur¹inci","042"]
["Slovenia","SI","Kamnik","043"]
["Slovenia","SI","Kanal","044"]
["Slovenia","SI","Kidrièevo","045"]
["Slovenia","SI","Kobarid","046"]
["Slovenia","SI","Kobilje","047"]
["Slovenia","SI","Koèevje","048"]
["Slovenia","SI","Komen","049"]
["Slovenia","SI","Crnomelj","05"]
["Slovenia","SI","Koper - Capodistria","050"]
["Slovenia","SI","Kozje","051"]
["Slovenia","SI","Kranj","052"]
["Slovenia","SI","Kranjska Gora","053"]
["Slovenia","SI","Kr¹ko","054"]
["Slovenia","SI","Kungota","055"]
["Slovenia","SI","Kuzma","056"]
["Slovenia","SI","La¹ko","057"]
["Slovenia","SI","Lenart","058"]
["Slovenia","SI","Lendava - Lendva","059"]
["Slovenia","SI","Dravograd","06"]
["Slovenia","SI","Litija","060"]
["Slovenia","SI","Ljubljana","061"]
["Slovenia","SI","Ljubno","062"]
["Slovenia","SI","Ljutomer","063"]
["Slovenia","SI","Logatec","064"]
["Slovenia","SI","Lo¹ka dolina","065"]
["Slovenia","SI","Lo¹ki Potok","066"]
["Slovenia","SI","Luèe","067"]
["Slovenia","SI","Lukovica","068"]
["Slovenia","SI","Maj¹perk","069"]
["Slovenia","SI","Gornja Radgona","07"]
["Slovenia","SI","Maribor","070"]
["Slovenia","SI","Medvode","071"]
["Slovenia","SI","Menge¹","072"]
["Slovenia","SI","Metlika","073"]
["Slovenia","SI","Me¾ica","074"]
["Slovenia","SI","Miren-Kostanjevica","075"]
["Slovenia","SI","Mislinja","076"]
["Slovenia","SI","Moravèe","077"]
["Slovenia","SI","Moravske Toplice","078"]
["Slovenia","SI","Mozirje","079"]
["Slovenia","SI","Grosuplje","08"]
["Slovenia","SI","Murska Sobota","080"]
["Slovenia","SI","Muta","081"]
["Slovenia","SI","Naklo","082"]
["Slovenia","SI","Nazarje","083"]
["Slovenia","SI","Nova Gorica","084"]
["Slovenia","SI","Novo mesto","085"]
["Slovenia","SI","Odranci","086"]
["Slovenia","SI","Ormo¾","087"]
["Slovenia","SI","Osilnica","088"]
["Slovenia","SI","Pesnica","089"]
["Slovenia","SI","Hrastnik Lasko","09"]
["Slovenia","SI","Piran - Pirano","090"]
["Slovenia","SI","Pivka","091"]
["Slovenia","SI","Podèetrtek","092"]
["Slovenia","SI","Podvelka","093"]
["Slovenia","SI","Postojna","094"]
["Slovenia","SI","Preddvor","095"]
["Slovenia","SI","Ptuj","096"]
["Slovenia","SI","Puconci","097"]
["Slovenia","SI","Raèe-Fram","098"]
["Slovenia","SI","Radeèe","099"]
["Slovenia","SI","Idrija","10"]
["Slovenia","SI","Radenci","100"]
["Slovenia","SI","Radlje ob Dravi","101"]
["Slovenia","SI","Radovljica","102"]
["Slovenia","SI","Ravne na Koro¹kem","103"]
["Slovenia","SI","Ribnica","104"]
["Slovenia","SI","Roga¹ovci","105"]
["Slovenia","SI","Roga¹ka Slatina","106"]
["Slovenia","SI","Rogatec","107"]
["Slovenia","SI","Ru¹e","108"]
["Slovenia","SI","Semiè","109"]
["Slovenia","SI","Ilirska Bistrica","11"]
["Slovenia","SI","Sevnica","110"]
["Slovenia","SI","Se¾ana","111"]
["Slovenia","SI","Slovenj Gradec","112"]
["Slovenia","SI","Slovenska Bistrica","113"]
["Slovenia","SI","Slovenske Konjice","114"]
["Slovenia","SI","Star¹e","115"]
["Slovenia","SI","Sveti Jurij","116"]
["Slovenia","SI","©enèur","117"]
["Slovenia","SI","©entilj","118"]
["Slovenia","SI","©entjernej","119"]
["Slovenia","SI","Izola","12"]
["Slovenia","SI","©entjur pri Celju","120"]
["Slovenia","SI","©kocjan","121"]
["Slovenia","SI","©kofja Loka","122"]
["Slovenia","SI","©kofljica","123"]
["Slovenia","SI","©marje pri Jel¹ah","124"]
["Slovenia","SI","©martno ob Paki","125"]
["Slovenia","SI","©o¹tanj","126"]
["Slovenia","SI","©tore","127"]
["Slovenia","SI","Tolmin","128"]
["Slovenia","SI","Trbovlje","129"]
["Slovenia","SI","Jesenice","13"]
["Slovenia","SI","Trebnje","130"]
["Slovenia","SI","Tr¾iè","131"]
["Slovenia","SI","Turni¹èe","132"]
["Slovenia","SI","Velenje","133"]
["Slovenia","SI","Velike La¹èe","134"]
["Slovenia","SI","Videm","135"]
["Slovenia","SI","Vipava","136"]
["Slovenia","SI","Vitanje","137"]
["Slovenia","SI","Vodice","138"]
["Slovenia","SI","Vojnik","139"]
["Slovenia","SI","Kamnik","14"]
["Slovenia","SI","Vrhnika","140"]
["Slovenia","SI","Vuzenica","141"]
["Slovenia","SI","Zagorje ob Savi","142"]
["Slovenia","SI","Zavrè","143"]
["Slovenia","SI","Zreèe","144"]
["Slovenia","SI","®elezniki","146"]
["Slovenia","SI","®iri","147"]
["Slovenia","SI","Benedikt","148"]
["Slovenia","SI","Bistrica ob Sotli","149"]
["Slovenia","SI","Kocevje","15"]
["Slovenia","SI","Bloke","150"]
["Slovenia","SI","Braslovèe","151"]
["Slovenia","SI","Cankova","152"]
["Slovenia","SI","Cerkvenjak","153"]
["Slovenia","SI","Dobje","154"]
["Slovenia","SI","Dobrna","155"]
["Slovenia","SI","Dobrovnik - Dobronak","156"]
["Slovenia","SI","Dolenjske Toplice","157"]
["Slovenia","SI","Grad","158"]
["Slovenia","SI","Hajdina","159"]
["Slovenia","SI","Koper","16"]
["Slovenia","SI","Hoèe-Slivnica","160"]
["Slovenia","SI","Hodo¹ - Hodos","161"]
["Slovenia","SI","Horjul","162"]
["Slovenia","SI","Jezersko","163"]
["Slovenia","SI","Komenda","164"]
["Slovenia","SI","Kostel","165"]
["Slovenia","SI","Kri¾evci","166"]
["Slovenia","SI","Lovrenc na Pohorju","167"]
["Slovenia","SI","Markovci","168"]
["Slovenia","SI","Miklav¾ na Dravskem","169"]
["Slovenia","SI","Kranj","17"]
["Slovenia","SI","Mirna Peè","170"]
["Slovenia","SI","Oplotnica","171"]
["Slovenia","SI","Podlehnik","172"]
["Slovenia","SI","Polzela","173"]
["Slovenia","SI","Prebold","174"]
["Slovenia","SI","Prevalje","175"]
["Slovenia","SI","Razkri¾je","176"]
["Slovenia","SI","Ribnica na Pohorju","177"]
["Slovenia","SI","Selnica ob Dravi","178"]
["Slovenia","SI","Sodra¾ica","179"]
["Slovenia","SI","Krsko","18"]
["Slovenia","SI","Solèava","180"]
["Slovenia","SI","Sveta Ana","181"]
["Slovenia","SI","Sveti Andra¾ v Slov.","182"]
["Slovenia","SI","©empeter - Vrtojba","183"]
["Slovenia","SI","Tabor","184"]
["Slovenia","SI","Trnovska vas","185"]
["Slovenia","SI","Trzin","186"]
["Slovenia","SI","Velika Polana","187"]
["Slovenia","SI","Ver¾ej","188"]
["Slovenia","SI","Vransko","189"]
["Slovenia","SI","Lenart","19"]
["Slovenia","SI","®alec","190"]
["Slovenia","SI","®etale","191"]
["Slovenia","SI","®irovnica","192"]
["Slovenia","SI","®u¾emberk","193"]
["Slovenia","SI","Lendava","20"]
["Slovenia","SI","Litija","21"]
["Slovenia","SI","Ljubljana-Bezigrad","22"]
["Slovenia","SI","Ljubljana-Center","23"]
["Slovenia","SI","Ljubljana-Moste-Polj","24"]
["Slovenia","SI","Ljubljana-Siska","25"]
["Slovenia","SI","Ljubljana-Vic-Rudnik","26"]
["Slovenia","SI","Ljutomer","27"]
["Slovenia","SI","Logatec","28"]
["Slovenia","SI","Maribor","29"]
["Slovenia","SI","Metlika","30"]
["Slovenia","SI","Mozirje","31"]
["Slovenia","SI","Murska Sobota","32"]
["Slovenia","SI","Nova Gorica","33"]
["Slovenia","SI","Novo Mesto","34"]
["Slovenia","SI","Ormoz","35"]
["Slovenia","SI","Pesnica","36"]
["Slovenia","SI","Piran","37"]
["Slovenia","SI","Postojna","38"]
["Slovenia","SI","Ptuj","39"]
["Slovenia","SI","Radlje Ob Dravi","40"]
["Slovenia","SI","Radovljica","41"]
["Slovenia","SI","Ravne Na Koroskem","42"]
["Slovenia","SI","Ribnica","43"]
["Slovenia","SI","Ruse","44"]
["Slovenia","SI","Sentjur Pri Celju","45"]
["Slovenia","SI","Sevnica","46"]
["Slovenia","SI","Sezana","47"]
["Slovenia","SI","Skofja Loka","48"]
["Slovenia","SI","Slovenj Gradec","49"]
["Slovenia","SI","Slovenska Bistrica","50"]
["Slovenia","SI","Slovenske Konjice","51"]
["Slovenia","SI","Smarje Pri Jelsah","52"]
["Slovenia","SI","Tolmin","53"]
["Slovenia","SI","Trbovlje","54"]
["Slovenia","SI","Trebnje","55"]
["Slovenia","SI","Trzic","56"]
["Slovenia","SI","Velenje","57"]
["Slovenia","SI","Vrhnika","58"]
["Slovenia","SI","Zagorje Ob Savi","59"]
["Slovenia","SI","Zalec","60"]
["Thailand","TH","Amnat Charoen","01"]
["Thailand","TH","Ang Thong","02"]
["Thailand","TH","Buriram","03"]
["Thailand","TH","Chachoengsao","04"]
["Thailand","TH","Chai Nat","05"]
["Thailand","TH","Chaiyaphum","06"]
["Thailand","TH","Chanthaburi","07"]
["Thailand","TH","Chiang Mai","08"]
["Thailand","TH","Chiang Rai","09"]
["Thailand","TH","Chon Buri","10"]
["Thailand","TH","Chumphon","11"]
["Thailand","TH","Kalasin","12"]
["Thailand","TH","Kamphaeng Phet","13"]
["Thailand","TH","Kanchanaburi","14"]
["Thailand","TH","Khon Kaen","15"]
["Thailand","TH","Krabi","16"]
["Thailand","TH","Krung Thep","17"]
["Thailand","TH","Mahanakhon","18"]
["Thailand","TH","Lampang","19"]
["Thailand","TH","Lamphun","20"]
["Thailand","TH","Loei","21"]
["Thailand","TH","Lop Buri","22"]
["Thailand","TH","Mae Hong Son","23"]
["Thailand","TH","Maha Sarakham","24"]
["Thailand","TH","Mukdahan","25"]
["Thailand","TH","Nakhon Nayok","26"]
["Thailand","TH","Nakhon Pathom","27"]
["Thailand","TH","Nakhon Phanom","28"]
["Thailand","TH","Nakhon Ratchasima","29"]
["Thailand","TH","Nakhon Sawan","30"]
["Thailand","TH","Nakhon Si Thammarat","31"]
["Thailand","TH","Nan","32"]
["Thailand","TH","Narathiwat","33"]
["Thailand","TH","Nong Bua Lamphu","34"]
["Thailand","TH","Nong Khai","35"]
["Thailand","TH","Nonthaburi","36"]
["Thailand","TH","Pathum Thani","37"]
["Thailand","TH","Pattani","38"]
["Thailand","TH","Phangnga","39"]
["Thailand","TH","Phatthalung","40"]
["Thailand","TH","Phayao","41"]
["Thailand","TH","Phetchabun","42"]
["Thailand","TH","Phetchaburi","43"]
["Thailand","TH","Phichit","44"]
["Thailand","TH","Phitsanulok","45"]
["Thailand","TH","Phra Nakhon Si Ayut.","46"]
["Thailand","TH","Phrae","47"]
["Thailand","TH","Phuket","48"]
["Thailand","TH","Prachin Buri","49"]
["Thailand","TH","Bueng Kan","50"]
["Turkey","TR","Adana","01"]
["Turkey","TR","Adiyaman","02"]
["Turkey","TR","Afyon","03"]
["Turkey","TR","Agri","04"]
["Turkey","TR","Amasya","05"]
["Turkey","TR","Ankara","06"]
["Turkey","TR","Antalya","07"]
["Turkey","TR","Artvin","08"]
["Turkey","TR","Aydin","09"]
["Turkey","TR","Balikesir","10"]
["Turkey","TR","Bilecik","11"]
["Turkey","TR","Bingöl","12"]
["Turkey","TR","Bitlis","13"]
["Turkey","TR","Bolu","14"]
["Turkey","TR","Burdur","15"]
["Turkey","TR","Bursa","16"]
["Turkey","TR","Canakkale","17"]
["Turkey","TR","Cankiri","18"]
["Turkey","TR","Corum","19"]
["Turkey","TR","Denizli","20"]
["Turkey","TR","Diyarbakir","21"]
["Turkey","TR","Edirne","22"]
["Turkey","TR","Elazig","23"]
["Turkey","TR","Erzincan","24"]
["Turkey","TR","Erzurum","25"]
["Turkey","TR","Eskisehir","26"]
["Turkey","TR","Gaziantep","27"]
["Turkey","TR","Giresun","28"]
["Turkey","TR","Guemueshane","29"]
["Turkey","TR","Hakkari","30"]
["Turkey","TR","Hatay","31"]
["Turkey","TR","Isparta","32"]
["Turkey","TR","Icel","33"]
["Turkey","TR","Istanbul","34"]
["Turkey","TR","Izmir","35"]
["Turkey","TR","Kars","36"]
["Turkey","TR","Kastamonu","37"]
["Turkey","TR","Kayseri","38"]
["Turkey","TR","Kirklareli","39"]
["Turkey","TR","Kirshehir","40"]
["Turkey","TR","Kocaeli","41"]
["Turkey","TR","Konya","42"]
["Turkey","TR","Kuetahya","43"]
["Turkey","TR","Malatya","44"]
["Turkey","TR","Manisa","45"]
["Turkey","TR","K.Marash","46"]
["Turkey","TR","Mardin","47"]
["Turkey","TR","Mugla","48"]
["Turkey","TR","Mush","49"]
["Turkey","TR","Nevshehir","50"]
["Turkey","TR","Nigde","51"]
["Turkey","TR","Ordu","52"]
["Turkey","TR","Rize","53"]
["Turkey","TR","Sakarya","54"]
["Turkey","TR","Samsun","55"]
["Turkey","TR","Siirt","56"]
["Turkey","TR","Sinop","57"]
["Turkey","TR","Sivas","58"]
["Turkey","TR","Tekirdag","59"]
["Turkey","TR","Tokat","60"]
["Turkey","TR","Trabzon","61"]
["Turkey","TR","Tunceli","62"]
["Turkey","TR","Shanliurfa","63"]
["Turkey","TR","Ushak","64"]
["Turkey","TR","Van","65"]
["Turkey","TR","Yozgat","66"]
["Turkey","TR","Zonguldak","67"]
["Turkey","TR","Aksaray","68"]
["Turkey","TR","Bayburt","69"]
["Turkey","TR","Karaman","70"]
["Turkey","TR","Kirikkale","71"]
["Turkey","TR","Batman","72"]
["Turkey","TR","Shirnak","73"]
["Turkey","TR","Bartin","74"]
["Turkey","TR","Ardahan","75"]
["Turkey","TR","Igdir","76"]
["Turkey","TR","Yalova","77"]
["Taiwan","TW","Fu-chien","FJN"]
["Taiwan","TW","Kao-hsiung","KSH"]
["Taiwan","TW","T´ai-pei","TPE"]
["Taiwan","TW","Taiwan","TWN"]
["Ukraine","UA","Chernigivs'ka","CHG"]
["Ukraine","UA","Cherkas'ka","CHR"]
["Ukraine","UA","Chernovits'ka","CHV"]
["Ukraine","UA","Dnipropetrovs'ka","DNP"]
["Ukraine","UA","Donets'ka","DON"]
["Ukraine","UA","Harkivs'ka","HAR"]
["Ukraine","UA","Hmel'nits'ka","HML"]
["Ukraine","UA","Hersons'ka","HRS"]
["Ukraine","UA","Ivano-Frankivs'ka","IVF"]
["Ukraine","UA","Kievs'ka","KIE"]
["Ukraine","UA","Kirovograds'ka","KIR"]
["Ukraine","UA","Respublika Krim","KRM"]
["Ukraine","UA","L'vivsbka","L'V"]
["Ukraine","UA","Lugans'ka","LUG"]
["Ukraine","UA","Mikolaivs'ka","MIK"]
["Ukraine","UA","m.Kiev","M_K"]
["Ukraine","UA","m.Sevastopil'","M_S"]
["Ukraine","UA","Odes'ka","ODS"]
["Ukraine","UA","Poltavs'ka","POL"]
["Ukraine","UA","Rivnens'ka","RIV"]
["Ukraine","UA","Sums'ka","SUM"]
["Ukraine","UA","Ternopil's'ka","TER"]
["Ukraine","UA","Vinnits'ka","VIN"]
["Ukraine","UA","Volins'ka","VOL"]
["Ukraine","UA","Zakarpats'ka","ZAK"]
["Ukraine","UA","Zaporiz'ka","ZAP"]
["Ukraine","UA","Zhitomirs'ka","ZHI"]
["USA","US","Alaska","AK"]
["USA","US","Alabama","AL"]
["USA","US","Arkansas","AR"]
["USA","US","American Samoa","AS"]
["USA","US","Arizona","AZ"]
["USA","US","California","CA"]
["USA","US","Colorado","CO"]
["USA","US","Connecticut","CT"]
["USA","US","District of Columbia","DC"]
["USA","US","Delaware","DE"]
["USA","US","Florida","FL"]
["USA","US","Georgia","GA"]
["USA","US","Guam","GU"]
["USA","US","Hawaii","HI"]
["USA","US","Iowa","IA"]
["USA","US","Idaho","ID"]
["USA","US","Illinois","IL"]
["USA","US","Indiana","IN"]
["USA","US","Kansas","KS"]
["USA","US","Kentucky","KY"]
["USA","US","Louisiana","LA"]
["USA","US","Massachusetts","MA"]
["USA","US","Maryland","MD"]
["USA","US","Maine","ME"]
["USA","US","Michigan","MI"]
["USA","US","Minnesota","MN"]
["USA","US","Missouri","MO"]
["USA","US","Northern Mariana Isl","MP"]
["USA","US","Mississippi","MS"]
["USA","US","Montana","MT"]
["USA","US","North Carolina","NC"]
["USA","US","North Dakota","ND"]
["USA","US","Nebraska","NE"]
["USA","US","New Hampshire","NH"]
["USA","US","New Jersey","NJ"]
["USA","US","New Mexico","NM"]
["USA","US","Nevada","NV"]
["USA","US","New York","NY"]
["USA","US","Ohio","OH"]
["USA","US","Oklahoma","OK"]
["USA","US","Oregon","OR"]
["USA","US","Pennsylvania","PA"]
["USA","US","Puerto Rico","PR"]
["USA","US","Rhode Island","RI"]
["USA","US","South Carolina","SC"]
["USA","US","South Dakota","SD"]
["USA","US","Tennessee","TN"]
["USA","US","Texas","TX"]
["USA","US","Utah","UT"]
["USA","US","Virginia","VA"]
["USA","US","Virgin Islands","VI"]
["USA","US","Vermont","VT"]
["USA","US","Washington","WA"]
["USA","US","Wisconsin","WI"]
["USA","US","West Virginia","WV"]
["USA","US","Wyoming","WY"]
["Venezuela","VE","Amazon","AMA"]
["Venezuela","VE","Anzoategui","ANZ"]
["Venezuela","VE","Apure","APU"]
["Venezuela","VE","Aragua","ARA"]
["Venezuela","VE","Barinas","BAR"]
["Venezuela","VE","Bolivar","BOL"]
["Venezuela","VE","Carabobo","CAR"]
["Venezuela","VE","Cojedes","COJ"]
["Venezuela","VE","Delta Amacuro","DA"]
["Venezuela","VE","Distrito Federal","DF"]
["Venezuela","VE","Falcon","FAL"]
["Venezuela","VE","Guarico","GUA"]
["Venezuela","VE","Lara","LAR"]
["Venezuela","VE","Merida","MER"]
["Venezuela","VE","Miranda","MIR"]
["Venezuela","VE","Monagas","MON"]
["Venezuela","VE","Nueva Esparta","NE"]
["Venezuela","VE","Portuguesa","POR"]
["Venezuela","VE","Sucre","SUC"]
["Venezuela","VE","Tachira","TAC"]
["Venezuela","VE","Trujillo","TRU"]
["Venezuela","VE","Vargas","VAR"]
["Venezuela","VE","Yaracuy","YAR"]
["Venezuela","VE","Zulia","ZUL"]
["South Africa","ZA","Eastern Cape","EC"]
["South Africa","ZA","Free State","FS"]
["South Africa","ZA","Gauteng","GP"]
["South Africa","ZA","Limpopo","LP"]
["South Africa","ZA","Mpumalanga","MP"]
["South Africa","ZA","Northern Cape","NC"]
["South Africa","ZA","Northwest","NW"]
["South Africa","ZA","Western Cape","WC"]
["South Africa","ZA","KwaZulu-Natal","ZN"]
["Andorra","AD"," "," "]
["United Arab Emirates","AE"," "," "]
["Afghanistan","AF"," "," "]
["Antigua and Barbuda","AG"," "," "]
["Anguilla","AI"," "," "]
["Albania","AL"," "," "]
["Armenia","AM"," "," "]
["Angola","AO"," "," "]
["Antarctica","AQ"," "," "]
["American Samoa","AS"," "," "]
["Aruba","AW"," "," "]
["Azerbaijan","AZ"," "," "]
["Bosnia and Herzegovina","BA"," "," "]
["Barbados","BB"," "," "]
["Bangladesh","BD"," "," "]
["Burkina Faso","BF"," "," "]
["Bahrain","BH"," "," "]
["Burundi","BI"," "," "]
["Benin","BJ"," "," "]
["Blue","BL"," "," "]
["Bermuda","BM"," "," "]
["Brunei Darussalam","BN"," "," "]
["Bolivia","BO"," "," "]
["Bonaire, Sint Eustatius and Saba","BQ"," "," "]
["Bahamas","BS"," "," "]
["Bhutan","BT"," "," "]
["Bouvet Islands","BV"," "," "]
["Botswana","BW"," "," "]
["Belarus","BY"," "," "]
["Belize","BZ"," "," "]
["Cocos (Keeling) Islands","CC"," "," "]
["Democratic Republic of the Congo","CD"," "," "]
["Central African Republic","CF"," "," "]
["Republic of the Congo","CG"," "," "]
["Cote d'Ivoire","CI"," "," "]
["Cook Islands","CK"," "," "]
["Cameroon","CM"," "," "]
["Costa Rica","CR"," "," "]
["Serbia and Montenegro","CS"," "," "]
["Cuba","CU"," "," "]
["Cape Verde","CV"," "," "]
["Curacao","CW"," "," "]
["Christmas Islnd","CX"," "," "]
["Cyprus","CY"," "," "]
["Djibouti","DJ"," "," "]
["Dominica","DM"," "," "]
["Dominican Republic","DO"," "," "]
["Algeria","DZ"," "," "]
["Ecuador","EC"," "," "]
["Estonia","EE"," "," "]
["Western Sahara","EH"," "," "]
["Eritrea","ER"," "," "]
["Ethiopia","ET"," "," "]
["European Union","EU"," "," "]
["Fiji","FJ"," "," "]
["Falkland Islands","FK"," "," "]
["Micronesia","FM"," "," "]
["Faroe Islands","FO"," "," "]
["Gabon","GA"," "," "]
["Grenada","GD"," "," "]
["Georgia","GE"," "," "]
["French Guyana","GF"," "," "]
["Guernsey (Channel Islands)","GG"," "," "]
["Ghana","GH"," "," "]
["Gibraltar","GI"," "," "]
["Greenland","GL"," "," "]
["Gambia","GM"," "," "]
["Guinea","GN"," "," "]
["Guadeloupe","GP"," "," "]
["Equatorial Guinea","GQ"," "," "]
["South Georgia and the Southern Sandwich Islands","GS"," "," "]
["Guatemala","GT"," "," "]
["Guam","GU"," "," "]
["Guinea-Bissau","GW"," "," "]
["Guyana","GY"," "," "]
["Heard and McDonald Islands","HM"," "," "]
["Honduras","HN"," "," "]
["Haiti","HT"," "," "]
["Isle of Man","IM"," "," "]
["British Indian Ocean Territory","IO"," "," "]
["Iraq","IQ"," "," "]
["Iran","IR"," "," "]
["Iceland","IS"," "," "]
["Jersey","JE"," "," "]
["Jamaica","JM"," "," "]
["Jordan","JO"," "," "]
["Kenya","KE"," "," "]
["Kyrgyzstan","KG"," "," "]
["Cambodia","KH"," "," "]
["Kiribati","KI"," "," "]
["Comoros","KM"," "," "]
["Saint Kitts and Nevis","KN"," "," "]
["North Korea","KP"," "," "]
["Cayman Islands","KY"," "," "]
["Laos","LA"," "," "]
["Lebanon","LB"," "," "]
["St. Lucia","LC"," "," "]
["Liechtenstein","LI"," "," "]
["Liberia","LR"," "," "]
["Lesotho","LS"," "," "]
["Lithuania","LT"," "," "]
["Luxembourg","LU"," "," "]
["Latvia","LV"," "," "]
["Libya","LY"," "," "]
["Morocco","MA"," "," "]
["Monaco","MC"," "," "]
["Moldova","MD"," "," "]
["Madagascar","MG"," "," "]
["Marshall Islands","MH"," "," "]
["Macedonia","MK"," "," "]
["Mali","ML"," "," "]
["Burma","MM"," "," "]
["Mongolia","MN"," "," "]
["Macau","MO"," "," "]
["North Mariana Islands","MP"," "," "]
["Martinique","MQ"," "," "]
["Mauritania","MR"," "," "]
["Montserrat","MS"," "," "]
["Malta","MT"," "," "]
["Mauritius","MU"," "," "]
["Maldives","MV"," "," "]
["Malawi","MW"," "," "]
["Mozambique","MZ"," "," "]
["Namibia","NA"," "," "]
["New Caledonia","NC"," "," "]
["Niger","NE"," "," "]
["Norfolk Islands","NF"," "," "]
["Nigeria","NG"," "," "]
["Nicaragua","NI"," "," "]
["Nepal","NP"," "," "]
["Nauru","NR"," "," "]
["NATO","NT"," "," "]
["Niue","NU"," "," "]
["Oman","OM"," "," "]
["Orange","OR"," "," "]
["Panama","PA"," "," "]
["French Polynesia","PF"," "," "]
["Papua New Guinea","PG"," "," "]
["Pakistan","PK"," "," "]
["St. Pierre and Miquelon","PM"," "," "]
["Pitcairn Islands","PN"," "," "]
["Puerto Rico","PR"," "," "]
["Palestine","PS"," "," "]
["Palau","PW"," "," "]
["Paraguay","PY"," "," "]
["Reunion","RE"," "," "]
["Rwanda","RW"," "," "]
["Saudi Arabia","SA"," "," "]
["Solomon Islands","SB"," "," "]
["Seychelles","SC"," "," "]
["Sudan","SD"," "," "]
["Saint Helena","SH"," "," "]
["Svalbard","SJ"," "," "]
["Slovakia","SK"," "," "]
["Sierra Leone","SL"," "," "]
["San Marino","SM"," "," "]
["Senegal","SN"," "," "]
["Somalia","SO"," "," "]
["Suriname","SR"," "," "]
["South Sudan","SS"," "," "]
["Sao Tome and Principe","ST"," "," "]
["El Salvador","SV"," "," "]
["Sint Maarten (Dutch part)","SX"," "," "]
["Syria","SY"," "," "]
["Swaziland","SZ"," "," "]
["Turks and Caicos Islands","TC"," "," "]
["Chad","TD"," "," "]
["French Southern and Antarctic Lands","TF"," "," "]
["Togo","TG"," "," "]
["Tajikistan","TJ"," "," "]
["Tokelau Islands","TK"," "," "]
["East Timor","TL"," "," "]
["Turkmenistan","TM"," "," "]
["Tunisia","TN"," "," "]
["Tonga","TO"," "," "]
["East Timor","TP"," "," "]
["Trinidad and Tobago","TT"," "," "]
["Tuvalu","TV"," "," "]
["Tanzania","TZ"," "," "]
["Uganda","UG"," "," "]
["United States Minor Outlying Islands","UM"," "," "]
["United Nations","UN"," "," "]
["Uruguay","UY"," "," "]
["Uzbekistan","UZ"," "," "]
["Vatican City","VA"," "," "]
["St. Vincent and the Grenadines","VC"," "," "]
["British Virgin Islands","VG"," "," "]
["United States Virgin Islands","VI"," "," "]
["Vietnam","VN"," "," "]
["Vanuatu","VU"," "," "]
["Wallis and Futuna Islands","WF"," "," "]
["Samoa","WS"," "," "]
["Yemen","YE"," "," "]
["Mayotte","YT"," "," "]

{"sheet":"regions table","index":25,"n_rows":253,"n_cols":249,"rows_kept":253,"cut":false,"hidden":true,"merged":[]}
["Sri Lanka","Argentina","Austria","Australia","Belgium","Bulgaria","Brazil","Canada","Switzerland","Chile","China","Colombia","Czech Republic","Germany","Denmark","Egypt","Spain","Finland","France","United Kingdom","Greece","Hong Kong","Croatia","Hungary","Indonesia","Ireland","Israel","India","Italy","Japan","South Korea","Kuwait","Kazakhstan","Mexico","Malaysia","Netherlands","Norway","New Zealand","Peru","Philippines","Poland","Portugal","Qatar","Romania","Russian Federation","Sweden","Singapore","Slovenia","Thailand","Turkey","Taiwan","Ukraine","USA","Venezuela","South Africa","Andorra","United Arab Emirates","Afghanistan","Antigua and Barbuda","Anguilla","Albania","Armenia","Angola","Antarctica","American Samoa","Aruba","Azerbaijan","Bosnia and Herzegovina","Barbados","Bangladesh","Burkina Faso","Bahrain","Burundi","Benin","Blue","Bermuda","Brunei Darussalam","Bolivia","Bonaire, Sint Eustatius and Saba","Bahamas","Bhutan","Bouvet Islands","Botswana","Belarus","Belize","Cocos (Keeling) Islands","Democratic Republic of the Congo","Central African Republic","Republic of the Congo","Cote d'Ivoire","Cook Islands","Cameroon","Costa Rica","Serbia and Montenegro","Cuba","Cape Verde","Curacao","Christmas Islnd","Cyprus","Djibouti","Dominica","Dominican Republic","Algeria","Ecuador","Estonia","Western Sahara","Eritrea","Ethiopia","European Union","Fiji","Falkland Islands","Micronesia","Faroe Islands","Gabon","Grenada","Georgia","French Guyana","Guernsey (Channel Islands)","Ghana","Gibraltar","Greenland","Gambia","Guinea","Guadeloupe","Equatorial Guinea","South Georgia and the Southern Sandwich Islands","Guatemala","Guam","Guinea-Bissau","Guyana","Heard and McDonald Islands","Honduras","Haiti","Isle of Man","British Indian Ocean Territory","Iraq","Iran","Iceland","Jersey","Jamaica","Jordan","Kenya","Kyrgyzstan","Cambodia","Kiribati","Comoros","Saint Kitts and Nevis","North Korea","Cayman Islands","Laos","Lebanon","St. Lucia","Liechtenstein","Liberia","Lesotho","Lithuania","Luxembourg","Latvia","Libya","Morocco","Monaco","Moldova","Madagascar","Marshall Islands","Macedonia","Mali","Burma","Mongolia","Macau","North Mariana Islands","Martinique","Mauritania","Montserrat","Malta","Mauritius","Maldives","Malawi","Mozambique","Namibia","New Caledonia","Niger","Norfolk Islands","Nigeria","Nicaragua","Nepal","Nauru","NATO","Niue","Oman","Orange","Panama","French Polynesia","Papua New Guinea","Pakistan","St. Pierre and Miquelon","Pitcairn Islands","Puerto Rico","Palestine","Palau","Paraguay","Reunion","Rwanda","Saudi Arabia","Solomon Islands","Seychelles","Sudan","Saint Helena","Svalbard","Slovakia","Sierra Leone","San Marino","Senegal","Somalia","Suriname","South Sudan","Sao Tome and Principe","El Salvador","Sint Maarten (Dutch part)","Syria","Swaziland","Turks and Caicos Islands","Chad","French Southern and Antarctic Lands","Togo","Tajikistan","Tokelau Islands","East Timor","Turkmenistan","Tunisia","Tonga","East Timor2","Trinidad and Tobago","Tuvalu","Tanzania","Uganda","United States Minor Outlying Islands","United Nations","Uruguay","Uzbekistan","Vatican City","St. Vincent and the Grenadines","British Virgin Islands","United States Virgin Islands","Vietnam","Vanuatu","Wallis and Futuna Islands","Samoa","Yemen","Mayotte"]
["Central Province","Capital Federal","Burgenland","Aust Capital Terr","Antwerp","Burgas","Acre","Alberta","Aargau","I - Iquique","Beijing","ANTIOQUIA","Praha","Schleswig-Holstein","Danish Capital Reg.","Cairo","Alava","Ahvenanmaa","Ain","Aberdeenshire","Aitolia kai Akarnan.","Hong Kong Island","Zagrebacka","Bacs-Kiskun","DKI Jakarta Jakarta","Cork","Central","Andhra Pradesh","Agriento","Hokkaido","Cheju-do","Kuwait City","Almatynskaia","Aguascalientes","Johor","Drenthe","Ostfold County","Auckland","Tumbes","Ilocos","Dolnoslaskie","Minho-Lima","Doha","Alba","Adigeja Republic","Blekinge County","Singapore","Ajdov¹èina","Amnat Charoen","Adana","Fu-chien","Chernigivs'ka","Alaska","Amazon","Eastern Cape"," "," "," "," "," "," "," "," "," "," "," "," "," "," "," "," "," "," "," "," "," "," "," "," "," "," "," "," "," "," "," "," "," "," "," "," "," "," "," "," "," "," "," "," "," "," "," "," "," "," "," "," "," "," "," "," "," "," "," "," "," "," "," "," "," "," "," "," "," "," "," "," "," "," "," "," "," "," "," "," "," "," "," "," "," "," "," "," "," "," "," "," "," "," "," "," "," "," "," "," "," "," "," "," "," "," "," "," "," "," "," "," "," "," "," "," "," "," "," "," "," "," "," "," "," "," "," "," "," "," "," "," "," "," "," "," "," "," "," "," "," "," "," "," "," "," "," "," "," "," "," "," "," "," "," "," "," "," "," "," "," "," "," "," "," "," "," "," "," "," "," "," "," "," "," "," "," "," "," "," "," "," "," "," "," "," "," "," "," "," "," "," "," "," "]
["Eastern Province","Buenos Aires","Carinthia","New South Wales","Brabant","Grad Sofiya","Alagoas","British Columbia","Inner-Rhoden","II - Antofagasta","Shanghai","ATLANTICO","Stredocesky","Hamburg","Central Jutland","Giza","Albacete","Southern Finnland","Aisne","Argyllshire","Akhaia","Kowloon","Krapinsko-zagorska","Baranya","Jawa Barat West Java","Clare","Haifa","Arunachal Pradesh","Alessandria","Aomori","Cholla-bukto",null,"Kostanaiskaia","Baja California","Kedah","Flevoland","Akershus County","Bay of Plenty","Piura","Cagayan Valley","Kujawsko-Pomorskie","Cavado","The north","Arad","Highlands-Altay Rep.","Dalarnas County",null,"Beltinci","Ang Thong","Adiyaman","Kao-hsiung","Cherkas'ka","Alabama","Anzoategui","Free State"]
["Northern Province","Catamarca","Lower Austria","Northern Territory","Hainaut","Khaskovo","Amazon","Manitoba","Ausser-Rhoden","III - Copiapo","Tianjin","BOGOTA","Jihocesky","Lower Saxony","North Jutland","Al Sharqia","Alicante","Eastern Finnland","Allier","Anglesey","Argolis","New Territories","Sisacko-moslavacka","Bekes","Jawa Tengah Central","Cavan","Jerusalem","Assam","Ancona","Iwate","Cholla-namdo",null,"Severo-Kazakhstansk","Baja California S","Kelantan","Friesland","Oslo","Canterbury","Lambayeque","Central Luzon","Lubelskie","Ave","The west coast","Arges","Republ.of Bashkortos","Gotland County",null,"Bled","Buriram","Afyon","T´ai-pei","Chernovits'ka","Arkansas","Apure","Gauteng"]
["Western Province","Cordoba","Upper Austria","Queensland","Liege","Lovech","Amapa","New Brunswick","Bern","IV - La Serena","Nei Mongol","BOLIVAR","Plzensky","Bremen","Zealand","Dakahlia","Almeria","Lappi","Alpes (Hte-Provence)","Armagh","Arkadhia",null,"Karlovacka","Bekescsaba","Jawa Timur East Java","Carlow","Northern","Bihar","Aosta","Miyagi","Ch´ungch´ong-bukto",null,"Pavlodarskaia","Chihuahua","Kuala Lumpur","Gelderland","Hedmark County","Hawke´s Bay","La Libertad","South Luzon","Lubuskie","Grande Porto","The south","Bacau","Buryat Republic","Gaevleborg County",null,"Bohinj","Chachoengsao","Agri","Taiwan","Dnipropetrovs'ka","American Samoa","Aragua","Limpopo"]
["Southern Province","Corrientes","Salzburg","South Australia","Limburg","Montana","Bahia","Newfoundland/Labrad.","Basel Land","V - Valparaiso","Shanxi","BOYACA","Karlovarsky","Nrth Rhine Westfalia","South Denmark","Beheira","Avila","Western Finnland","Alpes (Hautes)","Angus/Forfarshire","Arta",null,"Varazdinska","Borsod-Abauj-Zemplen","DI Yogyakarta Yogyak","Dublin","Southern","Goa","Ascoli Piceno","Akita","Ch´ungch´ong-namdo",null,"Akmolinskaia","Chiapas","Labuan","Groningen","Oppland County","Manawatu-Wanganui","Ancash","Bicol","Lodzkie","Tamega",null,"Bihor","Dagestan Republic","Halland County",null,"Borovnica","Chai Nat","Amasya",null,"Donets'ka","Arizona","Barinas","Mpumalanga"]
["North Western Provin","Entre Rios","Styria","Tasmania","Luxembourg","Plovdiv","Ceara","Nova Scotia","Basel Stadt","VI - Rancagua","Hebei","CALDAS","Ustecky","Hessen",null,"Qalyubia","Badajoz","Oulu","Alpes-Maritimes","Antrim","Attiki",null,"Koprivnicko-krizevac","Budapest","DI Aceh Aceh","Donegal","Tel Aviv","Gujarat","L'Aquila","Yamagata","Inch´on-jikhalsi",null,"Aktubinskaia","Campeche","Melaka","Limburg","Buskerud County","Northland","Lima y Callao","West Visayas","Malopolskie","Entre Douro e Vouga",null,"Bistrita-Nasaud","Ingushetija Republic","Jaemtland County",null,"Bovec","Chaiyaphum","Ankara",null,"Harkivs'ka","California","Bolivar","Northern Cape"]
["North Central Provin","Jujuy","Tyrol","Victoria","Namur","Ruse","Brasilia","Northwest Territory","Fribourg","VII - Talca","Liaoning","CAQUETA","Liberecky","Rhineland Palatinate",null,"Minya","Baleares",null,"Ardeche","Ayrshire","Dhodhekanisos",null,"Bjelovarsko-bilogors","Csongrad","Sumatera Utara North","Galway",null,"Haryana","Arezzo","Fukushima","Kangwon-do",null,"Atyrauskaia","Coahuila","Pahang","Noord-Brabant","Vestfold County","Otago","Ica","Central Visayas","Mazowieckie","Douro",null,"Botosani","Kabardino-Balkar.Rep","Joenkoeping County",null,"Brda","Chanthaburi","Antalya",null,"Hmel'nits'ka","Colorado","Carabobo","Northwest"]
["Uva Province","Mendoza","Vorarlberg","Western Australia","Oost-Vlaanderen","Sofiya","Espirito Santo","Nunavut","Geneva","VIII - Concepcion","Jilin","CAUCA","Kralovehradecky","Baden-Wurttemberg",null,"Alexandria","Barcelona",null,"Ardennes","Bedfordshire","Dhrama",null,"Rijecko-goranska","Debrecen","Sumatera Barat West","Kildare",null,"Himachal Pradesh","Asti","Ibaraki","Kwangju-jikhalsi",null,"Zapadno-Kazakhst","Colima","Perlis","Noord-Holland","Telemark County","Southland","Arequipa","Eastern Visayas","Opolskie","Alto Tras-os-Montes",null,"Braila","Kalmyk Republic","Kalmar County",null,"Brezovica","Chiang Mai","Artvin",null,"Hersons'ka","Connecticut","Cojedes","Western Cape"]
["Sabaragamuwa Provinc","La Rioja","Vienna",null,"West-Vlaanderen","Varna","Goias","Ontario","Glarus","IX - Temuco","Heilongjiang","CESAR","Pardubicky","Bavaria",null,"Gharbia","Burgos",null,"Ariege","Banffshire","Evritania",null,"Licko-senjska","Dunaujvaros","Riau Riau","Kilkenny",null,"Jammu and Kashmir","Avellino","Tochigi","Kyonggi-do",null,"Mangystayskaia","Distrito Federal","Perak","Overijssel","Aust-Agder County","Taranaki","Moquegua","Western Mindanao","Podkarpackie","Baixo Vouga",null,"Brasov","Karach.-Cherkessk Re","Kronoberg County",null,"Bre¾ice","Chiang Rai","Aydin",null,"Ivano-Frankivs'ka","District of Columbia","Delta Amacuro","KwaZulu-Natal"]
[null,"Salta",null,null,"Brabant (Walloon)",null,"Maranhao","Prince Edward Island","Graubuenden","X - Puerto Montt","Jiangsu","CORDOBA","Vysocina","Saarland",null,"Sohag","Caceres",null,"Aube","Berkshire","Evros",null,"Viroviticko-podravac","Eger","Jambi Jambi","Kerry",null,"Karnataka","Bari","Gunma","Kyongsang-bukto",null,"Karagandinskaia","Durango","Pulau Pinang","Utrecht","Vest-Agder County","Waikato","Tacna","Northern Mindanao","Podlaskie","Baixo Mondego",null,"Bucuresti","Karelian Republic","Norrbotten County",null,"Ajdovscina","Chon Buri","Balikesir",null,"Kievs'ka","Delaware","Distrito Federal"]
[null,"San Juan",null,null,"Brussels (Capital)",null,"Minas Gerais","Quebec","Jura","XI - Coyhaique","Anhui","CUNDINAMARCA","Jihomoravsky","Berlin",null,"Asyut","Cadiz",null,"Aude","Brecknockshire","Evvoia",null,"Pozesko-slavonska","Fejer","Sumatera Selatan Sou","Longford",null,"Kerala","Bergamo","Saitama","Kyongsang-namdo",null,"Vostochno-Kazakhstan","Guerrero","Wil. Persekutuan","Zeeland","Rogaland County","West Coast","Amazon","Central Mindanao","Pomorskie","Pinhal Litoral",null,"Buzau","Komi Republic","Skaane County",null,"Ti¹ina","Chumphon","Bilecik",null,"Kirovograds'ka","Florida","Falcon"]
[null,"San Luis",null,null,null,null,"Mato Grosso do Sul","Saskatchewan","Lucerne","XII - Punta Arenas","Shandong","CHOCO","Olomoucky","Brandenburg",null,"Monufia","Castellon",null,"Aveyron","Bath&NthEstSomerset","Florina",null,"Slavonskobrodska","Gyor","Bengkulu Bengkulu","Louth",null,"Madhya Pradesh","Biella","Chiba","Pusan-jikhalsi",null,"Gambilskaia","Guanajuato","Sabah","Zuid-Holland","Hordaland County","Wellington","Cajamarca","South Mindanao","Slaskie","Pinhal Interior N.",null,"Calarasi","Marijskaya Republic","Stockholm County",null,"Celje","Kalasin","Bingöl",null,"Respublika Krim","Georgia","Guarico"]
[null,"Santa Fe",null,null,null,null,"Mato Grosso","Yukon Territory","Neuchatel","RM - Santiago","Zhejiang","HUILA","Zlinsky","Mecklenburg-Vorpomm.",null,"Qena","Ciudad Real",null,"Bouches-du-Rhone","Buteshire","Fokis",null,"Zadarska","Gyor-Moson-Sopron","Lampung Lampung","Limerick",null,"Maharashtra","Belluno","Tokyo","Soul-t´ukpyolsi",null,"Kyzilordinskaia","Hidalgo","Sarawak",null,"Sogn og Fjordane C.",null,"San Martin",null,"Swietokrzyskie","Pinhal Interior Sul",null,"Caras-Severin","Mordovian Republic","Soedermanland County",null,"Cerklje na Gorenjske","Kamphaeng Phet","Bitlis",null,"L'vivsbka","Guam","Lara"]
[null,"Santiago del Estero",null,null,null,null,"Para",null,"Nidwalden","XIV - Los Rios","Jiangxi","LA GUAJIRA","Moravskoslezsky","Saxony",null,"Kafr El-Sheikh","Cordoba",null,"Calvados","Buckinghamshire","Fthiotis",null,"Osjecko-baranjska","Hajdu-Bihar","Kalimantan Selatan S","Leitrim",null,"Manipur","Benevento","Kanagawa","Taegu-jikhalsi",null,null,"Jalisco","Selangor",null,"More og Romsdal C.",null,"Huanuco",null,"Warminsko-mazurskie","Dao-Lafoes",null,"Cluj","Yakutiya-Saha Rrepub","Uppsala County",null,"Cerknica","Kanchanaburi","Bolu",null,"Lugans'ka","Hawaii","Merida"]
[null,"Tucuman",null,null,null,null,"Paraiba",null,"Obwalden","XV - Arica y Parinac","Fujian","MAGDALENA",null,"Saxony-Anhalt",null,"Faiyum","La Coruna",null,"Cantal","Berwickshire","Grevena",null,"Sibensko-kninska","Heves","Kalimantan Barat Wes","Laois",null,"Meghalaya","Bologna","Niigata","Taejon-jikhalsi",null,null,"Michoacan","Negeri Sembilan",null,"Sor-Trondelag County",null,"Pasco",null,"Wielkopolskie","Serra da Estrela",null,"Constanta","North-Osetiya Republ","Vaermland County",null,"Cerkno","Khon Kaen","Burdur",null,"Mikolaivs'ka","Iowa","Miranda"]
[null,"Chaco",null,null,null,null,"Pernambuco",null,"St. Gallen",null,"Hunan","META",null,"Thuringia",null,"Beni Suef","Cuenca",null,"Charente","Cambridgeshire","Ilia",null,"Vukovarsko-srijemska","Hodmezovasarhely","Kalimantan Tengah Ce","Meath",null,"Mizoram","Brindisi","Toyama","Ulsan",null,null,"Estado de Mexico","Trengganu",null,"Nord-Trondelag Cnty",null,"Junin",null,"Zachodnio-Pomorskie","Beira Interior Norte",null,"Covasna","Tatarstan Republic","Vaesterbotten County",null,"Èren¹ovci","Krabi","Bursa",null,"m.Kiev","Idaho","Monagas"]
[null,"Chubut",null,null,null,null,"Piaui",null,"Schaffhausen",null,"Hubei","NARINO",null,null,null,"Aswan","Gerona",null,"Charente-Maritime","Carmarthenshire","Imathia",null,"Splitsko-dalmatinska","Jasz-Nagykun-Szolnok","Kalimantan Timur Eas","Monaghan",null,"Nagaland","Brescia","Ishikawa","Sejong",null,null,"Morelos",null,null,"Nordland County",null,"Huancavelica",null,null,"Beira Interior Sul",null,"Dimbovita","Tuva Republic","Vaesternorrland Cnty",null,"Èrna na Koro¹kem","Krung Thep","Canakkale",null,"m.Sevastopil'","Illinois","Nueva Esparta"]
[null,"Formosa",null,null,null,null,"Parana",null,"Solothurn",null,"Henan","NORTE SANTANDER",null,null,null,"Damietta","Granada",null,"Cher","Cardiganshire","Ioannina",null,"Istarska","Kaposvar","Sulawesi Selatan Sou","Mayo",null,"Orissa","Barletta Andria Tran","Fukui",null,null,null,"Nayarit",null,null,"Troms County",null,"Ayacucho",null,null,"Cova da Beira",null,"Dolj","The Udmurt Republic","Vaestmanland County",null,"Èrnomelj","Mahanakhon","Cankiri",null,"Odes'ka","Indiana","Portuguesa"]
[null,"Misiones",null,null,null,null,"Rio de Janeiro",null,"Schwyz",null,"Guangdong","QUINDIO",null,null,null,"Ismailia","Guadalajara",null,"Correze","Caernarfonshire","Iraklion",null,"Dubrovacko-neretvans","Kecskemet","Sulawesi Tenggara So","Offaly",null,"Punjab","Bolzano","Yamanashi",null,null,null,"Nuevo Leon",null,null,"Finnmark County",null,"Apurimac",null,null,"Oeste",null,"Galati","Chakassky Republic","Vaestra Goetaland C.",null,"Destrnik","Lampang","Corum",null,"Poltavs'ka","Kansas","Sucre"]
[null,"Neuquen",null,null,null,null,"Rio Grande do Norte",null,"Thurgau",null,"Hainan","RISARALDA",null,null,null,"Port Said","Guipuzcoa",null,"Cote-d'Or","Cheshire","Kardhitsa",null,"Medjimurska","Komarom-Esztergom","Sulawesi Tengah Cent","Roscommon",null,"Rajasthan","Cagliari","Nagano",null,null,null,"Oaxaca",null,null,null,null,"Cuzco",null,null,"Grande Lisboa",null,"Gorj","Chechenskaya Republ.","Oerebro County",null,"Divaèa","Lamphun","Denizli",null,"Rivnens'ka","Kentucky","Tachira"]
[null,"La Pampa",null,null,null,null,"Rondonia",null,"Ticino",null,"Guangxi","SANTANDER",null,null,null,"Suez","Huelva",null,"Cotes-d'Armor","Cromartyshire","Kastoria",null,"Zagreb","Miskolc","Sulawesi Utara North","Sligo",null,"Sikkim","Campobasso","Gifu",null,null,null,"Puebla",null,null,null,null,"Puno",null,null,"Peninsula de Setubal",null,"Giurgiu","Chuvash Republic","Oestergoetland Cnty",null,"Brezice","Loei","Diyarbakir",null,"Sums'ka","Louisiana","Trujillo"]
[null,"Rio Negro",null,null,null,null,"Roraima",null,"Uri",null,"Guizhou","SUCRE",null,null,null,"Luxor","Huesca",null,"Creuse","Clackmannanshire","Kavala",null,null,"Nagykanizsa","Bali Bali","Tipperary",null,"Tamil Nadu","Caserta","Shizuoka",null,null,null,"Quintana Roo",null,null,null,null,"Loreto",null,null,"Medio Tejo",null,"Harghita","Altay Territory",null,null,"Dobrepolje","Lop Buri","Edirne",null,"Ternopil's'ka","Massachusetts","Vargas"]
[null,"Santa Cruz",null,null,null,null,"Rio Grande do Sul",null,"Vaud",null,"Sichuan","TOLIMA",null,null,null,"North Sinai","Jaen",null,"Dordogne","Cornwall","Kefallinia",null,null,"Nograd","Nusa Tenggara Barat","Waterford",null,"Tripura","Chieti","Aichi",null,null,null,"Queretaro",null,null,null,null,"Ucayali",null,null,"Leziria do Tejo",null,"Hunedoara","Krasnodar Territory",null,null,"Dobrova-Polhov Grade","Mae Hong Son","Elazig",null,"Vinnits'ka","Maryland","Yaracuy"]
[null,"Tierra de Fuego",null,null,null,null,"Santa Catarina",null,"Valais",null,"Yunnan","VALLE",null,null,null,"Matruh","Leon",null,"Doubs","Caithness","Kerkira",null,null,"Nyiregyhaza","Nusa Tenggara Timur","Westmeath",null,"Uttar Pradesh","Carbonia-Iglesias","Mie",null,null,null,"Sinaloa",null,null,null,null,"Madre de Dios",null,null,"Alentejo Litoral",null,"Ialomita","Krasnoyarsk Territor",null,null,"Dol pri Ljubljani","Maha Sarakham","Erzincan",null,"Volins'ka","Maine","Zulia"]
[null,null,null,null,null,null,"Sergipe",null,"Zug",null,"Shaanxi","ARAUCA",null,null,null,"Red Sea","Lerida",null,"Drome","Cumberland","Khalkidhiki",null,null,"Pecs","Maluku Maluku","Wicklow",null,"West Bengal","Caltanisetta","Shiga",null,null,null,"San Luis Potosi",null,null,null,null,null,null,null,"Alto Alentejo",null,"Iasi","Primorye Territory",null,null,"Dom¾ale","Mukdahan","Erzurum",null,"Zakarpats'ka","Michigan"]
[null,null,null,null,null,null,"Sao Paulo",null,"Zurich",null,"Gansu","CASANARE",null,null,null,"New Valley","La Rioja",null,"Eure","Derbyshire","Khania",null,null,"Pest","Irian Jaya Irian Jay","Wexford",null,"Andaman and Nico.Is.","Cuneo","Kyoto",null,null,null,"Sonora",null,null,null,null,null,null,null,"Alentejo Central",null,"Ilfov","Stavropol Territory",null,null,"Dornava","Nakhon Nayok","Eskisehir",null,"Zaporiz'ka","Minnesota"]
[null,null,null,null,null,null,"Tocantins",null,null,null,"Ningxia","PUTUMAYO",null,null,null,"South Sinai","Lugo",null,"Eure-et-Loir","Denbighshire","Khios",null,null,"Somogy","Timor Timur East Tim",null,null,"Chandigarh","Como","Osaka",null,null,null,"Tabasco",null,null,null,null,null,null,null,"Baixo Alentejo",null,"Maramures","Khabarovsk Territory",null,null,"Dravograd","Nakhon Pathom","Gaziantep",null,"Zhitomirs'ka","Missouri"]
[null,null,null,null,null,null,null,null,null,null,"Qinghai","SAN ANDRES",null,null,null,null,"Madrid",null,"Finistere","Dumfriesshire","Kikladhes",null,null,"Sopron",null,null,null,"Dadra and Nagar Hav.","Cremona","Hyogo",null,null,null,"Tlaxcala",null,null,null,null,null,null,null,"Algarve",null,"Mehedinti","The Amur Area",null,null,"Duplek","Nakhon Phanom","Giresun",null,null,"Northern Mariana Isl"]
[null,null,null,null,null,null,null,null,null,null,"Xinjiang","AMAZONAS",null,null,null,null,"Malaga",null,"Corse-du-Sud","Down","Kilkis",null,null,"Szabolcs-Szat.-Bereg",null,null,null,"Daman and Diu","Cosenza","Nara",null,null,null,"Tamaulipas",null,null,null,null,null,null,null,"Reg. Aut. dos Açores",null,"Mures","The Arkhangelsk Area",null,null,"Gorenja vas-Poljane","Nakhon Ratchasima","Guemueshane",null,null,"Mississippi"]
[null,null,null,null,null,null,null,null,null,null,"Xizang","GUAINIA",null,null,null,null,"Murcia",null,"Corse-du-Nord","Dorset","Korinthia",null,null,"Szeged",null,null,null,"Delhi","Catania","Wakayama",null,null,null,"Veracruz",null,null,null,null,null,null,null,"Reg. Aut. da Madeira",null,"Neamt","The Astrakhan Area",null,null,"Gori¹nica","Nakhon Sawan","Hakkari",null,null,"Montana"]
[null,null,null,null,null,null,null,null,null,null,"Chong Qing","GUAVIARE",null,null,null,null,"Navarra",null,"Gard","Dunbartonshire","Kozani",null,null,"Szekesfehervar",null,null,null,"Lakshadweep","Catanzaro","Tottori",null,null,null,"Yucatan",null,null,null,null,null,null,null,null,null,"Olt","The Belgorod Area",null,null,"Gornja Radgona","Nakhon Si Thammarat","Hatay",null,null,"North Carolina"]
[null,null,null,null,null,null,null,null,null,null,null,"VAUPES",null,null,null,null,"Orense",null,"Garonne (Haute)","Durham","Lakonia",null,null,"Szolnok",null,null,null,"Puducherry","Stati Esteri","Shimane",null,null,null,"Zacatecas",null,null,null,null,null,null,null,null,null,"Prahova","The Bryansk Area",null,null,"Celje","Nan","Isparta",null,null,"North Dakota"]
[null,null,null,null,null,null,null,null,null,null,null,"VICHADA",null,null,null,null,"Asturias",null,"Gers","Devon","Larisa",null,null,"Szombathely",null,null,null,"Chhattisgarh","Enna","Okayama",null,null,null,null,null,null,null,null,null,null,null,null,null,"Salaj","The Vladimir Area",null,null,"Gornji Grad","Narathiwat","Icel",null,null,"Nebraska"]
[null,null,null,null,null,null,null,null,null,null,null,null,null,null,null,null,"Palencia",null,"Gironde","East Lothian","Lasithi",null,null,"Tatabanya",null,null,null,"Jharkhand","Forli/Cesana","Hiroshima",null,null,null,null,null,null,null,null,null,null,null,null,null,"Satu Mare","The Volgograd Area",null,null,"Gornji Petrovci","Nong Bua Lamphu","Istanbul",null,null,"New Hampshire"]
[null,null,null,null,null,null,null,null,null,null,null,null,null,null,null,null,"Las Palmas",null,"Herault","Essex","Lesvos",null,null,"Tolna",null,null,null,"Uttarakhand","Ferrara","Yamaguchi",null,null,null,null,null,null,null,null,null,null,null,null,null,"Sibiu","The Vologda Area",null,null,"Grosuplje","Nong Khai","Izmir",null,null,"New Jersey"]
[null,null,null,null,null,null,null,null,null,null,null,null,null,null,null,null,"Pontevedra",null,"Ille-et-Vilaine","Fife","Levkas",null,null,"Vas",null,null,null,null,"Foggia","Tokushima",null,null,null,null,null,null,null,null,null,null,null,null,null,"Suceava","The Voronezh Area",null,null,"©alovci","Nonthaburi","Kars",null,null,"New Mexico"]
[null,null,null,null,null,null,null,null,null,null,null,null,null,null,null,null,"Salamanca",null,"Indre","Flintshire","Magnisia",null,null,"Veszprem",null,null,null,null,"Florence","Kagawa",null,null,null,null,null,null,null,null,null,null,null,null,null,"Teleorman","The Ivanovo Area",null,null,"Hrastnik","Pathum Thani","Kastamonu",null,null,"Nevada"]
[null,null,null,null,null,null,null,null,null,null,null,null,null,null,null,null,"Sta. Cruz Tenerife",null,"Indre-et-Loire","Fermanagh","Messinia",null,null,"Zala",null,null,null,null,"Fermo","Ehime",null,null,null,null,null,null,null,null,null,null,null,null,null,"Timis","The Irkutsk Area",null,null,"Hrpelje-Kozina","Pattani","Kayseri",null,null,"New York"]
[null,null,null,null,null,null,null,null,null,null,null,null,null,null,null,null,"Cantabria",null,"Isere","Gloucestershire","Pella",null,null,"Zalaegerszeg",null,null,null,null,"Frosinone","Kochi",null,null,null,null,null,null,null,null,null,null,null,null,null,"Tulcea","The Kaliningrad Area",null,null,"Idrija","Phangnga","Kirklareli",null,null,"Ohio"]
[null,null,null,null,null,null,null,null,null,null,null,null,null,null,null,null,"Segovia",null,"Jura","Hampshire","Pieria",null,null,null,null,null,null,null,"Fiume","Fukuoka",null,null,null,null,null,null,null,null,null,null,null,null,null,"Vaslui","The Kaluga Area",null,null,"Ig","Phatthalung","Kirshehir",null,null,"Oklahoma"]
[null,null,null,null,null,null,null,null,null,null,null,null,null,null,null,null,"Sevilla",null,"Landes","Hertfordshire","Piraievs",null,null,null,null,null,null,null,"Genova","Saga",null,null,null,null,null,null,null,null,null,null,null,null,null,"Vilcea","Kamchatka Territory",null,null,"Ilirska Bistrica","Phayao","Kocaeli",null,null,"Oregon"]
[null,null,null,null,null,null,null,null,null,null,null,null,null,null,null,null,"Soria",null,"Loir-et-Cher","Huntingdonshire","Preveza",null,null,null,null,null,null,null,"Gorizia","Nagasaki",null,null,null,null,null,null,null,null,null,null,null,null,null,"Vrancea","The Kemerovo Area",null,null,"Ivanèna Gorica","Phetchabun","Konya",null,null,"Pennsylvania"]
[null,null,null,null,null,null,null,null,null,null,null,null,null,null,null,null,"Tarragona",null,"Loire","Hereford and Worcs.","Rethimni",null,null,null,null,null,null,null,"Grosseto","Kumamoto",null,null,null,null,null,null,null,null,null,null,null,null,null,null,"The Kirov Area",null,null,"Cerknica","Phetchaburi","Kuetahya",null,null,"Puerto Rico"]
[null,null,null,null,null,null,null,null,null,null,null,null,null,null,null,null,"Teruel",null,"Loire (Haute)","Invernesshire","Rodhopi",null,null,null,null,null,null,null,"Imperia","Oita",null,null,null,null,null,null,null,null,null,null,null,null,null,null,"The Kostroma Area",null,null,"Izola - Isola","Phichit","Malatya",null,null,"Rhode Island"]
[null,null,null,null,null,null,null,null,null,null,null,null,null,null,null,null,"Toledo",null,"Loire-Atlantique","Isle of Wight","Samos",null,null,null,null,null,null,null,"Isernia","Miyazaki",null,null,null,null,null,null,null,null,null,null,null,null,null,null,"The Kurgan Area",null,null,"Jesenice","Phitsanulok","Manisa",null,null,"South Carolina"]
[null,null,null,null,null,null,null,null,null,null,null,null,null,null,null,null,"Valencia",null,"Loiret","Kent","Serrai",null,null,null,null,null,null,null,"Crotone","Kagoshima",null,null,null,null,null,null,null,null,null,null,null,null,null,null,"The Kursk Area",null,null,"Jur¹inci","Phra Nakhon Si Ayut.","K.Marash",null,null,"South Dakota"]
[null,null,null,null,null,null,null,null,null,null,null,null,null,null,null,null,"Valladolid",null,"Lot","Kincardineshire","Thesprotia",null,null,null,null,null,null,null,"Lecco","Okinawa",null,null,null,null,null,null,null,null,null,null,null,null,null,null,"The Leningrad Area",null,null,"Kamnik","Phrae","Mardin",null,null,"Tennessee"]
[null,null,null,null,null,null,null,null,null,null,null,null,null,null,null,null,"Vizcaya",null,"Lot-et-Garonne","Kirkcudbrightshire","Thessaloniki",null,null,null,null,null,null,null,"Lecce",null,null,null,null,null,null,null,null,null,null,null,null,null,null,null,"The Lipetsk Area",null,null,"Kanal","Phuket","Mugla",null,null,"Texas"]
[null,null,null,null,null,null,null,null,null,null,null,null,null,null,null,null,"Zamora",null,"Lozere","Kinross-shire","Trikala",null,null,null,null,null,null,null,"Livorno",null,null,null,null,null,null,null,null,null,null,null,null,null,null,null,"The Magadan Area",null,null,"Kidrièevo","Prachin Buri","Mush",null,null,"Utah"]
[null,null,null,null,null,null,null,null,null,null,null,null,null,null,null,null,"Zaragoza",null,"Maine-et-Loire","Lancashire","Voiotia",null,null,null,null,null,null,null,"Lodi",null,null,null,null,null,null,null,null,null,null,null,null,null,null,null,"The Moscow Area",null,null,"Kobarid","Bueng Kan","Nevshehir",null,null,"Virginia"]
[null,null,null,null,null,null,null,null,null,null,null,null,null,null,null,null,null,null,"Manche","Londonderry","Xanthi",null,null,null,null,null,null,null,"Latina",null,null,null,null,null,null,null,null,null,null,null,null,null,null,null,"The Murmansk Area",null,null,"Kobilje",null,"Nigde",null,null,"Virgin Islands"]
[null,null,null,null,null,null,null,null,null,null,null,null,null,null,null,null,null,null,"Marne","Leicestershire","Zakinthos",null,null,null,null,null,null,null,"Lucca",null,null,null,null,null,null,null,null,null,null,null,null,null,null,null,"The Nizhniy Novgorod",null,null,"Koèevje",null,"Ordu",null,null,"Vermont"]
[null,null,null,null,null,null,null,null,null,null,null,null,null,null,null,null,null,null,"Marne (Haute)","Lincolnshire",null,null,null,null,null,null,null,null,"Monza e Brianza",null,null,null,null,null,null,null,null,null,null,null,null,null,null,null,"The Novgorod Area",null,null,"Komen",null,"Rize",null,null,"Washington"]
[null,null,null,null,null,null,null,null,null,null,null,null,null,null,null,null,null,null,"Mayenne","Lanarkshire",null,null,null,null,null,null,null,null,"Macerata",null,null,null,null,null,null,null,null,null,null,null,null,null,null,null,"The Novosibirsk Area",null,null,"Crnomelj",null,"Sakarya",null,null,"Wisconsin"]
[null,null,null,null,null,null,null,null,null,null,null,null,null,null,null,null,null,null,"Meurthe-et-Moselle","Midlothian",null,null,null,null,null,null,null,null,"Messina",null,null,null,null,null,null,null,null,null,null,null,null,null,null,null,"The Omsk Area",null,null,"Koper - Capodistria",null,"Samsun",null,null,"West Virginia"]
[null,null,null,null,null,null,null,null,null,null,null,null,null,null,null,null,null,null,"Meuse","Merioneth",null,null,null,null,null,null,null,null,"Milan",null,null,null,null,null,null,null,null,null,null,null,null,null,null,null,"The Orenburg Area",null,null,"Kozje",null,"Siirt",null,null,"Wyoming"]
[null,null,null,null,null,null,null,null,null,null,null,null,null,null,null,null,null,null,"Morbihan","Mid Glamorgan",null,null,null,null,null,null,null,null,"Mantova",null,null,null,null,null,null,null,null,null,null,null,null,null,null,null,"The Oryol Area",null,null,"Kranj",null,"Sinop"]
[null,null,null,null,null,null,null,null,null,null,null,null,null,null,null,null,null,null,"Moselle","Monmouthshire",null,null,null,null,null,null,null,null,"Modena",null,null,null,null,null,null,null,null,null,null,null,null,null,null,null,"The Penza Area",null,null,"Kranjska Gora",null,"Sivas"]
[null,null,null,null,null,null,null,null,null,null,null,null,null,null,null,null,null,null,"Nievre","Morayshire",null,null,null,null,null,null,null,null,"Massa Carrara",null,null,null,null,null,null,null,null,null,null,null,null,null,null,null,"Perm Territory",null,null,"Kr¹ko",null,"Tekirdag"]
[null,null,null,null,null,null,null,null,null,null,null,null,null,null,null,null,null,null,"Nord","Montgomeryshire",null,null,null,null,null,null,null,null,"Matera",null,null,null,null,null,null,null,null,null,null,null,null,null,null,null,"The Pskov Area",null,null,"Kungota",null,"Tokat"]
[null,null,null,null,null,null,null,null,null,null,null,null,null,null,null,null,null,null,"Oise","Middlesex",null,null,null,null,null,null,null,null,"Naples",null,null,null,null,null,null,null,null,null,null,null,null,null,null,null,"The Rostov Area",null,null,"Kuzma",null,"Trabzon"]
[null,null,null,null,null,null,null,null,null,null,null,null,null,null,null,null,null,null,"Orne","Northamptonshire",null,null,null,null,null,null,null,null,"Novara",null,null,null,null,null,null,null,null,null,null,null,null,null,null,null,"The Ryazan Area",null,null,"La¹ko",null,"Tunceli"]
[null,null,null,null,null,null,null,null,null,null,null,null,null,null,null,null,null,null,"Pas-de-Calais","Norfolk",null,null,null,null,null,null,null,null,"Nuoro",null,null,null,null,null,null,null,null,null,null,null,null,null,null,null,"The Samara Area",null,null,"Lenart",null,"Shanliurfa"]
[null,null,null,null,null,null,null,null,null,null,null,null,null,null,null,null,null,null,"Puy-de-Dome","Nairnshire",null,null,null,null,null,null,null,null,"Ogliastra",null,null,null,null,null,null,null,null,null,null,null,null,null,null,null,"The Saratov Area",null,null,"Lendava - Lendva",null,"Ushak"]
[null,null,null,null,null,null,null,null,null,null,null,null,null,null,null,null,null,null,"Pyrenees-Atlantiques","Nottinghamshire",null,null,null,null,null,null,null,null,"Oristano",null,null,null,null,null,null,null,null,null,null,null,null,null,null,null,"The Sakhalin Area",null,null,"Dravograd",null,"Van"]
[null,null,null,null,null,null,null,null,null,null,null,null,null,null,null,null,null,null,"Pyrenees (Hautes)","Northumberland",null,null,null,null,null,null,null,null,"Olbia-Tempio",null,null,null,null,null,null,null,null,null,null,null,null,null,null,null,"The Sverdlovsk Area",null,null,"Litija",null,"Yozgat"]
[null,null,null,null,null,null,null,null,null,null,null,null,null,null,null,null,null,null,"Pyrenees-Orientales","Orkney",null,null,null,null,null,null,null,null,"Palermo",null,null,null,null,null,null,null,null,null,null,null,null,null,null,null,"The Smolensk Area",null,null,"Ljubljana",null,"Zonguldak"]
[null,null,null,null,null,null,null,null,null,null,null,null,null,null,null,null,null,null,"Bas-Rhin","Oxfordshire",null,null,null,null,null,null,null,null,"Piacenza",null,null,null,null,null,null,null,null,null,null,null,null,null,null,null,"The Tambov Area",null,null,"Ljubno",null,"Aksaray"]
[null,null,null,null,null,null,null,null,null,null,null,null,null,null,null,null,null,null,"Haut-Rhin","Peeblesshire",null,null,null,null,null,null,null,null,"Padova",null,null,null,null,null,null,null,null,null,null,null,null,null,null,null,"The Tver Area",null,null,"Ljutomer",null,"Bayburt"]
[null,null,null,null,null,null,null,null,null,null,null,null,null,null,null,null,null,null,"Rhone","Pembrokeshire",null,null,null,null,null,null,null,null,"Pescara",null,null,null,null,null,null,null,null,null,null,null,null,null,null,null,"The Tomsk Area",null,null,"Logatec",null,"Karaman"]
[null,null,null,null,null,null,null,null,null,null,null,null,null,null,null,null,null,null,"Saone (Haute)","Perthshire",null,null,null,null,null,null,null,null,"Perugia",null,null,null,null,null,null,null,null,null,null,null,null,null,null,null,"The Tula Area",null,null,"Lo¹ka dolina",null,"Kirikkale"]
[null,null,null,null,null,null,null,null,null,null,null,null,null,null,null,null,null,null,"Saone-et-Loire","Radnorshire",null,null,null,null,null,null,null,null,"Pisa",null,null,null,null,null,null,null,null,null,null,null,null,null,null,null,"The Tyumen Area",null,null,"Lo¹ki Potok",null,"Batman"]
[null,null,null,null,null,null,null,null,null,null,null,null,null,null,null,null,null,null,"Sarthe","Renfrewshire",null,null,null,null,null,null,null,null,"Pola",null,null,null,null,null,null,null,null,null,null,null,null,null,null,null,"The Ulyanovsk Area",null,null,"Luèe",null,"Shirnak"]
[null,null,null,null,null,null,null,null,null,null,null,null,null,null,null,null,null,null,"Savoie","Ross-shire",null,null,null,null,null,null,null,null,"Pordenone",null,null,null,null,null,null,null,null,null,null,null,null,null,null,null,"The Chelyabinsk Area",null,null,"Lukovica",null,"Bartin"]
[null,null,null,null,null,null,null,null,null,null,null,null,null,null,null,null,null,null,"Savoie (Haute)","Rutland",null,null,null,null,null,null,null,null,"Prato",null,null,null,null,null,null,null,null,null,null,null,null,null,null,null,"Zabaykalsk Territory",null,null,"Maj¹perk",null,"Ardahan"]
[null,null,null,null,null,null,null,null,null,null,null,null,null,null,null,null,null,null,"Paris","Roxburghshire",null,null,null,null,null,null,null,null,"Parma",null,null,null,null,null,null,null,null,null,null,null,null,null,null,null,"The Yaroslavl Area",null,null,"Gornja Radgona",null,"Igdir"]
[null,null,null,null,null,null,null,null,null,null,null,null,null,null,null,null,null,null,"Seine-Maritime","East Sussex",null,null,null,null,null,null,null,null,"Pistoia",null,null,null,null,null,null,null,null,null,null,null,null,null,null,null,"c.Moscow",null,null,"Maribor",null,"Yalova"]
[null,null,null,null,null,null,null,null,null,null,null,null,null,null,null,null,null,null,"Seine-et-Marne","Selkirkshire",null,null,null,null,null,null,null,null,"Pesaro-Urbino",null,null,null,null,null,null,null,null,null,null,null,null,null,null,null,"c.St-Peterburg",null,null,"Medvode"]
[null,null,null,null,null,null,null,null,null,null,null,null,null,null,null,null,null,null,"Yvelines","South Glamorgan",null,null,null,null,null,null,null,null,"Pavia",null,null,null,null,null,null,null,null,null,null,null,null,null,null,null,"The Jewish Auton.are",null,null,"Menge¹"]
[null,null,null,null,null,null,null,null,null,null,null,null,null,null,null,null,null,null,"Sevres (Deux)","Shropshire",null,null,null,null,null,null,null,null,"Potenza",null,null,null,null,null,null,null,null,null,null,null,null,null,null,null,"Aginsk Buryat Aut.di",null,null,"Metlika"]
[null,null,null,null,null,null,null,null,null,null,null,null,null,null,null,null,null,null,"Somme","Suffolk",null,null,null,null,null,null,null,null,"Ravenna",null,null,null,null,null,null,null,null,null,null,null,null,null,null,null,"Komy Permjats.Aut.di",null,null,"Me¾ica"]
[null,null,null,null,null,null,null,null,null,null,null,null,null,null,null,null,null,null,"Tarn","Shetland",null,null,null,null,null,null,null,null,"Reggio Calabria",null,null,null,null,null,null,null,null,null,null,null,null,null,null,null,"Korjacs Auton.distri",null,null,"Miren-Kostanjevica"]
[null,null,null,null,null,null,null,null,null,null,null,null,null,null,null,null,null,null,"Tarn-et-Garonne","Somerset",null,null,null,null,null,null,null,null,"Reggio Emilia",null,null,null,null,null,null,null,null,null,null,null,null,null,null,null,"Nenekchky Auton.dist",null,null,"Mislinja"]
[null,null,null,null,null,null,null,null,null,null,null,null,null,null,null,null,null,null,"Var","Staffordshire",null,null,null,null,null,null,null,null,"Ragusa",null,null,null,null,null,null,null,null,null,null,null,null,null,null,null,"The Taymir Auton.dis",null,null,"Moravèe"]
[null,null,null,null,null,null,null,null,null,null,null,null,null,null,null,null,null,null,"Vaucluse","Sutherland",null,null,null,null,null,null,null,null,"Rieti",null,null,null,null,null,null,null,null,null,null,null,null,null,null,null,"Ust-Ordinsky Buryat",null,null,"Moravske Toplice"]
[null,null,null,null,null,null,null,null,null,null,null,null,null,null,null,null,null,null,"Vendee","Stirlingshire",null,null,null,null,null,null,null,null,"Rome",null,null,null,null,null,null,null,null,null,null,null,null,null,null,null,"Chanti-Mansyjsky Aut",null,null,"Mozirje"]
[null,null,null,null,null,null,null,null,null,null,null,null,null,null,null,null,null,null,"Vienne","West Sussex",null,null,null,null,null,null,null,null,"Rimini",null,null,null,null,null,null,null,null,null,null,null,null,null,null,null,"Chukotka Auton. dist",null,null,"Grosuplje"]
[null,null,null,null,null,null,null,null,null,null,null,null,null,null,null,null,null,null,"Vienne (Haute)","Surrey",null,null,null,null,null,null,null,null,"Rovigo",null,null,null,null,null,null,null,null,null,null,null,null,null,null,null,"Evensky Auton.distri",null,null,"Murska Sobota"]
[null,null,null,null,null,null,null,null,null,null,null,null,null,null,null,null,null,null,"Vosges","Tyrone",null,null,null,null,null,null,null,null,"Salerno",null,null,null,null,null,null,null,null,null,null,null,null,null,null,null,"Jamalo-Nenekchky Aut",null,null,"Muta"]
[null,null,null,null,null,null,null,null,null,null,null,null,null,null,null,null,null,null,"Yonne","Warwickshire",null,null,null,null,null,null,null,null,"Siena",null,null,null,null,null,null,null,null,null,null,null,null,null,null,null,null,null,null,"Naklo"]
[null,null,null,null,null,null,null,null,null,null,null,null,null,null,null,null,null,null,"Territ.-de-Belfort","Worcestershire",null,null,null,null,null,null,null,null,"Sondrio",null,null,null,null,null,null,null,null,null,null,null,null,null,null,null,null,null,null,"Nazarje"]
[null,null,null,null,null,null,null,null,null,null,null,null,null,null,null,null,null,null,"Essonne","Westmorland",null,null,null,null,null,null,null,null,"La Spezia",null,null,null,null,null,null,null,null,null,null,null,null,null,null,null,null,null,null,"Nova Gorica"]
[null,null,null,null,null,null,null,null,null,null,null,null,null,null,null,null,null,null,"Hauts-de-Seine","West Glamorgan",null,null,null,null,null,null,null,null,"Siracusa",null,null,null,null,null,null,null,null,null,null,null,null,null,null,null,null,null,null,"Novo mesto"]
[null,null,null,null,null,null,null,null,null,null,null,null,null,null,null,null,null,null,"Seine-Saint-Denis","Wiltshire",null,null,null,null,null,null,null,null,"Sassari",null,null,null,null,null,null,null,null,null,null,null,null,null,null,null,null,null,null,"Odranci"]
[null,null,null,null,null,null,null,null,null,null,null,null,null,null,null,null,null,null,"Val-de-Marne","West Lothian",null,null,null,null,null,null,null,null,"Savona",null,null,null,null,null,null,null,null,null,null,null,null,null,null,null,null,null,null,"Ormo¾"]
[null,null,null,null,null,null,null,null,null,null,null,null,null,null,null,null,null,null,"Val-d'Oise","Wigtownshire",null,null,null,null,null,null,null,null,"Taranto",null,null,null,null,null,null,null,null,null,null,null,null,null,null,null,null,null,null,"Osilnica"]
[null,null,null,null,null,null,null,null,null,null,null,null,null,null,null,null,null,null,"D.O.M.-T.O.M.","North Yorkshire",null,null,null,null,null,null,null,null,"Teramo",null,null,null,null,null,null,null,null,null,null,null,null,null,null,null,null,null,null,"Pesnica"]
[null,null,null,null,null,null,null,null,null,null,null,null,null,null,null,null,null,null,"Guadeloupe","South Yorkshire",null,null,null,null,null,null,null,null,"Trento",null,null,null,null,null,null,null,null,null,null,null,null,null,null,null,null,null,null,"Hrastnik Lasko"]
[null,null,null,null,null,null,null,null,null,null,null,null,null,null,null,null,null,null,"Martinique","West Yorkshire",null,null,null,null,null,null,null,null,"Turin",null,null,null,null,null,null,null,null,null,null,null,null,null,null,null,null,null,null,"Piran - Pirano"]
[null,null,null,null,null,null,null,null,null,null,null,null,null,null,null,null,null,null,"Guyane",null,null,null,null,null,null,null,null,null,"Trapani",null,null,null,null,null,null,null,null,null,null,null,null,null,null,null,null,null,null,"Pivka"]
[null,null,null,null,null,null,null,null,null,null,null,null,null,null,null,null,null,null,"Reunion",null,null,null,null,null,null,null,null,null,"Terni",null,null,null,null,null,null,null,null,null,null,null,null,null,null,null,null,null,null,"Podèetrtek"]
[null,null,null,null,null,null,null,null,null,null,null,null,null,null,null,null,null,null,"Saint-Pierre-et-Miq.",null,null,null,null,null,null,null,null,null,"Trieste",null,null,null,null,null,null,null,null,null,null,null,null,null,null,null,null,null,null,"Podvelka"]
[null,null,null,null,null,null,null,null,null,null,null,null,null,null,null,null,null,null,"Wallis-et-Futuna",null,null,null,null,null,null,null,null,null,"Treviso",null,null,null,null,null,null,null,null,null,null,null,null,null,null,null,null,null,null,"Postojna"]
[null,null,null,null,null,null,null,null,null,null,null,null,null,null,null,null,null,null,"Hors-France",null,null,null,null,null,null,null,null,null,"Udine",null,null,null,null,null,null,null,null,null,null,null,null,null,null,null,null,null,null,"Preddvor"]
[null,null,null,null,null,null,null,null,null,null,null,null,null,null,null,null,null,null,null,null,null,null,null,null,null,null,null,null,"Varese",null,null,null,null,null,null,null,null,null,null,null,null,null,null,null,null,null,null,"Ptuj"]
[null,null,null,null,null,null,null,null,null,null,null,null,null,null,null,null,null,null,null,null,null,null,null,null,null,null,null,null,"Verbania",null,null,null,null,null,null,null,null,null,null,null,null,null,null,null,null,null,null,"Puconci"]
[null,null,null,null,null,null,null,null,null,null,null,null,null,null,null,null,null,null,null,null,null,null,null,null,null,null,null,null,"Vercelli",null,null,null,null,null,null,null,null,null,null,null,null,null,null,null,null,null,null,"Raèe-Fram"]
[null,null,null,null,null,null,null,null,null,null,null,null,null,null,null,null,null,null,null,null,null,null,null,null,null,null,null,null,"Venice",null,null,null,null,null,null,null,null,null,null,null,null,null,null,null,null,null,null,"Radeèe"]
[null,null,null,null,null,null,null,null,null,null,null,null,null,null,null,null,null,null,null,null,null,null,null,null,null,null,null,null,"Vicenza",null,null,null,null,null,null,null,null,null,null,null,null,null,null,null,null,null,null,"Idrija"]
[null,null,null,null,null,null,null,null,null,null,null,null,null,null,null,null,null,null,null,null,null,null,null,null,null,null,null,null,"Verona",null,null,null,null,null,null,null,null,null,null,null,null,null,null,null,null,null,null,"Radenci"]
[null,null,null,null,null,null,null,null,null,null,null,null,null,null,null,null,null,null,null,null,null,null,null,null,null,null,null,null,"Medio Campidano",null,null,null,null,null,null,null,null,null,null,null,null,null,null,null,null,null,null,"Radlje ob Dravi"]
[null,null,null,null,null,null,null,null,null,null,null,null,null,null,null,null,null,null,null,null,null,null,null,null,null,null,null,null,"Viterbo",null,null,null,null,null,null,null,null,null,null,null,null,null,null,null,null,null,null,"Radovljica"]
[null,null,null,null,null,null,null,null,null,null,null,null,null,null,null,null,null,null,null,null,null,null,null,null,null,null,null,null,"Vibo Valentia",null,null,null,null,null,null,null,null,null,null,null,null,null,null,null,null,null,null,"Ravne na Koro¹kem"]
[null,null,null,null,null,null,null,null,null,null,null,null,null,null,null,null,null,null,null,null,null,null,null,null,null,null,null,null,"Zara",null,null,null,null,null,null,null,null,null,null,null,null,null,null,null,null,null,null,"Ribnica"]
[null,null,null,null,null,null,null,null,null,null,null,null,null,null,null,null,null,null,null,null,null,null,null,null,null,null,null,null,null,null,null,null,null,null,null,null,null,null,null,null,null,null,null,null,null,null,null,"Roga¹ovci"]
[null,null,null,null,null,null,null,null,null,null,null,null,null,null,null,null,null,null,null,null,null,null,null,null,null,null,null,null,null,null,null,null,null,null,null,null,null,null,null,null,null,null,null,null,null,null,null,"Roga¹ka Slatina"]
[null,null,null,null,null,null,null,null,null,null,null,null,null,null,null,null,null,null,null,null,null,null,null,null,null,null,null,null,null,null,null,null,null,null,null,null,null,null,null,null,null,null,null,null,null,null,null,"Rogatec"]
[null,null,null,null,null,null,null,null,null,null,null,null,null,null,null,null,null,null,null,null,null,null,null,null,null,null,null,null,null,null,null,null,null,null,null,null,null,null,null,null,null,null,null,null,null,null,null,"Ru¹e"]
[null,null,null,null,null,null,null,null,null,null,null,null,null,null,null,null,null,null,null,null,null,null,null,null,null,null,null,null,null,null,null,null,null,null,null,null,null,null,null,null,null,null,null,null,null,null,null,"Semiè"]
[null,null,null,null,null,null,null,null,null,null,null,null,null,null,null,null,null,null,null,null,null,null,null,null,null,null,null,null,null,null,null,null,null,null,null,null,null,null,null,null,null,null,null,null,null,null,null,"Ilirska Bistrica"]
[null,null,null,null,null,null,null,null,null,null,null,null,null,null,null,null,null,null,null,null,null,null,null,null,null,null,null,null,null,null,null,null,null,null,null,null,null,null,null,null,null,null,null,null,null,null,null,"Sevnica"]
[null,null,null,null,null,null,null,null,null,null,null,null,null,null,null,null,null,null,null,null,null,null,null,null,null,null,null,null,null,null,null,null,null,null,null,null,null,null,null,null,null,null,null,null,null,null,null,"Se¾ana"]
[null,null,null,null,null,null,null,null,null,null,null,null,null,null,null,null,null,null,null,null,null,null,null,null,null,null,null,null,null,null,null,null,null,null,null,null,null,null,null,null,null,null,null,null,null,null,null,"Slovenj Gradec"]
[null,null,null,null,null,null,null,null,null,null,null,null,null,null,null,null,null,null,null,null,null,null,null,null,null,null,null,null,null,null,null,null,null,null,null,null,null,null,null,null,null,null,null,null,null,null,null,"Slovenska Bistrica"]
[null,null,null,null,null,null,null,null,null,null,null,null,null,null,null,null,null,null,null,null,null,null,null,null,null,null,null,null,null,null,null,null,null,null,null,null,null,null,null,null,null,null,null,null,null,null,null,"Slovenske Konjice"]
[null,null,null,null,null,null,null,null,null,null,null,null,null,null,null,null,null,null,null,null,null,null,null,null,null,null,null,null,null,null,null,null,null,null,null,null,null,null,null,null,null,null,null,null,null,null,null,"Star¹e"]
[null,null,null,null,null,null,null,null,null,null,null,null,null,null,null,null,null,null,null,null,null,null,null,null,null,null,null,null,null,null,null,null,null,null,null,null,null,null,null,null,null,null,null,null,null,null,null,"Sveti Jurij"]
[null,null,null,null,null,null,null,null,null,null,null,null,null,null,null,null,null,null,null,null,null,null,null,null,null,null,null,null,null,null,null,null,null,null,null,null,null,null,null,null,null,null,null,null,null,null,null,"©enèur"]
[null,null,null,null,null,null,null,null,null,null,null,null,null,null,null,null,null,null,null,null,null,null,null,null,null,null,null,null,null,null,null,null,null,null,null,null,null,null,null,null,null,null,null,null,null,null,null,"©entilj"]
[null,null,null,null,null,null,null,null,null,null,null,null,null,null,null,null,null,null,null,null,null,null,null,null,null,null,null,null,null,null,null,null,null,null,null,null,null,null,null,null,null,null,null,null,null,null,null,"©entjernej"]
[null,null,null,null,null,null,null,null,null,null,null,null,null,null,null,null,null,null,null,null,null,null,null,null,null,null,null,null,null,null,null,null,null,null,null,null,null,null,null,null,null,null,null,null,null,null,null,"Izola"]
[null,null,null,null,null,null,null,null,null,null,null,null,null,null,null,null,null,null,null,null,null,null,null,null,null,null,null,null,null,null,null,null,null,null,null,null,null,null,null,null,null,null,null,null,null,null,null,"©entjur pri Celju"]
[null,null,null,null,null,null,null,null,null,null,null,null,null,null,null,null,null,null,null,null,null,null,null,null,null,null,null,null,null,null,null,null,null,null,null,null,null,null,null,null,null,null,null,null,null,null,null,"©kocjan"]
[null,null,null,null,null,null,null,null,null,null,null,null,null,null,null,null,null,null,null,null,null,null,null,null,null,null,null,null,null,null,null,null,null,null,null,null,null,null,null,null,null,null,null,null,null,null,null,"©kofja Loka"]
[null,null,null,null,null,null,null,null,null,null,null,null,null,null,null,null,null,null,null,null,null,null,null,null,null,null,null,null,null,null,null,null,null,null,null,null,null,null,null,null,null,null,null,null,null,null,null,"©kofljica"]
[null,null,null,null,null,null,null,null,null,null,null,null,null,null,null,null,null,null,null,null,null,null,null,null,null,null,null,null,null,null,null,null,null,null,null,null,null,null,null,null,null,null,null,null,null,null,null,"©marje pri Jel¹ah"]
[null,null,null,null,null,null,null,null,null,null,null,null,null,null,null,null,null,null,null,null,null,null,null,null,null,null,null,null,null,null,null,null,null,null,null,null,null,null,null,null,null,null,null,null,null,null,null,"©martno ob Paki"]
[null,null,null,null,null,null,null,null,null,null,null,null,null,null,null,null,null,null,null,null,null,null,null,null,null,null,null,null,null,null,null,null,null,null,null,null,null,null,null,null,null,null,null,null,null,null,null,"©o¹tanj"]
[null,null,null,null,null,null,null,null,null,null,null,null,null,null,null,null,null,null,null,null,null,null,null,null,null,null,null,null,null,null,null,null,null,null,null,null,null,null,null,null,null,null,null,null,null,null,null,"©tore"]
[null,null,null,null,null,null,null,null,null,null,null,null,null,null,null,null,null,null,null,null,null,null,null,null,null,null,null,null,null,null,null,null,null,null,null,null,null,null,null,null,null,null,null,null,null,null,null,"Tolmin"]
[null,null,null,null,null,null,null,null,null,null,null,null,null,null,null,null,null,null,null,null,null,null,null,null,null,null,null,null,null,null,null,null,null,null,null,null,null,null,null,null,null,null,null,null,null,null,null,"Trbovlje"]
[null,null,null,null,null,null,null,null,null,null,null,null,null,null,null,null,null,null,null,null,null,null,null,null,null,null,null,null,null,null,null,null,null,null,null,null,null,null,null,null,null,null,null,null,null,null,null,"Jesenice"]
[null,null,null,null,null,null,null,null,null,null,null,null,null,null,null,null,null,null,null,null,null,null,null,null,null,null,null,null,null,null,null,null,null,null,null,null,null,null,null,null,null,null,null,null,null,null,null,"Trebnje"]
[null,null,null,null,null,null,null,null,null,null,null,null,null,null,null,null,null,null,null,null,null,null,null,null,null,null,null,null,null,null,null,null,null,null,null,null,null,null,null,null,null,null,null,null,null,null,null,"Tr¾iè"]
[null,null,null,null,null,null,null,null,null,null,null,null,null,null,null,null,null,null,null,null,null,null,null,null,null,null,null,null,null,null,null,null,null,null,null,null,null,null,null,null,null,null,null,null,null,null,null,"Turni¹èe"]
[null,null,null,null,null,null,null,null,null,null,null,null,null,null,null,null,null,null,null,null,null,null,null,null,null,null,null,null,null,null,null,null,null,null,null,null,null,null,null,null,null,null,null,null,null,null,null,"Velenje"]
[null,null,null,null,null,null,null,null,null,null,null,null,null,null,null,null,null,null,null,null,null,null,null,null,null,null,null,null,null,null,null,null,null,null,null,null,null,null,null,null,null,null,null,null,null,null,null,"Velike La¹èe"]
[null,null,null,null,null,null,null,null,null,null,null,null,null,null,null,null,null,null,null,null,null,null,null,null,null,null,null,null,null,null,null,null,null,null,null,null,null,null,null,null,null,null,null,null,null,null,null,"Videm"]
[null,null,null,null,null,null,null,null,null,null,null,null,null,null,null,null,null,null,null,null,null,null,null,null,null,null,null,null,null,null,null,null,null,null,null,null,null,null,null,null,null,null,null,null,null,null,null,"Vipava"]
[null,null,null,null,null,null,null,null,null,null,null,null,null,null,null,null,null,null,null,null,null,null,null,null,null,null,null,null,null,null,null,null,null,null,null,null,null,null,null,null,null,null,null,null,null,null,null,"Vitanje"]
[null,null,null,null,null,null,null,null,null,null,null,null,null,null,null,null,null,null,null,null,null,null,null,null,null,null,null,null,null,null,null,null,null,null,null,null,null,null,null,null,null,null,null,null,null,null,null,"Vodice"]
[null,null,null,null,null,null,null,null,null,null,null,null,null,null,null,null,null,null,null,null,null,null,null,null,null,null,null,null,null,null,null,null,null,null,null,null,null,null,null,null,null,null,null,null,null,null,null,"Vojnik"]
[null,null,null,null,null,null,null,null,null,null,null,null,null,null,null,null,null,null,null,null,null,null,null,null,null,null,null,null,null,null,null,null,null,null,null,null,null,null,null,null,null,null,null,null,null,null,null,"Kamnik"]
[null,null,null,null,null,null,null,null,null,null,null,null,null,null,null,null,null,null,null,null,null,null,null,null,null,null,null,null,null,null,null,null,null,null,null,null,null,null,null,null,null,null,null,null,null,null,null,"Vrhnika"]
[null,null,null,null,null,null,null,null,null,null,null,null,null,null,null,null,null,null,null,null,null,null,null,null,null,null,null,null,null,null,null,null,null,null,null,null,null,null,null,null,null,null,null,null,null,null,null,"Vuzenica"]
[null,null,null,null,null,null,null,null,null,null,null,null,null,null,null,null,null,null,null,null,null,null,null,null,null,null,null,null,null,null,null,null,null,null,null,null,null,null,null,null,null,null,null,null,null,null,null,"Zagorje ob Savi"]
[null,null,null,null,null,null,null,null,null,null,null,null,null,null,null,null,null,null,null,null,null,null,null,null,null,null,null,null,null,null,null,null,null,null,null,null,null,null,null,null,null,null,null,null,null,null,null,"Zavrè"]
[null,null,null,null,null,null,null,null,null,null,null,null,null,null,null,null,null,null,null,null,null,null,null,null,null,null,null,null,null,null,null,null,null,null,null,null,null,null,null,null,null,null,null,null,null,null,null,"Zreèe"]
[null,null,null,null,null,null,null,null,null,null,null,null,null,null,null,null,null,null,null,null,null,null,null,null,null,null,null,null,null,null,null,null,null,null,null,null,null,null,null,null,null,null,null,null,null,null,null,"®elezniki"]
[null,null,null,null,null,null,null,null,null,null,null,null,null,null,null,null,null,null,null,null,null,null,null,null,null,null,null,null,null,null,null,null,null,null,null,null,null,null,null,null,null,null,null,null,null,null,null,"®iri"]
[null,null,null,null,null,null,null,null,null,null,null,null,null,null,null,null,null,null,null,null,null,null,null,null,null,null,null,null,null,null,null,null,null,null,null,null,null,null,null,null,null,null,null,null,null,null,null,"Benedikt"]
[null,null,null,null,null,null,null,null,null,null,null,null,null,null,null,null,null,null,null,null,null,null,null,null,null,null,null,null,null,null,null,null,null,null,null,null,null,null,null,null,null,null,null,null,null,null,null,"Bistrica ob Sotli"]
[null,null,null,null,null,null,null,null,null,null,null,null,null,null,null,null,null,null,null,null,null,null,null,null,null,null,null,null,null,null,null,null,null,null,null,null,null,null,null,null,null,null,null,null,null,null,null,"Kocevje"]
[null,null,null,null,null,null,null,null,null,null,null,null,null,null,null,null,null,null,null,null,null,null,null,null,null,null,null,null,null,null,null,null,null,null,null,null,null,null,null,null,null,null,null,null,null,null,null,"Bloke"]
[null,null,null,null,null,null,null,null,null,null,null,null,null,null,null,null,null,null,null,null,null,null,null,null,null,null,null,null,null,null,null,null,null,null,null,null,null,null,null,null,null,null,null,null,null,null,null,"Braslovèe"]
[null,null,null,null,null,null,null,null,null,null,null,null,null,null,null,null,null,null,null,null,null,null,null,null,null,null,null,null,null,null,null,null,null,null,null,null,null,null,null,null,null,null,null,null,null,null,null,"Cankova"]
[null,null,null,null,null,null,null,null,null,null,null,null,null,null,null,null,null,null,null,null,null,null,null,null,null,null,null,null,null,null,null,null,null,null,null,null,null,null,null,null,null,null,null,null,null,null,null,"Cerkvenjak"]
[null,null,null,null,null,null,null,null,null,null,null,null,null,null,null,null,null,null,null,null,null,null,null,null,null,null,null,null,null,null,null,null,null,null,null,null,null,null,null,null,null,null,null,null,null,null,null,"Dobje"]
[null,null,null,null,null,null,null,null,null,null,null,null,null,null,null,null,null,null,null,null,null,null,null,null,null,null,null,null,null,null,null,null,null,null,null,null,null,null,null,null,null,null,null,null,null,null,null,"Dobrna"]
[null,null,null,null,null,null,null,null,null,null,null,null,null,null,null,null,null,null,null,null,null,null,null,null,null,null,null,null,null,null,null,null,null,null,null,null,null,null,null,null,null,null,null,null,null,null,null,"Dobrovnik - Dobronak"]
[null,null,null,null,null,null,null,null,null,null,null,null,null,null,null,null,null,null,null,null,null,null,null,null,null,null,null,null,null,null,null,null,null,null,null,null,null,null,null,null,null,null,null,null,null,null,null,"Dolenjske Toplice"]
[null,null,null,null,null,null,null,null,null,null,null,null,null,null,null,null,null,null,null,null,null,null,null,null,null,null,null,null,null,null,null,null,null,null,null,null,null,null,null,null,null,null,null,null,null,null,null,"Grad"]
[null,null,null,null,null,null,null,null,null,null,null,null,null,null,null,null,null,null,null,null,null,null,null,null,null,null,null,null,null,null,null,null,null,null,null,null,null,null,null,null,null,null,null,null,null,null,null,"Hajdina"]
[null,null,null,null,null,null,null,null,null,null,null,null,null,null,null,null,null,null,null,null,null,null,null,null,null,null,null,null,null,null,null,null,null,null,null,null,null,null,null,null,null,null,null,null,null,null,null,"Koper"]
[null,null,null,null,null,null,null,null,null,null,null,null,null,null,null,null,null,null,null,null,null,null,null,null,null,null,null,null,null,null,null,null,null,null,null,null,null,null,null,null,null,null,null,null,null,null,null,"Hoèe-Slivnica"]
[null,null,null,null,null,null,null,null,null,null,null,null,null,null,null,null,null,null,null,null,null,null,null,null,null,null,null,null,null,null,null,null,null,null,null,null,null,null,null,null,null,null,null,null,null,null,null,"Hodo¹ - Hodos"]
[null,null,null,null,null,null,null,null,null,null,null,null,null,null,null,null,null,null,null,null,null,null,null,null,null,null,null,null,null,null,null,null,null,null,null,null,null,null,null,null,null,null,null,null,null,null,null,"Horjul"]
[null,null,null,null,null,null,null,null,null,null,null,null,null,null,null,null,null,null,null,null,null,null,null,null,null,null,null,null,null,null,null,null,null,null,null,null,null,null,null,null,null,null,null,null,null,null,null,"Jezersko"]
[null,null,null,null,null,null,null,null,null,null,null,null,null,null,null,null,null,null,null,null,null,null,null,null,null,null,null,null,null,null,null,null,null,null,null,null,null,null,null,null,null,null,null,null,null,null,null,"Komenda"]
[null,null,null,null,null,null,null,null,null,null,null,null,null,null,null,null,null,null,null,null,null,null,null,null,null,null,null,null,null,null,null,null,null,null,null,null,null,null,null,null,null,null,null,null,null,null,null,"Kostel"]
[null,null,null,null,null,null,null,null,null,null,null,null,null,null,null,null,null,null,null,null,null,null,null,null,null,null,null,null,null,null,null,null,null,null,null,null,null,null,null,null,null,null,null,null,null,null,null,"Kri¾evci"]
[null,null,null,null,null,null,null,null,null,null,null,null,null,null,null,null,null,null,null,null,null,null,null,null,null,null,null,null,null,null,null,null,null,null,null,null,null,null,null,null,null,null,null,null,null,null,null,"Lovrenc na Pohorju"]
[null,null,null,null,null,null,null,null,null,null,null,null,null,null,null,null,null,null,null,null,null,null,null,null,null,null,null,null,null,null,null,null,null,null,null,null,null,null,null,null,null,null,null,null,null,null,null,"Markovci"]
[null,null,null,null,null,null,null,null,null,null,null,null,null,null,null,null,null,null,null,null,null,null,null,null,null,null,null,null,null,null,null,null,null,null,null,null,null,null,null,null,null,null,null,null,null,null,null,"Miklav¾ na Dravskem"]
[null,null,null,null,null,null,null,null,null,null,null,null,null,null,null,null,null,null,null,null,null,null,null,null,null,null,null,null,null,null,null,null,null,null,null,null,null,null,null,null,null,null,null,null,null,null,null,"Kranj"]
[null,null,null,null,null,null,null,null,null,null,null,null,null,null,null,null,null,null,null,null,null,null,null,null,null,null,null,null,null,null,null,null,null,null,null,null,null,null,null,null,null,null,null,null,null,null,null,"Mirna Peè"]
[null,null,null,null,null,null,null,null,null,null,null,null,null,null,null,null,null,null,null,null,null,null,null,null,null,null,null,null,null,null,null,null,null,null,null,null,null,null,null,null,null,null,null,null,null,null,null,"Oplotnica"]
[null,null,null,null,null,null,null,null,null,null,null,null,null,null,null,null,null,null,null,null,null,null,null,null,null,null,null,null,null,null,null,null,null,null,null,null,null,null,null,null,null,null,null,null,null,null,null,"Podlehnik"]
[null,null,null,null,null,null,null,null,null,null,null,null,null,null,null,null,null,null,null,null,null,null,null,null,null,null,null,null,null,null,null,null,null,null,null,null,null,null,null,null,null,null,null,null,null,null,null,"Polzela"]
[null,null,null,null,null,null,null,null,null,null,null,null,null,null,null,null,null,null,null,null,null,null,null,null,null,null,null,null,null,null,null,null,null,null,null,null,null,null,null,null,null,null,null,null,null,null,null,"Prebold"]
[null,null,null,null,null,null,null,null,null,null,null,null,null,null,null,null,null,null,null,null,null,null,null,null,null,null,null,null,null,null,null,null,null,null,null,null,null,null,null,null,null,null,null,null,null,null,null,"Prevalje"]
[null,null,null,null,null,null,null,null,null,null,null,null,null,null,null,null,null,null,null,null,null,null,null,null,null,null,null,null,null,null,null,null,null,null,null,null,null,null,null,null,null,null,null,null,null,null,null,"Razkri¾je"]
[null,null,null,null,null,null,null,null,null,null,null,null,null,null,null,null,null,null,null,null,null,null,null,null,null,null,null,null,null,null,null,null,null,null,null,null,null,null,null,null,null,null,null,null,null,null,null,"Ribnica na Pohorju"]
[null,null,null,null,null,null,null,null,null,null,null,null,null,null,null,null,null,null,null,null,null,null,null,null,null,null,null,null,null,null,null,null,null,null,null,null,null,null,null,null,null,null,null,null,null,null,null,"Selnica ob Dravi"]
[null,null,null,null,null,null,null,null,null,null,null,null,null,null,null,null,null,null,null,null,null,null,null,null,null,null,null,null,null,null,null,null,null,null,null,null,null,null,null,null,null,null,null,null,null,null,null,"Sodra¾ica"]
[null,null,null,null,null,null,null,null,null,null,null,null,null,null,null,null,null,null,null,null,null,null,null,null,null,null,null,null,null,null,null,null,null,null,null,null,null,null,null,null,null,null,null,null,null,null,null,"Krsko"]
[null,null,null,null,null,null,null,null,null,null,null,null,null,null,null,null,null,null,null,null,null,null,null,null,null,null,null,null,null,null,null,null,null,null,null,null,null,null,null,null,null,null,null,null,null,null,null,"Solèava"]
[null,null,null,null,null,null,null,null,null,null,null,null,null,null,null,null,null,null,null,null,null,null,null,null,null,null,null,null,null,null,null,null,null,null,null,null,null,null,null,null,null,null,null,null,null,null,null,"Sveta Ana"]
[null,null,null,null,null,null,null,null,null,null,null,null,null,null,null,null,null,null,null,null,null,null,null,null,null,null,null,null,null,null,null,null,null,null,null,null,null,null,null,null,null,null,null,null,null,null,null,"Sveti Andra¾ v Slov."]
[null,null,null,null,null,null,null,null,null,null,null,null,null,null,null,null,null,null,null,null,null,null,null,null,null,null,null,null,null,null,null,null,null,null,null,null,null,null,null,null,null,null,null,null,null,null,null,"©empeter - Vrtojba"]
[null,null,null,null,null,null,null,null,null,null,null,null,null,null,null,null,null,null,null,null,null,null,null,null,null,null,null,null,null,null,null,null,null,null,null,null,null,null,null,null,null,null,null,null,null,null,null,"Tabor"]
[null,null,null,null,null,null,null,null,null,null,null,null,null,null,null,null,null,null,null,null,null,null,null,null,null,null,null,null,null,null,null,null,null,null,null,null,null,null,null,null,null,null,null,null,null,null,null,"Trnovska vas"]
[null,null,null,null,null,null,null,null,null,null,null,null,null,null,null,null,null,null,null,null,null,null,null,null,null,null,null,null,null,null,null,null,null,null,null,null,null,null,null,null,null,null,null,null,null,null,null,"Trzin"]
[null,null,null,null,null,null,null,null,null,null,null,null,null,null,null,null,null,null,null,null,null,null,null,null,null,null,null,null,null,null,null,null,null,null,null,null,null,null,null,null,null,null,null,null,null,null,null,"Velika Polana"]
[null,null,null,null,null,null,null,null,null,null,null,null,null,null,null,null,null,null,null,null,null,null,null,null,null,null,null,null,null,null,null,null,null,null,null,null,null,null,null,null,null,null,null,null,null,null,null,"Ver¾ej"]
[null,null,null,null,null,null,null,null,null,null,null,null,null,null,null,null,null,null,null,null,null,null,null,null,null,null,null,null,null,null,null,null,null,null,null,null,null,null,null,null,null,null,null,null,null,null,null,"Vransko"]
[null,null,null,null,null,null,null,null,null,null,null,null,null,null,null,null,null,null,null,null,null,null,null,null,null,null,null,null,null,null,null,null,null,null,null,null,null,null,null,null,null,null,null,null,null,null,null,"Lenart"]
[null,null,null,null,null,null,null,null,null,null,null,null,null,null,null,null,null,null,null,null,null,null,null,null,null,null,null,null,null,null,null,null,null,null,null,null,null,null,null,null,null,null,null,null,null,null,null,"®alec"]
[null,null,null,null,null,null,null,null,null,null,null,null,null,null,null,null,null,null,null,null,null,null,null,null,null,null,null,null,null,null,null,null,null,null,null,null,null,null,null,null,null,null,null,null,null,null,null,"®etale"]
[null,null,null,null,null,null,null,null,null,null,null,null,null,null,null,null,null,null,null,null,null,null,null,null,null,null,null,null,null,null,null,null,null,null,null,null,null,null,null,null,null,null,null,null,null,null,null,"®irovnica"]
[null,null,null,null,null,null,null,null,null,null,null,null,null,null,null,null,null,null,null,null,null,null,null,null,null,null,null,null,null,null,null,null,null,null,null,null,null,null,null,null,null,null,null,null,null,null,null,"®u¾emberk"]
[null,null,null,null,null,null,null,null,null,null,null,null,null,null,null,null,null,null,null,null,null,null,null,null,null,null,null,null,null,null,null,null,null,null,null,null,null,null,null,null,null,null,null,null,null,null,null,"Lendava"]
[null,null,null,null,null,null,null,null,null,null,null,null,null,null,null,null,null,null,null,null,null,null,null,null,null,null,null,null,null,null,null,null,null,null,null,null,null,null,null,null,null,null,null,null,null,null,null,"Litija"]
[null,null,null,null,null,null,null,null,null,null,null,null,null,null,null,null,null,null,null,null,null,null,null,null,null,null,null,null,null,null,null,null,null,null,null,null,null,null,null,null,null,null,null,null,null,null,null,"Ljubljana-Bezigrad"]
[null,null,null,null,null,null,null,null,null,null,null,null,null,null,null,null,null,null,null,null,null,null,null,null,null,null,null,null,null,null,null,null,null,null,null,null,null,null,null,null,null,null,null,null,null,null,null,"Ljubljana-Center"]
[null,null,null,null,null,null,null,null,null,null,null,null,null,null,null,null,null,null,null,null,null,null,null,null,null,null,null,null,null,null,null,null,null,null,null,null,null,null,null,null,null,null,null,null,null,null,null,"Ljubljana-Moste-Polj"]
[null,null,null,null,null,null,null,null,null,null,null,null,null,null,null,null,null,null,null,null,null,null,null,null,null,null,null,null,null,null,null,null,null,null,null,null,null,null,null,null,null,null,null,null,null,null,null,"Ljubljana-Siska"]
[null,null,null,null,null,null,null,null,null,null,null,null,null,null,null,null,null,null,null,null,null,null,null,null,null,null,null,null,null,null,null,null,null,null,null,null,null,null,null,null,null,null,null,null,null,null,null,"Ljubljana-Vic-Rudnik"]
[null,null,null,null,null,null,null,null,null,null,null,null,null,null,null,null,null,null,null,null,null,null,null,null,null,null,null,null,null,null,null,null,null,null,null,null,null,null,null,null,null,null,null,null,null,null,null,"Ljutomer"]
[null,null,null,null,null,null,null,null,null,null,null,null,null,null,null,null,null,null,null,null,null,null,null,null,null,null,null,null,null,null,null,null,null,null,null,null,null,null,null,null,null,null,null,null,null,null,null,"Logatec"]
[null,null,null,null,null,null,null,null,null,null,null,null,null,null,null,null,null,null,null,null,null,null,null,null,null,null,null,null,null,null,null,null,null,null,null,null,null,null,null,null,null,null,null,null,null,null,null,"Maribor"]
[null,null,null,null,null,null,null,null,null,null,null,null,null,null,null,null,null,null,null,null,null,null,null,null,null,null,null,null,null,null,null,null,null,null,null,null,null,null,null,null,null,null,null,null,null,null,null,"Metlika"]
[null,null,null,null,null,null,null,null,null,null,null,null,null,null,null,null,null,null,null,null,null,null,null,null,null,null,null,null,null,null,null,null,null,null,null,null,null,null,null,null,null,null,null,null,null,null,null,"Mozirje"]
[null,null,null,null,null,null,null,null,null,null,null,null,null,null,null,null,null,null,null,null,null,null,null,null,null,null,null,null,null,null,null,null,null,null,null,null,null,null,null,null,null,null,null,null,null,null,null,"Murska Sobota"]
[null,null,null,null,null,null,null,null,null,null,null,null,null,null,null,null,null,null,null,null,null,null,null,null,null,null,null,null,null,null,null,null,null,null,null,null,null,null,null,null,null,null,null,null,null,null,null,"Nova Gorica"]
[null,null,null,null,null,null,null,null,null,null,null,null,null,null,null,null,null,null,null,null,null,null,null,null,null,null,null,null,null,null,null,null,null,null,null,null,null,null,null,null,null,null,null,null,null,null,null,"Novo Mesto"]
[null,null,null,null,null,null,null,null,null,null,null,null,null,null,null,null,null,null,null,null,null,null,null,null,null,null,null,null,null,null,null,null,null,null,null,null,null,null,null,null,null,null,null,null,null,null,null,"Ormoz"]
[null,null,null,null,null,null,null,null,null,null,null,null,null,null,null,null,null,null,null,null,null,null,null,null,null,null,null,null,null,null,null,null,null,null,null,null,null,null,null,null,null,null,null,null,null,null,null,"Pesnica"]
[null,null,null,null,null,null,null,null,null,null,null,null,null,null,null,null,null,null,null,null,null,null,null,null,null,null,null,null,null,null,null,null,null,null,null,null,null,null,null,null,null,null,null,null,null,null,null,"Piran"]
[null,null,null,null,null,null,null,null,null,null,null,null,null,null,null,null,null,null,null,null,null,null,null,null,null,null,null,null,null,null,null,null,null,null,null,null,null,null,null,null,null,null,null,null,null,null,null,"Postojna"]
[null,null,null,null,null,null,null,null,null,null,null,null,null,null,null,null,null,null,null,null,null,null,null,null,null,null,null,null,null,null,null,null,null,null,null,null,null,null,null,null,null,null,null,null,null,null,null,"Ptuj"]
[null,null,null,null,null,null,null,null,null,null,null,null,null,null,null,null,null,null,null,null,null,null,null,null,null,null,null,null,null,null,null,null,null,null,null,null,null,null,null,null,null,null,null,null,null,null,null,"Radlje Ob Dravi"]
[null,null,null,null,null,null,null,null,null,null,null,null,null,null,null,null,null,null,null,null,null,null,null,null,null,null,null,null,null,null,null,null,null,null,null,null,null,null,null,null,null,null,null,null,null,null,null,"Radovljica"]
[null,null,null,null,null,null,null,null,null,null,null,null,null,null,null,null,null,null,null,null,null,null,null,null,null,null,null,null,null,null,null,null,null,null,null,null,null,null,null,null,null,null,null,null,null,null,null,"Ravne Na Koroskem"]
[null,null,null,null,null,null,null,null,null,null,null,null,null,null,null,null,null,null,null,null,null,null,null,null,null,null,null,null,null,null,null,null,null,null,null,null,null,null,null,null,null,null,null,null,null,null,null,"Ribnica"]
[null,null,null,null,null,null,null,null,null,null,null,null,null,null,null,null,null,null,null,null,null,null,null,null,null,null,null,null,null,null,null,null,null,null,null,null,null,null,null,null,null,null,null,null,null,null,null,"Ruse"]
[null,null,null,null,null,null,null,null,null,null,null,null,null,null,null,null,null,null,null,null,null,null,null,null,null,null,null,null,null,null,null,null,null,null,null,null,null,null,null,null,null,null,null,null,null,null,null,"Sentjur Pri Celju"]
[null,null,null,null,null,null,null,null,null,null,null,null,null,null,null,null,null,null,null,null,null,null,null,null,null,null,null,null,null,null,null,null,null,null,null,null,null,null,null,null,null,null,null,null,null,null,null,"Sevnica"]
[null,null,null,null,null,null,null,null,null,null,null,null,null,null,null,null,null,null,null,null,null,null,null,null,null,null,null,null,null,null,null,null,null,null,null,null,null,null,null,null,null,null,null,null,null,null,null,"Sezana"]
[null,null,null,null,null,null,null,null,null,null,null,null,null,null,null,null,null,null,null,null,null,null,null,null,null,null,null,null,null,null,null,null,null,null,null,null,null,null,null,null,null,null,null,null,null,null,null,"Skofja Loka"]
[null,null,null,null,null,null,null,null,null,null,null,null,null,null,null,null,null,null,null,null,null,null,null,null,null,null,null,null,null,null,null,null,null,null,null,null,null,null,null,null,null,null,null,null,null,null,null,"Slovenj Gradec"]
[null,null,null,null,null,null,null,null,null,null,null,null,null,null,null,null,null,null,null,null,null,null,null,null,null,null,null,null,null,null,null,null,null,null,null,null,null,null,null,null,null,null,null,null,null,null,null,"Slovenska Bistrica"]
[null,null,null,null,null,null,null,null,null,null,null,null,null,null,null,null,null,null,null,null,null,null,null,null,null,null,null,null,null,null,null,null,null,null,null,null,null,null,null,null,null,null,null,null,null,null,null,"Slovenske Konjice"]
[null,null,null,null,null,null,null,null,null,null,null,null,null,null,null,null,null,null,null,null,null,null,null,null,null,null,null,null,null,null,null,null,null,null,null,null,null,null,null,null,null,null,null,null,null,null,null,"Smarje Pri Jelsah"]
[null,null,null,null,null,null,null,null,null,null,null,null,null,null,null,null,null,null,null,null,null,null,null,null,null,null,null,null,null,null,null,null,null,null,null,null,null,null,null,null,null,null,null,null,null,null,null,"Tolmin"]
[null,null,null,null,null,null,null,null,null,null,null,null,null,null,null,null,null,null,null,null,null,null,null,null,null,null,null,null,null,null,null,null,null,null,null,null,null,null,null,null,null,null,null,null,null,null,null,"Trbovlje"]
[null,null,null,null,null,null,null,null,null,null,null,null,null,null,null,null,null,null,null,null,null,null,null,null,null,null,null,null,null,null,null,null,null,null,null,null,null,null,null,null,null,null,null,null,null,null,null,"Trebnje"]
[null,null,null,null,null,null,null,null,null,null,null,null,null,null,null,null,null,null,null,null,null,null,null,null,null,null,null,null,null,null,null,null,null,null,null,null,null,null,null,null,null,null,null,null,null,null,null,"Trzic"]
[null,null,null,null,null,null,null,null,null,null,null,null,null,null,null,null,null,null,null,null,null,null,null,null,null,null,null,null,null,null,null,null,null,null,null,null,null,null,null,null,null,null,null,null,null,null,null,"Velenje"]
[null,null,null,null,null,null,null,null,null,null,null,null,null,null,null,null,null,null,null,null,null,null,null,null,null,null,null,null,null,null,null,null,null,null,null,null,null,null,null,null,null,null,null,null,null,null,null,"Vrhnika"]
[null,null,null,null,null,null,null,null,null,null,null,null,null,null,null,null,null,null,null,null,null,null,null,null,null,null,null,null,null,null,null,null,null,null,null,null,null,null,null,null,null,null,null,null,null,null,null,"Zagorje Ob Savi"]
[null,null,null,null,null,null,null,null,null,null,null,null,null,null,null,null,null,null,null,null,null,null,null,null,null,null,null,null,null,null,null,null,null,null,null,null,null,null,null,null,null,null,null,null,null,null,null,"Zalec"]